Workbook

Sheet draft E_U ou U_E
A1: Colonne1
A2: 1 câble jointif
A3: 2 câbles jointif
A4: 3 câbles jointif
O10: Que choisis t'on ?
O11: -3
O12: -
B13: - | D13: coût | H13: +
I16: 94 | J16: élevés
D19: Géometrie
I23: 59 | J23: MM
D26: Voltage (efficace)
B27: 0 V | H27: 1 kV
M28: Distance de ligne de fuite
I29: 61 | J29: 610 V | K29: TEFLON / PTFE

Sheet entré_sortie
A1: technologie | B1: vitesse | C1: cout | D1: bruit | E1: durée de vie | F1: encombrement | G1: choc | H1: courant | I1: tension | J1: temperature | K1: vibration | L1: Commentaires
A2: Type de moyeux (Usiner/Empiler) | L2: 1
A3: type de dorure (24k,18+24k) | L3: 2
A4: type de brin (multi/mono) | B4: µcut | L4: 3
A5: matiere brin | L5: 4
A6: épaisseur d'isolant | L6: 5
A7: matière isolant | L7: 6
A8: geometrie des support brins (épingle/brin) | L8: 7
A9: type de contact (charbon/brin) | L9: 8
A10: geometrie des piste(oreille/sans oreille) | L10: 9
A11: Øbrins | L11: 10
A12: Øfils | L12: 11
A13: Angle de picure | L13: 12
A14: ep de piste | L14: 13
A15: Nb de piste | L15: 14
A16: Pression de contact | L16: 15

Sheet technologie
C1: Endurance | D1: vitesse | E1: cout | F1: bruit en mohm | G1: choc | H1: Voltage | I1: encombrement | J1: commentaire
A2: 1 | B2: Usinée empilé | C2: -/++ | D2: 0,066-382 | E2: - | F2: 2,5-30 | G2: 2-500 | H2: 5,25-3250 | I2: -
B3: Empilé usiné | C3: 1 000 000-90 000 000 | D3: 9,5-6000 | E3: + | F3: 10,0-50 | G3: 8-4 000 | H3: 5-415 | I3: +
C6: Endurance | D6: bruit en mohm | E6: cout | F6: nombre de produit | J6: commentaire
A7: type de dorure | B7: traitement A | C7: -/++ | D7: -/++ | E7: +++ | F7: 48 | J7: 5
B8: traitement B | C8: +/+++ | D8: -/++ | E8: ++ | F8: 12 | J8: 48
B9: traitement C | C9: +/++ | D9: ++ | E9: + | F9: 5 | J9: 12
J10: 4 (0416,0519,1438,1438-01)
C11: Endurance | D11: vitesse | E11: courant | F11: nombre de produit | J11: commentaire
A12: type de brin | B12: mono brins | C12: -/+++ | D12: -/++ | E12: -/++ | F12: 60
B13: multi brins | C13: +/+++ | D13: -/+++ | E13: -/+++ | F13: 17
C15: Endurance | D15: bruit | E15: vitesse | F15: nombre de produit | J15: commentaire
A16: matière brin | B16: matières A | C16: -/+++ | D16: -/+++ | E16: -/+++ | F16: 68
B17: matières B | C17: + | D17: + | E17: +/++ | F17: 4 | J17: 4 collecteur | K17: donnée peu fiable car statistiquement pauvre
B18: matières C | C18: + | D18: + | E18: + | F18: 1 | J18: 1 collecteur 9843
J19: 2 collecteur que des TS argenture
C22: encombrement | D22: U:E ou E:U | E22: Voltage | J22: commentaire
A23: 5 | B23: ep isolant | C23: va permetre de savoir si beaucoup de marge | D23: f(x) du type de moyeu l'ep change | E23: creepage | J23: voir tableau --------->
C25: Voltage
A26: 6 | B26: matiere isolant | C26: selectionner avec le creepage et conjointement avec ep isolant
A29: 7 | B29: épingle
B30: brins
C32: endurance | D32: encombrement | E32: amperage | F32: vitesse | G32: cout | H32: bruit
A33: 8 | B33: charbon | C33: 7500000 | D33: ++ | E33: 300-400 | F33: 10,0-25 | G33: +++++
B34: brins | C34: 200 000-90 000 000 | D34: -- | E34: 10-400 | F34: 0,066-6 000 | G34: - | J34: 1701 a 400A sinon max 210A (2109)
C36: encombrement | D36: courant | E36: Øfils
A37: 9 | B37: oreille | C37: --
B38: sans oreille | C38: +
B39: V | C39: -
B40: déport | C40: ++ | E40: AWG8-12
B42: Øbrins | C42: endurance | D42: amperage
A43: 10 | B43: 0.125 | D43: effet joule (travaille JDE/Dinesh)
B44: 0.25
C47: amperage | D47: Voltage
A48: 11 | B48: Ø fils | C48: effet joule
A51: 12 | B51: angle de piqure70° | C51: definis avec le type de brins
B52: angle de piqure90°
A54: 13 | B54: epaisseur de piste | C54: choisis avec le Øbrins

Sheet échauffement des fils
A1: Échauffement fils | AQ1: gestion des tableau | AY1: fonction de fils | BA1: 1 câble | BB1: 2 câbles jointif horizontaux | BC1: 3 câbles jointif horizontaux | BD1: 3 câbles trèfle | BE1: 2 câbles jointif verticaux | BF1: 3 câbles jointif verticaux | BG1: 2 cable espacée de Øext verticaux | BH1: 3 cable espacée de Øext verticaux | CG1: Facteur par rapport a l'échauffement | CM1: AWG20 | CS1: AWG18 | CY1: AWG8 | DE1: AWG24
AY2: fonction de fils | BA2: fonction de fils | BB2: fonction de fils | BC2: fonction de fils | BD2: fonction de fils | BE2: fonction de fils | BF2: fonction de fils | BG2: fonction de fils | BH2: fonction de fils | BI2: fonction de fils | BO2: ampere par conductor | BX2: ampere par conducteur | CG2: échauffement | CH2: 80 | CI2: 90 | CJ2: 105 | CK2: 125 | CL2: 200 | CM2: 80 °C | CN2: 90 °C | CO2: 105 °C | CP2: 125 °C | CQ2: 200 °C | CR2: moyenne | CS2: 80 | CT2: 90 | CU2: 105 | CV2: 125 | CW2: 200 | CX2: moyenne | CY2: 80 | CZ2: 90 | DA2: 105 | DB2: 125 | DC2: 200 | DD2: moyenne | DE2: 80 | DF2: 90 | DG2: 105 | DH2: 125 | DI2: 200 | DJ2: moyenne
BA3: un seul groupe | BB3: un seul groupe | BC3: un seul groupe | BD3: un seul groupe | BE3: un seul groupe | BF3: un seul groupe | BG3: un seul groupe | BH3: un seul groupe | BI3: un seul groupe | BO3: AWG | BP3: 80°C | BQ3: 90°C | BR3: 105 | BS3: 125 | BT3: 200 | BU3: moyenne | BX3: AWG | BY3: 80°C | BZ3: 90°C | CA3: 105 | CB3: 125 | CC3: 200 | CE3: nombre de conducteur | CG3: 0 | CR3: 0 | CX3: 0 | DD3: 0 | DJ3: 0
B4: Valeurs à modifier | BA4: 2 multipolaire cote | BB4: 2 multipolaire dessus | BC4: 2 multipolaire dessus | BD4: 2 trèfle cote | BE4: 2 multipolaire cote | BF4: 2 multipolaire cote | BG4: 2 multipolaire cote | BH4: 2 multipolaire cote | BI4: 2 multipolaire cote | BO4: 30 | BP4: =$CF$8*IFERROR($BY$44*BY4,0) -> 0.6332918585 | BQ4: =$CF$8*IFERROR($BZ$44*BZ4,0) -> 0.8230689557 | BR4: =$CF$8*IFERROR(CA4*$CA$44,0) -> 0.6029932041 | BS4: =$CF$8*IFERROR(CB4*$CB$44,0) -> 0.6494831606 | BT4: =$CF$8*IFERROR($CC$44*CC4,0) -> 0.4866747623 | BU4: =(BT4+BS4+BR4+BQ4+BP4)/COUNTIF(BP4:BT4,">0") -> 0.6391023882 | BX4: 30 | BY4: 2 | BZ4: 3 | CA4: 3 | CB4: 3 | CC4: 4 | CE4: =B11 -> 2 | CG4: 10 | CH4: =INDIRECT("BW"&MATCH($BW$21-CG4,$BR$23:$BR$62)+22) -> 0.3166459292 | CI4: =INDIRECT("BV"&MATCH($BV$21-CG4,$BR$23:$BR$62)+22) -> 0.2743563186 | CJ4: =INDIRECT("BU"&MATCH($BU$21-CG4,$BR$23:$BR$62)+22) -> 0.2009977347 | CK4: =INDIRECT("BT"&MATCH($BT$21-CG4,$BR$23:$BR$62)+22) -> 0.2164943869 | CL4: =INDIRECT("BS"&MATCH($BS$21-CG4,$BR$22:$BR$62)+22) -> 0.07368112534 | CM4: =$CF$8*IFERROR(CH4*$BY$9,0) -> 3.166459292 | CN4: =$CF$8*IFERROR(CI4*$BZ$9,0) -> 3.292275823 | CO4: =$CF$8*IFERROR(CJ4*$CA$9,0) -> 2.612970551 | CP4: =$CF$8*IFERROR(CK4*$CB$9,0) -> 3.030921416 | CQ4: =$CF$8*IFERROR(CL4*$CC$9,0) -> 1.252579131 | CR4: =(CQ4+CP4+CO4+CN4+CM4)/COUNTIF(CM4:CQ4,">0") -> 2.671041243 | CS4: =$CF$8*IFERROR(CH4*$BY$10,0) -> 4.749688938 | CT4: =$CF$8*IFERROR(CI4*$BZ$10,0) -> 4.664057416 | CU4: =$CF$8*IFERROR(CJ4*$CA$10,0) -> 3.617959225 | CV4: =$CF$8*IFERROR(CK4*$CB$10,0) -> 4.329887737 | CW4: =$CF$8*IFERROR(CL4*$CC$10,0) -> 1.768347008 | CX4: =(CW4+CV4+CU4+CT4+CS4)/COUNTIF(CS4:CW4,">0") -> 3.825988065 | CY4: =$CF$8*IFERROR(CH4*$BY$15,0) -> 20.5819854 | CZ4: =$CF$8*IFERROR(CI4*$BZ$15,0) -> 19.2049423 | DA4: =$CF$8*IFERROR(CJ4*$CA$15,0) -> 15.0748301 | DB4: =$CF$8*IFERROR(CK4*$CB$15,0) -> 19.48449482 | DC4: =$CF$8*IFERROR(CL4*$CC$15,0) -> 7.368112534 | DD4: =(DC4+DB4+DA4+CZ4+CY4)/COUNTIF(CY4:DC4,">0") -> 16.34287303 | DE4: =$CF$8*IFERROR(CH4*$BY$7,0) -> 1.899875575 | DF4: =$CF$8*IFERROR(CI4*$BZ$7,0) -> 1.92049423 | DG4: =$CF$8*IFERROR(CJ4*$CA$7,0) -> 1.406984143 | DH4: =$CF$8*IFERROR(CK4*$CB$7,0) -> 1.731955095 | DI4: =$CF$8*IFERROR(CL4*$CC$7,0) -> 0.7368112534 | DJ4: =(DI4+DH4+DG4+DF4+DE4)/COUNTIF(DE4:DI4,">0") -> 1.539224059
L5: Résultats | BA5: 3 multipolaire cote | BB5: 3 multipolaire dessus | BC5: 3 multipolaire dessus | BD5: 3 trèfle cote | BE5: 3 multipolaire cote | BF5: 3 multipolaire cote | BG5: 3 multipolaire cote | BH5: 3 multipolaire cote | BI5: 3 multipolaire cote | BO5: 28 | BP5: 0.9499377877 | BQ5: 1.097425274 | BR5: 0.8039909388 | BS5: 1.082471934 | BT5: 0.7300121435 | BU5: 0.9327676157 | BX5: 28 | BY5: 3 | BZ5: 4 | CA5: 4 | CB5: 5 | CC5: 6 | CG5: 20 | CH5: =INDIRECT("BW"&MATCH($BW$21-CG5,$BR$23:$BR$62)+22) -> 0.5612439652 | CI5: =INDIRECT("BV"&MATCH($BV$21-CG5,$BR$23:$BR$62)+22) -> 0.4865916003 | CJ5: =INDIRECT("BU"&MATCH($BU$21-CG5,$BR$23:$BR$62)+22) -> 0.3716165372 | CK5: =INDIRECT("BT"&MATCH($BT$21-CG5,$BR$23:$BR$62)+22) -> 0.3704492771 | CL5: =INDIRECT("BS"&MATCH($BS$21-CG5,$BR$22:$BR$62)+22) -> 0.1684081299 | CM5: =$CF$8*IFERROR(CH5*$BY$9,0) -> 5.612439652 | CN5: =$CF$8*IFERROR(CI5*$BZ$9,0) -> 5.839099203 | CO5: =$CF$8*IFERROR(CJ5*$CA$9,0) -> 4.831014984 | CP5: =$CF$8*IFERROR(CK5*$CB$9,0) -> 5.186289879 | CQ5: =$CF$8*IFERROR(CL5*$CC$9,0) -> 2.862938208 | CR5: =(CQ5+CP5+CO5+CN5+CM5)/COUNTIF(CM5:CQ5,">0") -> 4.866356385 | CS5: =$CF$8*IFERROR(CH5*$BY$10,0) -> 8.418659479 | CT5: =$CF$8*IFERROR(CI5*$BZ$10,0) -> 8.272057205 | CU5: =$CF$8*IFERROR(CJ5*$CA$10,0) -> 6.68909767 | CV5: =$CF$8*IFERROR(CK5*$CB$10,0) -> 7.408985541 | CW5: 4.041795118 | CX5: =(CW5+CV5+CU5+CT5+CS5)/COUNTIF(CS5:CW5,">0") -> 6.966119002 | CY5: =$CF$8*IFERROR(CH5*$BY$15,0) -> 36.48085774 | CZ5: =$CF$8*IFERROR(CI5*$BZ$15,0) -> 34.06141202 | DA5: =$CF$8*IFERROR(CJ5*$CA$15,0) -> 27.87124029 | DB5: =$CF$8*IFERROR(CK5*$CB$15,0) -> 33.34043494 | DC5: =$CF$8*IFERROR(CL5*$CC$15,0) -> 16.84081299 | DD5: =(DC5+DB5+DA5+CZ5+CY5)/COUNTIF(CY5:DC5,">0") -> 29.7189516 | DE5: =$CF$8*IFERROR(CH5*$BY$7,0) -> 3.367463791 | DF5: =$CF$8*IFERROR(CI5*$BZ$7,0) -> 3.406141202 | DG5: =$CF$8*IFERROR(CJ5*$CA$7,0) -> 2.60131576 | DH5: =$CF$8*IFERROR(CK5*$CB$7,0) -> 2.963594217 | DI5: =$CF$8*IFERROR(CL5*$CC$7,0) -> 1.684081299 | DJ5: =(DI5+DH5+DG5+DF5+DE5)/COUNTIF(DE5:DI5,">0") -> 2.804519254
AF6: Température de fonctionnement : | AJ6: 10 | BA6: 2 multipolaire dessus | BB6: près d'une surface vertical ou d'une surface horizontale sous le cable | BC6: près d'une surface vertical ou d'une surface horizontale sous le cable | BD6: 2 trèfles dessus | BE6: près d'une surface vertical ou d'une surface horizontale sous le cable | BF6: près d'une surface vertical ou d'une surface horizontale sous le cable | BG6: près d'une surface vertical ou d'une surface horizontale sous le cable | BH6: près d'une surface vertical ou d'une surface horizontale sous le cable | BI6: - | BO6: 26 | BP6: 1.266583717 | BQ6: 1.371781593 | BR6: 1.004988674 | BS6: 1.298966321 | BT6: 0.8516808341 | BU6: 1.158800228 | BX6: 26 | BY6: 4 | BZ6: 5 | CA6: 5 | CB6: 6 | CC6: 7 | CG6: 30 | CH6: 0.7586331034 | CI6: 0.6660727342 | CJ6: 0.5255584451 | CK6: 0.5076718428 | CL6: 0.2581426308 | CM6: 7.586331034 | CN6: 7.99287281 | CO6: 6.832259786 | CP6: 7.107405799 | CQ6: 4.388424723 | CR6: 6.78145883 | CS6: 11.37949655 | CT6: 11.32323648 | CU6: 9.460052012 | CV6: 10.15343686 | CW6: 6.195423139 | CX6: =(CW6+CV6+CU6+CT6+CS6)/COUNTIF(CS6:CW6,">0") -> 9.702329008 | CY6: 49.31115172 | CZ6: 46.62509139 | DA6: 39.41688338 | DB6: 45.69046585 | DC6: 25.81426308 | DD6: 41.37157108 | DE6: 4.55179862 | DF6: 4.662509139 | DG6: 3.678909116 | DH6: 4.061374742 | DI6: 2.581426308 | DJ6: 3.907203585
E7: IEC 60287 | G7: MIL 339 | AF7: taille de fil minimal Imax: | AI7: =IFERROR(IF(LOOKUP(B9,Tableau3[[#All],[I max]])=MAX(Tableau3[[#All],[I max]]),"aucun fil","AWG "&INDIRECT("D"&MATCH(B9,Tableau3[[#All],[I max]])+9)),INDIRECT("D"&MATCH(MIN(Tableau3[[#All],[I max]]),Tableau3[[#All],[I max]])+8)) -> AWG 8 | BA7: 3 multipolaire dessus | BD7: près d'une surface vertical ou d'une surface horizontale sous le cable | BE7: - | BO7: 24 | BP7: 1.899875575 | BQ7: 1.92049423 | BR7: 1.406984143 | BS7: 1.731955095 | BT7: 1.216686906 | BU7: 1.63519919 | BX7: 24 | BY7: 6 | BZ7: 7 | CA7: 7 | CB7: 8 | CC7: 10 | CF7: facteur nb | CG7: 40 | CH7: 0.9088133437 | CI7: 0.8127997202 | CJ7: 0.6628234584 | CK7: 0.628162084 | CL7: 0.342884628 | CM7: 9.088133437 | CN7: 9.753596642 | CO7: 8.61670496 | CP7: 8.794269175 | CQ7: 5.829038675 | CR7: 8.416348578 | CS7: 13.63220016 | CT7: 13.81759524 | CU7: 11.93082225 | CV7: 12.56324168 | CW7: 8.229231071 | CX7: 12.03461808 | CY7: 59.07286734 | CZ7: 56.89598041 | DA7: 49.71175938 | DB7: 56.53458756 | DC7: 34.2884628 | DD7: 51.3007315 | DE7: 5.452880062 | DF7: 5.689598041 | DG7: 4.639764209 | DH7: 5.025296672 | DI7: 3.42884628 | DJ7: 4.847277053 | DW7: regression delta to I
A8: Norme du fils : | B8: MIL-W 22759/34 - 55A0811 | D8: AWG | E8: ="I (ΔT="&B10&"°C)" -> I (ΔT=10°C) | F8: ="ΔT (I="&B9&"A)" -> ΔT (I=15A) | G8: ="I (ΔT="&B10&"°C)" -> I (ΔT=10°C) | H8: ="ΔT (I="&B9&"A)" -> ΔT (I=15A) | J8: ="taille de fil minimal ΔT="&B10&"°C:" -> taille de fil minimal ΔT=10°C: | M8: =IFERROR(IF(LOOKUP(B9,Tableau3[[#All],[I max]])=MAX(Tableau3[[#All],[I max]]),"aucun fil","AWG "&INDIRECT("D"&MATCH(B9,Tableau3[[#All],[I max]])+9)),INDIRECT("D"&MATCH(MIN(Tableau3[[#All],[I max]]),Tableau3[[#All],[I max]])+8)) -> AWG 8 | BA8: près d'une surface vertical ou d'une surface horizontale sous le cable | BB8: - | BO8: 22 | BP8: 2.533167434 | BQ8: 2.469206867 | BR8: 2.009977347 | BS8: 2.381438256 | BT8: 1.581692978 | BU8: 2.195096576 | BX8: 22 | BY8: 8 | BZ8: 9 | CA8: 10 | CB8: 11 | CC8: 13 | CF8: =IF(CE4=1,CF11,IF(AND(2<=CE4,CE4<=3),CF12,IF(AND(4<=CE4,CE4<=5),CF13,IF(AND(6<=CE4,CE4<=15),CF14,IF(CE4>=15,CF15,0))))) -> 1 | CG8: 50 | CH8: 1.011784686 | CI8: 0.9267725584 | CJ8: 0.7834115772 | CK8: 0.7319200006 | CL8: 0.4226341214 | CM8: 10.11784686 | CN8: 11.1212707 | CO8: 10.1843505 | CP8: 10.24688001 | CQ8: 7.184780065 | CR8: 9.771025628 | CS8: 15.17677029 | CT8: 15.75513349 | CU8: 14.10140839 | CV8: 14.63840001 | CW8: 10.14321891 | CX8: 13.96298622 | CY8: 65.7660046 | CZ8: 64.87407909 | DA8: 58.75586829 | DB8: 65.87280006 | DC8: 42.26341214 | DD8: 59.50643283 | DE8: 6.070708117 | DF8: 6.487407909 | DG8: 5.48388104 | DH8: 5.855360005 | DI8: 4.226341214 | DJ8: 5.624739657 | DW8: AWG20 | DX8: =LINEST(CR3:CR22,CG3:CG22^{1,2,3},0) -> 4.247065517e-06 | DY8: -0.00172538956 | DZ8: 0.2678910761 | EA8: 0
A9: Courant max necéssaire: | B9: 15 | D9: 32 | E9: =IF($B$8=$AW$18,AG140,IF($B$8=$AW$19,AA165,IF($B$8=$AW$20,AI190,IF($B$8=$AW$21,Y263,IF($B$8=$AW$22,Y239,IF($B$8=$AW$23,Y215,"-1")))))) -> - | F9: =IF($B$8=$AW$18,AH140,IF($B$8=$AW$19,AB165,IF($B$8=$AW$20,AJ190,IF($B$8=$AW$21,#REF!,IF($B$8=$AW$22,Z239,IF($B$8=$AW$23,Z215,"-1")))))) -> - | G9: - | H9: - | J9: temperature maximal d'utilisation pour fil: | M9: =IF(B8=AW18,T136,IF(B8=AW19,O164,IF(B8=AW20,O188,IF(B8=AW21,N213,IF(B8=AW22,N237,IF(B8=AW23,N261,0)))))) -> 150 | AF9: =IF($B$8=$AW$18,AF140,IF($B$8=$AW$19,Z165,IF($B$8=$AW$20,AH190,IF($B$8=$AW$21,X263,IF($B$8=$AW$22,X239,IF($B$8=$AW$23,X215,"0")))))) -> - | BO9: 20 | BP9: 3.166459292 | BQ9: 3.292275823 | BR9: 2.612970551 | BS9: 3.030921416 | BT9: 2.06836774 | BU9: 2.834198964 | BX9: 20 | BY9: 10 | BZ9: 12 | CA9: 13 | CB9: 14 | CC9: 17 | CG9: 60 | CH9: 1.067547131 | CI9: 1.007991249 | CJ9: 0.8873228013 | CK9: 0.8189455928 | CL9: 0.4973911112 | CM9: 10.67547131 | CN9: 12.09589498 | CO9: 11.53519642 | CP9: 11.4652383 | CQ9: 8.455648891 | CR9: 10.84548998 | CS9: 16.01320696 | CT9: 17.13585123 | CU9: 15.97181042 | CV9: 16.37891186 | CW9: 11.93738667 | CX9: 15.48743343 | CY9: 69.3905635 | CZ9: 70.55938741 | DA9: 66.5492101 | DB9: 73.70510335 | DC9: 49.73911112 | DD9: 65.9886751 | DE9: 6.405282784 | DF9: 7.055938741 | DG9: 6.211259609 | DH9: 6.551564742 | DI9: 4.973911112 | DJ9: 6.239591398
A10: échauffement maximum: | B10: 10 | C10: - | D10: 30 | E10: - | F10: =IF($B$8=$AW$18,AH141,IF($B$8=$AW$19,AB166,IF($B$8=$AW$20,AJ191,IF($B$8=$AW$21,#REF!,IF($B$8=$AW$22,Z240,IF($B$8=$AW$23,Z216,"-1")))))) -> - | G10: =BU4 -> 0.6391023882 | H10: =CP30 -> 7274.801376 | J10: matiere isolant : | M10: =IF(B8=AW18,U136,IF(B8=AW19,O163,IF(B8=AW20,O187,IF(B8=AW21,N212,IF(B8=AW22,N236,IF(B8=AW23,N260,0)))))) -> ETFE | AF10: - | AR10: valeur max T | AS10: valeur max I | AT10: Comparaison | BO10: 18 | BP10: 4.749688938 | BQ10: 4.664057416 | BR10: 3.617959225 | BS10: 4.329887737 | BT10: 2.920048574 | BU10: 4.056328378 | BX10: 18 | BY10: 15 | BZ10: 17 | CA10: 18 | CB10: 20 | CC10: 24 | CE10: nombre de conducteur | CG10: 70 | CH10: 1.085 | CI10: 1.056455791 | CJ10: 0.9745571309 | CK10: 0.8892388604 | CL10: 0.5671555973 | CM10: 10.85 | CN10: 12.6774695 | CO10: 12.6692427 | CP10: 12.44934405 | CQ10: 9.641645155 | CR10: 11.65754028 | CS10: 16.275 | CT10: 17.95974845 | CU10: 17.54202836 | CV10: 17.78477721 | CW10: 13.61173434 | CX10: 16.63465767 | CY10: 70.525 | CZ10: 73.95190539 | DA10: 73.09178482 | DB10: 80.03149744 | DC10: 56.71555973 | DD10: 70.86314948 | DE10: 6.51 | DF10: 7.395190539 | DG10: 6.821899916 | DH10: 7.113910884 | DI10: 5.671555973 | DJ10: 6.702511462 | DV10: Delta | DW10: f(x)=I
A11: Nombre de conducteur: | B11: 2 | D11: 28 | E11: 1.298912236 | F11: =IF($B$8=$AW$18,AH142,IF($B$8=$AW$19,AB167,IF($B$8=$AW$20,AJ192,IF($B$8=$AW$21,Z265,IF($B$8=$AW$22,Z241,IF($B$8=$AW$23,Z217,"-1")))))) -> 525.327618 | G11: 0.9327676157 | H11: 2435.490275 | J11: ="échauffement pour "&M8&" à "&B9&" A:" -> échauffement pour AWG 8 à 15 A: | M11: =IFERROR(IF(LOOKUP(B9,Tableau3[[#All],[I max]])=MAX(Tableau3[[#All],[I max]]),"aucun fil",INDIRECT("F"&MATCH(B9,Tableau3[[#All],[I max]])+9)),INDIRECT("F"&MATCH(MIN(Tableau3[[#All],[I max]]),Tableau3[[#All],[I max]])+8)) -> 5.437502461 | AF11: 6.627454125 | AR11: =$B$10 -> 10 | AS11: =$B$9 -> 15 | AT11: =IF(AS11>AF9,AF9,0) -> 0 | AU11: =IF(AS11>E9,E9,0) -> 0 | BO11: 16 | BP11: 6.016272655 | BQ11: 6.035839009 | BR11: 4.823945633 | BS11: 5.628854058 | BT11: 3.893398099 | BU11: 5.279661891 | BX11: 16 | BY11: 19 | BZ11: 22 | CA11: 24 | CB11: 26 | CC11: 32 | CE11: 1 | CF11: 1.6 | CG11: 80 | CH11: =IFERROR(INDIRECT("BW"&MATCH($BW$21-CG11,$BR$23:$BR$62)+22),0) -> 0 | CI11: 1.072166186 | CJ11: 1.045114566 | CK11: 0.9427998036 | CL11: 0.6319275798 | CM11: 0 | CN11: 12.86599423 | CO11: 13.58648936 | CP11: 13.19919725 | CQ11: 10.74276886 | CR11: 12.59861242 | CS11: 0 | CT11: 18.22682516 | CU11: 18.81206219 | CV11: 18.85599607 | CW11: 15.16626191 | CX11: 17.76528633 | CY11: 0 | CZ11: 75.05163302 | DA11: 78.38359244 | DB11: 84.85198232 | DC11: 63.19275798 | DD11: 75.36999144 | DE11: 0 | DF11: 7.505163302 | DG11: 7.315801961 | DH11: 7.542398429 | DI11: 6.319275798 | DJ11: 7.170659872 | DO11: =LINEST(LN(CG4:CG22),LN(CR4:CR22),,) -> 1.628531739 | DP11: 0.4078142065 | DV11: 0 | DW11: =$DX$8*DV11^3+$DY$8*DV11^2+$DZ$8*DV11^1+$EA$8 -> 0
D12: 26 | E12: 1.742442253 | F12: =IF($B$8=$AW$18,AH143,IF($B$8=$AW$19,AB168,IF($B$8=$AW$20,AJ193,IF($B$8=$AW$21,Z266,IF($B$8=$AW$22,Z242,IF($B$8=$AW$23,Z218,"-1")))))) -> 326.4554122 | G12: 1.158800228 | H12: 1722.937119 | AF12: 8.890403007 | AR12: =$B$10 -> 10 | AS12: 15 | AT12: 0 | AU12: 0 | BO12: 14 | BP12: 8.549440089 | BQ12: 8.230689557 | BR12: 6.632925245 | BS12: 8.659775475 | BT12: 5.475091076 | BU12: 7.509584289 | BX12: 14 | BY12: 27 | BZ12: 30 | CA12: 33 | CB12: 40 | CC12: 45 | CE12: 2-3 | CF12: 1 | CG12: 90 | CH12: =IFERROR(INDIRECT("BW"&MATCH($BW$21-CG12,$BR$23:$BR$62)+22),0) -> 0 | CI12: =IFERROR(INDIRECT("BV"&MATCH($BV$21-CG12,$BR$23:$BR$62)+22),0) -> 0 | CJ12: 1.098995106 | CK12: 0.9796284222 | CL12: 0.6917070585 | CM12: 0 | CN12: 0 | CO12: 14.28693638 | CP12: 13.71479791 | CQ12: 11.75901999 | CR12: 13.25358476 | CS12: 0 | CT12: 0 | CU12: 19.78191191 | CV12: 19.59256844 | CW12: 16.6009694 | CX12: 18.65848325 | CY12: 0 | CZ12: 0 | DA12: 82.42463297 | DB12: 88.166558 | DC12: 69.17070585 | DD12: 79.92063227 | DE12: 0 | DF12: 0 | DG12: 7.692965744 | DH12: 7.837027378 | DI12: 6.917070585 | DJ12: 7.482354569 | DV12: 5 | DW12: 1.296851525
D13: 24 | E13: 2.266293136 | F13: 213.3865216 | G13: 1.63519919 | H13: 523.8814135 | AF13: 11.56003349 | AR13: 10 | AS13: 15 | AT13: 6.627454125 | AU13: 1.298912236 | BO13: 12 | BP13: 11.39925345 | BQ13: 10.97425274 | BR13: 9.044898062 | BS13: 10.82471934 | BT13: 6.691777982 | BU13: 9.786980317 | BX13: 12 | BY13: 36 | BZ13: 40 | CA13: 45 | CB13: 50 | CC13: 55 | CE13: 4-5 | CF13: 0.8 | CG13: 100 | CH13: 0 | CI13: =IFERROR(INDIRECT("BV"&MATCH($BV$21-CG13,$BR$23:$BR$62)+22),0) -> 0 | CJ13: =IFERROR(INDIRECT("BU"&MATCH($BU$21-CG13,$BR$23:$BR$62)+22),0) -> 0 | CK13: 0.9997247164 | CL13: 0.7464940335 | CM13: 0 | CN13: 0 | CO13: 0 | CP13: 13.99614603 | CQ13: 12.69039857 | CR13: 13.3432723 | CS13: 0 | CT13: 0 | CU13: 0 | CV13: 19.99449433 | CW13: 17.9158568 | CX13: 18.95517557 | CY13: 0 | CZ13: 0 | DA13: 0 | DB13: 89.97522447 | DC13: 74.64940335 | DD13: 82.31231391 | DE13: 0 | DF13: 0 | DG13: 0 | DH13: 7.997797731 | DI13: 7.464940335 | DJ13: 7.731369033 | DV13: 10 | DW13: 2.51061887
D14: 22 | E14: 2.97746162 | F14: 137.0637836 | G14: 2.195096576 | H14: 266.7243538 | J14: ="taille de fil minimal pour MIL 339 ΔT="&B10&"°C:" -> taille de fil minimal pour MIL 339 ΔT=10°C: | M14: =IFERROR(IF(LOOKUP(B9,Tableau3[[#All],[Colonne1]])=MAX(Tableau3[[#All],[Colonne1]]),"aucun fil","AWG "&INDIRECT("D"&MATCH(B9,Tableau3[[#All],[Colonne1]])+9)),INDIRECT("D"&MATCH(MIN(Tableau3[[#All],[Colonne1]]),Tableau3[[#All],[Colonne1]])+8)) -> AWG 8 | AF14: 15.19310645 | AR14: 10 | AS14: 15 | AT14: 8.890403007 | AU14: 1.742442253 | BO14: 10 | BP14: 14.88235867 | BQ14: 15.08959752 | BR14: 11.65786861 | BS14: 15.15460708 | BT14: 9.125151794 | BU14: 13.18191674 | BX14: 10 | BY14: 47 | BZ14: 55 | CA14: 58 | CB14: 70 | CC14: 75 | CE14: 6-15 | CF14: 0.7 | CG14: 110 | CH14: 0 | CI14: 0 | CJ14: =IFERROR(INDIRECT("BU"&MATCH($BU$21-CG14,$BR$23:$BR$62)+22),0) -> 0 | CK14: 1.003088686 | CL14: 0.7962885048 | CM14: =IFERROR(CH14*$BY$4,0) -> 0 | CN14: =IFERROR(CI14*$BZ$4,0) -> 0 | CO14: 0 | CP14: 14.0432416 | CQ14: 13.53690458 | CR14: 13.79007309 | CS14: 0 | CT14: 0 | CU14: 0 | CV14: 20.06177372 | CW14: 19.11092412 | CX14: 19.58634892 | CY14: 0 | CZ14: 0 | DA14: 0 | DB14: 90.27798174 | DC14: 79.62885048 | DD14: 84.95341611 | DE14: 0 | DF14: 0 | DG14: 0 | DH14: 8.024709488 | DI14: 7.962885048 | DJ14: 7.993797268 | DQ14: =EXP(INDEX(LINEST(LN(CG4:CG22),LN(CR4:CR22)),1,2)) -> 1.50352779 | DR14: =INDEX(LINEST(LN(CG4:CG22),LN(CR4:CR22),,),1) -> 1.628531739 | DV14: 15 | DW14: 3.644487337
D15: 20 | E15: 3.984159405 | F15: 85.67741681 | G15: 2.834198964 | H15: 128.3453667 | J15: ="échauffement pour "&M14&" à "&B9&" A:" -> échauffement pour AWG 8 à 15 A: | M15: =IFERROR(IF(LOOKUP(B9,Tableau3[[#All],[Colonne1]])=MAX(Tableau3[[#All],[Colonne1]]),"aucun fil",INDIRECT("H"&MATCH(B9,Tableau3[[#All],[Colonne1]])+9)),INDIRECT("H"&MATCH(MIN(Tableau3[[#All],[Colonne1]]),Tableau3[[#All],[Colonne1]])+8)) -> 11.73563563 | AF15: 20.30162106 | AR15: 10 | AS15: 15 | AT15: 11.56003349 | AU15: 2.266293136 | BO15: 8 | BP15: 20.5819854 | BQ15: 19.2049423 | BR15: 15.0748301 | BS15: 19.48449482 | BT15: 12.16686906 | BU15: 17.30262434 | BX15: 8 | BY15: 65 | BZ15: 70 | CA15: 75 | CB15: 90 | CC15: 100 | CE15: 16-30 | CF15: 0.5 | CG15: 120 | CH15: 0 | CI15: 0 | CJ15: 0 | CK15: =IFERROR(INDIRECT("BT"&MATCH($BT$21-CG15,$BR$23:$BR$62)+22),0) -> 0 | CL15: 0.8410904725 | CM15: 0 | CN15: 0 | CO15: =IFERROR(CJ15*$CA$4,0) -> 0 | CP15: 0 | CQ15: 14.29853803 | CR15: 14.29853803 | CS15: 0 | CT15: 0 | CU15: 0 | CV15: 0 | CW15: 20.18617134 | CX15: 20.18617134 | CY15: 0 | CZ15: 0 | DA15: 0 | DB15: 0 | DC15: 84.10904725 | DD15: 84.10904725 | DE15: 0 | DF15: 0 | DG15: 0 | DH15: 0 | DI15: 8.410904725 | DJ15: 8.410904725 | DV15: 20 | DW15: 4.701642222
D16: 18 | E16: 5.304711532 | F16: 54.00215334 | G16: 4.056328378 | H16: 58.22227308 | AF16: 26.96586528 | AR16: 10 | AS16: 15 | AT16: 0 | AU16: 2.97746162 | BO16: 6 | BP16: 30.08136328 | BQ16: 27.43563186 | BR16: 21.10476214 | BS16: 27.06179836 | BT16: 16.42527323 | BU16: 24.42176577 | BX16: 6 | BY16: 95 | BZ16: 100 | CA16: 105 | CB16: 125 | CC16: 135 | CG16: 130 | CH16: 0 | CI16: 0 | CJ16: 0 | CK16: =IFERROR(INDIRECT("BT"&MATCH($BT$21-CG16,$BR$23:$BR$62)+22),0) -> 0 | CL16: 0.8808999364 | CM16: 0 | CN16: 0 | CO16: 0 | CP16: 0 | CQ16: 14.97529892 | CR16: 14.97529892 | CS16: 0 | CT16: 0 | CU16: 0 | CV16: 0 | CW16: 21.14159847 | CX16: 21.14159847 | CY16: 0 | CZ16: 0 | DA16: 0 | DB16: 0 | DC16: 88.08999364 | DD16: 88.08999364 | DE16: 0 | DF16: 0 | DG16: 0 | DH16: 0 | DI16: 8.808999364 | DJ16: 8.808999364 | DV16: 25 | DW16: 5.685268826
D17: 16 | E17: 6.218024211 | F17: 41.7419222 | G17: 5.279661891 | H17: 36.8485928 | AF17: 31.59581823 | AR17: 10 | AS17: 15 | AT17: 0 | AU17: 3.984159405 | AW17: Colonne1 | AY17: fonction de fils | AZ17: z | BA17: E | BB17: g | BO17: 4 | BP17: 39.58074115 | BQ17: 37.03810301 | BR17: 29.14467153 | BS17: 36.80404577 | BT17: 21.90036431 | BU17: 32.89358515 | BX17: 4 | BY17: 125 | BZ17: 135 | CA17: 145 | CB17: 170 | CC17: 180 | CG17: 140 | CH17: 0 | CI17: 0 | CJ17: 0 | CK17: 0 | CL17: 0.9157168967 | CM17: 0 | CN17: 0 | CO17: 0 | CP17: =IFERROR(CK17*$CB$4,0) -> 0 | CQ17: 15.56718724 | CR17: 15.56718724 | CS17: 0 | CT17: 0 | CU17: 0 | CV17: 0 | CW17: 21.97720552 | CX17: 21.97720552 | CY17: 0 | CZ17: 0 | DA17: 0 | DB17: 0 | DC17: 91.57168967 | DD17: 91.57168967 | DE17: 0 | DF17: 0 | DG17: 0 | DH17: 0 | DI17: 9.157168967 | DJ17: 9.157168967 | DS17: I | DT17: puissance | DU17: polynome | DV17: 30 | DW17: 6.598552448
D18: 14 | E18: 8.286085638 | F18: 26.21939011 | G18: 7.509584289 | H18: 23.91494444 | AF18: 42.0164641 | AR18: 10 | AS18: 15 | AT18: 0 | AU18: 5.304711532 | AW18: MIL-W 22759/32 55A0111 | AY18: 1 câble | AZ18: 0.21 | BA18: 3.94 | BB18: 0.6 | BO18: 2 | BP18: 53.82980797 | BQ18: 49.38413734 | BR18: 40.19954694 | BS18: 48.71123704 | BT18: 29.20048574 | BU18: =(BT18+BS18+BR18+BQ18+BP18)/COUNTIF(BP18:BT18,">0") -> 44.26504301 | BX18: 2 | BY18: 170 | BZ18: 180 | CA18: 200 | CB18: 225 | CC18: 240 | CG18: 150 | CH18: 0 | CI18: 0 | CJ18: 0 | CK18: 0 | CL18: 0.9455413533 | CM18: 0 | CN18: 0 | CO18: 0 | CP18: 0 | CQ18: 16.07420301 | CR18: 16.07420301 | CS18: 0 | CT18: 0 | CU18: 0 | CV18: 0 | CW18: 22.69299248 | CX18: 22.69299248 | CY18: 0 | CZ18: 0 | DA18: 0 | DB18: 0 | DC18: 94.55413533 | DD18: 94.55413533 | DE18: 0 | DF18: 0 | DG18: 0 | DH18: 0 | DI18: 9.455413533 | DJ18: 9.455413533 | DO18: =$CK$35*DS19^3+$CL$35*DS19^2+$CM$35*DS19^1+$CN$35 -> 2.323004566 | DS18: 0 | DT18: =$DQ$14*DS18^$DR$14 -> 0 | DV18: 35 | DW18: 7.444678387
D19: 12 | E19: 10.73969823 | F19: 17.20716342 | G19: 9.786980317 | H19: 18.67164409 | AF19: 54.36966943 | AR19: 10 | AS19: 15 | AT19: 0 | AU19: 6.218024211 | AW19: MIL-W 22759/34 - 55A0811 | AY19: 2 câbles jointif horizontaux | AZ19: 0.29 | BA19: 2.35 | BB19: 0.5 | BX19: facteur de correction | CG19: 160 | CH19: 0 | CI19: 0 | CJ19: 0 | CK19: 0 | CL19: 0.9703733062 | CM19: 0 | CN19: 0 | CO19: 0 | CP19: 0 | CQ19: 16.4963462 | CR19: 16.4963462 | CS19: 0 | CT19: 0 | CU19: 0 | CV19: 0 | CW19: 23.28895935 | CX19: 23.28895935 | CY19: 0 | CZ19: 0 | DA19: 0 | DB19: 0 | DC19: 97.03733062 | DD19: 97.03733062 | DE19: 0 | DF19: 0 | DG19: 0 | DH19: 0 | DI19: 9.703733062 | DJ19: 9.703733062 | DS19: 0.5 | DT19: =$DQ$14*DS19^$DR$14 -> 0.4862667309 | DU19: =$CK$35*DS19^3+$CL$35*DS19^2+$CM$35*DS19^1+$CN$35 -> 2.323004566 | DV19: 40 | DW19: 8.226831941
D20: 10 | E20: 14.42824348 | F20: 10.64263527 | G20: 13.18191674 | H20: 15.75252755 | AF20: 72.89761635 | AR20: 10 | AS20: 15 | AT20: 0 | AU20: 8.286085638 | AW20: MIL W-81044 - 44A0111 | AY20: 3 câbles jointif horizontaux | AZ20: 0.62 | BA20: 1.95 | BB20: 0.25 | BR20: facteur de correction etendu | BX20: anbiant | BY20: 80°C | BZ20: 90°C | CA20: 105°C | CB20: 125°C | CC20: 200°C | CG20: 170 | CH20: 0 | CI20: 0 | CJ20: 0 | CK20: 0 | CL20: 0.9902127553 | CM20: 0 | CN20: 0 | CO20: 0 | CP20: 0 | CQ20: 16.83361684 | CR20: 16.83361684 | CS20: 0 | CT20: 0 | CU20: 0 | CV20: 0 | CW20: 23.76510613 | CX20: 23.76510613 | CY20: 0 | CZ20: 0 | DA20: 0 | DB20: 0 | DC20: 99.02127553 | DD20: 99.02127553 | DE20: 0 | DF20: 0 | DG20: 0 | DH20: 0 | DI20: 9.902127553 | DJ20: 9.902127553 | DS20: 1 | DT20: =$DQ$14*DS20^$DR$14 -> 1.50352779 | DU20: =$CK$35*DS20^3+$CL$35*DS20^2+$CM$35*DS20^1+$CN$35 -> 4.493901085 | DV20: 45 | DW20: 8.948198411
D21: 8 | E21: 21.75027942 | F21: 5.437502461 | G21: 17.30262434 | H21: 11.73563563 | AF21: 109.1482546 | AR21: 10 | AS21: 15 | AT21: 0 | AU21: 10.73969823 | AW21: KZ06 | AY21: 3 câbles trèfle | AZ21: 0.96 | BA21: 1.25 | BB21: 0.2 | BR21: ambiant | BS21: 200 | BT21: 125 | BU21: 105 | BV21: 90 | BW21: 80 | BX21: 29.9 | BY21: 1.05 | BZ21: 1.05 | CA21: 1.05 | CB21: 1.05 | CC21: 1.05 | CD21: 29.9 | CE21: 29.9 | CG21: 180 | CH21: 0 | CI21: 0 | CJ21: 0 | CK21: 0 | CL21: 1.005059701 | CM21: 0 | CN21: 0 | CO21: 0 | CP21: 0 | CQ21: =$CF$8*IFERROR(CL21*$CC$9,0) -> 17.08601491 | CR21: 17.08601491 | CS21: 0 | CT21: 0 | CU21: 0 | CV21: 0 | CW21: 24.12143282 | CX21: 24.12143282 | CY21: 0 | CZ21: 0 | DA21: 0 | DB21: 0 | DC21: 100.5059701 | DD21: 100.5059701 | DE21: 0 | DF21: 0 | DG21: 0 | DH21: 0 | DI21: 10.05059701 | DJ21: 10.05059701 | DS21: 1.5 | DT21: 2.909924116 | DU21: 6.543433948 | DV21: 50 | DW21: 9.611963095
D22: 6 | E22: 29.18310262 | F22: 3.3500583 | G22: 24.42176577 | H22: 9.6920325 | AF22: 145.7665342 | AR22: 10 | AS22: 15 | AT22: 0 | AU22: 14.42824348 | AW22: KZ05 | AY22: 2 câbles jointif verticaux | AZ22: 1.42 | BA22: 0.86 | BB22: 0.25 | BR22: 5 | BW22: 0 | BX22: 30 | BY22: 1 | BZ22: 1 | CA22: 1 | CB22: 1 | CC22: 1 | CD22: 30 | CE22: 30 | CG22: 190 | CH22: 0 | CI22: 0 | CJ22: 0 | CK22: 0 | CL22: 1.014914143 | CM22: 0 | CN22: 0 | CO22: 0 | CP22: 0 | CQ22: =$CF$8*IFERROR(CL22*$CC$9,0) -> 17.25354042 | CR22: 17.25354042 | CS22: 0 | CT22: 0 | CU22: 0 | CV22: 0 | CW22: 24.35793942 | CX22: 24.35793942 | CY22: 0 | CZ22: 0 | DA22: 0 | DB22: 0 | DC22: 101.4914143 | DD22: 101.4914143 | DE22: 0 | DF22: 0 | DG22: 0 | DH22: 0 | DI22: 10.14914143 | DJ22: 10.14914143 | DS22: 2 | DT22: 4.648880275 | DU22: 8.502347548 | DV22: 55 | DW22: 10.22131129
D23: 4 | E23: 39.85610136 | F23: 1.995860229 | G23: 32.89358515 | H23: 8.380067892 | AF23: 197.8549983 | AR23: 10 | AS23: 15 | AT23: 0 | AU23: 0 | AW23: KZ04 | AY23: 3 câbles jointif verticaux | AZ23: 1.61 | BA23: 0.42 | BB23: 0.2 | BR23: 10 | BS23: =$BZ$57*BR23^2+$CA$57*BR23^1+$CB$57*BR23^0 -> 1.017969175 | BT23: =$BZ$56*BR23^2+$CA$56*BR23^1+$CB$56*BR23^0 -> 0.9984960491 | BU23: =$BZ$55*BR23^2+$CA$55*BR23^1+$CB$55*BR23^0 -> 1.119681541 | BV23: =$BZ$54*BR23^2+$CA$54*BR23^1+$CB$54*BR23^0 -> 1.072166186 | BW23: 1.085 | BX23: 40 | BY23: 0.88 | BZ23: 0.9 | CA23: 0.92 | CB23: 0.95 | CC23: 0.985 | CD23: 40 | CE23: 40 | CS23: AWG16 | CY23: AWG6 | DE23: AWG26 | DS23: 2.5 | DT23: 6.686046515 | DU23: 10.40138628 | DV23: 60 | DW23: 10.7794283
D24: 2 | E24: 54.10530955 | F24: 1.193294953 | G24: 44.26504301 | H24: 6.638473358 | AF24: 266.4743622 | AR24: 10 | AS24: 15 | AT24: 0 | AU24: 0 | AY24: 2 cable espacée de Øext verticaux | AZ24: 0.75 | BA24: 2.8 | BB24: 0.3 | BR24: 15 | BS24: 1.014914143 | BT24: 1.003088686 | BU24: 1.098995106 | BV24: 1.068405257 | BW24: =$BZ$53*BR24^2+$CA$53*BR24^1+$CB$53*BR24^0 -> 1.077725016 | BX24: 45 | BY24: 0.82 | BZ24: 0.85 | CA24: 0.87 | CB24: 0.92 | CC24: 0.96 | CD24: 45 | CE24: 45 | CG24: voeficient | CS24: 80 | CT24: 90 | CU24: 105 | CV24: 125 | CW24: 200 | CX24: moyenne | CY24: 80 | CZ24: 90 | DA24: 105 | DB24: 125 | DC24: 200 | DD24: moyenne | DE24: 80 | DF24: 90 | DG24: 105 | DH24: 125 | DI24: 200 | DJ24: moyenne | DS24: 3 | DT24: 8.997431853 | DU24: 12.27129452 | DV24: 65 | DW24: 11.28949942
D25: 1 | E25: 62.38224513 | F25: 0.9362041796 | G25: - | H25: - | AF25: 305.8401388 | AR25: 10 | AS25: 15 | AT25: 0 | AU25: 0 | AY25: 3 cable espacée de Øext verticaux | AZ25: 1.31 | BA25: 2 | BB25: 0.2 | BR25: 20 | BS25: 1.010610985 | BT25: 1.003498242 | BU25: 1.074139448 | BV25: 1.056455791 | BW25: =$BZ$53*BR25^2+$CA$53*BR25^1+$CB$53*BR25^0 -> 1.067547131 | BX25: 50 | BY25: 0.75 | BZ25: 0.8 | CA25: 0.82 | CB25: 0.89 | CC25: 0.95 | CD25: 50 | CE25: 50 | CG25: 80 | CH25: 90 | CI25: 105 | CJ25: 125 | CK25: 200 | CX25: 0 | DD25: 0 | DJ25: 0 | DS25: 3.5 | DT25: 11.56494409 | DU25: 14.14281668 | DV25: 70 | DW25: 11.75470996
D26: 0 | E26: 72.57332801 | F26: 0.7248829231 | G26: - | H26: - | AF26: 354.8454148 | AR26: 10 | AS26: 15 | AT26: 0 | AU26: 0 | AX26: catégorie | AY26: disposition des cable | AZ26: effet thermique de proximité négligable | BA26: effet thermique de proximité non négigable | BB26: Colonne4 | BR26: 25 | BS26: 1.005059701 | BT26: 0.9997247164 | BU26: 1.045114566 | BV26: 1.036317788 | BW26: 1.045567021 | BX26: 55 | BY26: 0.67 | BZ26: 0.74 | CA26: 0.78 | CB26: 0.86 | CC26: 0.94 | CD26: 55 | CE26: 55 | CG26: 1 | CH26: 1 | CI26: 1 | CJ26: 1 | CK26: 1 | CS26: =$CF$8*IFERROR(CH4*$BY$11,0) -> 6.016272655 | CT26: =$CF$8*IFERROR(CI4*$BZ$11,0) -> 6.035839009 | CU26: =$CF$8*IFERROR(CJ4*$CA$11,0) -> 4.823945633 | CV26: =$CF$8*IFERROR(CK4*$CB$11,0) -> 5.628854058 | CW26: =$CF$8*IFERROR(CL4*$CC$11,0) -> 2.357796011 | CX26: =(CW26+CV26+CU26+CT26+CS26)/COUNTIF(CS26:CW26,">0") -> 4.972541473 | CY26: =$CF$8*IFERROR(CH4*$BY$16,0) -> 30.08136328 | CZ26: =$CF$8*IFERROR(CI4*$BZ$16,0) -> 27.43563186 | DA26: =$CF$8*IFERROR(CJ4*$CA$16,0) -> 21.10476214 | DB26: =$CF$8*IFERROR(CK4*$CB$16,0) -> 27.06179836 | DC26: =$CF$8*IFERROR(CL4*$CC$16,0) -> 9.946951921 | DD26: =(DC26+DB26+DA26+CZ26+CY26)/COUNTIF(CY26:DC26,">0") -> 23.12610151 | DE26: =$CF$8*IFERROR(CH4*$BY$6,0) -> 1.266583717 | DF26: =$CF$8*IFERROR(CI4*$BZ$6,0) -> 1.371781593 | DG26: =$CF$8*IFERROR(CJ4*$CA$6,0) -> 1.004988674 | DH26: =$CF$8*IFERROR(CK4*$CB$6,0) -> 1.298966321 | DI26: =$CF$8*IFERROR(CL4*$CC$6,0) -> 0.5157678774 | DJ26: =(DI26+DH26+DG26+DF26+DE26)/COUNTIF(DE26:DI26,">0") -> 1.091617636 | DS26: 4 | DT26: 14.37425232 | DU26: 16.04669715 | DV26: 75 | DW26: 12.1782452
D27: 00 | E27: 84.891282 | F27: 0.5543955499 | G27: - | H27: - | AF27: 413.4365839 | AR27: 10 | AS27: 15 | AT27: 0 | AU27: 0 | AY27: disposition des cable | AZ27: effet thermique de proximité négligable | BA27: si e/de est inférieur a: | BB27: valeur moyenne de hi/hg | BR27: 30 | BS27: 0.9982602911 | BT27: 0.9917681099 | BU27: 1.01192046 | BV27: 1.007991249 | BW27: 1.011784686 | BX27: 60 | BY27: 0.58 | BZ27: 0.67 | CA27: 0.73 | CB27: 0.83 | CC27: 0.91 | CD27: 60 | CE27: 60 | CS27: 10.66363534 | CT27: 10.70501521 | CU27: 8.918796893 | CV27: 9.631681204 | CW27: 5.389060157 | CX27: =(CW27+CV27+CU27+CT27+CS27)/COUNTIF(CS27:CW27,">0") -> 9.06163776 | CY27: 53.3181767 | CZ27: 48.65916003 | DA27: 39.01973641 | DB27: 46.30615963 | DC27: 22.73509754 | DD27: =(DC27+DB27+DA27+CZ27+CY27)/COUNTIF(CY27:DC27,">0") -> 42.00766606 | DE27: =$CF$8*IFERROR(CH5*$BY$6,0) -> 2.244975861 | DF27: =$CF$8*IFERROR(CI5*$BZ$6,0) -> 2.432958001 | DG27: =$CF$8*IFERROR(CJ5*$CA$6,0) -> 1.858082686 | DH27: =$CF$8*IFERROR(CK5*$CB$6,0) -> 2.222695662 | DI27: =$CF$8*IFERROR(CL5*$CC$6,0) -> 1.178856909 | DJ27: =(DI27+DH27+DG27+DF27+DE27)/COUNTIF(DE27:DI27,">0") -> 1.987513824 | DS27: 4.5 | DT27: 17.41360826 | DU27: 18.0136803 | DV27: 80 | DW27: 12.56329045
D28: 000 | E28: 98.21766493 | F28: 0.4326178428 | G28: - | H28: - | AF28: 477.1900992 | AR28: 10 | AS28: 15 | AT28: 0 | AU28: 0 | AY28: fonction de fils | AZ28: 2 | BA28: 3 | BB28: 4 | BR28: 35 | BS28: 0.9902127553 | BT28: 0.9796284222 | BU28: 0.9745571309 | BV28: 0.971476172 | BW28: 0.9662001271 | BX28: 70 | BY28: 0.35 | BZ28: 0.52 | CA28: 0.61 | CB28: 0.76 | CC28: 0.87 | CD28: 70 | CE28: 70 | CJ28: linéariser | CS28: 14.41402896 | CT28: 14.65360015 | CU28: 12.61340268 | CV28: 13.19946791 | CW28: 8.260564185 | CX28: 12.62821278 | CY28: 72.07014482 | CZ28: 66.60727342 | DA28: 55.18363674 | DB28: 63.45898035 | DC28: 34.84925516 | DD28: 58.4338581 | DE28: 3.034532414 | DF28: 3.330363671 | DG28: 2.627792226 | DH28: 3.046031057 | DI28: 1.806998415 | DJ28: 2.769143556 | DS28: 5 | DT28: 20.67313287 | DU28: 20.07451055 | DV28: 85 | DW28: 12.91303101
D29: 0000 | E29: 114.2013991 | F29: 0.3334459577 | G29: - | H29: - | AF29: 552.6857303 | AR29: 10 | AS29: 15 | AT29: 0 | AU29: 0 | AX29: cote cote | AY29: un seul groupe | AZ29: 1 | BA29: 1 | BB29: 1 | BR29: 40 | BS29: 0.9809170937 | BT29: 0.9633056535 | BU29: 0.9330245779 | BV29: 0.9267725584 | BW29: 0.9088133437 | BX29: 80 | BY29: 0 | BZ29: 0.3 | CA29: 0.46 | CB29: 0.69 | CC29: 0.84 | CD29: 80 | CE29: 80 | CJ29: AWG | CP29: ="échauffement à "&B9&" A" -> échauffement à 15 A | CS29: 17.26745353 | CT29: 17.88159384 | CU29: 15.907763 | CV29: 16.33221418 | CW29: 10.97230809 | CX29: 15.67226653 | CY29: 86.33726765 | CZ29: 81.27997202 | DA29: 69.59646314 | DB29: 78.52026049 | DC29: 46.28942477 | DD29: 72.40467761 | DE29: 3.635253375 | DF29: 4.063998601 | DG29: 3.314117292 | DH29: 3.768972504 | DI29: 2.400192396 | DJ29: 3.436506833 | DS29: 5.5 | DT29: 24.14435441 | DU29: 22.25993227 | DV29: 90 | DW29: 13.23065218
AR30: 10 | AS30: 15 | AT30: 0 | AU30: 0 | AY30: 2 multipolaire cote | AZ30: 0.5 | BA30: 0.5 | BB30: 1.41 | BR30: 45 | BS30: 0.9703733062 | BT30: 0.9427998036 | BU30: 0.8873228013 | BV30: 0.8738804078 | BW30: 0.8396243358 | BX30: 90 | BY30: 0 | BZ30: 0 | CA30: 0.3 | CB30: 0.61 | CC30: 0.8 | CD30: 90 | CE30: 90 | CJ30: 30 | CK30: =LINEST(CG3:CG22,DJ69:DJ88^{1,2,3},0) -> 2.225084538 | CL30: -2.199225031 | CM30: 17.33111276 | CN30: 0 | CP30: =$CK$30*B9^3+$CL$30*B9^2+$CM$30*B9^1+$CN$30 -> 7274.801376 | CS30: 19.22390904 | CT30: 20.38899628 | CU30: 18.80187785 | CV30: 19.02992002 | CW30: 13.52429189 | CX30: 18.19379902 | CY30: 96.11954518 | CZ30: 92.67725584 | DA30: 82.2582156 | DB30: 91.49000008 | DC30: 57.0556064 | DD30: 83.92012462 | DE30: 4.047138745 | DF30: 4.633862792 | DG30: 3.917057886 | DH30: 4.391520004 | DI30: 2.95843885 | DJ30: 3.989603655 | DS30: 6 | DT30: 27.81989383 | DU30: 24.60068986 | DV30: 95 | DW30: 13.51933925
AR31: 10 | AS31: 15 | AT31: 0 | AU31: 0 | AY31: 3 multipolaire cote | AZ31: 0.75 | BA31: 0.75 | BB31: 1.65 | BR31: 50 | BS31: 0.9585813927 | BT31: 0.9181108726 | BU31: 0.8374518011 | BV31: 0.8127997202 | BW31: 0.7586331034 | BX31: 100 | BY31: 0 | BZ31: 0 | CA31: 0 | CB31: 0.51 | CC31: 0.77 | CD31: 105 | CE31: 100 | CJ31: 28 | CK31: =LINEST(CG3:CG22,DJ47:DJ66^{1,2,3},0) -> 0.8271292888 | CL31: -2.596134139 | CM31: 15.20394045 | CN31: 0 | CP31: =$CK$31*B9^3+$CL$31*B9^2+$CM$31*B9^1+$CN$31 -> 2435.490275 | CS31: 20.28339548 | CT31: 22.17580747 | CU31: 21.29574723 | CV31: 21.29258541 | CW31: 15.91651556 | CX31: 20.19281023 | CY31: 101.4169774 | CZ31: 100.7991249 | DA31: 93.16889414 | DB31: 102.3681991 | DC31: 67.14780002 | DD31: 92.98019911 | DE31: 4.270188523 | DF31: 5.039956244 | DG31: 4.436614007 | DH31: 4.913673557 | DI31: 3.481737779 | DJ31: 4.428434022 | DS31: 6.5 | DT31: 31.69324162 | DU31: 27.12752771 | DV31: 100 | DW31: 13.78227753
AY32: 2 trèfle cote | AZ32: 1 | BA32: 1 | BB32: 1.2 | BR32: 55 | BS32: 0.9455413533 | BT32: 0.8892388604 | BU32: 0.7834115772 | BV32: 0.7435304957 | BW32: 0.6658396466 | BX32: 120 | BY32: 0 | BZ32: 0 | CA32: 0 | CB32: 0 | CC32: 0.69 | CE32: 125 | CJ32: 26 | CK32: =LINEST(CG3:CG22,DJ25:DJ44^{1,2,3},0) -> 0.6264521604 | CL32: -2.59384359 | CM32: 12.81839237 | CN32: 0 | CP32: =$CK$32*B9^3+$CL$32*B9^2+$CM$32*B9^1+$CN$32 -> 1722.937119 | CS32: 20.615 | CT32: 23.24202741 | CU32: 23.38937114 | CV32: 23.12021037 | CW32: 18.14897912 | CX32: 21.70311761 | CY32: 103.075 | CZ32: 105.6455791 | DA32: 102.3284987 | DB32: 111.1548576 | DC32: 76.56600564 | DD32: 99.75398821 | DE32: 4.34 | DF32: 5.282278956 | DG32: 4.872785654 | DH32: 5.335433163 | DI32: 3.970089181 | DJ32: 4.760117391 | DO32: moyenne | DS32: 7 | DT32: 35.75859446 | DU32: 29.87119022 | DV32: 105 | DW32: 14.02265231
AY33: 3 trèfle cote | AZ33: 1.5 | BA33: 1.5 | BB33: 1.25 | BR33: 60 | BS33: 0.931253188 | BT33: 0.8561837672 | BU33: 0.7252021296 | BV33: 0.6660727342 | BW33: 0.5612439652 | BX33: 140 | BY33: 0 | BZ33: 0 | CA33: 0 | CB33: 0 | CC33: 0.59 | CJ33: 24 | CK33: =LINEST(CG3:CG22,DJ3:DJ22^{1,2,3},0) -> 0.1589199553 | CL33: -0.5270095097 | CM33: 7.073580277 | CN33: 0 | CP33: =$CK$33*B9^3+$CL$33*B9^2+$CM$33*B9^1+$CN$33 -> 523.8814135 | CS33: 0 | CT33: 23.58765609 | CU33: 25.08274958 | CV33: 24.51279489 | CW33: 20.22168255 | CX33: 23.35122078 | CY33: 0 | CZ33: 107.2166186 | DA33: 109.7370294 | DB33: 117.8499754 | DC33: 85.31022327 | DD33: 105.0284617 | DE33: 0 | DF33: 5.36083093 | DG33: 5.225572829 | DH33: 5.656798822 | DI33: 4.423493058 | DJ33: 5.16667391 | DS33: 7.5 | DT33: 40.0107323 | DU33: 32.86242177 | DV33: 110 | DW33: 14.2436489
AX34: L'un au dessus de l'autre | AY34: 2 multipolaire dessus | AZ34: 2 | BA34: 2 | BB34: 1.35 | BR34: 65 | BS34: 0.9157168967 | BT34: 0.8189455928 | BU34: 0.6628234584 | BV34: 0.5804264357 | BW34: 0.4448460595 | BX34: 200 | CC34: 0 | CJ34: 22 | CK34: =LINEST(CG3:CG22,DD91:DD110^{1,2,3},0) -> 0.1008582418 | CL34: -0.7744916745 | CM34: 6.705894292 | CN34: 0 | CP34: =$CK$34*B9^3+$CL$34*B9^2+$CM$34*B9^1+$CN$34 -> 266.7243538 | CS34: 0 | CT34: 0 | CU34: 26.37588255 | CV34: 25.47033898 | CW34: 22.13462587 | CX34: 24.66028247 | CY34: 0 | CZ34: 0 | DA34: 115.3944862 | DB34: 122.4535528 | DC34: 93.3804529 | DD34: 110.4094973 | DE34: 0 | DF34: 0 | DG34: 5.494975531 | DH34: 5.877770533 | DI34: 4.841949409 | DJ34: 5.404898491 | DS34: 8 | DT34: 44.44492382 | DU34: 36.13196676 | DV34: 115 | DW34: 14.44845259
AY35: 3 multipolaire dessus | AZ35: 4 | BA35: 4 | BB35: 1.57 | BR35: 70 | BS35: 0.8989324795 | BT35: 0.7775243373 | BU35: 0.5962755636 | BV35: 0.4865916003 | BW35: 0.3166459292 | CJ35: 20 | CK35: =LINEST(CG3:CG22,CR3:CR22^{1,2,3},0) -> 0.04099252223 | CL35: -0.3657048772 | CM35: 4.81861344 | CN35: 0 | CP35: =$CK$35*B9^3+$CL$35*B9^2+$CM$35*B9^1+$CN$35 -> 128.3453667 | CS35: 0 | CT35: 0 | CU35: 0 | CV35: 25.99284263 | CW35: 23.88780907 | CX35: 24.94032585 | CY35: 0 | CZ35: 0 | DA35: 0 | DB35: 124.9655895 | DC35: 100.7766945 | DD35: 112.871142 | DE35: 0 | DF35: 0 | DG35: 0 | DH35: 5.998348298 | DI35: 5.225458235 | DJ35: 5.611903266 | DS35: 8.5 | DT35: 49.05685229 | DU35: 39.71056957 | DV35: 120 | DW35: 14.64024868
AY36: 2 trèfles dessus | AZ36: 4 | BA36: 4 | BB36: 1.39 | BR36: 75 | BS36: 0.8808999364 | BT36: 0.7319200006 | BU36: 0.5255584451 | BV36: 0.3845682279 | BW36: 0.1766435745 | CJ36: 18 | CK36: =LINEST(CG3:CG22,CX3:CX22^{1,2,3},0) -> 0.01487464156 | CL36: -0.1882208292 | CM36: 3.358002958 | CN36: 0 | CP36: =$CK$36*B9^3+$CL$36*B9^2+$CM$36*B9^1+$CN$36 -> 58.22227308 | CS36: 0 | CT36: 0 | CU36: 0 | CV36: 26.08030584 | CW36: 25.48123216 | CX36: 25.780769 | CY36: 0 | CZ36: 0 | DA36: 0 | DB36: 125.3860857 | DC36: 107.4989482 | DD36: 116.442517 | DE36: 0 | DF36: 0 | DG36: 0 | DH36: 6.018532116 | DI36: 5.574019534 | DJ36: 5.796275825 | DS36: 9 | DT36: 53.8425565 | DU36: 43.62897461 | DV36: 125 | DW36: 14.82222248
AY37: près d'une surface vertical ou d'une surface horizontale sous le cable | AZ37: 0.5 | BA37: 0.5 | BB37: 1.23 | BR37: 80 | BS37: 0.8616192674 | BT37: 0.6821325829 | BU37: 0.450672103 | BV37: 0.2743563186 | BW37: 0 | CJ37: 16 | CK37: =LINEST(CG3:CG22,CX25:CX44^{1,2,3},0) -> 0.00561995046 | CL37: -0.08264645486 | CM37: 2.431780822 | CN37: 0 | CP37: =$CK$37*B9^3+$CL$37*B9^2+$CM$37*B9^1+$CN$37 -> 36.8485928 | CS37: 0 | CT37: 0 | CU37: 0 | CV37: 0 | CW37: 26.91489512 | CX37: 26.91489512 | CY37: 0 | CZ37: 0 | DA37: 0 | DB37: 0 | DC37: 113.5472138 | DD37: 113.5472138 | DE37: 0 | DF37: 0 | DG37: 0 | DH37: 0 | DI37: 5.887633307 | DJ37: 5.887633307 | DS37: 9.5 | DT37: 58.79838293 | DU37: 47.91792625 | DV37: 130 | DW37: 14.99755927
BR38: 85 | BS38: 0.8410904725 | BT38: 0.628162084 | BU38: 0.3716165372 | BV38: 0.1559558723 | CJ38: 14 | CK38: =LINEST(CG3:CG22,CX47:CX66^{1,2,3},0) -> 0.002665890622 | CL38: -0.08158396549 | CM38: 2.218263722 | CN38: 0 | CP38: =$CK$38*B9^3+$CL$38*B9^2+$CM$38*B9^1+$CN$38 -> 23.91494444 | CS38: 0 | CT38: 0 | CU38: 0 | CV38: 0 | CW38: 28.18879797 | CX38: 28.18879797 | CY38: 0 | CZ38: 0 | DA38: 0 | DB38: 0 | DC38: 118.9214914 | DD38: 118.9214914 | DE38: 0 | DF38: 0 | DG38: 0 | DH38: 0 | DI38: 6.166299555 | DJ38: 6.166299555 | DO38: 50 | DP38: 10 | DS38: 10 | DT38: 63.92094665 | DU38: 52.6081689 | DV38: 135 | DW38: 15.16944437
BR39: 90 | BS39: 0.8193135516 | BT39: 0.5700085039 | BU39: 0.2883917478 | BV39: 0 | CJ39: 12 | CK39: =LINEST(CG3:CG22,CX69:CX88^{1,2,3},0) -> 0.001861097616 | CL39: -0.08019785522 | CM39: 2.028997137 | CN39: 0 | CP39: =$CK$39*B9^3+$CL$39*B9^2+$CM$39*B9^1+$CN$39 -> 18.67164409 | CS39: 0 | CT39: 0 | CU39: 0 | CV39: 0 | CW39: 29.30294069 | CX39: 29.30294069 | CY39: 0 | CZ39: 0 | DA39: 0 | DB39: 0 | DC39: 123.6217811 | DD39: 123.6217811 | DE39: 0 | DF39: 0 | DG39: 0 | DH39: 0 | DI39: 6.410018277 | DJ39: 6.410018277 | DO39: 60 | DP39: 12 | DS39: 10.5 | DT39: 69.20709886 | DU39: 57.73044695 | DV39: 140 | DW39: 15.34106306
B40: tableau 1 | I40: Tableau 2 | BR40: 95 | BS40: 0.7962885048 | BT40: 0.5076718428 | BU40: 0.2009977347 | BZ40: echauffement | CA40: =B10 -> 10 | CJ40: 10 | CK40: =LINEST(CG3:CG22,CX91:CX110^{1,2,3},0) -> 0.0007393369414 | CL40: -0.04444717943 | CM40: 1.550525383 | CN40: 0 | CP40: =$CK$40*B9^3+$CL$40*B9^2+$CM$40*B9^1+$CN$40 -> 15.75252755 | CS40: 0 | CT40: 0 | CU40: 0 | CV40: 0 | CW40: 30.2573233 | CX40: 30.2573233 | CY40: 0 | CZ40: 0 | DA40: 0 | DB40: 0 | DC40: 127.6480827 | DD40: 127.6480827 | DE40: 0 | DF40: 0 | DG40: 0 | DH40: 0 | DI40: 6.618789473 | DJ40: 6.618789473 | DO40: =105-30 -> 75 | DP40: 13 | DS40: 11 | DT40: 74.65389982 | DU40: 63.31550478 | DV40: 145 | DW40: 15.51560065
BR41: 100 | BS41: 0.7720153321 | BT41: 0.4411521005 | BU41: 0.109434498 | CJ41: 8 | CK41: =LINEST(CG3:CG22,DD3:DD22^{1,2,3},0) -> 0.0002660742188 | CL41: -0.01884584723 | CM41: 1.005196718 | CN41: 0 | CP41: =$CK$41*B9^3+$CL$41*B9^2+$CM$41*B9^1+$CN$41 -> 11.73563563 | CS41: 0 | CT41: 0 | CU41: 0 | CV41: 0 | CW41: 31.0519458 | CX41: 31.0519458 | CY41: 0 | CZ41: 0 | DA41: 0 | DB41: 0 | DC41: 131.0003963 | DD41: 131.0003963 | DE41: 0 | DF41: 0 | DG41: 0 | DH41: 0 | DI41: 6.792613143 | DJ41: 6.792613143 | DO41: =125-30 -> 95 | DP41: 14 | DS41: 11.5 | DT41: 80.25859589 | DU41: 69.39408679 | DV41: 150 | DW41: 15.69624244
BR42: 105 | BS42: 0.7464940335 | BT42: 0.3704492771 | BU42: 0 | CJ42: 6 | CK42: =LINEST(CG3:CG22,DD25:DD44^{1,2,3},0) -> 0.000128293573 | CL42: -0.01359264292 | CM42: 0.8211590898 | CN42: 0 | CP42: =$CK$42*B9^3+$CL$42*B9^2+$CM$42*B9^1+$CN$42 -> 9.6920325 | CS42: 0 | CT42: 0 | CU42: 0 | CV42: 0 | CW42: 31.68680817 | CX42: 31.68680817 | CY42: 0 | CZ42: 0 | DA42: 0 | DB42: 0 | DC42: 133.678722 | DD42: 133.678722 | DE42: 0 | DF42: 0 | DG42: 0 | DH42: 0 | DI42: 6.931489287 | DJ42: 6.931489287 | DO42: 170 | DP42: 17 | DS42: 12 | DT42: 86.0186001 | DU42: 75.99693737 | DV42: 155 | DW42: 15.88617372
BR43: 110 | BS43: 0.719724609 | BT43: 0.2955633725 | BY43: 80 | BZ43: 90 | CA43: 105 | CB43: 125 | CC43: 200 | CJ43: 4 | CK43: =LINEST(CG3:CG22,DD47:DD66^{1,2,3},0) -> 5.959723652e-05 | CL43: -0.00899050816 | CM43: 0.680119437 | CN43: 0 | CP43: =$CK$43*B9^3+$CL$43*B9^2+$CM$43*B9^1+$CN$43 -> 8.380067892 | CS43: 0 | CT43: 0 | CU43: 0 | CV43: 0 | CW43: 32.16191043 | CX43: 32.16191043 | CY43: 0 | CZ43: 0 | DA43: 0 | DB43: 0 | DC43: 135.6830596 | DD43: 135.6830596 | DE43: 0 | DF43: 0 | DG43: 0 | DH43: 0 | DI43: 7.035417906 | DJ43: 7.035417906 | DS43: 12.5 | DT43: 91.93147539 | DU43: 83.15480091 | DV43: 160 | DW43: 16.0885798
BR44: 115 | BS44: 0.6917070585 | BT44: 0.2164943869 | BY44: =INDIRECT("BW"&MATCH(BW21-CA40,BR23:BR62)+22) -> 0.3166459292 | BZ44: =INDIRECT("BV"&MATCH(BV21-CA40,BR23:BR62)+22) -> 0.2743563186 | CA44: =INDIRECT("BU"&MATCH(BU21-CA40,BR23:BR62)+22) -> 0.2009977347 | CB44: =INDIRECT("BT"&MATCH(BT21-CA40,BR23:BR62)+22) -> 0.2164943869 | CC44: =INDIRECT("BS"&MATCH(BS21-CA40,BR23:BR62)+22) -> 0.1216686906 | CJ44: 2 | CK44: =LINEST(CG3:CG22,DD69:DD88^{1,2,3},0) -> 2.574850235e-05 | CL44: -0.005219655008 | CM44: 0.5150663026 | CN44: 0 | CP44: =$CK$44*B9^3+$CL$44*B9^2+$CM$44*B9^1+$CN$44 -> 6.638473358 | CS44: 0 | CT44: 0 | CU44: 0 | CV44: 0 | CW44: 32.47725256 | CX44: 32.47725256 | CY44: 0 | CZ44: 0 | DA44: 0 | DB44: 0 | DC44: 137.0134093 | DD44: 137.0134093 | DE44: 0 | DF44: 0 | DG44: 0 | DH44: 0 | DI44: 7.104398999 | DJ44: 7.104398999 | DS44: 13 | DT44: 97.99492023 | DU44: 90.8984218 | DV44: 165 | DW44: 16.30664598
BR45: 120 | BS45: 0.6624413821 | BT45: 0.1332423201 | CS45: AWG14 | CY45: AWG4 | DE45: AWG28 | DS45: 13.5 | DT45: 104.2067561 | DU45: 99.25854444 | DV45: 170 | DW45: 16.54355754
BR46: 125 | BS46: 0.6319275798 | BT46: 0 | CS46: 80 | CT46: 90 | CU46: 105 | CV46: 125 | CW46: 200 | CX46: moyenne | CY46: 80 | CZ46: 90 | DA46: 105 | DB46: 125 | DC46: 200 | DD46: moyenne | DE46: 80 | DF46: 90 | DG46: 105 | DH46: 125 | DI46: 200 | DJ46: moyenne | DS46: 14 | DT46: 110.5649165 | DU46: 108.2659132 | DV46: 175 | DW46: 16.8024998
BR47: 130 | BS47: 0.6001656515 | CX47: 0 | DD47: 0 | DJ47: 0 | DS47: 14.5 | DT47: 117.0674373 | DU47: 117.9512725 | DV47: 180 | DW47: 17.08665806
BR48: 135 | BS48: 0.5671555973 | CS48: =$CF$8*IFERROR(CH4*$BY$12,0) -> 8.549440089 | CT48: =$CF$8*IFERROR(CI4*$BZ$12,0) -> 8.230689557 | CU48: =$CF$8*IFERROR(CJ4*$CA$12,0) -> 6.632925245 | CV48: =$CF$8*IFERROR(CK4*$CB$12,0) -> 8.659775475 | CW48: =$CF$8*IFERROR(CL4*$CC$12,0) -> 3.31565064 | CX48: =(CW48+CV48+CU48+CT48+CS48)/COUNTIF(CS48:CW48,">0") -> 7.077696201 | CY48: =$CF$8*IFERROR(CH4*$BY$17,0) -> 39.58074115 | CZ48: =$CF$8*IFERROR(CI4*$BZ$17,0) -> 37.03810301 | DA48: =$CF$8*IFERROR(CJ4*$CA$17,0) -> 29.14467153 | DB48: =$CF$8*IFERROR(CK4*$CB$17,0) -> 36.80404577 | DC48: =$CF$8*IFERROR(CL4*$CC$17,0) -> 13.26260256 | DD48: =(DC48+DB48+DA48+CZ48+CY48)/COUNTIF(CY48:DC48,">0") -> 31.1660328 | DE48: =$CF$8*IFERROR(CH4*$BY$5,0) -> 0.9499377877 | DF48: =$CF$8*IFERROR(CI4*$BZ$5,0) -> 1.097425274 | DG48: =$CF$8*IFERROR(CJ4*$CA$5,0) -> 0.8039909388 | DH48: =$CF$8*IFERROR(CK4*$CB$5,0) -> 1.082471934 | DI48: =$CF$8*IFERROR(CL4*$CC$5,0) -> 0.4420867521 | DJ48: =(DI48+DH48+DG48+DF48+DE48)/COUNTIF(DE48:DI48,">0") -> 0.8751825374 | DS48: 15 | DT48: 123.7124485 | DU48: 128.3453667 | DV48: 185 | DW48: 17.3992176
BR49: 140 | BS49: 0.5328974173 | CS49: 15.15358706 | CT49: 14.59774801 | CU49: 12.26334573 | CV49: 14.81797108 | CW49: 7.578365846 | CX49: =(CW49+CV49+CU49+CT49+CS49)/COUNTIF(CS49:CW49,">0") -> 12.88220355 | CY49: 70.15549566 | CZ49: 65.68986604 | DA49: 53.88439789 | DB49: 62.9763771 | DC49: 30.31346338 | DD49: =(DC49+DB49+DA49+CZ49+CY49)/COUNTIF(CY49:DC49,">0") -> 56.60392001 | DE49: =$CF$8*IFERROR(CH5*$BY$5,0) -> 1.683731896 | DF49: =$CF$8*IFERROR(CI5*$BZ$5,0) -> 1.946366401 | DG49: =$CF$8*IFERROR(CJ5*$CA$5,0) -> 1.486466149 | DH49: =$CF$8*IFERROR(CK5*$CB$5,0) -> 1.852246385 | DI49: =$CF$8*IFERROR(CL5*$CC$5,0) -> 1.010448779 | DJ49: =(DI49+DH49+DG49+DF49+DE49)/COUNTIF(DE49:DI49,">0") -> 1.595851922 | DS49: 15.5 | DT49: 130.4981664 | DU49: 139.4789403 | DV49: 190 | DW49: 17.74336373
O50: selection manuel disposition câble | AG50: MIL STD 339 | BR50: 145 | BS50: 0.4973911112 | CS50: 20.48309379 | CT50: 19.98218202 | CU50: 17.34342869 | CV50: 20.30687371 | CW50: 11.61641839 | CX50: 17.94639932 | CY50: 94.82913792 | CZ50: 89.91981911 | DA50: 76.20597454 | DB50: 86.30421327 | DC50: 46.46567354 | DD50: 78.74496368 | DE50: 2.27589931 | DF50: 2.664290937 | DG50: 2.10223378 | DH50: 2.538359214 | DI50: 1.548855785 | DJ50: 2.225927805 | DS50: 16 | DT50: 137.4228871 | DU50: 151.3827375 | DV50: 195 | DW50: 18.12228175
O51: fonction de fils | BR51: 150 | BS51: 0.4606366793 | BX51: régression | CS51: 24.53796028 | CT51: 24.38399161 | CU51: 21.87317413 | CV51: 25.12648336 | CW51: 15.42980826 | CX51: 22.27028353 | CY51: 113.601668 | CZ51: 109.7279622 | DA51: 96.10940147 | DB51: 106.7875543 | DC51: 61.71923303 | DD51: 97.58916379 | DE51: 2.726440031 | DF51: 3.251198881 | DG51: 2.651293834 | DH51: 3.14081042 | DI51: 2.057307768 | DJ51: 2.765410187 | DS51: 16.5 | DT51: 144.4849806 | DU51: 164.0875029 | DV51: 200 | DW51: 18.53915696
O52: fonction de fils | BR52: 155 | BS52: 0.4226341214 | BZ52: =LINEST(BY22:BY29,BX22:BX29^{1,2,3},0) -> 5.769834672e-06 | CS52: 27.31818653 | CT52: 27.80317675 | CU52: 25.85258205 | CV52: 29.27680003 | CW52: 19.01853547 | CX52: 25.85385616 | CY52: 126.4730858 | CZ52: 125.1142954 | DA52: 113.5946787 | DB52: 124.4264001 | DC52: 76.07414186 | DD52: 113.1365204 | DE52: 3.035354058 | DF52: 3.707090234 | DG52: 3.133646309 | DH52: 3.659600003 | DI52: 2.535804729 | DJ52: 3.214299066 | DS52: 17 | DT52: 151.6828851 | DU52: 177.6239807 | DV52: 205 | DW52: 18.99717466
BR53: 160 | BS53: 0.3833834377 | BY53: 80°C | BZ53: =LINEST(BY21:BY29,BX21:BX29^{1,2},80) -> -0.0002360444893 | CA53: 0.006225980007 | CB53: 1.037445326 | CS53: 28.82377253 | CT53: 30.23973746 | CU53: 29.28165244 | CV53: 32.75782371 | CW53: 22.38260001 | CX53: 28.69711723 | CY53: 133.4433913 | CZ53: 136.0788186 | DA53: 128.6618062 | DB53: 139.2207508 | DC53: 89.53040002 | DD53: 125.3870334 | DE53: 3.202641392 | DF53: 4.031964995 | DG53: 3.549291205 | DH53: 4.094727964 | DI53: 2.984346667 | DJ53: 3.572594445 | DS53: 17.5 | DT53: 159.0151027 | DU53: 192.0229154 | DV53: 210 | DW53: 19.49952015
BR54: 165 | BS54: 0.342884628 | BY54: 90°C | BZ54: =LINEST(BZ21:BZ30,BX21:BX30^{1,2},90) -> -0.0001637707392 | CA54: 0.003342082707 | CB54: 1.055122433 | CS54: 29.295 | CT54: 31.69367374 | CU54: 32.16038532 | CV54: 35.56955442 | CW54: 25.52200188 | CX54: 30.84812307 | CY54: 135.625 | CZ54: 142.6215318 | DA54: 141.310784 | DB54: 151.1706063 | DC54: 102.0880075 | DD54: 134.5631859 | DE54: 3.255 | DF54: 4.225823165 | DG54: 3.898228524 | DH54: 4.446194302 | DI54: 3.402933584 | DJ54: 3.845635915 | DS54: 18 | DT54: 166.4801945 | DU54: 207.3150513 | DV54: 215 | DW54: 20.04937872
BR55: 170 | BS55: 0.3011376923 | BY55: 105°C | BZ55: =LINEST(CA21:CA31,CD21:CD31^{1,2},105) -> -8.338447294e-05 | CA55: -0.002052675121 | CB55: 1.148546739 | CS55: 0 | CT55: 32.16498558 | CU55: 34.48878067 | CV55: 37.71199214 | CW55: 28.43674109 | CX55: 33.20062487 | CY55: 0 | CZ55: 144.7424351 | DA55: 151.541612 | DB55: 160.2759666 | DC55: 113.7469644 | DD55: 142.5767445 | DE55: 0 | DF55: 4.288664744 | DG55: 4.180458263 | DH55: 4.713999018 | DI55: 3.791565479 | DJ55: 4.243671876 | DS55: 18.5 | DT55: 174.0767771 | DU55: 223.531133 | DV55: 220 | DW55: 20.64993567
BR56: 175 | BS56: 0.2581426308 | BY56: 125°C | BZ56: =LINEST(CB21:CB32,CE21:CE32^{1,2},125) -> -8.366162255e-05 | CA56: 0.00301006794 | CB56: 0.9767615319 | CS56: 0 | CT56: 0 | CU56: 36.26683851 | CV56: 39.18513689 | CW56: 31.12681763 | CX56: 35.52626434 | CY56: 0 | CZ56: 0 | DA56: 159.3542904 | DB56: 166.5368318 | DC56: 124.5072705 | DD56: 150.1327976 | DE56: 0 | DF56: 0 | DG56: 4.395980425 | DH56: 4.898142111 | DI56: 4.150242351 | DJ56: 4.481454962 | DS56: 19 | DT56: 181.8035187 | DU56: 240.7019047
BR57: 180 | BS57: 0.2138994433 | BY57: 200°C | BZ57: =LINEST(CC21:CC34,BX21:BX34^{1,2},200) -> -2.496251846e-05 | CA57: 1.305655809e-05 | CB57: 1.020334861 | CS57: 0 | CT57: 0 | CU57: 0 | CV57: 39.98898865 | CW57: 33.59223151 | CX57: 36.79061008 | CY57: 0 | CZ57: 0 | DA57: 0 | DB57: 169.9532018 | DC57: 134.368926 | DD57: 152.1610639 | DE57: 0 | DF57: 0 | DG57: 0 | DH57: 4.998623582 | DI57: 4.478964201 | DJ57: 4.738793891 | DS57: 19.5 | DT57: 189.6591361 | DU57: 258.8581108
BR58: 185 | BS58: 0.1684081299 | CS58: 0 | CT58: 0 | CU58: 0 | CV58: 40.12354744 | CW58: 35.83298272 | CX58: 37.97826508 | CY58: 0 | CZ58: 0 | DA58: 0 | DB58: 170.5250766 | DC58: 143.3319309 | DD58: 156.9285037 | DE58: 0 | DF58: 0 | DG58: 0 | DH58: 5.01544343 | DI58: 4.777731029 | DJ58: 4.896587229 | DS58: 20 | DT58: 197.6423915 | DU58: 278.0304957
BR59: 190 | BS59: 0.1216686906 | CS59: 0 | CT59: 0 | CU59: 0 | CV59: 0 | CW59: 37.84907126 | CX59: 37.84907126 | CY59: 0 | CZ59: 0 | DA59: 0 | DB59: 0 | DC59: 151.396285 | DD59: 151.396285 | DE59: 0 | DF59: 0 | DG59: 0 | DH59: 0 | DI59: 5.046542835 | DJ59: 5.046542835 | DS59: 20.5 | DT59: 205.75209 | DU59: 298.2498039
BR60: 195 | BS60: 0.07368112534 | CS60: 0 | CT60: 0 | CU60: 0 | CV60: 0 | CW60: 39.64049714 | CX60: 39.64049714 | CY60: 0 | CZ60: 0 | DA60: 0 | DB60: 0 | DC60: 158.5619886 | DD60: 158.5619886 | DE60: 0 | DF60: 0 | DG60: 0 | DH60: 0 | DI60: 5.285399619 | DJ60: 5.285399619 | DS60: 21 | DT60: 213.9870769 | DU60: 319.5467798
BR61: 200 | BS61: 0 | CS61: 0 | CT61: 0 | CU61: 0 | CV61: 0 | CW61: 41.20726035 | CX61: 41.20726035 | CY61: 0 | CZ61: 0 | DA61: 0 | DB61: 0 | DC61: 164.8290414 | DD61: 164.8290414 | DE61: 0 | DF61: 0 | DG61: 0 | DH61: 0 | DI61: 5.49430138 | DJ61: 5.49430138 | DS61: 21.5 | DT61: 222.3462356 | DU61: 341.9521676
BR62: 205 | CS62: 0 | CT62: 0 | CU62: 0 | CV62: 0 | CW62: 42.5493609 | CX62: 42.5493609 | CY62: 0 | CZ62: 0 | DA62: 0 | DB62: 0 | DC62: 170.1974436 | DD62: 170.1974436 | DE62: 0 | DF62: 0 | DG62: 0 | DH62: 0 | DI62: 5.67324812 | DJ62: 5.67324812 | DS62: 22 | DT62: 230.8284853 | DU62: 365.4967118
CS63: 0 | CT63: 0 | CU63: 0 | CV63: 0 | CW63: 43.66679878 | CX63: 43.66679878 | CY63: 0 | CZ63: 0 | DA63: 0 | DB63: 0 | DC63: 174.6671951 | DD63: 174.6671951 | DE63: 0 | DF63: 0 | DG63: 0 | DH63: 0 | DI63: 5.822239837 | DJ63: 5.822239837 | DS63: 22.5 | DT63: 239.4327792 | DU63: 390.2111568
CS64: 0 | CT64: 0 | CU64: 0 | CV64: 0 | CW64: 44.55957399 | CX64: 44.55957399 | CY64: 0 | CZ64: 0 | DA64: 0 | DB64: 0 | DC64: 178.238296 | DD64: 178.238296 | DE64: 0 | DF64: 0 | DG64: 0 | DH64: 0 | DI64: 5.941276532 | DJ64: 5.941276532 | DS64: 23 | DT64: 248.1581025 | DU64: 416.126247
CS65: 0 | CT65: 0 | CU65: 0 | CV65: 0 | CW65: 45.22768654 | CX65: 45.22768654 | CY65: 0 | CZ65: 0 | DA65: 0 | DB65: 0 | DC65: 180.9107462 | DD65: 180.9107462 | DE65: 0 | DF65: 0 | DG65: 0 | DH65: 0 | DI65: 6.030358205 | DJ65: 6.030358205 | DS65: 23.5 | DT65: 257.0034711 | DU65: 443.2727268
CS66: 0 | CT66: 0 | CU66: 0 | CV66: 0 | CW66: 45.67113642 | CX66: 45.67113642 | CY66: 0 | CZ66: 0 | DA66: 0 | DB66: 0 | DC66: 182.6845457 | DD66: 182.6845457 | DE66: 0 | DF66: 0 | DG66: 0 | DH66: 0 | DI66: 6.089484856 | DJ66: 6.089484856 | DS66: 24 | DT66: 265.9679296 | DU66: 471.6813406
CS67: AWG12 | CY67: AWG2 | DE67: AWG30 | DS67: 24.5 | DT67: 275.0505502 | DU67: 501.3828327
CS68: 80 | CT68: 90 | CU68: 105 | CV68: 125 | CW68: 200 | CX68: moyenne | CY68: 80 | CZ68: 90 | DA68: 105 | DB68: 125 | DC68: 200 | DD68: moyenne | DE68: 80 | DF68: 90 | DG68: 105 | DH68: 125 | DI68: 200 | DJ68: moyenne | DS68: 25 | DT68: 284.2504313 | DU68: 532.4079476
CX69: 0 | DD69: 0 | DJ69: 0 | DS69: 25.5 | DT69: 293.5666959 | DU69: 564.7874296
CS70: =$CF$8*IFERROR(CH4*$BY$13,0) -> 11.39925345 | CT70: =$CF$8*IFERROR(CI4*$BZ$13,0) -> 10.97425274 | CU70: =$CF$8*IFERROR(CJ4*$CA$13,0) -> 9.044898062 | CV70: =$CF$8*IFERROR(CK4*$CB$13,0) -> 10.82471934 | CW70: =$CF$8*IFERROR(CL4*$CC$13,0) -> 4.052461894 | CX70: =(CW70+CV70+CU70+CT70+CS70)/COUNTIF(CS70:CW70,">0") -> 9.259117099 | CY70: =$CF$8*IFERROR(CH4*$BY$18,0) -> 53.82980797 | CZ70: =$CF$8*IFERROR(CI4*$BZ$18,0) -> 49.38413734 | DA70: =$CF$8*IFERROR(CJ4*$CA$18,0) -> 40.19954694 | DB70: =$CF$8*IFERROR(CK4*$CB$18,0) -> 48.71123704 | DC70: =$CF$8*IFERROR(CL4*$CC$18,0) -> 17.68347008 | DD70: =(DC70+DB70+DA70+CZ70+CY70)/COUNTIF(CY70:DC70,">0") -> 41.96163988 | DE70: =$CF$8*IFERROR(CH4*$BY$4,0) -> 0.6332918585 | DF70: =$CF$8*IFERROR(CI4*$BZ$4,0) -> 0.8230689557 | DG70: =$CF$8*IFERROR(CJ4*$CA$4,0) -> 0.6029932041 | DH70: =$CF$8*IFERROR(CK4*$CB$4,0) -> 0.6494831606 | DI70: =$CF$8*IFERROR(CL4*$CC$4,0) -> 0.2947245014 | DJ70: =(DI70+DH70+DG70+DF70+DE70)/COUNTIF(DE70:DI70,">0") -> 0.6007123361 | DS70: 26 | DT70: 302.9984912 | DU70: 598.5520232
CS71: 20.20478275 | CT71: 19.46366401 | CU71: 16.72274417 | CV71: 18.52246385 | CW71: 9.262447145 | CX71: =(CW71+CV71+CU71+CT71+CS71)/COUNTIF(CS71:CW71,">0") -> 16.83522039 | CY71: 95.41147409 | CZ71: 87.58648805 | DA71: 74.32330744 | DB71: 83.35108734 | DC71: 40.41795118 | DD71: =(DC71+DB71+DA71+CZ71+CY71)/COUNTIF(CY71:DC71,">0") -> 76.21806162 | DE71: =$CF$8*IFERROR(CH5*$BY$4,0) -> 1.12248793 | DF71: =$CF$8*IFERROR(CI5*$BZ$4,0) -> 1.459774801 | DG71: =$CF$8*IFERROR(CJ5*$CA$4,0) -> 1.114849612 | DH71: =$CF$8*IFERROR(CK5*$CB$4,0) -> 1.111347831 | DI71: =$CF$8*IFERROR(CL5*$CC$4,0) -> 0.6736325196 | DJ71: =(DI71+DH71+DG71+DF71+DE71)/COUNTIF(DE71:DI71,">0") -> 1.096418539 | DS71: 26.5 | DT71: 312.5449866 | DU71: 633.7324726
CS72: 27.31079172 | CT72: 26.64290937 | CU72: 23.65013003 | CV72: 25.38359214 | CW72: 14.19784469 | CX72: 23.43705359 | CY72: 128.9676276 | CZ72: 119.8930921 | DA72: 105.111689 | DB72: 114.2261646 | DC72: 61.95423139 | DD72: 106.030561 | DE72: 1.517266207 | DF72: 1.998218202 | DG72: 1.576675335 | DH72: 1.523015528 | DI72: 1.032570523 | DJ72: 1.529549159 | DS72: 27 | DT72: 322.2053734 | DU72: 670.3595224
CS73: 32.71728037 | CT73: 32.51198881 | CU73: 29.82705563 | CV73: 31.4081042 | CW73: 18.85865454 | CX73: 29.06461671 | CY73: 154.4982684 | CZ73: 146.3039496 | DA73: 132.5646917 | DB73: 141.3364689 | DC73: 82.29231071 | DD73: 131.3991379 | DE73: 1.817626687 | DF73: 2.438399161 | DG73: 1.988470375 | DH73: 1.884486252 | DI73: 1.371538512 | DJ73: 1.900104197 | DS73: 27.5 | DT73: 331.9788635 | DU73: 708.463917
CS74: 36.4242487 | CT74: 37.07090234 | CU74: 35.25352097 | CV74: 36.59600003 | CW74: 23.24487668 | CX74: 33.71790974 | CY74: 172.0033966 | CZ74: 166.8190605 | DA74: 156.6823154 | DB74: 164.6820001 | DC74: 101.4321891 | DD74: 152.3237924 | DE74: 2.023569372 | DF74: 2.780317675 | DG74: 2.350234732 | DH74: 2.195760002 | DI74: 1.690536486 | DJ74: 2.208083653 | DS74: 28 | DT74: 341.8646884 | DU74: 748.0764006
CS75: 38.43169671 | CT75: 40.31964995 | CU75: 39.92952606 | CV75: 40.94727964 | CW75: 27.35651112 | CX75: 37.39693269 | CY75: 181.4830122 | CZ75: 181.4384248 | DA75: 177.4645603 | DB75: 184.2627584 | DC75: 119.3738667 | DD75: 168.8045245 | DE75: 2.135094261 | DF75: 3.023973746 | DG75: 2.661968404 | DH75: 2.456836778 | DI75: 1.989564445 | DJ75: 2.453487527 | DS75: 28.5 | DT75: 351.8620987 | DU75: 789.2277177
AS76: temperature max | CS76: 39.06 | CT76: 42.25823165 | CU76: 43.85507089 | CV76: 44.46194302 | CW76: 31.19355785 | CX76: 40.16576068 | CY76: 184.45 | CZ76: 190.1620424 | DA76: 194.9114262 | DB76: 200.0787436 | DC76: 136.1173434 | DD76: 181.1439111 | DE76: 2.17 | DF76: 3.169367374 | DG76: 2.923671393 | DH76: 2.667716581 | DI76: 2.268622389 | DJ76: 2.639875547 | DS76: 29 | DT76: 361.9703632 | DU76: 831.9486127
CS77: 0 | CT77: 42.88664744 | CU77: 47.03015546 | CV77: 47.13999018 | CW77: 34.75601689 | CX77: 42.95320249 | CY77: 0 | CZ77: 192.9899135 | DA77: 209.0229132 | DB77: 212.1299558 | DC77: 151.6626191 | DD77: 191.4513504 | DE77: 0 | DF77: 3.216498558 | DG77: 3.135343698 | DH77: 2.828399411 | DI77: 2.527710319 | DJ77: 2.926987996 | DS77: 29.5 | DT77: 372.1887679 | DU77: 876.26983
AS78: AWG | AT78: 55a0111 | BG78: 55A0811 | BN78: 44A0111 | BU78: KZ-04 | CA78: KZ-05 | CG78: KZ-05 | CS78: 0 | CT78: 0 | CU78: 49.45477978 | CV78: 48.98142111 | CW78: 38.04388822 | CX78: 45.49336304 | CY78: 0 | CZ78: 0 | DA78: 219.7990212 | DB78: 220.416395 | DC78: 166.009694 | DD78: 202.0750368 | DE78: 0 | DF78: 0 | DG78: 3.296985319 | DH78: 2.938885267 | DI78: 2.766828234 | DJ78: 3.000899606 | DS78: 30 | DT78: 382.5166155 | DU78: 922.2221139
CS79: 0 | CT79: 0 | CU79: 0 | CV79: 49.98623582 | CW79: 41.05717184 | CX79: 45.52170383 | CY79: 0 | CZ79: 0 | DA79: 0 | DB79: 224.9380612 | DC79: 179.158568 | DD79: 202.0483146 | DE79: 0 | DF79: 0 | DG79: 0 | DH79: 2.999174149 | DI79: 2.985976134 | DJ79: 2.992575142 | DS79: 30.5 | DT79: 392.953225 | DU79: 969.8362089
CS80: 0 | CT80: 0 | CU80: 0 | CV80: 50.1544343 | CW80: 43.79586777 | CX80: 46.97515103 | CY80: 0 | CZ80: 0 | DA80: 0 | DB80: 225.6949543 | DC80: 191.1092412 | DD80: 208.4020978 | DE80: 0 | DF80: 0 | DG80: 0 | DH80: 3.009266058 | DI80: 3.185154019 | DJ80: 3.097210039 | DS80: 31 | DT80: 403.4979305 | DU80: 1019.142859
AS81: 32 | BU81: 2 | BV81: =(($N$213-$O$213)/(1+$S$215*BU81))^(1/4) -> 3.67024037 | BW81: =(($N$213-$O$213)/(1+$S$215*BV81))^(1/4) -> 3.636579733 | BX81: =(($N$213-$O$213)/(1+$S$215*BW81))^(1/4) -> 3.637242992 | BY81: =(($N$213-$O$213)/(1+$S$215*BX81))^(1/4) -> 3.637229917 | BZ81: =(($N$213-$O$213)/(1+$S$215*BY81))^(1/4) -> 3.637230175 | CA81: 2 | CB81: =(($N$237-$O$237)/(1+$S$239*CA81))^(1/4) -> 3.641519458 | CC81: =(($N$237-$O$237)/(1+$S$239*CB81))^(1/4) -> 3.587888023 | CD81: =(($N$237-$O$237)/(1+$S$239*CC81))^(1/4) -> 3.589578676 | CE81: =(($N$237-$O$237)/(1+$S$239*CD81))^(1/4) -> 3.58952532 | CF81: =(($N$237-$O$237)/(1+$S$239*CE81))^(1/4) -> 3.589527004 | CG81: 2 | CH81: =(($N$261-$O$261)/(1+$S$263*CG81))^(1/4) -> 3.608251312 | CI81: =(($N$261-$O$261)/(1+$S$263*CH81))^(1/4) -> 3.533996764 | CJ81: =(($N$261-$O$261)/(1+$S$263*CI81))^(1/4) -> 3.537259898 | CK81: =(($N$261-$O$261)/(1+$S$263*CJ81))^(1/4) -> 3.537116182 | CL81: =(($N$261-$O$261)/(1+$S$263*CK81))^(1/4) -> 3.537122511 | CS81: 0 | CT81: 0 | CU81: 0 | CV81: 0 | CW81: 46.25997599 | CX81: 46.25997599 | CY81: 0 | CZ81: 0 | DA81: 0 | DB81: 0 | DC81: 201.8617134 | DD81: 201.8617134 | DE81: 0 | DF81: 0 | DG81: 0 | DH81: 0 | DI81: 3.36436189 | DJ81: 3.36436189 | DS81: 31.5 | DT81: 414.150081 | DU81: 1070.17281
AS82: 30 | AT82: 2 | AU82: =(($T$136-$T$137)/(1+AA141*AT82))^(1/4) -> 3.424114517 | AV82: =(($T$136-$T$137)/(1+$AA$141*AU82))^(1/4) -> 3.413166891 | AW82: 3.413250384 | AX82: 3.413249747 | AY82: 3.413249752 | AZ82: 3.413249752 | BA82: 3.413249752 | BB82: 3.413249752 | BC82: 3.413249752 | BD82: 3.413249752 | BE82: 3.413249752 | BF82: 3.413249752 | BU82: 2 | BV82: =(($N$213-$O$213)/(1+$S$216*BU82))^(1/4) -> 3.671395341 | BW82: =(($N$213-$O$213)/(1+$S$216*BV82))^(1/4) -> 3.63858287 | BX82: =(($N$213-$O$213)/(1+$S$216*BW82))^(1/4) -> 3.639213046 | BY82: =(($N$213-$O$213)/(1+$S$216*BX82))^(1/4) -> 3.639200938 | BZ82: =(($N$213-$O$213)/(1+$S$216*BY82))^(1/4) -> 3.63920117 | CA82: 2 | CB82: =(($N$237-$O$237)/(1+$S$240*CA82))^(1/4) -> 3.645602093 | CC82: =(($N$237-$O$237)/(1+$S$240*CB82))^(1/4) -> 3.594681923 | CD82: =(($N$237-$O$237)/(1+$S$240*CC82))^(1/4) -> 3.596204911 | CE82: =(($N$237-$O$237)/(1+$S$240*CD82))^(1/4) -> 3.596159312 | CF82: =(($N$237-$O$237)/(1+$S$240*CE82))^(1/4) -> 3.596160678 | CG82: 2 | CH82: =(($N$261-$O$261)/(1+$S$264*CG82))^(1/4) -> 3.615269447 | CI82: =(($N$261-$O$261)/(1+$S$264*CH82))^(1/4) -> 3.545154702 | CJ82: =(($N$261-$O$261)/(1+$S$264*CI82))^(1/4) -> 3.548059415 | CK82: =(($N$261-$O$261)/(1+$S$264*CJ82))^(1/4) -> 3.547938842 | CL82: =(($N$261-$O$261)/(1+$S$264*CK82))^(1/4) -> 3.547943846 | CS82: 0 | CT82: 0 | CU82: 0 | CV82: 0 | CW82: 48.4494965 | CX82: 48.4494965 | CY82: 0 | CZ82: 0 | DA82: 0 | DB82: 0 | DC82: 211.4159847 | DD82: 211.4159847 | DE82: 0 | DF82: 0 | DG82: 0 | DH82: 0 | DI82: 3.523599746 | DJ82: 3.523599746 | DS82: 32 | DT82: 424.9090397 | DU82: 1122.956804
AS83: 28 | AT83: 2 | AU83: 3.425443006 | AV83: =(($T$136-$T$137)/(1+$AA$142*AU83))^(1/4) -> 3.415397419 | AW83: 3.4154677 | AX83: 3.415467208 | AY83: 3.415467212 | AZ83: 3.415467212 | BA83: 3.415467212 | BB83: 3.415467212 | BC83: 3.415467212 | BD83: 3.415467212 | BE83: 3.415467212 | BF83: 3.415467212 | BG83: 2 | BH83: =(($O$164-$N$164)/(1+$U$167*BG83))^(1/4) -> 3.405411901 | BI83: 3.382250619 | BJ83: 3.382625976 | BK83: 3.382619891 | BL83: 3.38261999 | BM83: 3.382619988 | BU83: 2 | BV83: =(($N$213-$O$213)/(1+$S$217*BU83))^(1/4) -> 3.678059111 | BW83: =(($N$213-$O$213)/(1+$S$217*BV83))^(1/4) -> 3.65021123 | BX83: =(($N$213-$O$213)/(1+$S$217*BW83))^(1/4) -> 3.650664833 | BY83: =(($N$213-$O$213)/(1+$S$217*BX83))^(1/4) -> 3.650657442 | BZ83: =(($N$213-$O$213)/(1+$S$217*BY83))^(1/4) -> 3.650657562 | CA83: 2 | CB83: =(($N$237-$O$237)/(1+$S$241*CA83))^(1/4) -> 3.652847943 | CC83: =(($N$237-$O$237)/(1+$S$241*CB83))^(1/4) -> 3.606841747 | CD83: =(($N$237-$O$237)/(1+$S$241*CC83))^(1/4) -> 3.608083559 | CE83: =(($N$237-$O$237)/(1+$S$241*CD83))^(1/4) -> 3.608050011 | CF83: =(($N$237-$O$237)/(1+$S$241*CE83))^(1/4) -> 3.608050918 | CG83: 2 | CH83: =(($N$261-$O$261)/(1+$S$265*CG83))^(1/4) -> 3.625003184 | CI83: =(($N$261-$O$261)/(1+$S$265*CH83))^(1/4) -> 3.560813278 | CJ83: =(($N$261-$O$261)/(1+$S$265*CI83))^(1/4) -> 3.56324273 | CK83: =(($N$261-$O$261)/(1+$S$265*CJ83))^(1/4) -> 3.56315063 | CL83: =(($N$261-$O$261)/(1+$S$265*CK83))^(1/4) -> 3.563154121 | CS83: 0 | CT83: 0 | CU83: 0 | CV83: 0 | CW83: 50.36442932 | CX83: 50.36442932 | CY83: 0 | CZ83: 0 | DA83: 0 | DB83: 0 | DC83: 219.7720552 | DD83: 219.7720552 | DE83: 0 | DF83: 0 | DG83: 0 | DH83: 0 | DI83: 3.662867587 | DJ83: 3.662867587 | DS83: 32.5 | DT83: 435.7741836 | DU83: 1177.525587
AS84: 26 | AT84: 2 | AU84: 3.427007026 | AV84: =(($T$136-$T$137)/(1+$AA$143*AU84))^(1/4) -> 3.418029417 | AW84: 3.41808553 | AX84: 3.418085179 | AY84: 3.418085181 | AZ84: 3.418085181 | BA84: 3.418085181 | BB84: 3.418085181 | BC84: 3.418085181 | BD84: 3.418085181 | BE84: 3.418085181 | BF84: 3.418085181 | BG84: 2 | BH84: =(($O$164-$N$164)/(1+$U$168*BG84))^(1/4) -> 3.405395561 | BI84: 3.382223994 | BJ84: 3.382599686 | BK84: 3.382593593 | BL84: 3.382593692 | BM84: 3.382593691 | BN84: 2 | BO84: =(($O$188-$P$188)/(1+$AC$193*BN84))^(1/4) -> 3.385168391 | BP84: 3.34976162 | BQ84: 3.350643826 | BR84: 3.35062183 | BS84: 3.350622379 | BT84: 3.350622365 | BU84: 2 | BV84: =(($N$213-$O$213)/(1+$S$218*BU84))^(1/4) -> 3.678766277 | BW84: =(($N$213-$O$213)/(1+$S$218*BV84))^(1/4) -> 3.651452414 | BX84: =(($N$213-$O$213)/(1+$S$218*BW84))^(1/4) -> 3.651888759 | BY84: =(($N$213-$O$213)/(1+$S$218*BX84))^(1/4) -> 3.651881786 | BZ84: =(($N$213-$O$213)/(1+$S$218*BY84))^(1/4) -> 3.651881898 | CA84: 2 | CB84: =(($N$237-$O$237)/(1+$S$242*CA84))^(1/4) -> 3.656587594 | CC84: =(($N$237-$O$237)/(1+$S$242*CB84))^(1/4) -> 3.613169489 | CD84: =(($N$237-$O$237)/(1+$S$242*CC84))^(1/4) -> 3.614274913 | CE84: =(($N$237-$O$237)/(1+$S$242*CD84))^(1/4) -> 3.614246748 | CF84: =(($N$237-$O$237)/(1+$S$242*CE84))^(1/4) -> 3.614247466 | CG84: 2 | CH84: =(($N$261-$O$261)/(1+$S$266*CG84))^(1/4) -> 3.630700831 | CI84: =(($N$261-$O$261)/(1+$S$266*CH84))^(1/4) -> 3.570080253 | CJ84: =(($N$261-$O$261)/(1+$S$266*CI84))^(1/4) -> 3.572244563 | CK84: =(($N$261-$O$261)/(1+$S$266*CJ84))^(1/4) -> 3.572167179 | CL84: =(($N$261-$O$261)/(1+$S$266*CK84))^(1/4) -> 3.572169946 | CS84: 0 | CT84: 0 | CU84: 0 | CV84: 0 | CW84: 52.00477443 | CX84: 52.00477443 | CY84: 0 | CZ84: 0 | DA84: 0 | DB84: 0 | DC84: 226.9299248 | DD84: 226.9299248 | DE84: 0 | DF84: 0 | DG84: 0 | DH84: 0 | DI84: 3.782165413 | DJ84: 3.782165413 | DS84: 33 | DT84: =$DQ$14*DS84^$DR$14 -> 446.7449028 | DU84: =$CK$35*DS84^3+$CL$35*DS84^2+$CM$35*DS84^1+$CN$35 -> 1233.909904
AS85: 24 | AT85: 2 | AU85: 3.428104422 | AV85: =(($T$136-$T$137)/(1+$AA$144*AU85))^(1/4) -> 3.41988006 | AW85: 3.419927142 | AX85: 3.419926872 | AY85: 3.419926874 | AZ85: 3.419926874 | BA85: 3.419926874 | BB85: 3.419926874 | BC85: 3.419926874 | BD85: 3.419926874 | BE85: 3.419926874 | BF85: 3.419926874 | BG85: 2 | BH85: =(($O$164-$N$164)/(1+$U$169*BG85))^(1/4) -> 3.404888029 | BI85: 3.381397369 | BJ85: 3.381783531 | BK85: 3.381777181 | BL85: 3.381777286 | BM85: 3.381777284 | BN85: 2 | BO85: =(($O$188-$P$188)/(1+$AC$194*BN85))^(1/4) -> 3.382181511 | BP85: 3.345049622 | BQ85: 3.346020783 | BR85: 3.345995365 | BS85: 3.34599603 | BT85: 3.345996013 | BU85: 2 | BV85: =(($N$213-$O$213)/(1+$S$219*BU85))^(1/4) -> 3.681776047 | BW85: =(($N$213-$O$213)/(1+$S$219*BV85))^(1/4) -> 3.656750601 | BX85: =(($N$213-$O$213)/(1+$S$219*BW85))^(1/4) -> 3.657116795 | BY85: =(($N$213-$O$213)/(1+$S$219*BX85))^(1/4) -> 3.657111436 | BZ85: =(($N$213-$O$213)/(1+$S$219*BY85))^(1/4) -> 3.657111514 | CA85: 2 | CB85: =(($N$237-$O$237)/(1+$S$243*CA85))^(1/4) -> 3.659952831 | CC85: =(($N$237-$O$237)/(1+$S$243*CB85))^(1/4) -> 3.618894426 | CD85: =(($N$237-$O$237)/(1+$S$243*CC85))^(1/4) -> 3.619882502 | CE85: =(($N$237-$O$237)/(1+$S$243*CD85))^(1/4) -> 3.619858708 | CF85: =(($N$237-$O$237)/(1+$S$243*CE85))^(1/4) -> 3.619859281 | CG85: 2 | CH85: =(($N$261-$O$261)/(1+$S$267*CG85))^(1/4) -> 3.636558884 | CI85: =(($N$261-$O$261)/(1+$S$267*CH85))^(1/4) -> 3.579687896 | CJ85: =(($N$261-$O$261)/(1+$S$267*CI85))^(1/4) -> 3.581590641 | CK85: =(($N$261-$O$261)/(1+$S$267*CJ85))^(1/4) -> 3.581526899 | CL85: =(($N$261-$O$261)/(1+$S$267*CK85))^(1/4) -> 3.581529034 | CS85: 0 | CT85: 0 | CU85: 0 | CV85: 0 | CW85: 53.37053184 | CX85: 53.37053184 | CY85: 0 | CZ85: 0 | DA85: 0 | DB85: 0 | DC85: 232.8895935 | DD85: 232.8895935 | DE85: 0 | DF85: 0 | DG85: 0 | DH85: 0 | DI85: 3.881493225 | DJ85: 3.881493225
AS86: 22 | AT86: 2 | AU86: 3.430177975 | AV86: =(($T$136-$T$137)/(1+$AA$145*AU86))^(1/4) -> 3.423385719 | AW86: 3.423417819 | AX86: 3.423417667 | AY86: 3.423417668 | AZ86: 3.423417668 | BA86: 3.423417668 | BB86: 3.423417668 | BC86: 3.423417668 | BD86: 3.423417668 | BE86: 3.423417668 | BF86: 3.423417668 | BG86: 2 | BH86: =(($O$164-$N$164)/(1+$U$170*BG86))^(1/4) -> 3.405553337 | BI86: 3.382481096 | BJ86: 3.382853559 | BK86: 3.382847545 | BL86: 3.382847642 | BM86: 3.38284764 | BN86: 2 | BO86: =(($O$188-$P$188)/(1+$AC$195*BN86))^(1/4) -> 3.379895627 | BP86: 3.34145727 | BQ86: 3.342498721 | BR86: 3.342470482 | BS86: 3.342471248 | BT86: 3.342471227 | BU86: 2 | BV86: =(($N$213-$O$213)/(1+$S$220*BU86))^(1/4) -> 3.684493884 | BW86: =(($N$213-$O$213)/(1+$S$220*BV86))^(1/4) -> 3.661556736 | BX86: =(($N$213-$O$213)/(1+$S$220*BW86))^(1/4) -> 3.661864296 | BY86: =(($N$213-$O$213)/(1+$S$220*BX86))^(1/4) -> 3.661860171 | BZ86: =(($N$213-$O$213)/(1+$S$220*BY86))^(1/4) -> 3.661860227 | CA86: 2 | CB86: =(($N$237-$O$237)/(1+$S$244*CA86))^(1/4) -> 3.665397578 | CC86: =(($N$237-$O$237)/(1+$S$244*CB86))^(1/4) -> 3.628219566 | CD86: =(($N$237-$O$237)/(1+$S$244*CC86))^(1/4) -> 3.629029139 | CE86: =(($N$237-$O$237)/(1+$S$244*CD86))^(1/4) -> 3.6290115 | CF86: =(($N$237-$O$237)/(1+$S$244*CE86))^(1/4) -> 3.629011885 | CG86: 2 | CH86: =(($N$261-$O$261)/(1+$S$268*CG86))^(1/4) -> 3.642483612 | CI86: =(($N$261-$O$261)/(1+$S$268*CH86))^(1/4) -> 3.589488775 | CJ86: =(($N$261-$O$261)/(1+$S$268*CI86))^(1/4) -> 3.591139257 | CK86: =(($N$261-$O$261)/(1+$S$268*CJ86))^(1/4) -> 3.591087797 | CL86: =(($N$261-$O$261)/(1+$S$268*CK86))^(1/4) -> 3.591089401 | CS86: 0 | CT86: 0 | CU86: 0 | CV86: 0 | CW86: 54.46170154 | CX86: 54.46170154 | CY86: 0 | CZ86: 0 | DA86: 0 | DB86: 0 | DC86: 237.6510613 | DD86: 237.6510613 | DE86: 0 | DF86: 0 | DG86: 0 | DH86: 0 | DI86: 3.960851021 | DJ86: 3.960851021
AS87: 20 | AT87: 2 | AU87: 3.431880712 | AV87: =(($T$136-$T$137)/(1+$AA$146*AU87))^(1/4) -> 3.426273146 | AW87: 3.426295017 | AX87: 3.426294932 | AY87: 3.426294932 | AZ87: 3.426294932 | BA87: 3.426294932 | BB87: 3.426294932 | BC87: 3.426294932 | BD87: 3.426294932 | BE87: 3.426294932 | BF87: 3.426294932 | BG87: 2 | BH87: =(($O$164-$N$164)/(1+$U$171*BG87))^(1/4) -> 3.402983199 | BI87: 3.378300612 | BJ87: 3.378727168 | BK87: 3.378719794 | BL87: 3.378719922 | BM87: 3.378719919 | BN87: 2 | BO87: =(($O$188-$P$188)/(1+$AC$196*BN87))^(1/4) -> 3.377010554 | BP87: 3.336940167 | BQ87: 3.338072977 | BR87: 3.338040925 | BS87: 3.338041832 | BT87: 3.338041806 | BU87: 2 | BV87: =(($N$213-$O$213)/(1+$S$221*BU87))^(1/4) -> 3.684348851 | BW87: =(($N$213-$O$213)/(1+$S$221*BV87))^(1/4) -> 3.661299738 | BX87: =(($N$213-$O$213)/(1+$S$221*BW87))^(1/4) -> 3.661610313 | BY87: =(($N$213-$O$213)/(1+$S$221*BX87))^(1/4) -> 3.661606127 | BZ87: =(($N$213-$O$213)/(1+$S$221*BY87))^(1/4) -> 3.661606183 | CA87: 2 | CB87: =(($N$237-$O$237)/(1+$S$245*CA87))^(1/4) -> 3.670544486 | CC87: =(($N$237-$O$237)/(1+$S$245*CB87))^(1/4) -> 3.637106831 | CD87: =(($N$237-$O$237)/(1+$S$245*CC87))^(1/4) -> 3.63776131 | CE87: =(($N$237-$O$237)/(1+$S$245*CD87))^(1/4) -> 3.637748494 | CF87: =(($N$237-$O$237)/(1+$S$245*CE87))^(1/4) -> 3.637748745 | CG87: 2 | CH87: =(($N$261-$O$261)/(1+$S$269*CG87))^(1/4) -> 3.651168717 | CI87: =(($N$261-$O$261)/(1+$S$269*CH87))^(1/4) -> 3.604011961 | CJ87: =(($N$261-$O$261)/(1+$S$269*CI87))^(1/4) -> 3.605316993 | CK87: =(($N$261-$O$261)/(1+$S$269*CJ87))^(1/4) -> 3.605280846 | CL87: =(($N$261-$O$261)/(1+$S$269*CK87))^(1/4) -> 3.605281847 | CS87: 0 | CT87: 0 | CU87: 0 | CV87: 0 | CW87: 55.27828355 | CX87: 55.27828355 | CY87: 0 | CZ87: 0 | DA87: 0 | DB87: 0 | DC87: 241.2143282 | DD87: 241.2143282 | DE87: 0 | DF87: 0 | DG87: 0 | DH87: 0 | DI87: 4.020238803 | DJ87: 4.020238803
AS88: 18 | AT88: 2 | AU88: 3.43253939 | AV88: =(($T$136-$T$137)/(1+$AA$147*AU88))^(1/4) -> 3.427392217 | AW88: 3.427410642 | AX88: 3.427410576 | AY88: 3.427410576 | AZ88: 3.427410576 | BA88: 3.427410576 | BB88: 3.427410576 | BC88: 3.427410576 | BD88: 3.427410576 | BE88: 3.427410576 | BF88: 3.427410576 | BG88: 2 | BH88: =(($O$164-$N$164)/(1+$U$172*BG88))^(1/4) -> 3.398524941 | BI88: 3.371087348 | BJ88: 3.371615074 | BK88: 3.37160492 | BL88: 3.371605116 | BM88: 3.371605112 | BN88: 2 | BO88: =(($O$188-$P$188)/(1+$AC$197*BN88))^(1/4) -> 3.373246134 | BP88: 3.331074354 | BQ88: 3.33233064 | BR88: 3.332293182 | BS88: 3.332294299 | BT88: 3.332294265 | CA88: 2 | CB88: =(($N$237-$O$237)/(1+$S$246*CA88))^(1/4) -> 3.672237782 | CC88: =(($N$237-$O$237)/(1+$S$246*CB88))^(1/4) -> 3.640046245 | CD88: =(($N$237-$O$237)/(1+$S$246*CC88))^(1/4) -> 3.640652741 | CE88: =(($N$237-$O$237)/(1+$S$246*CD88))^(1/4) -> 3.64064131 | CF88: =(($N$237-$O$237)/(1+$S$246*CE88))^(1/4) -> 3.640641525 | CG88: 2 | CH88: =(($N$261-$O$261)/(1+$S$270*CG88))^(1/4) -> 3.653700086 | CI88: =(($N$261-$O$261)/(1+$S$270*CH88))^(1/4) -> 3.608280491 | CJ88: =(($N$261-$O$261)/(1+$S$270*CI88))^(1/4) -> 3.609490684 | CK88: =(($N$261-$O$261)/(1+$S$270*CJ88))^(1/4) -> 3.609458412 | CL88: =(($N$261-$O$261)/(1+$S$270*CK88))^(1/4) -> 3.609459273 | CS88: 0 | CT88: 0 | CU88: 0 | CV88: 0 | CW88: 55.82027785 | CX88: 55.82027785 | CY88: 0 | CZ88: 0 | DA88: 0 | DB88: 0 | DC88: 243.5793942 | DD88: 243.5793942 | DE88: 0 | DF88: 0 | DG88: =$CF$8*IFERROR(CJ22*$CA$4,0) -> 0 | DH88: 0 | DI88: 4.059656571 | DJ88: 4.059656571
AS89: 16 | AT89: 2 | AU89: 3.432120252 | AV89: =(($T$136-$T$137)/(1+$AA$148*AU89))^(1/4) -> 3.426679979 | AW89: 3.426700563 | AX89: 3.426700486 | AY89: 3.426700486 | AZ89: 3.426700486 | BA89: 3.426700486 | BB89: 3.426700486 | BC89: 3.426700486 | BD89: 3.426700486 | BE89: 3.426700486 | BF89: 3.426700486 | BG89: 2 | BH89: =(($O$164-$N$164)/(1+$U$173*BG89))^(1/4) -> 3.397768544 | BI89: 3.369868318 | BJ89: 3.370414104 | BK89: 3.370403423 | BL89: 3.370403632 | BM89: 3.370403628 | BN89: 2 | BO89: =(($O$188-$P$188)/(1+$AC$198*BN89))^(1/4) -> 3.370580148 | BP89: 3.32693917 | BQ89: 3.328285714 | BR89: 3.328244126 | BS89: 3.32824541 | BT89: 3.32824537 | CA89: 2 | CB89: =(($N$237-$O$237)/(1+$S$247*CA89))^(1/4) -> 3.671533514 | CC89: =(($N$237-$O$237)/(1+$S$247*CB89))^(1/4) -> 3.638822755 | CD89: =(($N$237-$O$237)/(1+$S$247*CC89))^(1/4) -> 3.63944902 | CE89: =(($N$237-$O$237)/(1+$S$247*CD89))^(1/4) -> 3.639437025 | CF89: =(($N$237-$O$237)/(1+$S$247*CE89))^(1/4) -> 3.639437254 | CG89: 2 | CH89: =(($N$261-$O$261)/(1+$S$271*CG89))^(1/4) -> 3.660455476 | CI89: =(($N$261-$O$261)/(1+$S$271*CH89))^(1/4) -> 3.619752047 | CJ89: =(($N$261-$O$261)/(1+$S$271*CI89))^(1/4) -> 3.620723046 | CK89: =(($N$261-$O$261)/(1+$S$271*CJ89))^(1/4) -> 3.620699867 | CL89: =(($N$261-$O$261)/(1+$S$271*CK89))^(1/4) -> 3.620700421 | CS89: AWG10 | CY89: AWG22
AS90: 14 | AT90: 2 | AU90: 3.431346203 | AV90: =(($T$136-$T$137)/(1+$AA$149*AU90))^(1/4) -> 3.425365902 | AW90: 3.42539078 | AX90: 3.425390676 | AY90: 3.425390677 | AZ90: 3.425390677 | BA90: 3.425390677 | BB90: 3.425390677 | BC90: 3.425390677 | BD90: 3.425390677 | BE90: 3.425390677 | BF90: 3.425390677 | BG90: 2 | BH90: =(($O$164-$N$164)/(1+$U$174*BG90))^(1/4) -> 3.39383061 | BI90: 3.363544028 | BJ90: 3.364187882 | BK90: 3.364174188 | BL90: 3.364174479 | BM90: 3.364174473 | BN90: 2 | BO90: =(($O$188-$P$188)/(1+$AC$199*BN90))^(1/4) -> 3.362865569 | BP90: 3.315060634 | BQ90: 3.316680703 | BR90: 3.316625735 | BS90: 3.3166276 | BT90: 3.316627537 | CA90: 2 | CB90: =(($N$237-$O$237)/(1+$S$248*CA90))^(1/4) -> 3.672448041 | CC90: =(($N$237-$O$237)/(1+$S$248*CB90))^(1/4) -> 3.640411779 | CD90: =(($N$237-$O$237)/(1+$S$248*CC90))^(1/4) -> 3.641012424 | CE90: =(($N$237-$O$237)/(1+$S$248*CD90))^(1/4) -> 3.641001158 | CF90: =(($N$237-$O$237)/(1+$S$248*CE90))^(1/4) -> 3.641001369 | CG90: 2 | CH90: =(($N$261-$O$261)/(1+$S$272*CG90))^(1/4) -> 3.657418188 | CI90: =(($N$261-$O$261)/(1+$S$272*CH90))^(1/4) -> 3.614579775 | CJ90: =(($N$261-$O$261)/(1+$S$272*CI90))^(1/4) -> 3.615655754 | CK90: =(($N$261-$O$261)/(1+$S$272*CJ90))^(1/4) -> 3.615628708 | CL90: =(($N$261-$O$261)/(1+$S$272*CK90))^(1/4) -> 3.615629388 | CS90: 80 | CT90: 90 | CU90: 105 | CV90: 125 | CW90: 200 | CX90: moyenne | CY90: 80 | CZ90: 90 | DA90: 105 | DB90: 125 | DC90: 200 | DD90: moyenne
AS91: 12 | AT91: 2 | AU91: 3.431322893 | AV91: =(($T$136-$T$137)/(1+$AA$150*AU91))^(1/4) -> 3.425326354 | AW91: 3.425351368 | AX91: 3.425351264 | AY91: 3.425351264 | AZ91: 3.425351264 | BA91: 3.425351264 | BB91: 3.425351264 | BC91: 3.425351264 | BD91: 3.425351264 | BE91: 3.425351264 | BF91: 3.425351264 | BG91: 2 | BH91: =(($O$164-$N$164)/(1+$U$175*BG91))^(1/4) -> 3.390737801 | BI91: 3.358602875 | BJ91: 3.359328362 | BK91: 3.359311975 | BL91: 3.359312345 | BM91: 3.359312337 | BN91: 2 | BO91: =(($O$188-$P$188)/(1+$AC$200*BN91))^(1/4) -> 3.354821042 | BP91: 3.302809726 | BQ91: 3.304733028 | BR91: 3.304661808 | BS91: 3.304664445 | BT91: 3.304664347 | CA91: 2 | CB91: =(($N$237-$O$237)/(1+$S$249*CA91))^(1/4) -> 3.677287636 | CC91: =(($N$237-$O$237)/(1+$S$249*CB91))^(1/4) -> 3.648858753 | CD91: =(($N$237-$O$237)/(1+$S$249*CC91))^(1/4) -> 3.649331515 | CE91: =(($N$237-$O$237)/(1+$S$249*CD91))^(1/4) -> 3.64932365 | CF91: =(($N$237-$O$237)/(1+$S$249*CE91))^(1/4) -> 3.649323781 | CG91: 2 | CH91: =(($N$261-$O$261)/(1+$S$273*CG91))^(1/4) -> 3.661133361 | CI91: =(($N$261-$O$261)/(1+$S$273*CH91))^(1/4) -> 3.620909704 | CJ91: =(($N$261-$O$261)/(1+$S$273*CI91))^(1/4) -> 3.621857864 | CK91: =(($N$261-$O$261)/(1+$S$273*CJ91))^(1/4) -> 3.621835499 | CL91: =(($N$261-$O$261)/(1+$S$273*CK91))^(1/4) -> 3.621836027 | CX91: 0 | DD91: 0
AS92: 10 | AT92: 2 | AU92: 3.431413372 | AV92: =(($T$136-$T$137)/(1+$AA$151*AU92))^(1/4) -> 3.425479868 | AW92: 3.425504358 | AX92: 3.425504257 | AY92: 3.425504257 | AZ92: 3.425504257 | BA92: 3.425504257 | BB92: 3.425504257 | BC92: 3.425504257 | BD92: 3.425504257 | BE92: 3.425504257 | BF92: 3.425504257 | BG92: 2 | BH92: =(($O$164-$N$164)/(1+$U$176*BG92))^(1/4) -> 3.386910154 | BI92: 3.352518854 | BJ92: 3.353350743 | BK92: 3.353330609 | BL92: 3.353331096 | BM92: 3.353331084 | BN92: 2 | BO92: =(($O$188-$P$188)/(1+$AC$201*BN92))^(1/4) -> 3.349073857 | BP92: 3.294140248 | BQ92: 3.296290387 | BR92: 3.296206097 | BS92: 3.296209401 | BT92: 3.296209271 | CS92: =$CF$8*IFERROR(CH4*$BY$14,0) -> 14.88235867 | CT92: =$CF$8*IFERROR(CI4*$BZ$14,0) -> 15.08959752 | CU92: =$CF$8*IFERROR(CJ4*$CA$14,0) -> 11.65786861 | CV92: =$CF$8*IFERROR(CK4*$CB$14,0) -> 15.15460708 | CW92: =$CF$8*IFERROR(CL4*$CC$14,0) -> 5.526084401 | CX92: =(CW92+CV92+CU92+CT92+CS92)/COUNTIF(CS92:CW92,">0") -> 12.46210326 | CY92: =$CF$8*IFERROR(CH4*$BY$8,0) -> 2.533167434 | CZ92: =$CF$8*IFERROR(CI4*$BZ$8,0) -> 2.469206867 | DA92: =$CF$8*IFERROR(CJ4*$CA$8,0) -> 2.009977347 | DB92: =$CF$8*IFERROR(CK4*$CB$8,0) -> 2.381438256 | DC92: =$CF$8*IFERROR(CL4*$CC$8,0) -> 0.9578546295 | DD92: =(DC92+DB92+DA92+CZ92+CY92)/COUNTIF(CY92:DC92,">0") -> 2.070328907
AS93: 8 | AT93: 2 | AU93: 3.432011071 | AV93: =(($T$136-$T$137)/(1+$AA$152*AU93))^(1/4) -> 3.426494528 | AW93: 3.426515694 | AX93: 3.426515613 | AY93: 3.426515614 | AZ93: 3.426515614 | BA93: 3.426515614 | BB93: 3.426515614 | BC93: 3.426515614 | BD93: 3.426515614 | BE93: 3.426515614 | BF93: 3.426515614 | BG93: 2 | BH93: =(($O$164-$N$164)/(1+$U$177*BG93))^(1/4) -> 3.373552118 | BI93: 3.331549968 | BJ93: 3.332796042 | BK93: 3.332759041 | BL93: 3.33276014 | BM93: 3.332760107 | CS93: 26.37846637 | CT93: 26.76253802 | CU93: 21.55375916 | CV93: 25.93144939 | CW93: 12.63060974 | CX93: =(CW93+CV93+CU93+CT93+CS93)/COUNTIF(CS93:CW93,">0") -> 22.65136454 | CY93: 4.489951722 | CZ93: 4.379324403 | DA93: 3.716165372 | DB93: 4.074942048 | DC93: 2.189305689 | DD93: =(DC93+DB93+DA93+CZ93+CY93)/COUNTIF(CY93:DC93,">0") -> 3.769937847
AS94: 6 | BG94: 2 | BH94: =(($O$164-$N$164)/(1+$U$178*BG94))^(1/4) -> 3.364087417 | BI94: 3.3169334 | BJ94: 3.318508972 | BK94: 3.318456267 | BL94: 3.31845803 | BM94: 3.318457971 | CS94: 35.65575586 | CT94: 36.63400038 | CU94: 30.48238982 | CV94: 35.53702899 | CW94: 19.36069731 | CX94: 31.53397447 | CY94: 6.069064827 | CZ94: 5.994654607 | DA94: 5.255584451 | DB94: 5.58439027 | DC94: 3.3558542 | DD94: 5.251909671
AS95: 4 | BG95: 2 | BH95: =(($O$164-$N$164)/(1+$U$179*BG95))^(1/4) -> 3.351220955 | BI95: 3.297371114 | BJ95: 3.299435567 | BK95: 3.299356303 | BL95: 3.299359346 | BM95: 3.299359229 | CS95: 42.71422715 | CT95: 44.70398461 | CU95: 38.44376059 | CV95: 43.97134588 | CW95: 25.7163471 | CX95: 39.10993307 | CY95: 7.27050675 | CZ95: 7.315197482 | DA95: 6.628234584 | DB95: 6.909782923 | DC95: 4.457500163 | DD95: 6.516244381
AS96: 2 | BG96: 2 | BH96: =(($O$164-$N$164)/(1+$U$180*BG96))^(1/4) -> 3.334038084 | BI96: 3.271775662 | BJ96: 3.274554314 | BK96: 3.274430057 | BL96: 3.274435613 | BM96: 3.274435364 | CS96: 47.55388025 | CT96: 50.97249071 | CU96: 45.43787148 | CV96: 51.23440004 | CW96: 31.69755911 | CX96: 45.37924032 | CY96: 8.094277489 | CZ96: 8.340953025 | DA96: 7.834115772 | DB96: 8.051120007 | DC96: 5.494243579 | DD96: 7.562941974
AS97: 1 | BG97: 2 | BH97: =(($O$164-$N$164)/(1+$U$181*BG97))^(1/4) -> 3.323782208 | BI97: 3.25677489 | BJ97: 3.260007142 | BK97: 3.259850859 | BL97: 3.259858414 | BM97: 3.259858049 | CS97: 50.17471514 | CT97: 55.43951868 | CU97: 51.46472248 | CV97: 57.3261915 | CW97: 37.30433334 | CX97: 50.34189623 | CY97: 8.540377046 | CZ97: 9.071921239 | DA97: 8.873228013 | DB97: 9.008401521 | DC97: 6.466084446 | DD97: 8.392002453
AS98: 0 | BG98: 2 | BH98: =(($O$164-$N$164)/(1+$U$182*BG98))^(1/4) -> 3.317598162 | BI98: 3.247826074 | BJ98: 3.251340054 | BK98: 3.251162622 | BL98: 3.25117158 | BM98: 3.251171128 | CS98: 50.995 | CT98: 58.10506852 | CU98: 56.52431359 | CV98: 62.24672023 | CW98: 42.5366698 | CX98: 54.08155443 | CY98: 8.68 | CZ98: 9.508102121 | DA98: 9.745571309 | DB98: 9.781627465 | DC98: 7.373022766 | DD98: 9.017664732
AS99: 00 | BG99: 2 | BH99: =(($O$164-$N$164)/(1+$U$183*BG99))^(1/4) -> 3.308366839 | BI99: 3.234598779 | BJ99: 3.238543215 | BK99: 3.238331694 | BL99: 3.238343035 | BM99: 3.238342427 | CS99: 0 | CT99: 58.96914023 | CU99: 60.61664482 | CV99: 65.99598625 | CW99: 47.39456848 | CX99: 58.24408495 | CY99: 0 | CZ99: 9.649495674 | DA99: 10.45114566 | DB99: 10.37079784 | DC99: 8.215058537 | DD99: 9.671624427
AS100: 000 | BG100: 2 | BH100: =(($O$164-$N$164)/(1+$U$184*BG100))^(1/4) -> 3.302650874 | BI100: 3.226485576 | BJ100: 3.230701755 | BK100: 3.230467645 | BL100: 3.230480642 | BM100: 3.23047992 | CS100: 0 | CT100: 0 | CU100: 63.74171616 | CV100: 68.57398956 | CW100: 51.87802939 | CX100: 61.3979117 | CY100: 0 | CZ100: 0 | DA100: 10.98995106 | DB100: 10.77591264 | DC100: 8.99219176 | DD100: 10.25268516
AS101: 0000 | BG101: 2 | BH101: =(($O$164-$N$164)/(1+$U$185*BG101))^(1/4) -> 3.293204025 | BI101: 3.213202709 | BJ101: 3.217875402 | BK101: 3.217601546 | BL101: 3.217617593 | BM101: 3.217616652 | CS101: 0 | CT101: 0 | CU101: 0 | CV101: 69.98073014 | CW101: 55.98705251 | CX101: 62.98389133 | CY101: 0 | CZ101: 0 | DA101: 0 | DB101: 10.99697188 | DC101: 9.704422436 | DD101: 10.35069716
AS102: ="Temperature "&$B$10&" °C" -> Temperature 10 °C | CS102: 0 | CT102: 0 | CU102: 0 | CV102: 70.21620802 | CW102: 59.72163786 | CX102: 64.96892294 | CY102: 0 | CZ102: 0 | DA102: 0 | DB102: 11.03397555 | DC102: 10.35175056 | DD102: 10.69286305
CS103: 0 | CT103: 0 | CU103: 0 | CV103: 0 | CW103: 63.08178544 | CX103: 63.08178544 | CY103: 0 | CZ103: 0 | DA103: 0 | DB103: 0 | DC103: 10.93417614 | DD103: 10.93417614
AS104: AWG | AT104: 55a0111 | BG104: 55A0811 | BN104: 44A0111 | BU104: KZ-04 | CA104: KZ-05 | CG104: KZ-05 | CS104: 0 | CT104: 0 | CU104: 0 | CV104: 0 | CW104: 66.06749523 | CX104: 66.06749523 | CY104: 0 | CZ104: 0 | DA104: 0 | DB104: 0 | DC104: 11.45169917 | DD104: 11.45169917
CS105: 0 | CT105: 0 | CU105: 0 | CV105: 0 | CW105: 68.67876725 | CX105: 68.67876725 | CY105: 0 | CZ105: 0 | DA105: 0 | DB105: 0 | DC105: 11.90431966 | DD105: 11.90431966
CS106: 0 | CT106: 0 | CU106: 0 | CV106: 0 | CW106: 70.9156015 | CX106: 70.9156015 | CY106: 0 | CZ106: 0 | DA106: 0 | DB106: 0 | DC106: 12.29203759 | DD106: 12.29203759
AS107: 32 | BU107: 2 | BV107: =(B10/(1+$S$215*BU107))^(1/4) -> 1.757948336 | BW107: =(B10/(1+$S$215*BV107))^(1/4) -> 1.760347555 | BX107: =(B10/(1+$S$215*BW107))^(1/4) -> 1.760323693 | BY107: =(B10/(1+$S$215*BX107))^(1/4) -> 1.760323931 | BZ107: =(B10/(1+$S$215*BY107))^(1/4) -> 1.760323928 | CA107: 2 | CB107: =(B10/(1+$S$239*CA107))^(1/4) -> 1.744191777 | CC107: =(B10/(1+$S$239*CB107))^(1/4) -> 1.748371677 | CD107: =(B10/(1+$S$239*CC107))^(1/4) -> 1.748302974 | CE107: =(B10/(1+$S$239*CD107))^(1/4) -> 1.748304103 | CF107: =(B10/(1+$S$239*CE107))^(1/4) -> 1.748304084 | CG107: 2 | CH107: =(B10/(1+$S$263*CG107))^(1/4) -> 1.728257212 | CI107: =(B10/(1+$S$263*CH107))^(1/4) -> 1.734647734 | CJ107: =(B10/(1+$S$263*CI107))^(1/4) -> 1.734496088 | CK107: =(B10/(1+$S$263*CJ107))^(1/4) -> 1.734499685 | CL107: =(B10/(1+$S$263*CK107))^(1/4) -> 1.7344996 | CS107: 0 | CT107: 0 | CU107: 0 | CV107: 0 | CW107: 72.77799796 | CX107: 72.77799796 | CY107: 0 | CZ107: 0 | DA107: 0 | DB107: 0 | DC107: 12.61485298 | DD107: 12.61485298
AS108: 30 | AT108: 2 | AU108: =($B$10/(1+AA141*AT108))^(1/4) -> 1.770175281 | AV108: =($B$10/(1+$AA$141*AU108))^(1/4) -> 1.771097183 | AW108: =($B$10/(1+$AA$141*AV108))^(1/4) -> 1.77109348 | AX108: =($B$10/(1+$AA$141*AW108))^(1/4) -> 1.771093495 | AY108: =($B$10/(1+$AA$141*AX108))^(1/4) -> 1.771093495 | AZ108: =($B$10/(1+AA$141*AY108))^(1/4) -> 1.771093495 | BA108: =($B$10/(1+AA$141*AZ108))^(1/4) -> 1.771093495 | BB108: =($B$10/(1+AA$141*BA108))^(1/4) -> 1.771093495 | BC108: =($B$10/(1+AA$141*BB108))^(1/4) -> 1.771093495 | BD108: =($B$10/(1+AA$141*BC108))^(1/4) -> 1.771093495 | BE108: =($B$10/(1+AA$141*BD108))^(1/4) -> 1.771093495 | BF108: =($B$10/(1+AA$141*BE108))^(1/4) -> 1.771093495 | BU108: 2 | BV108: =(B10/(1+$S$216*BU108))^(1/4) -> 1.758501537 | BW108: =(B10/(1+$S$216*BV108))^(1/4) -> 1.760831731 | BX108: =(B10/(1+$S$216*BW108))^(1/4) -> 1.760809173 | BY108: =(B10/(1+$S$216*BX108))^(1/4) -> 1.760809392 | BZ108: =(B10/(1+$S$216*BY108))^(1/4) -> 1.760809389 | CA108: 2 | CB108: =(B10/(1+$S$240*CA108))^(1/4) -> 1.746147252 | CC108: =(B10/(1+$S$240*CB108))^(1/4) -> 1.750066629 | CD108: =(B10/(1+$S$240*CC108))^(1/4) -> 1.750005781 | CE108: =(B10/(1+$S$240*CD108))^(1/4) -> 1.750006725 | CF108: =(B10/(1+$S$240*CE108))^(1/4) -> 1.750006711 | CG108: 2 | CH108: =(B10/(1+$S$264*CG108))^(1/4) -> 1.731618714 | CI108: =(B10/(1+$S$264*CH108))^(1/4) -> 1.737530151 | CJ108: =(B10/(1+$S$264*CI108))^(1/4) -> 1.737398854 | CK108: =(B10/(1+$S$264*CJ108))^(1/4) -> 1.737401769 | CL108: =(B10/(1+$S$264*CK108))^(1/4) -> 1.737401705 | CS108: 0 | CT108: 0 | CU108: 0 | CV108: 0 | CW108: 74.26595665 | CX108: 74.26595665 | CY108: 0 | CZ108: 0 | DA108: 0 | DB108: 0 | DC108: 12.87276582 | DD108: 12.87276582
AS109: 28 | AT109: 2 | AU109: 1.770862074 | AV109: =(B10/(1+$AA$142*AU109))^(1/4) -> 1.771704046 | AW109: =(B10/(1+$AA$142*AV109))^(1/4) -> 1.771700949 | AX109: =(B10/(1+$AA$142*AW109))^(1/4) -> 1.77170096 | AY109: =(B10/(1+$AA$142*AX109))^(1/4) -> 1.77170096 | AZ109: =(B10/(1+$AA$142*AY109))^(1/4) -> 1.77170096 | BA109: =(B10/(1+$AA$142*AZ109))^(1/4) -> 1.77170096 | BB109: =(B10/(1+$AA$142*BA109))^(1/4) -> 1.77170096 | BC109: =(B10/(1+$AA$142*BB109))^(1/4) -> 1.77170096 | BD109: =(B10/(1+$AA$142*BC109))^(1/4) -> 1.77170096 | BE109: =(B10/(1+$AA$142*BD109))^(1/4) -> 1.77170096 | BF109: =(B10/(1+$AA$142*BE109))^(1/4) -> 1.77170096 | BG109: 2 | BH109: =(B10/(1+$U$167*BG109))^(1/4) -> 1.760506531 | BI109: =(B10/(1+$U$167*BH109))^(1/4) -> 1.762588267 | BJ109: =(B10/(1+$U$167*BI109))^(1/4) -> 1.762570119 | BK109: =(B10/(1+$U$167*BJ109))^(1/4) -> 1.762570277 | BL109: =(B10/(1+$U$167*BK109))^(1/4) -> 1.762570276 | BM109: =(B10/(1+$U$167*BL109))^(1/4) -> 1.762570276 | BU109: 2 | BV109: =(B10/(1+$S$217*BU109))^(1/4) -> 1.761693307 | BW109: =(B10/(1+$S$217*BV109))^(1/4) -> 1.763629249 | BX109: =(B10/(1+$S$217*BW109))^(1/4) -> 1.763613479 | BY109: =(B10/(1+$S$217*BX109))^(1/4) -> 1.763613608 | BZ109: =(B10/(1+$S$217*BY109))^(1/4) -> 1.763613607 | CA109: 2 | CB109: =(B10/(1+$S$241*CA109))^(1/4) -> 1.749617822 | CC109: =(B10/(1+$S$241*CB109))^(1/4) -> 1.753080795 | CD109: =(B10/(1+$S$241*CC109))^(1/4) -> 1.753032666 | CE109: =(B10/(1+$S$241*CD109))^(1/4) -> 1.753033335 | CF109: =(B10/(1+$S$241*CE109))^(1/4) -> 1.753033325 | CG109: 2 | CH109: =(B10/(1+$S$265*CG109))^(1/4) -> 1.736280917 | CI109: =(B10/(1+$S$265*CH109))^(1/4) -> 1.741539042 | CJ109: =(B10/(1+$S$265*CI109))^(1/4) -> 1.741433423 | CK109: =(B10/(1+$S$265*CJ109))^(1/4) -> 1.741435544 | CL109: =(B10/(1+$S$265*CK109))^(1/4) -> 1.741435502 | CS109: 0 | CT109: 0 | CU109: 0 | CV109: 0 | CW109: 75.37947756 | CX109: 75.37947756 | CY109: 0 | CZ109: 0 | DA109: 0 | DB109: 0 | DC109: 13.06577611 | DD109: 13.06577611
AS110: 26 | AT110: 2 | AU110: 1.771670631 | AV110: =(B10/(1+$AA$143*AU110))^(1/4) -> 1.772418926 | AW110: =(B10/(1+$AA$143*AV110))^(1/4) -> 1.772416471 | AX110: =(B10/(1+$AA$143*AW110))^(1/4) -> 1.772416479 | AY110: =(B10/(1+$AA$143*AX110))^(1/4) -> 1.772416479 | AZ110: =(B10/(1+$AA$143*AY110))^(1/4) -> 1.772416479 | BA110: =(B10/(1+$AA$143*AZ110))^(1/4) -> 1.772416479 | BB110: =(B10/(1+$AA$143*BA110))^(1/4) -> 1.772416479 | BC110: =(B10/(1+$AA$143*BB110))^(1/4) -> 1.772416479 | BD110: =(B10/(1+$AA$143*BC110))^(1/4) -> 1.772416479 | BE110: =(B10/(1+$AA$143*BD110))^(1/4) -> 1.772416479 | BF110: =(B10/(1+$AA$143*BE110))^(1/4) -> 1.772416479 | BG110: 2 | BH110: =(B10/(1+$U$168*BG110))^(1/4) -> 1.760498083 | BI110: =(B10/(1+$U$168*BH110))^(1/4) -> 1.762580861 | BJ110: =(B10/(1+$U$168*BI110))^(1/4) -> 1.762562695 | BK110: =(B10/(1+$U$168*BJ110))^(1/4) -> 1.762562853 | BL110: =(B10/(1+$U$168*BK110))^(1/4) -> 1.762562852 | BM110: =(B10/(1+$U$168*BL110))^(1/4) -> 1.762562852 | BN110: 2 | BO110: =(B10/(1+$AC$193*BN110))^(1/4) -> 1.75004118 | BP110: =(B10/(1+$AC$193*BO110))^(1/4) -> 1.753449005 | BQ110: =(B10/(1+$AC$193*BP110))^(1/4) -> 1.753402321 | BR110: =(B10/(1+$AC$193*BQ110))^(1/4) -> 1.75340296 | BS110: =(B10/(1+$AC$193*BR110))^(1/4) -> 1.753402952 | BT110: =(B10/(1+$AC$193*BS110))^(1/4) -> 1.753402952 | BU110: 2 | BV110: =(B10/(1+$S$218*BU110))^(1/4) -> 1.762032021 | BW110: =(B10/(1+$S$218*BV110))^(1/4) -> 1.763926527 | BX110: =(B10/(1+$S$218*BW110))^(1/4) -> 1.763911404 | BY110: =(B10/(1+$S$218*BX110))^(1/4) -> 1.763911525 | BZ110: =(B10/(1+$S$218*BY110))^(1/4) -> 1.763911524 | CA110: 2 | CB110: =(B10/(1+$S$242*CA110))^(1/4) -> 1.751409017 | CC110: =(B10/(1+$S$242*CB110))^(1/4) -> 1.754639453 | CD110: =(B10/(1+$S$242*CC110))^(1/4) -> 1.754597282 | CE110: =(B10/(1+$S$242*CD110))^(1/4) -> 1.754597832 | CF110: =(B10/(1+$S$242*CE110))^(1/4) -> 1.754597825 | CG110: 2 | CH110: =(B10/(1+$S$266*CG110))^(1/4) -> 1.73900994 | CI110: =(B10/(1+$S$266*CH110))^(1/4) -> 1.743891752 | CJ110: =(B10/(1+$S$266*CI110))^(1/4) -> 1.743799807 | CK110: =(B10/(1+$S$266*CJ110))^(1/4) -> 1.743801539 | CL110: =(B10/(1+$S$266*CK110))^(1/4) -> 1.743801506 | CS110: 0 | CT110: 0 | CU110: 0 | CV110: 0 | CW110: 76.1185607 | CX110: 76.1185607 | CY110: 0 | CZ110: 0 | DA110: 0 | DB110: 0 | DC110: 13.19388385 | DD110: 13.19388385
AS111: 24 | AT111: 2 | AU111: 1.772237955 | AV111: =(B10/(1+$AA$144*AU111))^(1/4) -> 1.772920796 | AW111: =(B10/(1+$AA$144*AV111))^(1/4) -> 1.772918747 | AX111: =(B10/(1+$AA$144*AW111))^(1/4) -> 1.772918753 | AY111: =(B10/(1+$AA$144*AX111))^(1/4) -> 1.772918753 | AZ111: =(B10/(1+$AA$144*AY111))^(1/4) -> 1.772918753 | BA111: =(B10/(1+$AA$144*AZ111))^(1/4) -> 1.772918753 | BB111: =(B10/(1+$AA$144*BA111))^(1/4) -> 1.772918753 | BC111: =(B10/(1+$AA$144*BB111))^(1/4) -> 1.772918753 | BD111: =(B10/(1+$AA$144*BC111))^(1/4) -> 1.772918753 | BE111: =(B10/(1+$AA$144*BD111))^(1/4) -> 1.772918753 | BF111: =(B10/(1+$AA$144*BE111))^(1/4) -> 1.772918753 | BG111: 2 | BH111: =(B10/(1+$U$169*BG111))^(1/4) -> 1.760235703 | BI111: =(B10/(1+$U$169*BH111))^(1/4) -> 1.762350843 | BJ111: =(B10/(1+$U$169*BI111))^(1/4) -> 1.762332128 | BK111: =(B10/(1+$U$169*BJ111))^(1/4) -> 1.762332294 | BL111: =(B10/(1+$U$169*BK111))^(1/4) -> 1.762332292 | BM111: =(B10/(1+$U$169*BL111))^(1/4) -> 1.762332292 | BN111: 2 | BO111: =(B10/(1+$AC$194*BN111))^(1/4) -> 1.748497043 | BP111: =(B10/(1+$AC$194*BO111))^(1/4) -> 1.752106566 | BQ111: =(B10/(1+$AC$194*BP111))^(1/4) -> 1.752054499 | BR111: =(B10/(1+$AC$194*BQ111))^(1/4) -> 1.75205525 | BS111: =(B10/(1+$AC$194*BR111))^(1/4) -> 1.752055239 | BT111: =(B10/(1+$AC$194*BS111))^(1/4) -> 1.752055239 | BU111: 2 | BV111: =(B10/(1+$S$219*BU111))^(1/4) -> 1.763473621 | BW111: =(B10/(1+$S$219*BV111))^(1/4) -> 1.765192638 | BX111: =(B10/(1+$S$219*BW111))^(1/4) -> 1.765180114 | BY111: =(B10/(1+$S$219*BX111))^(1/4) -> 1.765180206 | BZ111: =(B10/(1+$S$219*BY111))^(1/4) -> 1.765180205 | CA111: 2 | CB111: =(B10/(1+$S$243*CA111))^(1/4) -> 1.753020876 | CC111: =(B10/(1+$S$243*CB111))^(1/4) -> 1.75604383 | CD111: =(B10/(1+$S$243*CC111))^(1/4) -> 1.756006672 | CE111: =(B10/(1+$S$243*CD111))^(1/4) -> 1.756007129 | CF111: =(B10/(1+$S$243*CE111))^(1/4) -> 1.756007123 | CG111: 2 | CH111: =(B10/(1+$S$267*CG111))^(1/4) -> 1.741815793 | CI111: =(B10/(1+$S$267*CH111))^(1/4) -> 1.746315465 | CJ111: =(B10/(1+$S$267*CI111))^(1/4) -> 1.746236545 | CK111: =(B10/(1+$S$267*CJ111))^(1/4) -> 1.746237929 | CL111: =(B10/(1+$S$267*CK111))^(1/4) -> 1.746237905
AS112: 22 | AT112: 2 | AU112: 1.773309926 | AV112: =(B10/(1+$AA$145*AU112))^(1/4) -> 1.77386971 | AW112: =(B10/(1+$AA$145*AV112))^(1/4) -> 1.773868326 | AX112: =(B10/(1+$AA$145*AW112))^(1/4) -> 1.77386833 | AY112: =(B10/(1+$AA$145*AX112))^(1/4) -> 1.77386833 | AZ112: =(B10/(1+$AA$145*AY112))^(1/4) -> 1.77386833 | BA112: =(B10/(1+$AA$145*AZ112))^(1/4) -> 1.77386833 | BB112: =(B10/(1+$AA$145*BA112))^(1/4) -> 1.77386833 | BC112: =(B10/(1+$AA$145*BB112))^(1/4) -> 1.77386833 | BD112: =(B10/(1+$AA$145*BC112))^(1/4) -> 1.77386833 | BE112: =(B10/(1+$AA$145*BD112))^(1/4) -> 1.77386833 | BF112: =(B10/(1+$AA$145*BE112))^(1/4) -> 1.77386833 | BG112: 2 | BH112: =(B10/(1+$U$170*BG112))^(1/4) -> 1.760579649 | BI112: =(B10/(1+$U$170*BH112))^(1/4) -> 1.762652376 | BJ112: =(B10/(1+$U$170*BI112))^(1/4) -> 1.762634379 | BK112: =(B10/(1+$U$170*BJ112))^(1/4) -> 1.762634535 | BL112: =(B10/(1+$U$170*BK112))^(1/4) -> 1.762634534 | BM112: =(B10/(1+$U$170*BL112))^(1/4) -> 1.762634534 | BN112: 2 | BO112: =(B10/(1+$AC$195*BN112))^(1/4) -> 1.747315302 | BP112: =(B10/(1+$AC$195*BO112))^(1/4) -> 1.751080217 | BQ112: =(B10/(1+$AC$195*BP112))^(1/4) -> 1.751023823 | BR112: =(B10/(1+$AC$195*BQ112))^(1/4) -> 1.751024667 | BS112: =(B10/(1+$AC$195*BR112))^(1/4) -> 1.751024655 | BT112: =(B10/(1+$AC$195*BS112))^(1/4) -> 1.751024655 | BU112: 2 | BV112: =(B10/(1+$S$220*BU112))^(1/4) -> 1.764775393 | BW112: =(B10/(1+$S$220*BV112))^(1/4) -> 1.766337157 | BX112: =(B10/(1+$S$220*BW112))^(1/4) -> 1.766326765 | BY112: =(B10/(1+$S$220*BX112))^(1/4) -> 1.766326834 | BZ112: =(B10/(1+$S$220*BY112))^(1/4) -> 1.766326834 | CA112: 2 | CB112: =(B10/(1+$S$244*CA112))^(1/4) -> 1.755628767 | CC112: =(B10/(1+$S$244*CB112))^(1/4) -> 1.758319615 | CD112: =(B10/(1+$S$244*CC112))^(1/4) -> 1.758289872 | CE112: =(B10/(1+$S$244*CD112))^(1/4) -> 1.758290201 | CF112: =(B10/(1+$S$244*CE112))^(1/4) -> 1.758290198 | CG112: 2 | CH112: =(B10/(1+$S$268*CG112))^(1/4) -> 1.744653581 | CI112: =(B10/(1+$S$268*CH112))^(1/4) -> 1.748771739 | CJ112: =(B10/(1+$S$268*CI112))^(1/4) -> 1.748704936 | CK112: =(B10/(1+$S$268*CJ112))^(1/4) -> 1.74870602 | CL112: =(B10/(1+$S$268*CK112))^(1/4) -> 1.748706002
AS113: 20 | AT113: 2 | AU113: 1.774190196 | AV113: =(B10/(1+$AA$146*AU113))^(1/4) -> 1.774649537 | AW113: =(B10/(1+$AA$146*AV113))^(1/4) -> 1.774648602 | AX113: =(B10/(1+$AA$146*AW113))^(1/4) -> 1.774648604 | AY113: =(B10/(1+$AA$146*AX113))^(1/4) -> 1.774648604 | AZ113: =(B10/(1+$AA$146*AY113))^(1/4) -> 1.774648604 | BA113: =(B10/(1+$AA$146*AZ113))^(1/4) -> 1.774648604 | BB113: =(B10/(1+$AA$146*BA113))^(1/4) -> 1.774648604 | BC113: =(B10/(1+$AA$146*BB113))^(1/4) -> 1.774648604 | BD113: =(B10/(1+$AA$146*BC113))^(1/4) -> 1.774648604 | BE113: =(B10/(1+$AA$146*BD113))^(1/4) -> 1.774648604 | BF113: =(B10/(1+$AA$146*BE113))^(1/4) -> 1.774648604 | BG113: 2 | BH113: =(B10/(1+$U$171*BG113))^(1/4) -> 1.759250957 | BI113: =(B10/(1+$U$171*BH113))^(1/4) -> 1.761487969 | BJ113: =(B10/(1+$U$171*BI113))^(1/4) -> 1.761467117 | BK113: =(B10/(1+$U$171*BJ113))^(1/4) -> 1.761467312 | BL113: =(B10/(1+$U$171*BK113))^(1/4) -> 1.76146731 | BM113: =(B10/(1+$U$171*BL113))^(1/4) -> 1.76146731 | BN113: 2 | BO113: =(B10/(1+$AC$196*BN113))^(1/4) -> 1.745823797 | BP113: =(B10/(1+$AC$196*BO113))^(1/4) -> 1.749786101 | BQ113: =(B10/(1+$AC$196*BP113))^(1/4) -> 1.749723988 | BR113: =(B10/(1+$AC$196*BQ113))^(1/4) -> 1.749724962 | BS113: =(B10/(1+$AC$196*BR113))^(1/4) -> 1.749724946 | BT113: =(B10/(1+$AC$196*BS113))^(1/4) -> 1.749724946 | BU113: 2 | BV113: =(B10/(1+$S$221*BU113))^(1/4) -> 1.764705927 | BW113: =(B10/(1+$S$221*BV113))^(1/4) -> 1.766276053 | BX113: =(B10/(1+$S$221*BW113))^(1/4) -> 1.766265552 | BY113: =(B10/(1+$S$221*BX113))^(1/4) -> 1.766265622 | BZ113: =(B10/(1+$S$221*BY113))^(1/4) -> 1.766265622 | CA113: 2 | CB113: =(B10/(1+$S$245*CA113))^(1/4) -> 1.758094 | CC113: =(B10/(1+$S$245*CB113))^(1/4) -> 1.760475024 | CD113: =(B10/(1+$S$245*CC113))^(1/4) -> 1.760451509 | CE113: =(B10/(1+$S$245*CD113))^(1/4) -> 1.760451742 | CF113: =(B10/(1+$S$245*CE113))^(1/4) -> 1.760451739 | CG113: 2 | CH113: =(B10/(1+$S$269*CG113))^(1/4) -> 1.748813518 | CI113: =(B10/(1+$S$269*CH113))^(1/4) -> 1.752381578 | CJ113: =(B10/(1+$S$269*CI113))^(1/4) -> 1.752330639 | CK113: =(B10/(1+$S$269*CJ113))^(1/4) -> 1.752331366 | CL113: =(B10/(1+$S$269*CK113))^(1/4) -> 1.752331356
AS114: 18 | AT114: 2 | AU114: 1.774530715 | AV114: =(B10/(1+$AA$147*AU114))^(1/4) -> 1.774951349 | AW114: =(B10/(1+$AA$147*AV114))^(1/4) -> 1.774950564 | AX114: =(B10/(1+$AA$147*AW114))^(1/4) -> 1.774950566 | AY114: =(B10/(1+$AA$147*AX114))^(1/4) -> 1.774950565 | AZ114: =(B10/(1+$AA$147*AY114))^(1/4) -> 1.774950565 | BA114: =(B10/(1+$AA$147*AZ114))^(1/4) -> 1.774950565 | BB114: =(B10/(1+$AA$147*BA114))^(1/4) -> 1.774950565 | BC114: =(B10/(1+$AA$147*BB114))^(1/4) -> 1.774950565 | BD114: =(B10/(1+$AA$147*BC114))^(1/4) -> 1.774950565 | BE114: =(B10/(1+$AA$147*BD114))^(1/4) -> 1.774950565 | BF114: =(B10/(1+$AA$147*BE114))^(1/4) -> 1.774950565 | BG114: 2 | BH114: =(B10/(1+$U$172*BG114))^(1/4) -> 1.756946157 | BI114: =(B10/(1+$U$172*BH114))^(1/4) -> 1.759470939 | BJ114: =(B10/(1+$U$172*BI114))^(1/4) -> 1.759444619 | BK114: =(B10/(1+$U$172*BJ114))^(1/4) -> 1.759444893 | BL114: =(B10/(1+$U$172*BK114))^(1/4) -> 1.75944489 | BM114: =(B10/(1+$U$172*BL114))^(1/4) -> 1.75944489 | BN114: 2 | BO114: =(B10/(1+$AC$197*BN114))^(1/4) -> 1.743877693 | BP114: =(B10/(1+$AC$197*BO114))^(1/4) -> 1.748099662 | BQ114: =(B10/(1+$AC$197*BP114))^(1/4) -> 1.748029651 | BR114: =(B10/(1+$AC$197*BQ114))^(1/4) -> 1.748030811 | BS114: =(B10/(1+$AC$197*BR114))^(1/4) -> 1.748030792 | BT114: =(B10/(1+$AC$197*BS114))^(1/4) -> 1.748030793 | CA114: 2 | CB114: =(B10/(1+$S$246*CA114))^(1/4) -> 1.758905044 | CC114: =(B10/(1+$S$246*CB114))^(1/4) -> 1.76118502 | CD114: =(B10/(1+$S$246*CC114))^(1/4) -> 1.761163389 | CE114: =(B10/(1+$S$246*CD114))^(1/4) -> 1.761163595 | CF114: =(B10/(1+$S$246*CE114))^(1/4) -> 1.761163593 | CG114: 2 | CH114: =(B10/(1+$S$270*CG114))^(1/4) -> 1.750025976 | CI114: =(B10/(1+$S$270*CH114))^(1/4) -> 1.75343578 | CJ114: =(B10/(1+$S$270*CI114))^(1/4) -> 1.753389044 | CK114: =(B10/(1+$S$270*CJ114))^(1/4) -> 1.753389685 | CL114: =(B10/(1+$S$270*CK114))^(1/4) -> 1.753389676
AS115: 16 | AT115: 2 | AU115: 1.774314031 | AV115: =(B10/(1+$AA$148*AU115))^(1/4) -> 1.774759287 | AW115: =(B10/(1+$AA$148*AV115))^(1/4) -> 1.774758408 | AX115: =(B10/(1+$AA$148*AW115))^(1/4) -> 1.774758409 | AY115: =(B10/(1+$AA$148*AX115))^(1/4) -> 1.774758409 | AZ115: =(B10/(1+$AA$148*AY115))^(1/4) -> 1.774758409 | BA115: =(B10/(1+$AA$148*AZ115))^(1/4) -> 1.774758409 | BB115: =(B10/(1+$AA$148*BA115))^(1/4) -> 1.774758409 | BC115: =(B10/(1+$AA$148*BB115))^(1/4) -> 1.774758409 | BD115: =(B10/(1+$AA$148*BC115))^(1/4) -> 1.774758409 | BE115: =(B10/(1+$AA$148*BD115))^(1/4) -> 1.774758409 | BF115: =(B10/(1+$AA$148*BE115))^(1/4) -> 1.774758409 | BG115: 2 | BH115: =(B10/(1+$U$173*BG115))^(1/4) -> 1.756555121 | BI115: =(B10/(1+$U$173*BH115))^(1/4) -> 1.759129075 | BJ115: =(B10/(1+$U$173*BI115))^(1/4) -> 1.759101762 | BK115: =(B10/(1+$U$173*BJ115))^(1/4) -> 1.759102052 | BL115: =(B10/(1+$U$173*BK115))^(1/4) -> 1.759102049 | BM115: =(B10/(1+$U$173*BL115))^(1/4) -> 1.759102049 | BN115: 2 | BO115: =(B10/(1+$AC$198*BN115))^(1/4) -> 1.74249945 | BP115: =(B10/(1+$AC$198*BO115))^(1/4) -> 1.746906751 | BQ115: =(B10/(1+$AC$198*BP115))^(1/4) -> 1.746830847 | BR115: =(B10/(1+$AC$198*BQ115))^(1/4) -> 1.746832154 | BS115: =(B10/(1+$AC$198*BR115))^(1/4) -> 1.746832131 | BT115: =(B10/(1+$AC$198*BS115))^(1/4) -> 1.746832132 | CA115: 2 | CB115: =(B10/(1+$S$247*CA115))^(1/4) -> 1.758567718 | CC115: =(B10/(1+$S$247*CB115))^(1/4) -> 1.760889668 | CD115: =(B10/(1+$S$247*CC115))^(1/4) -> 1.760867264 | CE115: =(B10/(1+$S$247*CD115))^(1/4) -> 1.76086748 | CF115: =(B10/(1+$S$247*CE115))^(1/4) -> 1.760867478 | CG115: 2 | CH115: =(B10/(1+$S$271*CG115))^(1/4) -> 1.75326163 | CI115: =(B10/(1+$S$271*CH115))^(1/4) -> 1.756253739 | CJ115: =(B10/(1+$S$271*CI115))^(1/4) -> 1.756217301 | CK115: =(B10/(1+$S$271*CJ115))^(1/4) -> 1.756217745 | CL115: =(B10/(1+$S$271*CK115))^(1/4) -> 1.75621774 | CQ115: calule theorique matlab et valeur mesure experimentale
AS116: 14 | AT116: 2 | AU116: 1.773913869 | AV116: =(B10/(1+$AA$149*AU116))^(1/4) -> 1.774404681 | AW116: =(B10/(1+$AA$149*AV116))^(1/4) -> 1.774403615 | AX116: =(B10/(1+$AA$149*AW116))^(1/4) -> 1.774403617 | AY116: =(B10/(1+$AA$149*AX116))^(1/4) -> 1.774403617 | AZ116: =(B10/(1+$AA$149*AY116))^(1/4) -> 1.774403617 | BA116: =(B10/(1+$AA$149*AZ116))^(1/4) -> 1.774403617 | BB116: =(B10/(1+$AA$149*BA116))^(1/4) -> 1.774403617 | BC116: =(B10/(1+$AA$149*BB116))^(1/4) -> 1.774403617 | BD116: =(B10/(1+$AA$149*BC116))^(1/4) -> 1.774403617 | BE116: =(B10/(1+$AA$149*BD116))^(1/4) -> 1.774403617 | BF116: =(B10/(1+$AA$149*BE116))^(1/4) -> 1.774403617 | BG116: 2 | BH116: =(B10/(1+$U$174*BG116))^(1/4) -> 1.754519314 | BI116: =(B10/(1+$U$174*BH116))^(1/4) -> 1.757350903 | BJ116: =(B10/(1+$U$174*BI116))^(1/4) -> 1.75731811 | BK116: =(B10/(1+$U$174*BJ116))^(1/4) -> 1.75731849 | BL116: =(B10/(1+$U$174*BK116))^(1/4) -> 1.757318486 | BM116: =(B10/(1+$U$174*BL116))^(1/4) -> 1.757318486 | BN116: 2 | BO116: =(B10/(1+$AC$199*BN116))^(1/4) -> 1.738511219 | BP116: =(B10/(1+$AC$199*BO116))^(1/4) -> 1.743461461 | BQ116: =(B10/(1+$AC$199*BP116))^(1/4) -> 1.743367092 | BR116: =(B10/(1+$AC$199*BQ116))^(1/4) -> 1.743368891 | BS116: =(B10/(1+$AC$199*BR116))^(1/4) -> 1.743368857 | BT116: =(B10/(1+$AC$199*BS116))^(1/4) -> 1.743368857 | CA116: 2 | CB116: =(B10/(1+$S$248*CA116))^(1/4) -> 1.759005753 | CC116: =(B10/(1+$S$248*CB116))^(1/4) -> 1.761273212 | CD116: =(B10/(1+$S$248*CC116))^(1/4) -> 1.761251809 | CE116: =(B10/(1+$S$248*CD116))^(1/4) -> 1.761252011 | CF116: =(B10/(1+$S$248*CE116))^(1/4) -> 1.761252009 | CG116: 2 | CH116: =(B10/(1+$S$272*CG116))^(1/4) -> 1.751806849 | CI116: =(B10/(1+$S$272*CH116))^(1/4) -> 1.754985919 | CJ116: =(B10/(1+$S$272*CI116))^(1/4) -> 1.754945016 | CK116: =(B10/(1+$S$272*CJ116))^(1/4) -> 1.754945542 | CL116: =(B10/(1+$S$272*CK116))^(1/4) -> 1.754945535
AS117: 12 | AT117: 2 | AU117: 1.773901818 | AV117: =(B10/(1+$AA$150*AU117))^(1/4) -> 1.774394004 | AW117: =(B10/(1+$AA$150*AV117))^(1/4) -> 1.774392932 | AX117: =(B10/(1+$AA$150*AW117))^(1/4) -> 1.774392934 | AY117: =(B10/(1+$AA$150*AX117))^(1/4) -> 1.774392934 | AZ117: =(B10/(1+$AA$150*AY117))^(1/4) -> 1.774392934 | BA117: =(B10/(1+$AA$150*AZ117))^(1/4) -> 1.774392934 | BB117: =(B10/(1+$AA$150*BA117))^(1/4) -> 1.774392934 | BC117: =(B10/(1+$AA$150*BB117))^(1/4) -> 1.774392934 | BD117: =(B10/(1+$AA$150*BC117))^(1/4) -> 1.774392934 | BE117: =(B10/(1+$AA$150*BD117))^(1/4) -> 1.774392934 | BF117: =(B10/(1+$AA$150*BE117))^(1/4) -> 1.774392934 | BG117: 2 | BH117: =(B10/(1+$U$175*BG117))^(1/4) -> 1.752920415 | BI117: =(B10/(1+$U$175*BH117))^(1/4) -> 1.755956251 | BJ117: =(B10/(1+$U$175*BI117))^(1/4) -> 1.755918791 | BK117: =(B10/(1+$U$175*BJ117))^(1/4) -> 1.755919253 | BL117: =(B10/(1+$U$175*BK117))^(1/4) -> 1.755919247 | BM117: =(B10/(1+$U$175*BL117))^(1/4) -> 1.755919247 | BN117: 2 | BO117: =(B10/(1+$AC$200*BN117))^(1/4) -> 1.734352415 | BP117: =(B10/(1+$AC$200*BO117))^(1/4) -> 1.739879195 | BQ117: =(B10/(1+$AC$200*BP117))^(1/4) -> 1.739763311 | BR117: =(B10/(1+$AC$200*BQ117))^(1/4) -> 1.73976574 | BS117: =(B10/(1+$AC$200*BR117))^(1/4) -> 1.739765689 | BT117: =(B10/(1+$AC$200*BS117))^(1/4) -> 1.73976569 | CA117: 2 | CB117: =(B10/(1+$S$249*CA117))^(1/4) -> 1.761323791 | CC117: =(B10/(1+$S$249*CB117))^(1/4) -> 1.763305026 | CD117: =(B10/(1+$S$249*CC117))^(1/4) -> 1.763288534 | CE117: =(B10/(1+$S$249*CD117))^(1/4) -> 1.763288671 | CF117: =(B10/(1+$S$249*CE117))^(1/4) -> 1.76328867 | CG117: 2 | CH117: =(B10/(1+$S$273*CG117))^(1/4) -> 1.753586319 | CI117: =(B10/(1+$S$273*CH117))^(1/4) -> 1.756536888 | CJ117: =(B10/(1+$S$273*CI117))^(1/4) -> 1.756501411 | CK117: =(B10/(1+$S$273*CJ117))^(1/4) -> 1.756501837 | CL117: =(B10/(1+$S$273*CK117))^(1/4) -> 1.756501832
AS118: 10 | AT118: 2 | AU118: 1.773948593 | AV118: =(B10/(1+$AA$151*AU118))^(1/4) -> 1.774435448 | AW118: =(B10/(1+$AA$151*AV118))^(1/4) -> 1.774434398 | AX118: =(B10/(1+$AA$151*AW118))^(1/4) -> 1.774434401 | AY118: =(B10/(1+$AA$151*AX118))^(1/4) -> 1.774434401 | AZ118: =(B10/(1+$AA$151*AY118))^(1/4) -> 1.774434401 | BA118: =(B10/(1+$AA$151*AZ118))^(1/4) -> 1.774434401 | BB118: =(B10/(1+$AA$151*BA118))^(1/4) -> 1.774434401 | BC118: =(B10/(1+$AA$151*BB118))^(1/4) -> 1.774434401 | BD118: =(B10/(1+$AA$151*BC118))^(1/4) -> 1.774434401 | BE118: =(B10/(1+$AA$151*BD118))^(1/4) -> 1.774434401 | BF118: =(B10/(1+$AA$151*BE118))^(1/4) -> 1.774434401 | BG118: 2 | BH118: =(B10/(1+$U$176*BG118))^(1/4) -> 1.750941625 | BI118: =(B10/(1+$U$176*BH118))^(1/4) -> 1.754232539 | BJ118: =(B10/(1+$U$176*BI118))^(1/4) -> 1.754188853 | BK118: =(B10/(1+$U$176*BJ118))^(1/4) -> 1.754189433 | BL118: =(B10/(1+$U$176*BK118))^(1/4) -> 1.754189425 | BM118: =(B10/(1+$U$176*BL118))^(1/4) -> 1.754189425 | BN118: 2 | BO118: =(B10/(1+$AC$201*BN118))^(1/4) -> 1.731381275 | BP118: =(B10/(1+$AC$201*BO118))^(1/4) -> 1.737326332 | BQ118: =(B10/(1+$AC$201*BP118))^(1/4) -> 1.737193648 | BR118: =(B10/(1+$AC$201*BQ118))^(1/4) -> 1.737196609 | BS118: =(B10/(1+$AC$201*BR118))^(1/4) -> 1.737196543 | BT118: =(B10/(1+$AC$201*BS118))^(1/4) -> 1.737196545
AS119: 8 | AT119: 2 | AU119: 1.774257588 | AV119: =(B10/(1+$AA$152*AU119))^(1/4) -> 1.774709262 | AW119: =(B10/(1+$AA$152*AV119))^(1/4) -> 1.774708358 | AX119: =(B10/(1+$AA$152*AW119))^(1/4) -> 1.77470836 | AY119: =(B10/(1+$AA$152*AX119))^(1/4) -> 1.77470836 | AZ119: =(B10/(1+$AA$152*AY119))^(1/4) -> 1.77470836 | BA119: =(B10/(1+$AA$152*AZ119))^(1/4) -> 1.77470836 | BB119: =(B10/(1+$AA$152*BA119))^(1/4) -> 1.77470836 | BC119: =(B10/(1+$AA$152*BB119))^(1/4) -> 1.77470836 | BD119: =(B10/(1+$AA$152*BC119))^(1/4) -> 1.77470836 | BE119: =(B10/(1+$AA$152*BD119))^(1/4) -> 1.77470836 | BF119: =(B10/(1+$AA$152*BE119))^(1/4) -> 1.77470836 | BG119: 2 | BH119: =(B10/(1+$U$177*BG119))^(1/4) -> 1.744035879 | BI119: =(B10/(1+$U$177*BH119))^(1/4) -> 1.748236652 | BJ119: =(B10/(1+$U$177*BI119))^(1/4) -> 1.748167301 | BK119: =(B10/(1+$U$177*BJ119))^(1/4) -> 1.748168446 | BL119: =(B10/(1+$U$177*BK119))^(1/4) -> 1.748168427 | BM119: =(B10/(1+$U$177*BL119))^(1/4) -> 1.748168428
AS120: 6 | BG120: 2 | BH120: =(B10/(1+$U$178*BG120))^(1/4) -> 1.739142882 | BI120: =(B10/(1+$U$178*BH120))^(1/4) -> 1.744006478 | BJ120: =(B10/(1+$U$178*BI120))^(1/4) -> 1.743915174 | BK120: =(B10/(1+$U$178*BJ120))^(1/4) -> 1.743916888 | BL120: =(B10/(1+$U$178*BK120))^(1/4) -> 1.743916856 | BM120: =(B10/(1+$U$178*BL120))^(1/4) -> 1.743916857 | CZ120: Brouillon
AS121: 4 | BG121: 2 | BH121: =(B10/(1+$U$179*BG121))^(1/4) -> 1.732491267 | BI121: =(B10/(1+$U$179*BH121))^(1/4) -> 1.738279442 | BJ121: =(B10/(1+$U$179*BI121))^(1/4) -> 1.738153175 | BK121: =(B10/(1+$U$179*BJ121))^(1/4) -> 1.738155928 | BL121: =(B10/(1+$U$179*BK121))^(1/4) -> 1.738155868 | BM121: =(B10/(1+$U$179*BL121))^(1/4) -> 1.73815587
AS122: 2 | BG122: 2 | BH122: =(B10/(1+$U$180*BG122))^(1/4) -> 1.723608184 | BI122: =(B10/(1+$U$180*BH122))^(1/4) -> 1.730672191 | BJ122: =(B10/(1+$U$180*BI122))^(1/4) -> 1.73048984 | BK122: =(B10/(1+$U$180*BJ122))^(1/4) -> 1.730494546 | BL122: =(B10/(1+$U$180*BK122))^(1/4) -> 1.730494425 | BM122: =(B10/(1+$U$180*BL122))^(1/4) -> 1.730494428
AS123: 1 | BG123: 2 | BH123: =(B10/(1+$U$181*BG123))^(1/4) -> 1.718306171 | BI123: =(B10/(1+$U$181*BH123))^(1/4) -> 1.726153414 | BJ123: =(B10/(1+$U$181*BI123))^(1/4) -> 1.725932374 | BK123: =(B10/(1+$U$181*BJ123))^(1/4) -> 1.725938599 | BL123: =(B10/(1+$U$181*BK123))^(1/4) -> 1.725938423 | BM123: =(B10/(1+$U$181*BL123))^(1/4) -> 1.725938428 | DA123: fusion PTFE 327 °C | DD123: KZ07-07 | DF123: KZ04-06 | DG123: KZ05-08 | DH123: KZ04-05 | DI123: AWG26 | DJ123: AWG28 | DK123: AWG 26 delta
AS124: 0 | BG124: 2 | BH124: =(B10/(1+$U$182*BG124))^(1/4) -> 1.715109185 | BI124: =(B10/(1+$U$182*BH124))^(1/4) -> 1.72343636 | BJ124: =(B10/(1+$U$182*BI124))^(1/4) -> 1.723190081 | BK124: =(B10/(1+$U$182*BJ124))^(1/4) -> 1.723197362 | BL124: =(B10/(1+$U$182*BK124))^(1/4) -> 1.723197147 | BM124: =(B10/(1+$U$182*BL124))^(1/4) -> 1.723197153 | DA124: tau=100 000seconde | DC124: A | DD124: AWG20 | DF124: AWG22 | DG124: AWG18 | DH124: AWG24 | DI124: KZ04-04 | DJ124: KZ04-03
AS125: 00 | BG125: 2 | BH125: =(B10/(1+$U$183*BG125))^(1/4) -> 1.710336839 | BI125: =(B10/(1+$U$183*BH125))^(1/4) -> 1.719390956 | BJ125: =(B10/(1+$U$183*BI125))^(1/4) -> 1.719104302 | BK125: =(B10/(1+$U$183*BJ125))^(1/4) -> 1.719113374 | BL125: =(B10/(1+$U$183*BK125))^(1/4) -> 1.719113087 | BM125: =(B10/(1+$U$183*BL125))^(1/4) -> 1.719113096 | DC125: 0.25 | DD125: cœur du cuivre | DE125: frontiere du PTFE | DF125: cœur du cuivre | DI125: 20.59 | DJ125: 21.14 | DK125: =DI125-20 -> 0.59
AS126: 000 | BG126: 2 | BH126: =(B10/(1+$U$184*BG126))^(1/4) -> 1.707381839 | BI126: =(B10/(1+$U$184*BH126))^(1/4) -> 1.716892289 | BJ126: =(B10/(1+$U$184*BI126))^(1/4) -> 1.716579002 | BK126: =(B10/(1+$U$184*BJ126))^(1/4) -> 1.716589318 | BL126: =(B10/(1+$U$184*BK126))^(1/4) -> 1.716588978 | BM126: =(B10/(1+$U$184*BL126))^(1/4) -> 1.716588989 | DC126: 0.5 | DI126: 22.38 | DJ126: 24.56 | DK126: 2.38
AS127: 0000 | BG127: 2 | BH127: =(B10/(1+$U$185*BG127))^(1/4) -> 1.702498071 | BI127: =(B10/(1+$U$185*BH127))^(1/4) -> 1.712772942 | BJ127: =(B10/(1+$U$185*BI127))^(1/4) -> 1.71241288 | BK127: =(B10/(1+$U$185*BJ127))^(1/4) -> 1.712425491 | BL127: =(B10/(1+$U$185*BK127))^(1/4) -> 1.71242505 | BM127: =(B10/(1+$U$185*BL127))^(1/4) -> 1.712425065 | DC127: 0.75 | DI127: 25.36 | DJ127: 30.27 | DK127: 5.36
DC128: 1 | DD128: 20.64 | DE128: 20.64 | DF128: 21.27 | DH128: 25.2 | DI128: 29.54 | DJ128: 38.25 | DK128: 9.54
DC129: 2 | DD129: 22.58 | DE129: 22.58 | DF129: 25.1 | DG129: 21.28 | DH129: 40.83 | DI129: 58.17 | DJ129: 93.03 | DK129: 38.17
DC130: 3 | DD130: 25.81 | DE130: 25.81 | DF130: 31.49 | DG130: 22.89 | DH130: 66.87 | DI130: 105.88 | DJ130: 184.34 | DK130: 85.88
DC131: 4 | DD131: 30.34 | DE131: 30.34 | DF131: 40.42 | DG131: 25.14 | DH131: 103.3 | DI131: 172.68 | DJ131: 312.15 | DK131: 152.68
DC132: 5 | DD132: 36.16 | DE132: 36.16 | DF132: 51.91 | DG132: 28.04 | DH132: 150.2 | DI132: 258.57 | DK132: 238.57
O133: pour un fils | DC133: 6 | DD133: 43.27 | DE133: 43.27 | DF133: 65.96 | DG133: 31.58 | DH133: 207.49 | DI133: 363.55 | DK133: 343.55
A134: https://mycableengineering.com/knowledge-base/iec-60287-current-capacity-of-cables-introduction | M134: h | N134: variable | P134: proposition solveur | Q134: proposition solveur | DC134: 7 | DD134: 51.68 | DE134: 51.68 | DF134: 82.56 | DG134: 35.76 | DH134: 275.2
A135: https://www.cableizer.com/documentation/ | J135: =IF(O51="fonction de fils",IF(B11=1,BA1,IF(B11=2,BB1,IF(B11=3,BD1,IF(B11=4,BB1,IF(B11=5,BD1,IF(B11=6,BD1,IF(B11=7,BD1,IF(B11>=8,BC1,0)))))))),O51) -> 2 câbles jointif horizontaux | K135: Installation (tableau 1) : | M135: z | N135: =IF(J135=AY18,AZ18,IF(J135=AY19,AZ19,IF(J135=AY20,AZ20,IF(J135=AY21,AZ21,IF(J135=AY22,AZ22,IF(J135=AY23,AZ23,IF(J135=AY24,AZ24,AZ25))))))) -> 0.29 | P135: 0.32 | Q135: 0.39203 | DC135: 8 | DD135: 61.38 | DE135: 61.38 | DF135: 101.71 | DG135: 40.59 | DH135: 353
J136: =IF(O52="fonction de fils",IF(B11=1,AY29,IF(B11=2,AY29,IF(B11=3,AY29,IF(B11=4,AY34,IF(B11=5,AY36,IF(B11=6,AY36,IF(B11=7,AY36,IF(B11>=8,AY35,AY29)))))))),O52) -> un seul groupe | K136: coef disposition des câble(tableau 2): | M136: g | N136: =IF(J135=AY18,BB18,IF(J135=AY19,BB19,IF(J135=AY20,BB20,IF(J135=AY21,BB21,IF(J135=AY22,BB22,IF(J135=AY23,BB23,IF(J135=AY24,BB24,BB25))))))) -> 0.5 | P136: 0.65 | Q136: 0.15827 | T136: 150 | U136: ETFE | DC136: 9 | DD136: 72.37 | DE136: 72.37 | DF136: 123.41 | DG136: 46.06
M137: e | N137: =IF(J135=AY18,BA18,IF(J135=AY19,BA19,IF(J135=AY20,BA20,IF(J135=AY21,BA21,IF(J135=AY22,BA22,IF(J135=AY23,BA23,IF(J135=AY24,BA24,BA25))))))) -> 2.35 | P137: 2.24 | Q137: 1.21293 | T137: =AJ6 -> 10 | U137: rho (iec 60287)= | V137: 3.5 | W137: K.m/W | DC137: 10 | DD137: 84.66 | DE137: 84.66 | DF137: 147.67 | DG137: 52.17
A138: MIL W-22759 | L138: inch | M138: m | O138: source | P138: 55a0111 - 22759/32 | U138: t1=ep isolant | AF138: I max | AG138: ="I max "&B10&"°C" -> I max 10°C | AH138: Échauffement | DC138: 11 | DD138: 98.24 | DF138: 174.48 | DG138: 58.93
B139: Ohm/1000 ft | E139: Ohm/km | H139: Ohm/m | K139: diametre stranded conductor | M139: diametre stranded conductor | O139: diametre stranded conductor | Q139: finish wire | R139: diametre stranded conductor | T139: finish wire | U139: dc=conducteur | V139: 22759/32 ETFE (source MIL-STQ-339) | AX139: 55A0111 | DC139: 12 | DD139: 113.11 | DF139: 203.85 | DG139: 66.33
A140: AWG | B140: Silver Coated | C140: Nickel Coated | D140: Tin Coated | E140: Silver Coated | F140: Nickel Coated | G140: Tin Coated | H140: Silver Coated | I140: Nickel Coated | J140: Tin Coated | K140: silver coated | L140: Nickel or tin coated | M140: silver coated | N140: Nickel or tin coated | O140: min(inch) | P140: max(inch) | Q140: inch | R140: m | S140: m | T140: m | U140: T1=(Rho/2*Pi)ln(1+2t1/dc) | W140: R'=R0[1+a20(Theta-20)] | X140: h | Y140: hi/hg | Z140: hg | AA140: Ka | AB140: Teta max | AC140: T4= | AD140: ="teta " &$B$10&"°C" -> teta 10°C | AE140: ="T4 "&$B$10&"°C" -> T4 10°C | AF140: - | AG140: - | AH140: - | AY140: ΔT | AZ140: 5 | BA140: 10 | BB140: 20 | BC140: 30 | BD140: 40 | BE140: 50 | BF140: 60 | BG140: 70 | BH140: 80 | BI140: 90 | BJ140: 100 | BK140: 110 | BL140: 120 | BM140: 130 | BN140: 140 | BO140: 150 | BP140: 160 | BQ140: 170 | BR140: 180 | BS140: 190 | BT140: facteur | DC140: 13 | DD140: 129.28 | DF140: 235.77 | DG140: 74.37
A141: 30 | B141: 100.7 | C141: 110.7 | D141: 108.4 | E141: =B141*(1000/304.8) -> 330.3805774 | F141: =C141*(1000/304.8) -> 363.1889764 | G141: =D141*(1000/304.8) -> 355.6430446 | H141: =B141*(1000/304.8)*(1/1000) -> 0.3303805774 | I141: =C141*(1000/304.8)*(1/1000) -> 0.3631889764 | J141: =D141*(1000/304.8)*(1/1000) -> 0.3556430446 | K141: 0.012 | L141: 0.013 | M141: =K141*0.0254 -> 0.0003048 | N141: =L141*0.0254 -> 0.0003302 | O141: 0.011 | P141: 0.013 | Q141: 0.024 | R141: =O141*0.0254 -> 0.0002794 | S141: =P141*0.0254 -> 0.0003302 | T141: =Q141*0.0254 -> 0.0006096 | U141: =($V$137/(3.1415*2))*LN(1+(T141-N141)/(N141)) -> 0.341535199 | W141: =J141*(1+(3.93*10^-3)*($T$136-20)) -> 0.5373410761 | X141: =($N$135/(T141)^$N$136)+$N$137 -> 14.09560844 | Y141: =IF($J$136=$AY$29,$BB$29,IF($J$136=$AY$30,$BB$30,IF($J$136=$AY$31,$BB$31,IF($J$136=$AY$32,$BB$32,IF($J$136=$AY$33,$BB$33,IF($J$136=$AY$34,$BB$34,IF($J$136=$AY$35,$BB$35,IF($J$136=$AY$36,$BB$36,$BB$37)))))))) -> 1 | Z141: =X141/Y141 -> 14.09560844 | AA141: =(3.1415*T141*Z141*U141)/1 -> 0.009219371564 | AB141: =BF82 -> 3.413249752 | AC141: =1/(3.1415*T141*Z141*AB141) -> 10.85340685 | AD141: =BF108 -> 1.771093495 | AE141: =1/(3.1415*T141*Z141*AD141) -> 20.91667569 | AF141: =(($T$136-$T$137)/(W141*U141+W141*AC141))^(1/2) -> 4.82423075 | AG141: =($B$10/(W141*U141+W141*AE141))^(1/2) -> 0.9356461268 | AH141: =$BT$144*$B$9^$BU$144 -> 868.4678099 | AX141: facteur correctif | AY141: 0.8 | AZ141: 2 | BA141: 2 | BB141: 2 | BC141: 2 | BD141: 2 | BE141: 2 | BF141: 2 | BG141: 2 | BH141: 2 | BI141: 2 | BJ141: 2 | BK141: 2 | BL141: 2 | BM141: 2 | BN141: 2 | BO141: 2 | BP141: 2 | BQ141: 2 | BR141: 2 | BS141: 2 | BT141: a | BU141: b | BV141: a*x^b | DC141: 14 | DD141: 146.74 | DF141: 270.24 | DG141: 83.06
A142: 28 | B142: 63.8 | C142: 67.9 | D142: 68.6 | E142: 209.3175853 | F142: 222.7690289 | G142: 225.0656168 | H142: 0.2093175853 | I142: 0.2227690289 | J142: 0.2250656168 | K142: 0.015 | L142: 0.016 | M142: =K142*0.0254 -> 0.000381 | N142: 0.0004064 | O142: 0.014 | P142: 0.016 | Q142: 0.027 | R142: =O142*0.0254 -> 0.0003556 | S142: =P142*0.0254 -> 0.0004064 | T142: =Q142*0.0254 -> 0.0006858 | U142: =($V$137/(3.1415*2))*LN(1+(T142-N142)/(N142)) -> 0.2914799464 | W142: =J142*(1+(3.93*10^-3)*($T$136-20)) -> 0.3400516404 | X142: =($N$135/(T142)^$N$136)+$N$137 -> 13.42386583 | Y142: 1 | Z142: =X142/Y142 -> 13.42386583 | AA142: =(3.1415*T142*Z142*U142)/1 -> 0.008429869058 | AB142: 3.415467212 | AC142: =1/(3.1415*T142*Z142*AB142) -> 10.12366421 | AD142: 1.77170096 | AE142: =1/(3.1415*T142*Z142*AD142) -> 19.51629759 | AF142: =(($T$136-$T$137)/(W142*U142+W142*AC142))^(1/2) -> 6.287224064 | AG142: 1.218455543 | AH142: =$BT$149*$B$9^$BU$149 -> 566.7375731 | AX142: 30 | AY142: teta | AZ142: =($AZ$140/(1+$AA$141*AZ141))^(1/4) -> 1.488534048 | BA142: =($BA$140/(1+$AA$141*BA141))^(1/4) -> 1.770175281 | BB142: =($BB$140/(1+$AA$141*BB141))^(1/4) -> 2.105105039 | BC142: =($BC$140/(1+$AA$141*BC141))^(1/4) -> 2.329681686 | BD142: =($BD$140/(1+$AA$141*BD141))^(1/4) -> 2.50340589 | BE142: =($BE$140/(1+$AA$141*BE141))^(1/4) -> 2.647029449 | BF142: =($BF$140/(1+$AA$141*BF141))^(1/4) -> 2.770474037 | BG142: =($BG$140/(1+$AA$141*BG141))^(1/4) -> 2.879325622 | BH142: =($BH$140/(1+$AA$141*BH141))^(1/4) -> 2.977068097 | BI142: =($BI$140/(1+$AA$141*BI141))^(1/4) -> 3.066033525 | BJ142: =($BJ$140/(1+$AA$141*BJ141))^(1/4) -> 3.147866255 | BK142: =($BK$140/(1+$AA$141*BK141))^(1/4) -> 3.223772923 | BL142: =($BL$140/(1+$AA$141*BL141))^(1/4) -> 3.294667436 | BM142: =($BM$140/(1+$AA$141*BM141))^(1/4) -> 3.361260021 | BN142: =($BN$140/(1+$AA$141*BN141))^(1/4) -> 3.424114517 | BO142: =($BO$140/(1+$AA$141*BO141))^(1/4) -> 3.48368667 | BP142: =($BP$140/(1+$AA$141*BP141))^(1/4) -> 3.540350562 | BQ142: =($BQ$140/(1+$AA$141*BQ141))^(1/4) -> 3.594417353 | BR142: =($BR$140/(1+$AA$141*BR141))^(1/4) -> 3.646148883 | BS142: =(BS140/(1+$AA$141*BS141))^(1/4) -> 3.695767757 | DC142: 15 | DD142: 165.49 | DF142: 307.26 | DG142: 92.39
A143: 26 | B143: 38.4 | C143: 42.2 | D143: 41.3 | E143: 125.984252 | F143: 138.4514436 | G143: 135.4986877 | H143: 0.125984252 | I143: 0.1384514436 | J143: 0.1354986877 | K143: 0.02 | L143: 0.021 | M143: 0.000508 | N143: 0.0005334 | O143: 0.018 | P143: 0.02 | Q143: 0.032 | R143: 0.0004572 | S143: 0.000508 | T143: 0.0008128 | U143: 0.2346406379 | W143: 0.2047249672 | X143: 12.52199529 | Y143: 1 | Z143: 12.52199529 | AA143: 0.007502353536 | AB143: 3.418085181 | AC143: 9.150036435 | AD143: 1.772416479 | AE143: 17.64574203 | AF143: 8.536285782 | AG143: 1.652822401 | AH143: =$BT$154*$B$9^$BU$154 -> 346.3949097 | AZ143: =($AZ$140/(1+$AA$141*AZ142))^(1/4) -> 1.490262038 | BA143: =($BA$140/(1+$AA$141*BA142))^(1/4) -> 1.771097183 | BB143: =($BB$140/(1+$AA$141*BB142))^(1/4) -> 2.104604607 | BC143: =($BC$140/(1+$AA$141*BC142))^(1/4) -> 2.327946729 | BD143: =(BD140/(1+$AA$141*BD142))^(1/4) -> 2.500561943 | BE143: =($BE$140/(1+$AA$141*BE142))^(1/4) -> 2.643167528 | BF143: =($BF$140/(1+$AA$141*BF142))^(1/4) -> 2.765664191 | BG143: =($BG$140/(1+$AA$141*BG142))^(1/4) -> 2.873624061 | BH143: =($BH$140/(1+$AA$141*BH142))^(1/4) -> 2.970521306 | BI143: =($BI$140/(1+$AA$141*BI142))^(1/4) -> 3.058680843 | BJ143: =($BJ$140/(1+$AA$141*BJ142))^(1/4) -> 3.139741575 | BK143: =($BK$140/(1+$AA$141*BK142))^(1/4) -> 3.214905872 | BL143: =($BL$140/(1+$AA$141*BL142))^(1/4) -> 3.285084221 | BM143: =($BM$140/(1+$AA$141*BM142))^(1/4) -> 3.350984054 | BN143: =($BN$140/(1+$AA$141*BN142))^(1/4) -> 3.413166891 | BO143: =($BO$140/(1+$AA$141*BO142))^(1/4) -> 3.472086528 | BP143: =($BP$140/(1+$AA$141*BP142))^(1/4) -> 3.528115385 | BQ143: =($BQ$140/(1+$AA$141*BQ142))^(1/4) -> 3.581563192 | BR143: =($BR$140/(1+$AA$141*BR142))^(1/4) -> 3.632690551 | BS143: =(BS140/(1+$AA$141*BS142))^(1/4) -> 3.681718982 | DC143: 16 | DD143: 185.54 | DG143: 102.36
A144: 24 | B144: 24.3 | C144: 25.9 | D144: 26.2 | E144: 79.72440945 | F144: 84.97375328 | G144: 85.95800525 | H144: 0.07972440945 | I144: 0.08497375328 | J144: 0.08595800525 | K144: 0.025 | L144: 0.026 | M144: 0.000635 | N144: 0.0006604 | O144: 0.023 | P144: 0.025 | Q144: 0.037 | R144: 0.0005842 | S144: 0.000635 | T144: 0.0009398 | U144: 0.1965422268 | W144: 0.1298739501 | X144: 11.80976347 | Y144: 1 | Z144: 11.80976347 | AA144: 0.006852823977 | AB144: 3.419926874 | AC144: 8.386282266 | AD144: 1.772918753 | AE144: 16.1769805 | AF144: 11.20696142 | AG144: 2.168542368 | AH144: =$BT$159*$B$9^$BU$159 -> 242.6065783 | AY144: T4 | AZ144: =1/(3.1415*$T$141*$X$141*AZ143) -> 24.85830498 | BA144: =1/(3.1415*$T$141*$X$141*BA143) -> 20.91663213 | BB144: =1/(3.1415*$T$141*$X$141*BB143) -> 17.60206555 | BC144: =1/(3.1415*$T$141*$X$141*BC143) -> 15.9133316 | BD144: 14.81482526 | BE144: 14.01552791 | BF144: 13.39475283 | BG144: 12.89152215 | BH144: 12.47100574 | BI144: 12.11155728 | BJ144: 11.7988654 | BK144: 11.52300867 | BL144: =1/(3.1415*$T$141*$X$141*BL143) -> 11.27684581 | BM144: 11.05507745 | BN144: 10.85367034 | BO144: 10.66948878 | BP144: 10.50005008 | BQ144: 10.34335743 | BR144: 10.19778253 | BS144: 10.06198149 | BT144: =EXP(INDEX(LINEST(LN(AZ140:BS140),LN(AZ145:BS145)),1,2)) -> 11.12570665 | BU144: =INDEX(LINEST(LN(AZ140:BS140),LN(AZ145:BS145),,),1) -> 1.609081018 | DC144: 17 | DD144: 206.88 | DG144: 112.98
A145: 22 | B145: 15.1 | C145: 16 | D145: 16.2 | E145: 49.54068241 | F145: 52.49343832 | G145: 53.1496063 | H145: 0.04954068241 | I145: 0.05249343832 | J145: 0.0531496063 | K145: 0.032 | L145: 0.033 | M145: 0.0008128 | N145: 0.0008382 | O145: 0.029 | P145: 0.031 | Q145: 0.043 | R145: 0.0007366 | S145: 0.0007874 | T145: 0.0010922 | U145: 0.1474492981 | W145: 0.08030374016 | X145: 11.12499569 | Y145: 1 | Z145: 11.12499569 | AA145: 0.005628359082 | AB145: 3.423417668 | AC145: 7.652459234 | AD145: 1.77386833 | AE145: 14.76860695 | AF145: 14.95035056 | AG145: 2.88938296 | AH145: =$BT$164*$B$9^$BU$164 -> 164.2008185 | AY145: i max | AZ145: =(AZ140/($W$141*$U$141+$W$141*AZ144))^(1/2) -> 0.6076606147 | BA145: =(BA140/($W$141*$U$141+$W$141*BA144))^(1/2) -> 0.9356470853 | BB145: =(BB140/($W$141*$U$141+$W$141*BB144))^(1/2) -> 1.440241029 | BC145: 1.853292207 | BD145: 2.216192662 | BE145: 2.54581697 | BF145: 2.851122717 | BG145: 3.137573457 | BH145: 3.408806428 | BI145: 3.667394486 | BJ145: 3.915240738 | BK145: 4.153802075 | BL145: 4.384224608 | BM145: 4.607430172 | BN145: =(BN140/($W$141*$U$141+$W$141*BN144))^(1/2) -> 4.824173979 | BO145: 5.035084403 | BP145: 5.240691265 | BQ145: 5.441446445 | BR145: 5.637739223 | BS145: 5.829907929 | DC145: 18 | DD145: 229.51 | DG145: 124.24
A146: 20 | B146: 9.19 | C146: 9.77 | D146: 9.88 | E146: 30.15091864 | F146: 32.05380577 | G146: 32.41469816 | H146: 0.03015091864 | I146: 0.03205380577 | J146: 0.03241469816 | K146: 0.04 | L146: 0.041 | M146: 0.001016 | N146: 0.0010414 | O146: 0.037 | P146: 0.039 | Q146: 0.05 | R146: 0.0009398 | S146: 0.0009906 | T146: 0.00127 | U146: 0.1105488279 | W146: 0.04897536745 | X146: 10.48759623 | Y146: 1 | Z146: 10.48759623 | AA146: 0.004625629948 | AB146: 3.426294932 | AC146: 6.975229674 | AD146: 1.774648604 | AE146: 13.46700075 | AF146: 20.08544139 | AG146: 3.877934325 | AH146: =$BT$169*$B$9^$BU$169 -> 87.62326686 | AY146: imax corriger | AZ146: =AZ145*$AY$141 -> 0.4861284917 | BA146: =BA145*$AY$141 -> 0.7485176682 | BB146: 1.152192823 | BC146: 1.482633765 | BD146: 1.77295413 | BE146: 2.036653576 | BF146: 2.280898174 | BG146: 2.510058765 | BH146: 2.727045143 | BI146: 2.933915589 | BJ146: 3.13219259 | BK146: 3.32304166 | BL146: 3.507379686 | BM146: 3.685944138 | BN146: 3.859339183 | BO146: 4.028067522 | BP146: 4.192553012 | BQ146: 4.353157156 | BR146: 4.510191379 | BS146: 4.663926343 | DC146: 19 | DD146: 253.43 | DG146: 136.15
A147: 18 | B147: 5.79 | C147: 6.1 | D147: 6.23 | E147: 18.99606299 | F147: 20.01312336 | G147: 20.43963255 | H147: 0.01899606299 | I147: 0.02001312336 | J147: 0.02043963255 | K147: 0.05 | L147: 0.051 | M147: 0.00127 | N147: 0.0012954 | O147: 0.046 | P147: 0.049 | Q147: 0.06 | R147: 0.0011684 | S147: 0.0012446 | T147: 0.001524 | U147: 0.09053258845 | W147: 0.03088224081 | X147: 9.778575034 | Y147: 1 | Z147: 9.778575034 | AA147: 0.004238405859 | AB147: 3.427410576 | AC147: 6.232126554 | AD147: 1.774950565 | AE147: 12.03416978 | AF147: 26.77686509 | AG147: 5.167851839 | AH147: =$BT$174*$B$9^$BU$174 -> 55.25067599 | AX147: 28 | AY147: teta | AZ147: =($AZ$140/(1+$AA$142*AZ141))^(1/4) -> 1.48911157 | BA147: =($BA$140/(1+$AA$142*BA141))^(1/4) -> 1.770862074 | BB147: =($BB$140/(1+$AA$142*BB141))^(1/4) -> 2.105921779 | BC147: =($BC$140/(1+$AA$142*BC141))^(1/4) -> 2.330585557 | BD147: =($BD$140/(1+$AA$142*BD141))^(1/4) -> 2.504377163 | BE147: =($BE$140/(1+$AA$142*BE141))^(1/4) -> 2.648056445 | BF147: =($BF$140/(1+$AA$142*BF141))^(1/4) -> 2.771548926 | BG147: =($BG$140/(1+$AA$142*BG141))^(1/4) -> 2.880442744 | BH147: =($BH$140/(1+$AA$142*BH141))^(1/4) -> 2.97822314 | BI147: =($BI$140/(1+$AA$142*BI141))^(1/4) -> 3.067223086 | BJ147: =($BJ$140/(1+$AA$142*BJ141))^(1/4) -> 3.149087565 | BK147: =($BK$140/(1+$AA$142*BK141))^(1/4) -> 3.225023683 | BL147: =($BL$140/(1+$AA$142*BL141))^(1/4) -> 3.295945702 | BM147: =($BM$140/(1+$AA$142*BM141))^(1/4) -> 3.362564124 | BN147: =($BN$140/(1+$AA$142*BN141))^(1/4) -> 3.425443006 | BO147: =($BO$140/(1+$AA$142*BO141))^(1/4) -> 3.485038272 | BP147: =($BP$140/(1+$AA$142*BP141))^(1/4) -> 3.541724149 | BQ147: =($BQ$140/(1+$AA$142*BQ141))^(1/4) -> 3.595811916 | BR147: =($BR$140/(1+$AA$142*BR141))^(1/4) -> 3.647563517 | BS147: =(BS140/(1+$AA$142*BS141))^(1/4) -> 3.697201642 | DC147: 20 | DD147: 278.65 | DG147: 148.7
A148: 16 | B148: 4.52 | C148: 4.76 | D148: 4.81 | E148: 14.82939633 | F148: 15.6167979 | G148: 15.7808399 | H148: 0.01482939633 | I148: 0.0156167979 | J148: 0.0157808399 | K148: 0.057 | L148: 0.058 | M148: 0.0014478 | N148: 0.0014732 | O148: 0.052 | P148: 0.055 | Q148: 0.068 | R148: 0.0013208 | S148: 0.001397 | T148: 0.0017272 | U148: 0.08860837676 | W148: 0.023843271 | X148: 9.327931202 | Y148: 1 | Z148: 9.327931202 | AA148: 0.004484766211 | AB148: 3.426700486 | AC148: 5.765790074 | AD148: 1.774758409 | AE148: 11.13257756 | AF148: 31.66940921 | AG148: 6.113609611 | AH148: =$BT$179*$B$9^$BU$179 -> 42.20252325 | AZ148: =($AZ$140/(1+$AA$142*AZ147))^(1/4) -> 1.490692472 | BA148: =($BA$140/(1+$AA$142*BA147))^(1/4) -> 1.771704046 | BB148: =(BB140/(1+$AA$142*BB147))^(1/4) -> 2.105459728 | BC148: 2.328991493 | BD148: 2.501766071 | BE148: 2.6445117 | BF148: 2.767134701 | BG148: 2.875210533 | BH148: 2.972215534 | BI148: 3.060476126 | BJ148: 3.141632307 | BK148: 3.216887274 | BL148: 3.287152155 | BM148: 3.353134892 | BN148: 3.415397419 | BO148: 3.474393872 | BP148: 3.530496955 | BQ148: 3.584016639 | BR148: 3.635213732 | BS148: 3.68430993 | DC148: 21 | DD148: 305.17 | DG148: 161.89
A149: 14 | B149: 2.88 | C149: 3 | D149: 3.06 | E149: 9.448818898 | F149: 9.842519685 | G149: 10.03937008 | H149: 0.009448818898 | I149: 0.009842519685 | J149: 0.01003937008 | K149: 0.072 | L149: 0.073 | M149: 0.0018288 | N149: 0.0018542 | O149: 0.065 | P149: 0.069 | Q149: 0.085 | R149: 0.001651 | S149: 0.0017526 | T149: 0.002159 | U149: 0.08477977936 | W149: 0.01516848425 | X149: =($N$135/(T149)^$N$136)+$N$137 -> 8.591251404 | Y149: 1 | Z149: 8.591251404 | AA149: 0.00494013044 | AB149: 3.425390677 | AC149: 5.010069545 | AD149: 1.774403617 | AE149: 9.671669595 | AF149: 42.56251213 | AG149: 8.220211842 | AH149: =$BT$184*$B$9^$BU$184 -> 26.25033458 | AY149: T4 | AZ149: =1/(3.1415*$T$142*$X$142*AZ148) -> 23.19528932 | BA149: =1/(3.1415*$T$142*$X$142*BA148) -> 19.51626359 | BB149: =1/(3.1415*$T$142*$X$142*BB148) -> 16.42256212 | BC149: 14.84635873 | BD149: 13.82105368 | BE149: 13.07501993 | BF149: 12.49561258 | BG149: 12.02591698 | BH149: 11.63342388 | BI149: 11.29792939 | BJ149: 11.00607576 | BK149: 10.74860268 | BL149: 10.51884475 | BM149: 10.31185571 | BN149: 10.12387109 | BO149: 9.951964128 | BP149: 9.79381759 | BQ149: 9.647567703 | BR149: 9.511694697 | BS149: =1/(3.1415*$T$142*$X$142*BS148) -> 9.38494422 | BT149: =EXP(INDEX(LINEST(LN(AZ140:BS140),LN(AZ150:BS150)),1,2)) -> 7.275228568 | BU149: =INDEX(LINEST(LN(AZ140:BS140),LN(AZ150:BS150),,),1) -> 1.608323631 | DC149: 22 | DG149: 175.72
A150: 12 | B150: 1.9 | C150: 1.98 | D150: 2.02 | E150: =B150*(1000/304.8) -> 6.233595801 | F150: =C150*(1000/304.8) -> 6.496062992 | G150: =D150*(1000/304.8) -> 6.627296588 | H150: =B150*(1000/304.8)*(1/1000) -> 0.006233595801 | I150: =C150*(1000/304.8)*(1/1000) -> 0.006496062992 | J150: =D150*(1000/304.8)*(1/1000) -> 0.006627296588 | K150: 0.089 | L150: 0.09 | M150: =K150*0.0254 -> 0.0022606 | N150: =L150*0.0254 -> 0.002286 | O150: 0.084 | P150: 0.089 | Q150: 0.103 | R150: =O150*0.0254 -> 0.0021336 | S150: 0.0022606 | T150: 0.0026162 | U150: 0.07515798387 | W150: 0.01001318241 | X150: =($N$135/(T150)^$N$136)+$N$137 -> 8.019731952 | Y150: 1 | Z150: 8.019731952 | AA150: 0.004953851455 | AB150: 3.425351264 | AC150: 4.429217707 | AD150: 1.774392934 | AE150: 8.550319482 | AF150: 55.71352675 | AG150: 10.76025005 | AH150: =$BT$189*$B$9^$BU$189 -> 17.03950388 | AY150: i max | AZ150: =(AZ140/($W$142*$U$142+$W$142*AZ149))^(1/2) -> 0.7912266822 | BA150: =(BA140/($W$142*$U$142+$W$142*BA149))^(1/2) -> 1.218456589 | BB150: =(BB140/($W$142*$U$142+$W$142*BB149))^(1/2) -> 1.875866015 | BC150: 2.414105547 | BD150: 2.887055041 | BE150: 3.316681098 | BF150: 3.714644732 | BG150: 4.088058618 | BH150: 4.441657981 | BI150: 4.778792423 | BJ150: 5.101939651 | BK150: 5.412996466 | BL150: 5.713455073 | BM150: 6.004515695 | BN150: 6.287161624 | BO150: 6.562211024 | BP150: 6.830353747 | BQ150: 7.092178167 | BR150: 7.348191157 | BS150: =(BS140/($W$142*$U$142+$W$142*BS149))^(1/2) -> 7.598833255 | DC150: 23 | DG150: 190.2
A151: 10 | B151: 1.19 | C151: 1.24 | D151: 1.26 | E151: 3.904199475 | F151: 4.06824147 | G151: 4.133858268 | H151: 0.003904199475 | I151: 0.00406824147 | J151: 0.004133858268 | K151: 0.112 | L151: 0.114 | M151: 0.0028448 | N151: 0.0028956 | O151: 0.106 | P151: 0.113 | Q151: 0.128 | R151: 0.0026924 | S151: 0.0028702 | T151: 0.0032512 | U151: 0.06452512404 | W151: 0.006245846457 | X151: =($N$135/(T151)^$N$136)+$N$137 -> 7.435997645 | Y151: 1 | Z151: 7.435997645 | AA151: 0.004900595332 | AB151: 3.425504257 | AC151: 3.843753199 | AD151: 1.774434401 | AE151: 7.420275971 | AF151: 75.73133699 | AG151: 14.62561767 | AH151: =$BT$193*$B$9^$BU$193 -> 10.41192961 | AY151: imax corriger | AZ151: =AZ150*$AY$141 -> 0.6329813458 | BA151: =BA150*$AY$141 -> 0.9747652709 | BB151: 1.500692812 | BC151: 1.931284438 | BD151: 2.309644032 | BE151: 2.653344878 | BF151: 2.971715786 | BG151: 3.270446895 | BH151: 3.553326385 | BI151: 3.823033938 | BJ151: 4.081551721 | BK151: 4.330397173 | BL151: 4.570764059 | BM151: 4.803612556 | BN151: 5.029729299 | BO151: 5.249768819 | BP151: 5.464282998 | BQ151: 5.673742533 | BR151: 5.878552926 | BS151: 6.079066604 | DC151: 24 | DG151: 205.32
A152: 8 | B152: 0.658 | C152: 0.694 | D152: 0.701 | E152: 2.158792651 | F152: 2.276902887 | G152: 2.299868766 | H152: 0.002158792651 | I152: 0.002276902887 | J152: 0.002299868766 | K152: 0.169 | L152: 0.173 | M152: 0.0042926 | N152: 0.0043942 | O152: 0.158 | P152: 0.173 | Q152: 0.188 | R152: 0.0040132 | S152: 0.0043942 | T152: 0.0047752 | U152: 0.04631963857 | W152: 0.003474871719 | X152: =($N$135/(T152)^$N$136)+$N$137 -> 6.546644824 | Y152: 1 | Z152: 6.546644824 | AA152: 0.004548964752 | AB152: 3.426515614 | AC152: 2.971665178 | AD152: 1.77470836 | AE152: 5.737538269 | AF152: 115.5409953 | AG152: 22.30600546 | AH152: =$BT$197*$B$9^$BU$197 -> 5.289910668 | AX152: 26 | AY152: teta | AZ152: =($AZ$140/(1+$AA$143*AZ141))^(1/4) -> 1.489791483 | BA152: =($BA$140/(1+$AA$143*BA141))^(1/4) -> 1.771670631 | BB152: =($BB$140/(1+$AA$143*BB141))^(1/4) -> 2.10688332 | BC152: =($BC$140/(1+$AA$143*BC141))^(1/4) -> 2.331649677 | BD152: =($BD$140/(1+$AA$143*BD141))^(1/4) -> 2.505520634 | BE152: =($BE$140/(1+$AA$143*BE141))^(1/4) -> 2.649265519 | BF152: =($BF$140/(1+$AA$143*BF141))^(1/4) -> 2.772814386 | BG152: =($BG$140/(1+$AA$143*BG141))^(1/4) -> 2.881757923 | BH152: =($BH$140/(1+$AA$143*BH141))^(1/4) -> 2.979582965 | BI152: =($BI$140/(1+$AA$143*BI141))^(1/4) -> 3.068623547 | BJ152: =($BJ$140/(1+$AA$143*BJ141))^(1/4) -> 3.150525404 | BK152: =($BK$140/(1+$AA$143*BK141))^(1/4) -> 3.226496195 | BL152: =($BL$140/(1+$AA$143*BL141))^(1/4) -> 3.297450596 | BM152: =($BM$140/(1+$AA$143*BM141))^(1/4) -> 3.364099435 | BN152: =($BN$140/(1+$AA$143*BN141))^(1/4) -> 3.427007026 | BO152: =($BO$140/(1+$AA$143*BO141))^(1/4) -> 3.486629503 | BP152: =($BP$140/(1+$AA$143*BP141))^(1/4) -> 3.543341262 | BQ152: =($BQ$140/(1+$AA$143*BQ141))^(1/4) -> 3.597453726 | BR152: =($BR$140/(1+$AA$143*BR141))^(1/4) -> 3.649228956 | BS152: =(BS140/(1+$AA$143*BS141))^(1/4) -> 3.698889744 | DC152: 25 | DG152: 221.09
A153: 6 | B153: 0.418 | C153: 0.436 | D153: 0.445 | E153: 1.371391076 | F153: 1.430446194 | G153: 1.459973753 | H153: 0.001371391076 | I153: 0.001430446194 | J153: 0.001459973753 | K153: 0.213 | L153: 0.217 | M153: 0.0054102 | N153: 0.0055118 | AF153: - | AG153: - | AH153: - | AZ153: =($AZ$140/(1+$AA$143*AZ152))^(1/4) -> 1.49119937 | BA153: =($BA$140/(1+$AA$143*BA152))^(1/4) -> 1.772418926 | BB153: =($BB$140/(1+$AA$143*BB152))^(1/4) -> 2.106467404 | BC153: =($BC$140/(1+$AA$143*BC152))^(1/4) -> 2.330222928 | BD153: =($BD$140/(1+$AA$143*BD152))^(1/4) -> 2.503185597 | BE153: =($BE$140/(1+$AA$143*BE152))^(1/4) -> 2.646096554 | BF153: =($BF$140/(1+$AA$143*BF152))^(1/4) -> 2.768868733 | BG153: =($BG$140/(1+$AA$143*BG152))^(1/4) -> 2.877081516 | BH153: =($BH$140/(1+$AA$143*BH152))^(1/4) -> 2.974213796 | BI153: =($BI$140/(1+$AA$143*BI152))^(1/4) -> 3.06259377 | BJ153: =($BJ$140/(1+$AA$143*BJ152))^(1/4) -> 3.143862725 | BK153: =($BK$140/(1+$AA$143*BK152))^(1/4) -> 3.219224831 | BL153: =($BL$140/(1+$AA$143*BL152))^(1/4) -> 3.289591974 | BM153: =($BM$140/(1+$AA$143*BM152))^(1/4) -> 3.355672695 | BN153: =($BN$140/(1+$AA$143*BN152))^(1/4) -> 3.418029417 | BO153: =($BO$140/(1+$AA$143*BO152))^(1/4) -> 3.477116674 | BP153: =($BP$140/(1+$AA$143*BP152))^(1/4) -> 3.53330751 | BQ153: =($BQ$140/(1+$AA$143*BQ152))^(1/4) -> 3.586912176 | BR153: =($BR$140/(1+$AA$143*BR152))^(1/4) -> 3.638191722 | BS153: =($BS$140/(1+$AA$143*BS152))^(1/4) -> 3.687368055 | DC153: 26 | DG153: 237.5
A154: 4 | B154: 0.264 | C154: 0.275 | D154: 0.28 | E154: 0.8661417323 | F154: 0.9022309711 | G154: 0.9186351706 | H154: 0.0008661417323 | I154: 0.0009022309711 | J154: 0.0009186351706 | K154: 0.268 | L154: 0.274 | M154: 0.0068072 | N154: 0.0069596 | AF154: - | AG154: - | AH154: - | AY154: T4 | AZ154: =1/(3.1415*$T$143*$X$143*AZ153) -> 20.97345571 | BA154: =1/(3.1415*$T$143*$X$143*BA153) -> 17.64571767 | BB154: 14.8474189 | BC154: 13.42172184 | BD154: 12.49432083 | BE154: 11.81952484 | BF154: 11.29544481 | BG154: 10.87060056 | BH154: 10.515587 | BI154: 10.21212942 | BJ154: 9.948145541 | BK154: 9.71525929 | BL154: 9.507441712 | BM154: 9.320218861 | BN154: 9.150185717 | BO154: 8.994694995 | BP154: 8.851650716 | BQ154: 8.719367081 | BR154: 8.596469438 | BS154: 8.481823209 | BT154: =EXP(INDEX(LINEST(LN(AZ140:BS140),LN(AZ155:BS155)),1,2)) -> 4.457467278 | BU154: =INDEX(LINEST(LN(AZ140:BS140),LN(AZ155:BS155),,),1) -> 1.60742912 | DC154: 27 | DG154: 255.54
A155: 2 | B155: 0.17 | C155: 0.177 | D155: 0.181 | E155: 0.5577427822 | F155: 0.5807086614 | G155: 0.593832021 | H155: 0.0005577427822 | I155: 0.0005807086614 | J155: 0.000593832021 | K155: 0.34 | L155: 0.34 | M155: 0.008636 | N155: 0.008636 | AF155: - | AG155: - | AH155: - | AY155: i max | AZ155: =(AZ140/($W$143*$U$143+$W$143*AZ154))^(1/2) -> 1.073121147 | BA155: =(BA140/($W$143*$U$143+$W$143*BA154))^(1/2) -> 1.652823527 | BB155: =(BB140/($W$143*$U$143+$W$143*BB154))^(1/2) -> 2.545067278 | BC155: 3.275727031 | BD155: 3.917852708 | BE155: 4.501228112 | BF155: 5.041664678 | BG155: 5.548806971 | BH155: 6.029075994 | BI155: 6.487013949 | BJ155: 6.925980791 | BK155: 7.348548775 | BL155: 7.756741523 | BM155: 8.152186722 | BN155: 8.536217889 | BO155: 8.909944617 | BP155: 9.274302496 | BQ155: 9.6300895 | BR155: 9.97799308 | BS155: =(BS140/($W$143*$U$143+$W$143*BS154))^(1/2) -> 10.31861073 | DC155: 28 | DG155: 272.25
A156: 1 | B156: 0.139 | C156: 0.144 | D156: 0.149 | E156: 0.4560367454 | F156: 0.4724409449 | G156: 0.4888451444 | H156: 0.0004560367454 | I156: 0.0004724409449 | J156: 0.0004888451444 | K156: 0.38 | L156: 0.38 | M156: 0.009652 | N156: 0.009652 | Y156: =W146/(3.14*T146*X146)*(1+AA146)^4 -> 1.192848778 | AF156: - | AG156: - | AH156: - | AY156: imax corriger | AZ156: =$AY$141*AZ155 -> 0.8584969176 | BA156: =$AY$141*BA155 -> 1.322258822 | BB156: 2.036053823 | BC156: 2.620581625 | BD156: 3.134282167 | BE156: 3.600982489 | BF156: 4.033331742 | BG156: 4.439045577 | BH156: 4.823260795 | BI156: 5.189611159 | BJ156: 5.540784633 | BK156: 5.87883902 | BL156: 6.205393219 | BM156: 6.521749378 | BN156: 6.828974312 | BO156: 7.127955694 | BP156: 7.419441997 | BQ156: 7.7040716 | BR156: 7.982394464 | BS156: 8.25488858 | DC156: 29 | DG156: 290.59
A157: 0 | B157: 0.108 | C157: 0.113 | D157: 0.116 | E157: 0.3543307087 | F157: 0.3707349081 | G157: 0.3805774278 | H157: 0.0003543307087 | I157: 0.0003707349081 | J157: 0.0003805774278 | K157: 0.425 | L157: 0.425 | M157: 0.010795 | N157: 0.010795 | AF157: - | AG157: - | AH157: - | AX157: 24 | AY157: teta | AZ157: =($AZ$140/(1+$AA$144*AZ141))^(1/4) -> 1.490268544 | BA157: =($BA$140/(1+$AA$144*BA141))^(1/4) -> 1.772237955 | BB157: =($BB$140/(1+$AA$144*BB141))^(1/4) -> 2.107557986 | BC157: =($BC$140/(1+$AA$144*BC141))^(1/4) -> 2.332396318 | BD157: =($BD$140/(1+$AA$144*BD141))^(1/4) -> 2.506322952 | BE157: =($BE$140/(1+$AA$144*BE141))^(1/4) -> 2.650113867 | BF157: =($BF$140/(1+$AA$144*BF141))^(1/4) -> 2.773702296 | BG157: =($BG$140/(1+$AA$144*BG141))^(1/4) -> 2.88268072 | BH157: =($BH$140/(1+$AA$144*BH141))^(1/4) -> 2.980537087 | BI157: =($BI$140/(1+$AA$144*BI141))^(1/4) -> 3.069606182 | BJ157: =($BJ$140/(1+$AA$144*BJ141))^(1/4) -> 3.151534266 | BK157: =($BK$140/(1+$AA$144*BK141))^(1/4) -> 3.227529383 | BL157: =($BL$140/(1+$AA$144*BL141))^(1/4) -> 3.298506506 | BM157: =($BM$140/(1+$AA$144*BM141))^(1/4) -> 3.365176687 | BN157: =($BN$140/(1+$AA$144*BN141))^(1/4) -> 3.428104422 | BO157: =($BO$140/(1+$AA$144*BO141))^(1/4) -> 3.487745991 | BP157: =($BP$140/(1+$AA$144*BP141))^(1/4) -> 3.544475911 | BQ157: =($BQ$140/(1+$AA$144*BQ141))^(1/4) -> 3.598605702 | BR157: =($BR$140/(1+$AA$144*BR141))^(1/4) -> 3.650397512 | BS157: =($BR$140/(1+$AA$144*BS141))^(1/4) -> 3.650397512 | DC157: 30 | DG157: 309.57
A158: 00 | B158: 0.085 | C158: 0.089 | D158: 0.091 | E158: 0.2788713911 | F158: 0.2919947507 | G158: 0.2985564304 | H158: 0.0002788713911 | I158: 0.0002919947507 | J158: 0.0002985564304 | K158: 0.475 | L158: 0.475 | M158: 0.012065 | N158: 0.012065 | AF158: - | AG158: - | AH158: - | AZ158: =($AZ$140/(1+$AA$144*AZ157))^(1/4) -> 1.491555134 | BA158: =($BA$140/(1+$AA$144*BA157))^(1/4) -> 1.772920796 | BB158: =($BB$140/(1+$AA$144*BB157))^(1/4) -> 2.107175053 | BC158: =($BC$140/(1+$AA$144*BC157))^(1/4) -> 2.331087899 | BD158: =($BD$140/(1+$AA$144*BD157))^(1/4) -> 2.504182849 | BE158: =($BE$140/(1+$AA$144*BE157))^(1/4) -> 2.647210104 | BF158: =($BF$140/(1+$AA$144*BF157))^(1/4) -> 2.77008724 | BG158: =($BG$140/(1+$AA$144*BG157))^(1/4) -> 2.878396395 | BH158: =($BH$140/(1+$AA$144*BH157))^(1/4) -> 2.975618252 | BI158: =($BI$140/(1+$AA$144*BI157))^(1/4) -> 3.064082256 | BJ158: =($BJ$140/(1+$AA$144*BJ157))^(1/4) -> 3.145430599 | BK158: =($BK$140/(1+$AA$144*BK157))^(1/4) -> 3.220868137 | BL158: =($BL$140/(1+$AA$144*BL157))^(1/4) -> 3.291307283 | BM158: =($BM$140/(1+$AA$144*BM157))^(1/4) -> 3.357457003 | BN158: =($BN$140/(1+$AA$144*BN157))^(1/4) -> 3.41988006 | BO158: =($BO$140/(1+$AA$144*BO157))^(1/4) -> 3.479031273 | BP158: =($BP$140/(1+$AA$144*BP157))^(1/4) -> 3.535283917 | BQ158: =($BQ$140/(1+$AA$144*BQ157))^(1/4) -> 3.588948446 | BR158: =($BR$140/(1+$AA$144*BR157))^(1/4) -> 3.640286078 | BS158: =(BS140/(1+$AA$144*BS157))^(1/4) -> 3.689825167
A159: 000 | B159: 0.068 | C159: 0.071 | D159: 0.071 | E159: 0.2230971129 | F159: 0.2329396325 | G159: 0.2329396325 | H159: 0.0002230971129 | I159: 0.0002329396325 | J159: 0.0002329396325 | K159: 0.54 | L159: 0.54 | M159: 0.013716 | N159: 0.013716 | AF159: - | AG159: - | AH159: - | AY159: T4 | AZ159: =1/(3.1415*$T$144*$X$144*AZ158) -> 19.22856985 | BA159: =1/(3.1415*$T$144*$X$144*BA158) -> 16.17696186 | BB159: =1/(3.1415*$T$143*$X$143*BB158) -> 14.84243272 | BC159: 13.41674159 | BD159: 12.48934516 | BE159: 11.81455295 | BF159: 11.29047616 | BG159: 10.86563477 | BH159: 10.51062377 | BI159: 10.20716852 | BJ159: 9.943186778 | BK159: 9.710302509 | BL159: 9.502486782 | BM159: 9.315265667 | BN159: 9.14523416 | BO159: 8.989744989 | BP159: 8.846702184 | BQ159: 8.714419954 | BR159: 8.591523655 | BS159: 8.476175031 | BT159: =EXP(INDEX(LINEST(LN(AZ140:BS140),LN(AZ160:BS160)),1,2)) -> 2.912603835 | BU159: =INDEX(LINEST(LN(AZ140:BS140),LN(AZ160:BS160),,),1) -> 1.633054528
A160: 0000 | B160: 0.054 | C160: 0.056 | D160: 0.056 | E160: 0.1771653543 | F160: 0.1837270341 | G160: 0.1837270341 | H160: 0.0001771653543 | I160: 0.0001837270341 | J160: 0.0001837270341 | K160: 0.605 | L160: 0.605 | M160: 0.015367 | N160: 0.015367 | AF160: - | AG160: - | AH160: - | AY160: i max | AZ160: =(AZ140/($W$144*$U$144+$W$144*AZ159))^(1/2) -> 1.407804051 | BA160: =(BA140/($W$144*$U$144+$W$144*BA159))^(1/2) -> 2.168543602 | BB160: =(BB140/($W$144*$U$144+$W$144*BB159))^(1/2) -> 3.19996225 | BC160: 4.119250025 | BD160: 4.927294777 | BE160: 5.66151514 | BF160: 6.341776643 | BG160: 6.980197222 | BH160: 7.584844833 | BI160: 8.161426903 | BJ160: 8.714165443 | BK160: 9.246292743 | BL160: 9.760351742 | BM160: 10.25838788 | BN160: 10.74207695 | BO160: 11.2128134 | BP160: 11.67177299 | BQ160: 12.11995858 | BR160: 12.55823413 | BS160: =(BS140/($W$144*$U$144+$W$144*BS159))^(1/2) -> 12.98787743 | DC160: expérimentale awg 20 | DE160: expérimentale awg 28 | DG160: expérimentale awg 24 | DI160: expérimentale awg 30
AF161: - | AG161: - | AH161: - | AY161: imax corriger | AZ161: =$AY$141*AZ160 -> 1.126243241 | BA161: =$AY$141*BA160 -> 1.734834882 | BB161: 2.5599698 | BC161: 3.29540002 | BD161: 3.941835821 | BE161: 4.529212112 | BF161: 5.073421315 | BG161: 5.584157778 | BH161: 6.067875866 | BI161: 6.529141523 | BJ161: 6.971332354 | BK161: 7.397034195 | BL161: 7.808281393 | BM161: 8.206710302 | BN161: 8.593661562 | BO161: 8.970250717 | BP161: 9.33741839 | BQ161: 9.695966862 | BR161: 10.0465873 | BS161: 10.39030195 | DC161: delta T (°C) | DD161: courant (A) | DE161: delta T (°C) | DF161: courant (A) | DG161: delta T (°C) | DH161: courant (A) | DI161: delta T (°C) | DJ161: courant (A) | DP161: IEC 60092-352
A162: 12* | B162: 1.81 | C162: 1.89 | D162: 1.92 | E162: =B162*(1000/304.8) -> 5.93832021 | F162: =C162*(1000/304.8) -> 6.200787402 | G162: =D162*(1000/304.8) -> 6.299212598 | H162: =B162*(1000/304.8)*(1/1000) -> 0.00593832021 | I162: =C162*(1000/304.8)*(1/1000) -> 0.006200787402 | J162: =D162*(1000/304.8)*(1/1000) -> 0.006299212598 | K162: 0.09 | L162: 0.092 | M162: =K162*0.0254 -> 0.002286 | N162: =L162*0.0254 -> 0.0023368 | AF162: - | AG162: - | AH162: - | AX162: 22 | AY162: teta | AZ162: =(AZ140/(1+$AA$145*AZ141))^(1/4) -> 1.49116996 | BA162: =(BA140/(1+$AA$145*BA141))^(1/4) -> 1.773309926 | BB162: 2.108832781 | BC162: 2.333807111 | BD162: 2.507838948 | BE162: 2.651716837 | BF162: 2.775380021 | BG162: 2.884424362 | BH162: 2.98233992 | BI162: 3.07146289 | BJ162: 3.153440529 | BK162: 3.229481614 | BL162: 3.300501668 | BM162: 3.367212176 | BN162: 3.430177975 | BO162: 3.489855619 | BP162: 3.546619852 | BQ162: 3.600782385 | BR162: 3.652605522 | BS162: 3.702312261 | DC162: 0.031 | DD162: 0.5 | DE162: 0.3736666667 | DF162: 0.5 | DG162: 0.226 | DH162: 0.5 | DI162: 0.5206666667 | DJ162: 0.5
A163: MIL-W 22759/34 - 55A0811 | O163: ETFE | Z163: I max | AA163: ="I max "&B10&"°C" -> I max 10°C | AB163: Échauffement | AZ163: =(AZ140/(1+$AA$145*AZ162))^(1/4) -> 1.492227581 | BA163: =(BA140/(1+$AA$145*BA162))^(1/4) -> 1.77386971 | BB163: 2.108513556 | BC163: 2.332724388 | BD163: 2.506069981 | BE163: 2.649317653 | BF163: 2.772393757 | BG163: 2.880885636 | BH163: 2.978277369 | BI163: 3.066900753 | BJ163: 3.148399693 | BK163: 3.223980339 | BL163: 3.294556108 | BM163: 3.360836765 | BN163: 3.423385719 | BO163: 3.482658322 | BP163: 3.539028295 | BQ163: 3.592806469 | BR163: 3.644254383 | BS163: 3.693594368 | DC163: 0.1466666667 | DD163: 1 | DE163: 1.376 | DF163: 1 | DG163: 0.4655 | DH163: 1 | DI163: 1.877666667 | DJ163: 1
N164: =AJ6 -> 10 | O164: 150 | AY164: T4 | AZ164: =1/(3.1415*$T$145*$X$145*AZ163) -> 17.55601122 | BA164: =1/(3.1415*$T$145*$X$145*BA163) -> 14.76859546 | BB164: =1/(3.1415*$T$143*$X$143*BB163) -> 14.83301061 | BC164: 13.40732926 | BD164: 12.47994038 | BE164: 11.8051544 | BF164: 11.28108295 | BG164: 10.85624627 | BH164: 10.5012395 | BI164: 10.19778808 | BJ164: 9.933809871 | BK164: 9.700928872 | BL164: 9.493116196 | BM164: 9.305897946 | BN164: 9.135869141 | BO164: 8.980382528 | BP164: 8.837342156 | BQ164: 8.705062246 | BR164: 8.582168165 | BS164: 8.467525351 | BT164: =EXP(INDEX(LINEST(LN(AZ140:BS140),LN(AZ165:BS165)),1,2)) -> 1.833535369 | BU164: =INDEX(LINEST(LN(AZ140:BS140),LN(AZ165:BS165),,),1) -> 1.659808294 | DC164: 0.339 | DD164: 1.5 | DE164: 5.486666667 | DF164: 2 | DG164: 1.796666667 | DH164: 2 | DI164: 7.327666667 | DJ164: 2
B165: Ohm/1000 ft | C165: Ohm/km | D165: Ohm/m | E165: standed conductor | G165: inch | K165: m | O165: rho= | P165: 3.5 | Z165: - | AA165: - | AB165: - | AY165: i max | AZ165: =(AZ140/($W$145*$U$145+$W$145*AZ164))^(1/2) -> 1.875374611 | BA165: =(BA140/($W$145*$U$145+$W$145*BA164))^(1/2) -> 2.889384073 | BB165: =(BB140/($W$145*$U$145+$W$145*BB164))^(1/2) -> 4.077411448 | BC165: 5.249845558 | BD165: =(BD140/($W$145*$U$145+$W$145*BD164))^(1/2) -> 6.28066049 | BE165: 7.217484428 | BF165: 8.085604782 | BG165: 8.90044765 | BH165: 9.672283988 | BI165: 10.40837996 | BJ165: 11.11411084 | BK165: 11.79359196 | BL165: 12.45006107 | BM165: 13.08612258 | BN165: 13.7039103 | BO165: 14.3051998 | BP165: 14.89148829 | BQ165: 15.46405278 | BR165: 16.02399348 | BS165: =(BS140/($W$145*$U$145+$W$145*BS164))^(1/2) -> 16.57226663 | DC165: 0.549 | DD165: 2 | DE165: 11.58966667 | DF165: 3 | DG165: 3.6005 | DH165: 3 | DI165: 16.15233333 | DJ165: 3
A166: AWG | B166: nickel coated | C166: nickel coated | E166: tin or nickel | F166: m | G166: dia iso 1 | H166: dia iso2 inch | I166: ep 2*iso 2 | J166: 2 *ep iso 1 | K166: dia iso 1 m | L166: dia iso2 m | M166: ep 2*iso 2 | N166: 2 *ep iso 1 | O166: T1=(Rho/2*Pi)ln(1+2t1/dc) | P166: R'=R0[1+a20(Theta-20) | Q166: T3=1/2PI Rho*ln(1+2t3/da) | R166: h | S166: hi/hg | T166: hg | U166: Ka | V166: teta | W166: T4 max | X166: ="teta " &$B$10&"°C" -> teta 10°C | Y166: ="T4 "&$B$10&"°C" -> T4 10°C | Z166: - | AA166: - | AB166: - | AY166: imax corriger | AZ166: =$AY$141*AZ165 -> 1.500299689 | BA166: =$AY$141*BA165 -> 2.311507258 | BB166: 3.261929158 | BC166: 4.199876446 | BD166: 5.024528392 | BE166: 5.773987542 | BF166: 6.468483826 | BG166: 7.12035812 | BH166: 7.737827191 | BI166: 8.32670397 | BJ166: 8.891288671 | BK166: 9.434873565 | BL166: 9.960048857 | BM166: 10.46889807 | BN166: 10.96312824 | BO166: 11.44415984 | BP166: 11.91319063 | BQ166: 12.37124222 | BR166: 12.81919478 | BS166: 13.2578133 | DC166: 0.9595 | DD166: 2.5 | DE166: 33.4525 | DF166: 5 | DG166: 6.1735 | DH166: 4 | DI166: 28.67566667 | DJ166: 4
A167: 28 | B167: 68.6 | C167: =B167*(1000/304.8) -> 225.0656168 | D167: =B167*(1000/304.8)*(1/1000) -> 0.2250656168 | E167: 0.016 | F167: =E167*0.0254 -> 0.0004064 | G167: 0.027 | H167: 0.035 | I167: =G167-F167 -> 0.0265936 | J167: =H167-G167 -> 0.008 | K167: =G167*0.0254 -> 0.0006858 | L167: =H167*0.0254 -> 0.000889 | M167: =I167*0.0254 -> 0.00067547744 | N167: =J167*0.0254 -> 0.0002032 | O167: =($P$165/(2*3.1415))*LN(1+N167/F167) -> 0.2258678781 | P167: =D167*(1+(3.93*10^-3)*($O$164-20)) -> 0.3400516404 | Q167: =(3.5/(2*3.1415))*LN(1+M167/K167) -> 0.3819154499 | R167: =$N$135/(L167)^$N$136+$N$137 -> 12.07628783 | S167: =IF($J$136=$AY$29,$BB$29,IF($J$136=$AY$30,$BB$30,IF($J$136=$AY$31,$BB$31,IF($J$136=$AY$32,$BB$32,IF($J$136=$AY$33,$BB$33,IF($J$136=$AY$34,$BB$34,IF($J$136=$AY$35,$BB$35,IF($J$136=$AY$36,$BB$36,$BB$37)))))))) -> 1 | T167: =R167/S167 -> 12.07628783 | U167: =(3.1415*L167*T167/1)*(O167+Q167) -> 0.02049845191 | V167: =BM83 -> 3.382619988 | W167: =1/(3.1415*L167*T167*V167) -> 8.765455891 | X167: =BM109 -> 1.762570276 | Y167: =1/(3.1415*L167*T167*X167) -> 16.82214134 | Z167: =(($O$164-$N$164)/(P167*O167+P167*(Q167+W167)))^(1/2) -> 6.627454125 | AA167: =($B$10/(P167*O167+P167*(Q167+Y167)))^(1/2) -> 1.298912236 | AB167: =$BT$204*$B$9^$BU$204 -> 525.327618 | AX167: 20 | AY167: teta | AZ167: =(AZ140/(1+$AA$146*AZ141))^(1/4) -> 1.491910175 | BA167: =(BA140/(1+$AA$146*BA141))^(1/4) -> 1.774190196 | BB167: 2.109879604 | BC167: 2.33496561 | BD167: 2.509083837 | BE167: 2.653033147 | BF167: 2.776757717 | BG167: 2.885856188 | BH167: 2.983820351 | BI167: 3.072987561 | BJ167: 3.155005894 | BK167: 3.231084725 | BL167: 3.302140034 | BM167: 3.368883657 | BN167: 3.431880712 | BO167: 3.49158798 | BP167: 3.548380391 | BQ167: 3.60256981 | BR167: 3.654418672 | BS167: 3.704150085 | DC167: 1.312 | DD167: 3 | DE167: 48.28 | DF167: 6 | DG167: 9.986 | DH167: 5 | DI167: 48.71533333 | DJ167: 5
A168: 26 | B168: 41.3 | C168: 135.4986877 | D168: =B168*(1000/304.8)*(1/1000) -> 0.1354986877 | E168: 0.021 | F168: =E168*0.0254 -> 0.0005334 | G168: 0.032 | H168: 0.04 | I168: =G168-F168 -> 0.0314666 | J168: =H168-G168 -> 0.008 | K168: =G168*0.0254 -> 0.0008128 | L168: 0.001016 | M168: 0.00079925164 | N168: 0.0002032 | O168: =($P$165/(2*3.1415))*LN(1+N168/F168) -> 0.1798037359 | P168: =D168*(1+(3.93*10^-3)*($O$164-20)) -> 0.2047249672 | Q168: =(3.5/(2*3.1415))*LN(1+M168/K168) -> 0.3814614964 | R168: =$N$135/(L168)^$N$136+$N$137 -> 11.44810917 | S168: 1 | T168: =R168/S168 -> 11.44810917 | U168: =(3.1415*L168*T168/1)*(O168+Q168) -> 0.02050844229 | V168: 3.382593691 | W168: =1/(3.1415*L168*T168*V168) -> 8.090691303 | X168: 1.762562852 | Y168: =1/(3.1415*L168*T168*X168) -> 15.52711798 | Z168: 8.890403007 | AA168: 1.742442253 | AB168: =$BT$208*$B$9^$BU$208 -> 326.4554122 | AZ168: =(AZ140/(1+$AA$146*AZ167))^(1/4) -> 1.492779992 | BA168: =(BA140/(1+$AA$146*BA167))^(1/4) -> 1.774649537 | BB168: 2.109614052 | BC168: 2.334070295 | BD168: 2.507622389 | BE168: 2.651051719 | BF168: 2.774291846 | BG168: 2.882934395 | BH168: 2.980466231 | BI168: 3.069221086 | BJ168: 3.150844274 | BK168: 3.226543008 | BL168: 3.297231531 | BM168: 3.363620263 | BN168: 3.426273146 | BO168: 3.48564597 | BP168: 3.542112822 | BQ168: 3.595984842 | BR168: 3.647523836 | BS168: 3.696952361 | DC168: 1.843 | DD168: 3.5 | DE168: 65.5555 | DF168: 7 | DG168: 14.1995 | DH168: 6 | DI168: 77.03833333 | DJ168: 6
A169: 24 | B169: 26.2 | C169: 85.95800525 | D169: 0.08595800525 | E169: 0.026 | F169: 0.0006604 | G169: 0.037 | H169: 0.045 | I169: =G169-F169 -> 0.0363396 | J169: 0.008 | K169: 0.0009398 | L169: 0.001143 | M169: 0.00092302584 | N169: 0.0002032 | O169: 0.1494387957 | P169: 0.1298739501 | Q169: 0.3811299993 | R169: 10.92777959 | S169: 1 | T169: 10.92777959 | U169: 0.02081885906 | V169: 3.381777284 | W169: 7.535980675 | X169: 1.762332292 | Y169: 14.46095516 | Z169: 11.56003349 | AA169: 2.266293136 | AB169: =$BT$212*$B$9^$BU$212 -> 213.3865216 | AY169: T4 | AZ169: =1/(3.1415*$T$146*$X$146*AZ168) -> 16.00985692 | BA169: =1/(3.1415*$T$146*$X$146*BA168) -> 13.46699367 | BB169: =1/(3.1415*$T$146*$X$146*BB168) -> 11.32870444 | BC169: 10.23927777 | BD169: 9.5306192 | BE169: 9.014985981 | BF169: 8.614520536 | BG169: 8.289884821 | BH169: 8.018609248 | BI169: 7.786729406 | BJ169: 7.585012778 | BK169: 7.407058894 | BL169: 7.248260809 | BM169: 7.105199819 | BN169: 6.975274027 | BO169: 6.85646055 | BP169: 6.747157779 | BQ169: 6.646077537 | BR169: 6.552169406 | BS169: =1/(3.1415*$T$146*$X$146*BS168) -> 6.464566417 | BT169: =EXP(INDEX(LINEST(LN(AZ140:BS140),LN(AZ170:BS170)),1,2)) -> 1.136155543 | BU169: =INDEX(LINEST(LN(AZ140:BS140),LN(AZ170:BS170),,),1) -> 1.60462178 | DC169: 2.124 | DD169: 4 | DE169: 71.935 | DF169: 7.5 | DG169: 22.889 | DH169: 8
A170: 22 | B170: 16.2 | C170: 53.1496063 | D170: 0.0531496063 | E170: 0.033 | F170: 0.0008382 | G170: 0.043 | H170: 0.05 | I170: 0.0421618 | J170: 0.007 | K170: 0.0010922 | L170: 0.00127 | M170: 0.00107090972 | N170: 0.0001778 | O170: 0.1071624422 | P170: 0.08030374016 | Q170: 0.3806676767 | R170: 10.48759623 | S170: 1 | T170: 10.48759623 | U170: 0.02041199035 | V170: 3.38284764 | W170: 7.064815393 | X170: 1.762634534 | Y170: 13.55879147 | Z170: 15.19310645 | AA170: =($B$10/(P170*O170+P170*(Q170+Y170)))^(1/2) -> 2.97746162 | AB170: =$BT$216*$B$9^$BU$216 -> 137.0637836 | AY170: i max | AZ170: =(AZ140/($W$146*$U$146+$W$146*AZ169))^(1/2) -> 2.516565081 | BA170: =(BA140/($W$146*$U$146+$W$146*BA169))^(1/2) -> 3.877935336 | BB170: =(BB140/($W$146*$U$146+$W$146*BB169))^(1/2) -> 5.974854152 | BC170: 7.6931684 | BD170: 9.203993815 | BE170: 10.57710919 | BF170: 11.84956287 | BG170: 13.04395571 | BH170: 14.17533586 | BI170: 15.25434919 | BJ170: 16.28887118 | BK170: 17.28493143 | BL170: 18.24727374 | BM170: 19.17971398 | BN170: 20.08537853 | BO170: 20.96686894 | BP170: 21.82637886 | BQ170: 22.66577939 | BR170: 23.48668252 | BS170: =(BS140/($W$146*$U$146+$W$146*BS169))^(1/2) -> 24.29048936 | DC170: 2.7285 | DD170: 4.5 | DG170: 44.9635 | DH170: 11
A171: 20 | B171: 9.88 | C171: 32.41469816 | D171: 0.03241469816 | E171: 0.041 | F171: 0.0010414 | G171: 0.05 | H171: 0.058 | I171: 0.0489586 | J171: 0.008 | K171: 0.00127 | L171: 0.0014732 | M171: 0.00124354844 | N171: 0.0002032 | O171: 0.0992947334 | P171: 0.04897536745 | Q171: 0.3802920602 | R171: 9.905568422 | S171: 1 | T171: 9.905568422 | U171: 0.02198595789 | V171: 3.378719919 | W171: 6.456090824 | X171: 1.76146731 | Y171: 12.38360913 | Z171: 20.30162106 | AA171: 3.984159405 | AB171: =$BT$220*$B$9^$BU$220 -> 85.67741681 | AY171: imax corriger | AZ171: =$AY$141*AZ170 -> 2.013252065 | BA171: =$AY$141*BA170 -> 3.102348269 | BB171: 4.779883321 | BC171: 6.15453472 | BD171: 7.363195052 | BE171: 8.46168735 | BF171: 9.479650295 | BG171: 10.43516457 | BH171: 11.34026869 | BI171: 12.20347935 | BJ171: 13.03109695 | BK171: 13.82794515 | BL171: 14.59781899 | BM171: 15.34377118 | BN171: 16.06830282 | BO171: 16.77349515 | BP171: 17.46110309 | BQ171: 18.13262351 | BR171: 18.78934602 | BS171: 19.43239149 | DC171: 3.2465 | DD171: 5 | DG171: 52.793 | DH171: 12
A172: 18 | B172: 6.23 | C172: 20.43963255 | D172: 0.02043963255 | E172: 0.051 | F172: 0.0012954 | G172: 0.06 | H172: 0.07 | I172: 0.0587046 | J172: 0.01 | K172: 0.001524 | L172: 0.001778 | M172: 0.00149109684 | N172: 0.000254 | O172: 0.0997403804 | P172: 0.03088224081 | Q172: 0.380077546 | R172: 9.227524079 | S172: 1 | T172: 9.227524079 | U172: 0.02473036222 | V172: 3.371605112 | W172: 5.754522448 | X172: 1.75944489 | Y172: 11.02732879 | Z172: 26.96586528 | AA172: 5.304711532 | AB172: =$BT$224*$B$9^$BU$224 -> 54.00215334 | AX172: 18 | AY172: teta | AZ172: =(AZ140/(1+$AA$147*AZ141))^(1/4) -> 1.492196517 | BA172: =(BA140/(1+$AA$147*BA141))^(1/4) -> 1.774530715 | BB172: 2.110284552 | BC172: 2.335413759 | BD172: 2.509565404 | BE172: 2.653542342 | BF172: 2.777290659 | BG172: 2.886410069 | BH172: 2.984393034 | BI172: 3.073577358 | BJ172: 3.155611433 | BK172: 3.231704866 | BL172: 3.302773812 | BM172: 3.369530244 | BN172: 3.43253939 | BO172: 3.492258118 | BP172: 3.54906143 | BQ172: 3.603261249 | BR172: 3.655120062 | BS172: 3.704861021 | DC172: 3.9115 | DD172: 5.5 | DG172: 63.636 | DH172: 13
A173: 16 | B173: 4.81 | C173: 15.7808399 | D173: 0.0157808399 | E173: 0.058 | F173: 0.0014732 | G173: 0.068 | H173: 0.077 | I173: 0.0665268 | J173: 0.009 | K173: 0.0017272 | L173: 0.0019558 | M173: 0.00168978072 | N173: 0.0002286 | O173: 0.08035550389 | P173: 0.023843271 | Q173: 0.3800565107 | R173: 8.907461916 | S173: 1 | T173: 8.907461916 | U173: 0.0251977712 | V173: 3.370403628 | W173: 5.421289585 | X173: 1.759102049 | Y173: 10.38708022 | Z173: 31.59581823 | AA173: 6.218024211 | AB173: =$BT$228*$B$9^$BU$228 -> 41.7419222 | AZ173: =(AZ140/(1+$AA$147*AZ172))^(1/4) -> 1.492993737 | BA173: =(BA140/(1+$AA$147*BA172))^(1/4) -> 1.774951349 | BB173: 2.110040092 | BC173: 2.334591442 | BD173: 2.508223583 | BE173: 2.651723346 | BF173: 2.775027078 | BG173: 2.883728062 | BH173: 2.981314242 | BI173: 3.070120099 | BJ173: 3.151791493 | BK173: 3.227536046 | BL173: 3.298268323 | BM173: 3.364698998 | BN173: 3.427392217 | BO173: 3.486803941 | BP173: 3.543308399 | BQ173: 3.597216851 | BR173: 3.648791204 | BS173: 3.698254105 | DC173: 4.6085 | DD173: 6 | DG173: 70.5 | DH173: 14
A174: 14 | B174: 3.06 | C174: 10.03937008 | D174: 0.01003937008 | E174: 0.073 | F174: 0.0018542 | G174: 0.085 | H174: 0.094 | I174: 0.0831458 | J174: 0.009 | K174: 0.002159 | L174: 0.0023876 | M174: 0.00211190332 | N174: 0.0002286 | O174: 0.06476353993 | P174: 0.01516848425 | Q174: 0.3800144378 | R174: 8.284952026 | S174: 1 | T174: 8.284952026 | U174: 0.02763960984 | V174: 3.364174473 | W174: =1/(3.1415*L174*T174*V174) -> 4.783357677 | X174: 1.757318486 | Y174: 9.157161848 | Z174: 42.0164641 | AA174: 8.286085638 | AB174: =$BT$232*$B$9^$BU$232 -> 26.21939011 | AY174: T4 | AZ174: =1/(3.1415*$T$147*$X$147*AZ173) -> 14.30686274 | BA174: =1/(3.1415*$T$147*$X$147*BA173) -> 12.03416447 | BB174: =1/(3.1415*$T$147*$X$147*BB173) -> 10.12305716 | BC174: 9.149376664 | BD174: 8.516009738 | BE174: 8.055160241 | BF174: 7.697242536 | BG174: 7.407098035 | BH174: 7.164644424 | BI174: 6.957400939 | BJ174: 6.77711597 | BK174: 6.618069064 | BL174: 6.476142742 | BM174: 6.348281519 | BN174: 6.232159937 | BO174: 6.125970036 | BP174: 6.028280369 | BQ174: 5.937939621 | BR174: 5.854008977 | BS174: 5.775713581 | BT174: =EXP(INDEX(LINEST(LN(AZ140:BS140),LN(AZ175:BS175)),1,2)) -> 0.7171416049 | BU174: =INDEX(LINEST(LN(AZ140:BS140),LN(AZ175:BS175),,),1) -> 1.60424003 | DC174: 6.066 | DD174: 7
A175: 12 | B175: 2.02 | C175: 6.627296588 | D175: 0.006627296588 | E175: 0.09 | F175: 0.002286 | G175: 0.103 | H175: 0.111 | I175: =G175-F175 -> 0.100714 | J175: 0.008 | K175: 0.0026162 | L175: 0.0028194 | M175: 0.0025581356 | N175: 0.0002032 | O175: 0.04743790056 | P175: 0.01001318241 | Q175: 0.3799074032 | R175: 7.811596986 | S175: 1 | T175: 7.811596986 | U175: 0.02956735831 | V175: 3.359312337 | W175: 4.302451927 | X175: 1.755919247 | Y175: 8.231175699 | Z175: 54.36966943 | AA175: 10.73969823 | AB175: =$BT$236*$B$9^$BU$236 -> 17.20716342 | AY175: i max | AZ175: =(AZ140/($W$147*$U$147+$W$147*AZ174))^(1/2) -> 3.353425285 | BA175: =(BA140/($W$147*$U$147+$W$147*BA174))^(1/2) -> 5.167852972 | BB175: =(BB140/($W$147*$U$147+$W$147*BB174))^(1/2) -> 7.962902361 | BC175: 10.25350557 | BD175: 12.26764609 | BE175: 14.09829472 | BF175: 15.79481419 | BG175: 17.387318 | BH175: 18.8958566 | BI175: 20.33461492 | BJ175: 21.71408663 | BK175: 23.04230588 | BL175: 24.32559368 | BM175: 25.56903456 | BN175: 26.7767944 | BO175: 27.95233974 | BP175: 29.09859366 | BQ175: 30.21804938 | BR175: 31.31285493 | BS175: 32.38487731 | DC175: 9.478 | DD175: 8
A176: 10 | B176: 1.26 | C176: 4.133858268 | D176: 0.004133858268 | E176: 0.114 | F176: 0.0028956 | G176: 0.128 | H176: 0.134 | I176: =G176-F176 -> 0.1251044 | J176: 0.006 | K176: 0.0032512 | L176: 0.0034036 | M176: 0.00317765176 | N176: 0.0001524 | O176: 0.02857337742 | P176: 0.006245846457 | Q176: 0.3797869263 | R176: 7.320828051 | S176: 1 | T176: 7.320828051 | U176: 0.03196533819 | V176: 3.353331084 | W176: 3.809673701 | X176: 1.754189425 | Y176: 7.282621283 | Z176: 72.89761635 | AA176: 14.42824348 | AB176: =$BT$240*$B$9^$BU$240 -> 10.64263527 | AY176: imax corriger | AZ176: =$AY$141*AZ175 -> 2.682740228 | BA176: =$AY$141*BA175 -> 4.134282377 | BB176: 6.370321889 | BC176: 8.202804459 | BD176: 9.814116874 | BE176: 11.27863578 | BF176: 12.63585135 | BG176: 13.9098544 | BH176: 15.11668528 | BI176: 16.26769193 | BJ176: 17.3712693 | BK176: 18.43384471 | BL176: 19.46047494 | BM176: 20.45522765 | BN176: 21.42143552 | BO176: 22.3618718 | BP176: 23.27887492 | BQ176: 24.1744395 | BR176: 25.05028394 | BS176: 25.90790185 | DC176: 11.876 | DD176: 9
A177: 8 | B177: 0.701 | C177: 2.299868766 | D177: 0.002299868766 | E177: 0.173 | F177: 0.0043942 | G177: 0.188 | H177: 0.195 | I177: =G177-F177 -> 0.1836058 | J177: 0.007 | K177: 0.0047752 | L177: 0.004953 | M177: 0.00466358732 | N177: =J177*0.0254 -> 0.0001778 | O177: 0.02209587735 | P177: 0.003474871719 | Q177: 0.3795751683 | R177: 6.470632029 | S177: 1 | T177: 6.470632029 | U177: 0.04044106854 | V177: 3.332760107 | W177: 2.980189297 | X177: 1.748168428 | Y177: 5.68152121 | Z177: 109.1482546 | AA177: 21.75027942 | AB177: =$BT$244*$B$9^$BU$244 -> 5.437502461 | AX177: 16 | AY177: teta | AZ177: =(AZ140/(1+$AA$148*AZ141))^(1/4) -> 1.492014308 | BA177: =(BA140/(1+$AA$148*BA141))^(1/4) -> 1.774314031 | BB177: 2.11002687 | BC177: =(BC140/(1+$AA$148*BC141))^(1/4) -> 2.335128587 | BD177: 2.509258967 | BE177: 2.653218324 | BF177: 2.776951531 | BG177: 2.886057616 | BH177: 2.984028617 | BI177: 3.073202051 | BJ177: 3.155226109 | BK177: 3.23131025 | BL177: 3.302370518 | BM177: 3.369118799 | BN177: 3.432120252 | BO177: 3.491831687 | BP177: 3.548628063 | BQ177: 3.602821264 | BR177: 3.654673745 | BS177: 3.704408629 | DC177: 14.3775 | DD177: 10
A178: 6 | B178: 0.445 | C178: 1.459973753 | D178: 0.001459973753 | E178: 0.217 | F178: 0.0055118 | G178: =H178-J178 -> 0.233 | H178: 0.241 | I178: =G178-F178 -> 0.2274882 | J178: 0.008 | K178: 0.0059182 | L178: 0.0061214 | M178: 0.00577820028 | N178: 0.0002032 | O178: 0.02016722431 | P178: 0.002205874344 | Q178: 0.3794955787 | R178: 6.056573516 | S178: 1 | T178: 6.056573516 | U178: 0.04654880608 | V178: 3.318457971 | W178: 2.587312353 | X178: 1.743916857 | Y178: 4.923335232 | Z178: 145.7665342 | AA178: 29.18310262 | AB178: =$BT$248*$B$9^$BU$248 -> 3.3500583 | AZ178: =(AZ140/(1+$AA$148*AZ177))^(1/4) -> 1.49285772 | BA178: =(BA140/(1+$AA$148*BA177))^(1/4) -> 1.774759287 | BB178: 2.109768968 | BC178: 2.334259787 | BD178: 2.50784098 | BE178: 2.651295914 | BF178: 2.774559162 | BG178: 2.883222953 | BH178: 2.980774542 | BI178: 3.069547935 | BJ178: 3.151188645 | BK178: 3.226904033 | BL178: 3.297608459 | BM178: 3.364012436 | BN178: 3.426679979 | BO178: 3.486066941 | BP178: 3.542547461 | BQ178: 3.596432722 | BR178: 3.647984566 | BS178: 3.697425585 | DC178: 33.3025 | DD178: 15
A179: 4 | B179: 0.28 | C179: 0.9186351706 | D179: 0.0009186351706 | E179: 0.274 | F179: 0.0069596 | G179: =H179-J179 -> 0.302 | H179: 0.31 | I179: =G179-F179 -> 0.2950404 | J179: 0.008 | K179: 0.0076708 | L179: 0.007874 | M179: 0.00749402616 | N179: 0.0002032 | O179: 0.01603157344 | P179: 0.001387965879 | Q179: 0.3796677032 | R179: 5.618137292 | S179: 1 | T179: 5.618137292 | U179: 0.05499080519 | V179: 3.299359229 | W179: 2.180949322 | X179: 1.73815587 | Y179: 4.13986766 | Z179: 197.8549983 | AA179: 39.85610136 | AB179: =$BT$252*$B$9^$BU$252 -> 1.995860229 | AY179: T4 | AZ179: =1/(3.1415*$T$148*$X$148*AZ178) -> 13.23477474 | BA179: =1/(3.1415*$T$148*$X$148*BA178) -> 11.13257206 | BB179: =1/(3.1415*$T$148*$X$148*BB178) -> 9.364833758 | BC179: 8.464197412 | BD179: 7.878344682 | BE179: 7.452067324 | BF179: 7.120999947 | BG179: 6.852621519 | BH179: 6.628356278 | BI179: 6.436659751 | BJ179: 6.269899353 | BK179: 6.122783773 | BL179: 5.991504417 | BM179: 5.873235022 | BN179: 5.76582458 | BO179: 5.667600762 | BP179: 5.577239506 | BQ179: 5.493675867 | BR179: 5.416041459 | BS179: 5.343619553 | BT179: =EXP(INDEX(LINEST(LN(AZ140:BS140),LN(AZ180:BS180)),1,2)) -> 0.5474191281 | BU179: =INDEX(LINEST(LN(AZ140:BS140),LN(AZ180:BS180),,),1) -> 1.604483015
A180: 2 | B180: 0.181 | C180: 0.593832021 | D180: 0.000593832021 | E180: 0.34 | F180: 0.008636 | G180: 0.4 | H180: 0.408 | I180: 0.391364 | J180: 0.008 | K180: 0.01016 | L180: 0.0103632 | M180: 0.0099406456 | N180: 0.0002032 | O180: 0.0129554381 | P180: 0.0008972208005 | Q180: 0.380077546 | R180: 5.198728484 | S180: 1 | T180: 5.198728484 | U180: 0.06652074101 | V180: 3.274435364 | W180: 1.804411134 | X180: 1.730494428 | Y180: 3.414300291 | Z180: 266.4743622 | AA180: 54.10530955 | AB180: =$BT$256*$B$9^$BU$256 -> 1.193294953 | AY180: i max | AZ180: =(AZ140/($W$148*$U$148+$W$148*AZ179))^(1/2) -> 3.967298029 | BA180: =(BA140/($W$148*$U$148+$W$148*BA179))^(1/2) -> 6.11361111 | BB180: =(BB140/($W$148*$U$148+$W$148*BB179))^(1/2) -> 9.419700515 | BC180: 12.12895556 | BD180: 14.51112052 | BE180: 16.67619454 | BF180: 18.68258092 | BG180: 20.56590798 | BH180: 22.34989795 | BI180: 24.05133328 | BJ180: 25.68262915 | BK180: 27.25329083 | BL180: 28.77079665 | BM180: 30.24116214 | BN180: 31.66931588 | BO180: 33.05935909 | BP180: 34.41474997 | BQ180: 35.73843824 | BR180: 37.03296513 | BS180: 38.30053946
A181: 1 | B181: 0.149 | C181: 0.4888451444 | D181: 0.0004888451444 | E181: 0.38 | F181: 0.009652 | G181: 0.462 | H181: 0.47 | I181: 0.452348 | J181: 0.008 | K181: 0.0117348 | L181: 0.011938 | M181: 0.0114896392 | N181: 0.0002032 | O181: 0.01160580999 | P181: 0.0007385961286 | Q181: 0.3802741098 | R181: 5.004191235 | S181: 1 | T181: 5.004191235 | U181: 0.07354540551 | V181: 3.259858049 | W181: 1.634552125 | X181: 1.725938428 | Y181: 3.0872526 | Z181: 305.8401388 | AA181: 62.38224513 | AB181: =$BT$260*$B$9^$BU$260 -> 0.9362041796 | AY181: imax corriger | AZ181: =$AY$141*AZ180 -> 3.173838423 | BA181: =$AY$141*BA180 -> 4.890888888 | BB181: 7.535760412 | BC181: 9.703164444 | BD181: 11.60889642 | BE181: 13.34095563 | BF181: 14.94606474 | BG181: 16.45272638 | BH181: 17.87991836 | BI181: 19.24106662 | BJ181: 20.54610332 | BK181: 21.80263266 | BL181: 23.01663732 | BM181: 24.19292971 | BN181: 25.33545271 | BO181: 26.44748727 | BP181: 27.53179998 | BQ181: 28.59075059 | BR181: 29.62637211 | BS181: 30.64043157
A182: 0 | B182: 0.116 | C182: 0.3805774278 | D182: 0.0003805774278 | E182: 0.425 | F182: 0.010795 | G182: 0.502 | H182: 0.51 | I182: 0.491205 | J182: 0.008 | K182: 0.0127508 | L182: 0.012954 | M182: 0.012476607 | N182: 0.0002032 | O182: 0.01038834263 | P182: 0.0005750144357 | Q182: 0.3801017649 | R182: 4.897980216 | S182: 1 | T182: 4.897980216 | U182: 0.07783376154 | V182: 3.251171128 | W182: 1.543128837 | X182: 1.723197153 | Y182: 2.911434662 | Z182: 354.8454148 | AA182: 72.57332801 | AB182: =$BT$264*$B$9^$BU$264 -> 0.7248829231 | AX182: 14 | AY182: teta | AZ182: =(AZ140/(1+$AA$149*AZ141))^(1/4) -> 1.491677813 | BA182: =(BA140/(1+$AA$149*BA141))^(1/4) -> 1.773913869 | BB182: 2.109550994 | BC182: 2.334601944 | BD182: 2.508693052 | BE182: 2.652619942 | BF182: 2.776325242 | BG182: 2.885406721 | BH182: 2.983355626 | BI182: 3.072508949 | BJ182: 3.154514508 | BK182: 3.23058149 | BL182: 3.301625732 | BM182: 3.368358959 | BN182: 3.431346203 | BO182: 3.491044171 | BP182: 3.547827737 | BQ182: 3.602008717 | BR182: 3.653849503 | BS182: 3.703573171
A183: 00 | B183: 0.091 | C183: 0.2985564304 | D183: 0.0002985564304 | E183: 0.475 | F183: 0.012065 | G183: 0.562 | H183: 0.57 | I183: 0.549935 | J183: 0.008 | K183: 0.0142748 | L183: 0.014478 | M183: 0.013968349 | N183: 0.0002032 | O183: 0.009303911135 | P183: 0.0004510889108 | Q183: 0.3801119043 | R183: 4.760147998 | S183: 1 | T183: 4.760147998 | U183: 0.08431011421 | V183: 3.238342427 | W183: 1.426300841 | X183: 1.719113096 | Y183: 2.686763621 | Z183: 413.4365839 | AA183: 84.891282 | AB183: =$BT$268*$B$9^$BU$268 -> 0.5543955499 | AZ183: =(AZ140/(1+$AA$149*AZ182))^(1/4) -> 1.492606562 | BA183: =(BA140/(1+$AA$149*BA182))^(1/4) -> 1.774404681 | BB183: 2.109268461 | BC183: 2.333647598 | BD183: 2.507134802 | BE183: 2.650507043 | BF183: 2.773695619 | BG183: 2.882290811 | BH183: 2.979778608 | BI183: 3.068492134 | BJ183: 3.150076263 | BK183: 3.225737871 | BL183: 3.296390945 | BM183: 3.362745697 | BN183: 3.425365902 | BO183: 3.484707213 | BP183: 3.541143602 | BQ183: 3.594986111 | BR183: 3.646496463 | BS183: 3.695897144
A184: 000 | B184: 0.071 | C184: 0.2329396325 | D184: 0.0002329396325 | E184: 0.54 | F184: 0.013716 | G184: 0.602 | H184: 0.61 | I184: 0.588284 | J184: 0.008 | K184: 0.0152908 | L184: 0.015494 | M184: 0.0149424136 | N184: 0.0002032 | O184: 0.008192187787 | P184: 0.0003519484908 | Q184: 0.3797412362 | R184: 4.679787024 | S184: 1 | T184: 4.679787024 | U184: 0.08836573705 | V184: 3.23047992 | W184: 1.358958672 | X184: 1.716588989 | Y184: 2.557448947 | Z184: 477.1900992 | AA184: 98.21766493 | AB184: =$BT$272*$B$9^$BU$272 -> 0.4326178428 | AY184: T4 | AZ184: =1/(3.1415*$T$149*$X$149*AZ183) -> 11.49763504 | BA184: =1/(3.1415*$T$149*$X$149*BA183) -> 9.671663796 | BB184: =1/(3.1415*$T$149*$X$149*BB183) -> 8.136207329 | BC184: 7.353914759 | BD184: 6.845042995 | BE184: 6.474778309 | BF184: 6.18721297 | BG184: 5.954099235 | BH184: 5.759302207 | BI184: 5.592794363 | BJ184: 5.447946043 | BK184: 5.320161214 | BL184: 5.206131736 | BM184: 5.103402713 | BN184: 5.010105782 | BO184: 4.924788358 | BP184: 4.84630036 | BQ184: 4.773716777 | BR184: 4.706283329 | BS184: 4.643377464 | BT184: =EXP(INDEX(LINEST(LN(AZ140:BS140),LN(AZ185:BS185)),1,2)) -> 0.340086461 | BU184: =INDEX(LINEST(LN(AZ140:BS140),LN(AZ185:BS185),,),1) -> 1.604931153
A185: 0000 | B185: 0.056 | C185: 0.1837270341 | D185: 0.0001837270341 | E185: 0.605 | F185: 0.015367 | G185: 0.667 | H185: 0.675 | I185: 0.651633 | J185: 0.008 | K185: 0.0169418 | L185: 0.017145 | M185: 0.0165514782 | N185: 0.0002032 | O185: 0.007317789697 | P185: 0.0002775931759 | Q185: 0.3796694086 | R185: 4.564773167 | S185: 1 | T185: 4.564773167 | U185: 0.09514596025 | V185: 3.217616652 | W185: 1.264072386 | X185: 1.712425065 | Y185: 2.375169835 | Z185: 552.6857303 | AA185: 114.2013991 | AB185: =$BT$276*$B$9^$BU$276 -> 0.3334459577 | AY185: i max | AZ185: =(AZ140/($W$149*$U$149+$W$149*AZ184))^(1/2) -> 5.33475344 | BA185: =(BA140/($W$149*$U$149+$W$149*BA184))^(1/2) -> 8.220214285 | BB185: =(BB140/($W$149*$U$149+$W$149*BB184))^(1/2) -> 12.66432134 | BC185: 16.30576475 | BD185: 19.50733037 | BE185: 22.41695492 | BF185: 25.11318286 | BG185: 27.64392863 | BH185: 30.04109447 | BI185: 32.3272495 | BJ185: 34.51908958 | BK185: 36.62939719 | BL185: 38.66822895 | BM185: 40.64367423 | BN185: 42.56236077 | BO185: 44.42980356 | BP185: 46.25065297 | BQ185: 48.02887549 | BR185: 49.76788838 | BS185: 51.47066179
AY186: imax corriger | AZ186: =$AY$141*AZ185 -> 4.267802752 | BA186: =$AY$141*BA185 -> 6.576171428 | BB186: 10.13145707 | BC186: 13.0446118 | BD186: 15.6058643 | BE186: 17.93356394 | BF186: 20.09054628 | BG186: 22.11514291 | BH186: 24.03287557 | BI186: 25.8617996 | BJ186: 27.61527167 | BK186: 29.30351775 | BL186: 30.93458316 | BM186: 32.51493939 | BN186: 34.04988861 | BO186: 35.54384284 | BP186: 37.00052237 | BQ186: 38.42310039 | BR186: 39.81431071 | BS186: 41.17652943
A187: MIL W-81044 - 44A0111 | L187: inch | M187: m | O187: PVDF | P187: rho= | Q187: 6 | AH187: Imax | AI187: ="I max "&B10&"°C" -> I max 10°C | AJ187: Échauffement | AX187: 12 | AY187: teta | AZ187: =(AZ140/(1+$AA$150*AZ141))^(1/4) -> 1.49166768 | BA187: =(BA140/(1+$AA$150*BA141))^(1/4) -> 1.773901818 | BB187: =(BB140/(1+$AA$150*BB141))^(1/4) -> 2.109536663 | BC187: 2.334586084 | BD187: 2.508676009 | BE187: 2.652601922 | BF187: 2.776306382 | BG187: 2.88538712 | BH187: 2.98333536 | BI187: 3.072488076 | BJ187: 3.154493078 | BK187: 3.230559544 | BL187: 3.301603303 | BM187: 3.368336077 | BN187: 3.431322893 | BO187: 3.491020456 | BP187: 3.547803636 | BQ187: 3.601984247 | BR187: 3.653824681 | BS187: 3.703548011
O188: 150 | P188: =AJ6 -> 10 | AZ188: =(AZ140/(1+$AA$150*AZ187))^(1/4) -> 1.492598999 | BA188: =(BA140/(1+$AA$150*BA187))^(1/4) -> 1.774394004 | BB188: =(BB140/(1+$AA$150*BB187))^(1/4) -> 2.109253392 | BC188: 2.333629168 | BD188: 2.507113543 | BE188: 2.650483297 | BF188: 2.773669626 | BG188: 2.882262753 | BH188: 2.979748631 | BI188: 3.068460356 | BJ188: 3.150042783 | BK188: 3.225702773 | BL188: 3.296354302 | BM188: 3.362707573 | BN188: 3.425326354 | BO188: 3.484666292 | BP188: 3.541101354 | BQ188: 3.594942577 | BR188: 3.646451681 | BS188: 3.695851149
B189: Ohm/1000 ft | E189: Ohm/km | H189: Ohm/m | K189: diametre stranded conductor | M189: diametre stranded conductor | O189: dia iso 1 | P189: dia iso 2 | Q189: ep iso 2 | R189: ep iso 1 | S189: dia iso 1 | T189: dia iso 2 | U189: ep iso 2 | V189: ep iso 1 | W189: T1 | X189: R'=R0[1+a20(Theta-20) | Y189: T3=1/2PI Rho*ln(1+2t3/da) | Z189: h | AA189: hi/hg | AB189: hg | AC189: Ka | AD189: teta Tmax | AE189: T4 max | AF189: ="teta " &$B$10&"°C" -> teta 10°C | AG189: ="T4 "&$B$10&"°C" -> T4 10°C | AY189: T4 | AZ189: =1/(3.1415*$T$150*$X$150*AZ188) -> 10.16456964 | BA189: =1/(3.1415*$T$150*$X$150*BA188) -> 8.550314326 | BB189: =1/(3.1415*$T$150*$X$150*BB188) -> 7.192889449 | BC189: 6.501301355 | BD189: 6.05143174 | BE189: 5.724098126 | BF189: 5.469875118 | BG189: 5.263790213 | BH189: 5.091579308 | BI189: 4.944377541 | BJ189: 4.816323942 | BK189: 4.703355373 | BL189: 4.602547263 | BM189: 4.511729355 | BN189: 4.429249917 | BO189: 4.353824786 | BP189: 4.284437229 | BQ189: 4.220269489 | BR189: 4.160654741 | BS189: 4.105042617 | BT189: =EXP(INDEX(LINEST(LN(AZ140:BS140),LN(AZ190:BS190)),1,2)) -> 0.2207473951 | BU189: =INDEX(LINEST(LN(AZ140:BS140),LN(AZ190:BS190),,),1) -> 1.604944636
A190: AWG | B190: Silver Coated | C190: Nickel Coated | D190: Tin Coated | E190: Silver Coated | F190: Nickel Coated | G190: Tin Coated | H190: Silver Coated | I190: Nickel Coated | J190: Tin Coated | K190: silver coated | L190: Nickel or tin coated | M190: silver coated | N190: Nickel or tin coated | O190: inch | P190: inch | Q190: inch | R190: inch | S190: m | T190: m | U190: m | V190: m | AH190: - | AI190: - | AJ190: - | AY190: i max | AZ190: =(AZ140/($W$150*$U$150+$W$150*AZ189))^(1/2) -> 6.983204107 | BA190: =(BA140/($W$150*$U$150+$W$150*BA189))^(1/2) -> 10.76025326 | BB190: =(BB140/($W$150*$U$150+$W$150*BB189))^(1/2) -> 16.57753896 | BC190: 21.34413179 | BD190: 25.53492183 | BE190: 29.34355946 | BF190: 32.87285996 | BG190: 36.18554371 | BH190: 39.32337089 | BI190: 42.31588465 | BJ190: 45.18493995 | BK190: 47.9472691 | BL190: 50.61603629 | BM190: 53.20183054 | BN190: 55.71332755 | BO190: 58.15774651 | BP190: 60.54117475 | BQ190: 62.86880443 | BR190: 65.14510872 | BS190: 67.37397558
A191: 30 | B191: 100.7 | C191: 110.7 | D191: 108.4 | E191: =B191*(1000/304.8) -> 330.3805774 | F191: =C191*(1000/304.8) -> 363.1889764 | G191: 355.6430446 | H191: =B191*(1000/304.8)*(1/1000) -> 0.3303805774 | I191: =C191*(1000/304.8)*(1/1000) -> 0.3631889764 | J191: 0.3556430446 | K191: 0.012 | L191: 0.013 | M191: =K191*0.0254 -> 0.0003048 | N191: =L191*0.0254 -> 0.0003302 | Q191: 0.006 | AH191: - | AI191: - | AJ191: - | AX191: 10 | AY191: teta | AZ191: =(AZ140/(1+$AA$151*AZ141))^(1/4) -> 1.491707013 | BA191: =(BA140/(1+$AA$151*BA141))^(1/4) -> 1.773948593 | BB191: =(BB140/(1+$AA$151*BB141))^(1/4) -> 2.109592289 | BC191: 2.334647644 | BD191: 2.50874216 | BE191: 2.652671867 | BF191: 2.776379589 | BG191: 2.885463203 | BH191: 2.983414026 | BI191: 3.072569094 | BJ191: 3.154576258 | BK191: 3.230644729 | BL191: 3.301690361 | BM191: 3.368424895 | BN191: 3.431413372 | BO191: 3.491112509 | BP191: 3.547897187 | BQ191: 3.602079226 | BR191: 3.653921027 | BS191: 3.703645669
A192: 28 | B192: 63.8 | C192: 67.9 | D192: 68.6 | E192: =B192*(1000/304.8) -> 209.3175853 | F192: 222.7690289 | G192: 225.0656168 | H192: =B192*(1000/304.8)*(1/1000) -> 0.2093175853 | I192: 0.2227690289 | J192: 0.2250656168 | K192: 0.013 | L192: 0.016 | M192: =K192*0.0254 -> 0.0003302 | N192: 0.0004064 | Q192: 0.006 | AH192: - | AI192: - | AJ192: - | AZ192: =(AZ140/(1+$AA$151*AZ191))^(1/4) -> 1.492628355 | BA192: =(BA140/(1+$AA$151*BA191))^(1/4) -> 1.774435448 | BB192: =(BB140/(1+$AA$151*BB191))^(1/4) -> 2.109311883 | BC192: 2.333700706 | BD192: 2.507196061 | BE192: 2.650575473 | BF192: 2.773770524 | BG192: 2.882371664 | BH192: 2.979864992 | BI192: 3.068583709 | BJ192: 3.150172743 | BK192: 3.225839014 | BL192: 3.29649654 | BM192: 3.362855559 | BN192: 3.425479868 | BO192: 3.484825136 | BP192: 3.541265351 | BQ192: 3.595111566 | BR192: 3.646625514 | BS192: 3.696029692
A193: 26 | B193: 38.4 | C193: 42.2 | D193: 41.3 | E193: 125.984252 | F193: 138.4514436 | G193: 135.4986877 | H193: 0.125984252 | I193: 0.1384514436 | J193: 0.1354986877 | K193: 0.02 | L193: 0.021 | M193: 0.000508 | N193: 0.0005334 | O193: =P193-Q193 -> 0.028 | P193: 0.034 | Q193: 0.006 | R193: =O193-N193 -> 0.0274666 | S193: =O193*0.0254 -> 0.0007112 | T193: =P193*0.0254 -> 0.0008636 | U193: 0.0001524 | V193: 0.00069765164 | W193: =($Q$187/(2*3.1415))*LN(1+V193/N193) -> 0.7986813273 | X193: =J193*(1+(3.93*10^-3)*($O$188-20)) -> 0.2047249672 | Y193: =(3.5/(2*3.1415))*LN(1+2*U193/S193) -> 0.1986888913 | Z193: =$N$135/(T193)^$N$136+$N$137 -> 12.21828494 | AA193: =IF($J$136=$AY$29,$BB$29,IF($J$136=$AY$30,$BB$30,IF($J$136=$AY$31,$BB$31,IF($J$136=$AY$32,$BB$32,IF($J$136=$AY$33,$BB$33,IF($J$136=$AY$34,$BB$34,IF($J$136=$AY$35,$BB$35,IF($J$136=$AY$36,$BB$36,$BB$37)))))))) -> 1 | AB193: =Z193/AA193 -> 12.21828494 | AC193: =(3.1415*T193*AB193/1)*(W193+Y193) -> 0.0330610272 | AD193: =BT84 -> 3.350622365 | AE193: =1/(3.1415*T193*AB193*AD193) -> 9.003566366 | AF193: =BT110 -> 1.753402952 | AG193: =1/(3.1415*T193*AB193*AF193) -> 17.20514432 | AH193: =(($O$188-$P$188)/(X193*W193+X193*(Y193+AE193)))^(1/2) -> 8.26910061 | AI193: =($B$10/(X193*W193+X193*(Y193+AG193)))^(1/2) -> 1.638132028 | AJ193: =$BT$283*$B$9^$BU$283 -> 369.4062736 | AY193: T4 | AZ193: =1/(3.1415*$T$151*$X$151*AZ192) -> 8.821213198 | BA193: =1/(3.1415*$T$151*$X$151*BA192) -> 7.420271592 | BB193: =1/(3.1415*$T$151*$X$151*BB192) -> 6.242221955 | BC193: 5.642022952 | BD193: 5.251600843 | BE193: 4.967522366 | BF193: 4.746893382 | BG193: 4.56804135 | BH193: 4.418587077 | BI193: 4.29083714 | BJ193: 4.179705057 | BK193: 4.081664611 | BL193: 3.994177693 | BM193: 3.915360834 | BN193: 3.843780566 | BO193: 3.778322421 | BP193: 3.718104023 | BQ193: 3.662415673 | BR193: 3.610678665 | BS193: 3.562415359 | BT193: =EXP(INDEX(LINEST(LN(AZ140:BS140),LN(AZ194:BS194)),1,2)) -> 0.1349060488 | BU193: =INDEX(LINEST(LN(AZ140:BS140),LN(AZ194:BS194),,),1) -> 1.604892296
A194: 24 | B194: 24.3 | C194: 25.9 | D194: 26.2 | E194: 79.72440945 | F194: 84.97375328 | G194: 85.95800525 | H194: 0.07972440945 | I194: 0.08497375328 | J194: 0.08595800525 | K194: 0.025 | L194: 0.026 | M194: 0.000635 | N194: 0.0006604 | O194: 0.034 | P194: 0.04 | Q194: 0.006 | R194: 0.0333396 | S194: =O194*0.0254 -> 0.0008636 | T194: 0.001016 | U194: 0.0001524 | V194: 0.00084682584 | W194: =($Q$187/(2*3.1415))*LN(1+V194/N194) -> 0.788012417 | X194: 0.1298739501 | Y194: =(3.5/(2*3.1415))*LN(1+2*U194/S194) -> 0.1683881986 | Z194: =$N$135/(T194)^$N$136+$N$137 -> 11.44810917 | AA194: 1 | AB194: =Z194/AA194 -> 11.44810917 | AC194: =(3.1415*T194*AB194/1)*(W194+Y194) -> 0.03494655593 | AD194: 3.345996013 | AE194: =1/(3.1415*T194*AB194*AD194) -> 8.179185286 | AF194: 1.752055239 | AG194: =1/(3.1415*T194*AB194*AF194) -> 15.62023887 | AH194: =(($O$188-$P$188)/(X194*W194+X194*(Y194+AE194)))^(1/2) -> 10.86262508 | AI194: 2.155215635 | AJ194: =$BT$287*$B$9^$BU$287 -> 262.9292848 | AY194: i max | AZ194: =(AZ140/($W$151*$U$151+$W$151*AZ193))^(1/2) -> 9.491669127 | BA194: =(BA140/($W$151*$U$151+$W$151*BA193))^(1/2) -> 14.62562195 | BB194: =(BB140/($W$151*$U$151+$W$151*BB193))^(1/2) -> 22.53287662 | BC194: 29.01203785 | BD194: 34.7085693 | BE194: 39.88567855 | BF194: 44.68311137 | BG194: 49.18611697 | BH194: 53.45145572 | BI194: 57.51928262 | BJ194: 61.41930298 | BK194: 65.17425938 | BL194: 68.80204465 | BM194: 72.31705144 | BN194: 75.73107184 | BO194: 79.05391821 | BP194: 82.2938645 | BQ194: 85.45796796 | BR194: 88.5523086 | BS194: 91.58217093
A195: 22 | B195: 15.1 | C195: 16 | D195: 16.2 | E195: 49.54068241 | F195: 52.49343832 | G195: 53.1496063 | H195: 0.04954068241 | I195: 0.05249343832 | J195: 0.0531496063 | K195: 0.032 | L195: 0.033 | M195: 0.0008128 | N195: 0.0008382 | O195: 0.041 | P195: 0.047 | Q195: 0.006 | R195: 0.0401618 | S195: 0.0010414 | T195: 0.0011938 | U195: 0.0001524 | V195: 0.00102010972 | W195: 0.7603048213 | X195: 0.08030374016 | Y195: 0.1430080318 | Z195: =$N$135/(T195)^$N$136+$N$137 -> 10.74328965 | AA195: 1 | AB195: 10.74328965 | AC195: 0.03639520025 | AD195: 3.342471227 | AE195: 7.425511913 | AF195: 1.751024655 | AG195: 14.17430637 | AH195: 14.46785904 | AI195: 2.873860795 | AJ195: =$BT$291*$B$9^$BU$291 -> 148.4035471 | AX195: 10 | AY195: teta | AZ195: =(AZ140/(1+$AA$152*AZ141))^(1/4) -> 1.491966845 | BA195: =(BA140/(1+$AA$152*BA141))^(1/4) -> 1.774257588 | BB195: =(BB140/(1+$AA$152*BB141))^(1/4) -> 2.109959747 | BC195: 2.335054304 | BD195: 2.509179144 | BE195: 2.653133922 | BF195: 2.776863192 | BG195: 2.885965807 | BH195: 2.983933691 | BI195: 3.073104288 | BJ195: 3.155125737 | BK195: 3.231207458 | BL195: 3.302265465 | BM195: 3.369011623 | BN195: 3.432011071 | BO195: 3.491720607 | BP195: 3.548515176 | BQ195: 3.602706653 | BR195: 3.654557484 | BS195: 3.704290787
A196: 20 | B196: 9.19 | C196: 9.77 | D196: 9.88 | E196: 30.15091864 | F196: 32.05380577 | G196: 32.41469816 | H196: 0.03015091864 | I196: 0.03205380577 | J196: 0.03241469816 | K196: 0.04 | L196: 0.041 | M196: 0.001016 | N196: 0.0010414 | O196: 0.049 | P196: 0.055 | Q196: 0.006 | R196: 0.0479586 | S196: 0.0012446 | T196: 0.001397 | U196: 0.0001524 | V196: 0.00121814844 | W196: 0.7397093996 | X196: 0.04897536745 | Y196: 0.1220257013 | Z196: 10.10889357 | AA196: 1 | AB196: 10.10889357 | AC196: 0.03823057921 | AD196: 3.338041806 | AE196: 6.752601703 | AF196: 1.749724946 | AG196: 12.88229149 | AH196: 19.37577688 | AI196: 3.85437668 | AJ196: =$BT$295*$B$9^$BU$295 -> 92.06696218 | AZ196: =(AZ140/(1+$AA$155*AZ195))^(1/4) -> 1.495348781 | BA196: =(BA140/(1+$AA$155*BA195))^(1/4) -> 1.77827941 | BB196: =(BB140/(1+$AA$155*BB195))^(1/4) -> 2.114742527 | BC196: 2.340347319 | BD196: 2.514866859 | BE196: 2.659147948 | BF196: 2.783157684 | BG196: 2.892507609 | BH196: 2.990697562 | BI196: 3.080070288 | BJ196: 3.16227766 | BK196: 3.23853184 | BL196: 3.30975092 | BM196: 3.376648375 | BN196: 3.439790628 | BO196: 3.499635512 | BP196: 3.55655882 | BQ196: 3.610873137 | BR196: 3.662841501 | BS196: 3.712687538
A197: 18 | B197: 5.79 | C197: 6.1 | D197: 6.23 | E197: 18.99606299 | F197: 20.01312336 | G197: 20.43963255 | H197: 0.01899606299 | I197: 0.02001312336 | J197: 0.02043963255 | K197: 0.05 | L197: 0.051 | M197: 0.00127 | N197: 0.0012954 | O197: 0.059 | P197: 0.065 | Q197: 0.006 | R197: 0.0577046 | S197: 0.0014986 | T197: 0.001651 | U197: 0.0001524 | V197: 0.00146569684 | W197: 0.7227201771 | X197: 0.03088224081 | Y197: 0.1031352087 | Z197: 9.487144033 | AA197: 1 | AB197: 9.487144033 | AC197: 0.04063718693 | AD197: 3.332294265 | AE197: 6.098696522 | AF197: 1.748030793 | AG197: 11.626026 | AH197: 25.58667057 | AI197: 5.099506033 | AJ197: =$BT$299*$B$9^$BU$299 -> 58.93736955 | AY197: T4 | AZ197: =1/(3.1415*$T$152*$X$152*AZ192) -> 6.821830161 | BA197: =1/(3.1415*$T$152*$X$152*BA192) -> 5.738420715 | BB197: =1/(3.1415*$T$152*$X$152*BB192) -> 4.827383382 | BC197: 4.36322323 | BD197: 4.061292729 | BE197: 3.841602412 | BF197: 3.670980365 | BG197: 3.532666262 | BH197: 3.417086734 | BI197: 3.318292117 | BJ197: 3.232348814 | BK197: 3.156529847 | BL197: 3.088872386 | BM197: 3.027919859 | BN197: 2.972563706 | BO197: 2.921942058 | BP197: 2.875372536 | BQ197: 2.832306298 | BR197: 2.792295806 | BS197: 2.75497168 | BT197: =EXP(INDEX(LINEST(LN(AZ140:BS140),LN(AZ198:BS198)),1,2)) -> 0.06859233037 | BU197: =INDEX(LINEST(LN(AZ140:BS140),LN(AZ198:BS198),,),1) -> 1.604614239
A198: 16 | B198: 4.52 | C198: 4.76 | D198: 4.81 | E198: 14.82939633 | F198: 15.6167979 | G198: 15.7808399 | H198: 0.01482939633 | I198: 0.0156167979 | J198: 0.0157808399 | K198: 0.057 | L198: 0.058 | M198: 0.0014478 | N198: 0.0014732 | O198: 0.066 | P198: 0.072 | Q198: 0.006 | R198: 0.0645268 | S198: 0.0016764 | T198: 0.0018288 | U198: 0.0001524 | V198: 0.00163898072 | W198: 0.7142003225 | X198: 0.023843271 | Y198: 0.09305893623 | Z198: 9.131330194 | AA198: 1 | AB198: 9.131330194 | AC198: 0.04234970205 | AD198: 3.32824537 | AE198: 5.727265799 | AF198: 1.746832132 | AG198: 10.91217956 | AH198: 29.97602805 | AI198: 5.982237825 | AJ198: =$BT$303*$B$9^$BU$303 -> 45.01090716 | AY198: i max | AZ198: =(AZ140/($W$152*$U$152+$W$152*AZ197))^(1/2) -> 14.47423883 | BA198: =(BA140/($W$152*$U$152+$W$152*BA197))^(1/2) -> 22.30430404 | BB198: =(BB140/($W$152*$U$152+$W$152*BB197))^(1/2) -> 34.36497867 | BC198: 44.24808244 | BD198: 52.93779905 | BE198: 60.83546604 | BF198: 68.15416964 | BG198: 75.02390026 | BH198: 81.53120844 | BI198: 87.73732466 | BJ198: 93.68754543 | BK198: 99.41655031 | BL198: 104.9516237 | BM198: 110.3147129 | BN198: 115.5237994 | BO198: 120.5938464 | BP198: 125.5374707 | BQ198: 130.3654342 | BR198: 135.0870083 | BS198: 139.7102515
A199: 14 | B199: 2.88 | C199: 3 | D199: 3.06 | E199: 9.448818898 | F199: 9.842519685 | G199: 10.03937008 | H199: 0.009448818898 | I199: 0.009842519685 | J199: 0.01003937008 | K199: 0.072 | L199: 0.073 | M199: 0.0018288 | N199: 0.0018542 | O199: 0.083 | P199: 0.089 | Q199: 0.006 | R199: 0.0811458 | S199: 0.0021082 | T199: 0.0022606 | U199: 0.0001524 | V199: 0.00206110332 | W199: 0.7137731656 | X199: 0.01516848425 | Y199: 0.07522314075 | Z199: 8.449386248 | AA199: 1 | AB199: 8.449386248 | AC199: 0.04734356102 | AD199: 3.316627537 | AE199: 5.024783415 | AF199: 1.743368857 | AG199: 9.559270817 | AH199: 39.84406491 | AI199: 7.981694335 | AJ199: =$BT$307*$B$9^$BU$307 -> 28.13343493 | AX199: 55A08111
A200: 12 | B200: 1.9 | C200: 1.98 | D200: 2.02 | E200: 6.233595801 | F200: 6.496062992 | G200: 6.627296588 | H200: 0.006233595801 | I200: 0.006496062992 | J200: 0.006627296588 | K200: 0.089 | L200: 0.09 | M200: 0.0022606 | N200: 0.002286 | O200: 0.102 | P200: 0.108 | Q200: 0.006 | R200: 0.099714 | S200: 0.0025908 | T200: 0.0027432 | U200: 0.0001524 | V200: 0.0025327356 | W200: 0.7121196925 | X200: 0.01001318241 | Y200: 0.06195921103 | Z200: 7.886932917 | AA200: 1 | AB200: 7.886932917 | AC200: 0.05261237593 | AD200: 3.304664347 | AE200: 4.452151783 | AF200: 1.73976569 | AG200: 8.456809642 | AH200: 51.72299517 | AI200: 10.4014092 | AJ200: =$BT$311*$B$9^$BU$311 -> 18.23944029 | AY200: ΔT | AZ200: 5 | BA200: 10 | BB200: 20 | BC200: 30 | BD200: 40 | BE200: 50 | BF200: 60 | BG200: 70 | BH200: 80 | BI200: 90 | BJ200: 100 | BK200: 110 | BL200: 120 | BM200: 130 | BN200: 140 | BO200: 150 | BP200: 160 | BQ200: 170 | BR200: 180 | BS200: 190
... 241 more rows

Sheet indexmesure
B1: AWG20 0,5A | C1: =HYPERLINK("#mesure!A1",B1) -> AWG20 0,5A | D1: A1 | E1: 1 | F1: ="""#mesure!"&ADDRESS(1,E1)&"""" -> "#mesure!$A$1"
B2: AWG20 1A | D2: F1 | E2: 6 | F2: =ADDRESS(1,E2) -> $F$1
B3: AWG20 1,5A | C3: =HYPERLINK(mesure!K1,B3) -> AWG20 1,5A | D3: K1 | E3: 11 | F3: $K$1
B4: AWG20 2A | C4: =HYPERLINK(mesure!P1,B4) -> AWG20 2A | D4: p1 | E4: 16 | F4: $P$1
B5: AWG20 2A 2 | C5: =HYPERLINK(mesure!X1,B5) -> AWG20 2A 2 | D5: x1 | E5: =E4+8 -> 24 | F5: $X$1 | H5: "#mesure!$A$1"
B6: AWG20 2,5A | C6: =HYPERLINK(mesure!AC1,B6) -> AWG20 2,5A | D6: AC1 | E6: =E5+5 -> 29 | F6: =ADDRESS(1,E6) -> $AC$1
B7: AWG20 3A | C7: =HYPERLINK("#mesure!AH1",B7) -> AWG20 3A | D7: AH1 | E7: =E6+5 -> 34 | F7: $AH$1 | G7: #mesure!AH1
B8: AWG20 3,5A | C8: =HYPERLINK(mesure!AM1,B8) -> AWG20 3,5A | D8: AM1 | E8: 39 | F8: $AM$1
B9: AWG20 4A | C9: =HYPERLINK(mesure!AR1,B9) -> AWG20 4A | D9: ar | E9: 44 | F9: $AR$1
B10: AWG20 4,5A | C10: =HYPERLINK(mesure!AW1,B10) -> AWG20 4,5A | D10: aw | E10: 49 | F10: $AW$1
B11: AWG20 5A | C11: =HYPERLINK(mesure!BB1,B11) -> AWG20 5A | E11: 54 | F11: $BB$1
B12: AWG20 5,5A | C12: =HYPERLINK(mesure!BG1,B12) -> AWG20 5,5A | E12: 59 | F12: $BG$1
B13: AWG20 6A | C13: =HYPERLINK(BL1,B13) -> AWG20 6A | E13: 64 | F13: $BL$1
B14: AWG20 7A | C14: =HYPERLINK(mesure!BQ1,B14) -> AWG20 7A | E14: 69 | F14: $BQ$1
B15: AWG20 8A | C15: =HYPERLINK(mesure!BV1,B15) -> AWG20 8A | E15: 74 | F15: $BV$1
B16: AWG20 9A | C16: =HYPERLINK(mesure!CA1,B16) -> AWG20 9A | E16: 79 | F16: $CA$1
B17: AWG20 10A | C17: =HYPERLINK(mesure!CF1,B17) -> AWG20 10A | E17: 84 | F17: $CF$1
B18: AWG20 15A | C18: =HYPERLINK(mesure!CK1,B18) -> AWG20 15A | E18: 89 | F18: $CK$1
B19: AWG28 0,5A | C19: =HYPERLINK(mesure!CP1,B19) -> AWG28 0,5A | E19: 94 | F19: $CP$1
B20: AWG28 1A | C20: =HYPERLINK(mesure!CU1,B20) -> AWG28 1A | E20: 99 | F20: $CU$1
B21: AWG28 2A | C21: =HYPERLINK(mesure!CZ1,B21) -> AWG28 2A | E21: 104 | F21: $CZ$1
B22: AWG28 3A | C22: =HYPERLINK(mesure!DE1,B22) -> AWG28 3A | E22: 109 | F22: $DE$1
B23: AWG28 5A | C23: =HYPERLINK(mesure!DJ1,B23) -> AWG28 5A | E23: 114 | F23: $DJ$1
B24: AWG28 6A | C24: =HYPERLINK(mesure!DO1,B24) -> AWG28 6A | E24: 119 | F24: $DO$1
B25: AWG28 6A 2 | C25: =HYPERLINK(mesure!DT1,B25) -> AWG28 6A 2 | E25: 124 | F25: $DT$1
B26: AWG28 7A | C26: =HYPERLINK(mesure!DY1,B26) -> AWG28 7A | E26: 129 | F26: $DY$1
B27: AWG28 7,5A | C27: =HYPERLINK(mesure!ED1,B27) -> AWG28 7,5A | E27: 134 | F27: $ED$1
B28: AWG24 0,5A | C28: =HYPERLINK(mesure!EI1,B28) -> AWG24 0,5A | E28: 139 | F28: $EI$1
B29: AWG24 1A | C29: =HYPERLINK(mesure!EN1,B29) -> AWG24 1A | E29: 144 | F29: $EN$1
B30: AWG24 2A | C30: =HYPERLINK(mesure!ES1,B30) -> AWG24 2A | E30: 149 | F30: $ES$1
B31: AWG24 3A | C31: =HYPERLINK(mesure!EX1,B31) -> AWG24 3A | E31: 154 | F31: $EX$1
B32: AWG24 4A | C32: =HYPERLINK(mesure!FC1,B32) -> AWG24 4A | E32: 159 | F32: $FC$1
B33: AWG24 5A | C33: =HYPERLINK(mesure!FH1,B33) -> AWG24 5A | E33: 164 | F33: $FH$1
B34: AWG24 6A | C34: =HYPERLINK(mesure!FM1,B34) -> AWG24 6A | E34: 169 | F34: $FM$1
B35: AWG24 8A | C35: =HYPERLINK(mesure!FR1,B35) -> AWG24 8A | E35: 174 | F35: $FR$1
B36: AWG24 11A | C36: =HYPERLINK(mesure!FW1,B36) -> AWG24 11A | E36: 179 | F36: $FW$1
B37: AWG24 12A | C37: =HYPERLINK(mesure!GB1,B37) -> AWG24 12A | E37: 184 | F37: $GB$1
B38: AWG24 13A | C38: =HYPERLINK(mesure!GG1,B38) -> AWG24 13A | E38: 189 | F38: $GG$1
B39: AWG24 14A | C39: =HYPERLINK(mesure!GL1,B39) -> AWG24 14A | E39: 194 | F39: $GL$1
B40: AWG30 0,5A | C40: =HYPERLINK(mesure!HN1,B40) -> AWG30 0,5A | E40: 222 | F40: $HN$1
B41: AWG30 1A | C41: =HYPERLINK(mesure!HS1,B41) -> AWG30 1A | E41: =E40+5 -> 227 | F41: $HS$1
B42: AWG30 2A | C42: =HYPERLINK(mesure!HX1,B42) -> AWG30 2A | E42: 232 | F42: $HX$1
B43: AWG30 3A | C43: =HYPERLINK(mesure!IC1,B43) -> AWG30 3A | E43: 237 | F43: $IC$1
B44: AWG30 4A | C44: =HYPERLINK(mesure!IH1,B44) -> AWG30 4A | E44: 242 | F44: $IH$1
B45: AWG30 5A | C45: =HYPERLINK(mesure!IM1,B45) -> AWG30 5A | E45: 247 | F45: $IM$1
B46: AWG30 6A | C46: =HYPERLINK(mesure!IR1,B46) -> AWG30 6A | E46: 252 | F46: $IR$1

Sheet mesure
A1: AWG20 0,5A | F1: AWG20 1A | K1: AWG20 1,5A | P1: AWG20 2A | X1: AWG20 2A 2 | AC1: AWG20 2,5A | AH1: AWG20 3A | AM1: AWG20 3,5A | AR1: AWG20 4A | AW1: AWG20 4,5A | BB1: AWG20 5A | BG1: AWG20 5,5A | BL1: AWG20 6A | BQ1: AWG20 7A | BV1: AWG20 8A | CA1: AWG20 9A | CF1: AWG20 10A | CK1: AWG20 15A | CP1: AWG28 0,5A | CU1: AWG28 1A | CZ1: AWG28 2A | DE1: AWG28 3A | DJ1: AWG28 5A | DO1: AWG28 6A | DT1: AWG28 6A 2 | DY1: AWG28 7A | ED1: AWG28 7,5A | EI1: AWG24 0,5A | EN1: AWG24 1A | ES1: AWG24 2A | EX1: AWG24 3A | FC1: AWG24 4A | FH1: AWG24 5A | FM1: AWG24 6A | FR1: AWG24 8A | FW1: AWG24 11A | GB1: AWG24 12A | GG1: AWG24 13A | GL1: AWG24 14A | GQ1: =COLUMN(GP2) -> 198 | HN1: AWG30 0,5A | HS1: AWG30 1A | HX1: AWG30 2A | IC1: AWG30 3A | IH1: AWG30 4A | IM1: AWG30 5A | IR1: AWG30 6A
A2: t | B2: sortie alim Dernier (C) | C2: centre sans scotch Dernier (C) | D2: entre alim Dernier (C) | E2: air ambiant Dernier (C) | F2: t | G2: sortie alim Dernier (C) | H2: centre sans scotch Dernier (C) | I2: entre alim Dernier (C) | J2: air ambiant Dernier (C) | K2: t | L2: sortie alim Dernier (C) | M2: centre sans scotch Dernier (C) | N2: entre alim Dernier (C) | O2: air ambiant Dernier (C) | P2: t | Q2: sortie alim Dernier (C) | R2: centre sans scotch Dernier (C) | S2: entre alim Dernier (C) | T2: air ambiant Dernier (C) | U2: Delta T centre | V2: delta Tsortie alim | W2: entre alim delta | X2: t | Y2: entre cable Dernier (C) | Z2: sans scotch Dernier (C) | AA2: sortie cable Dernier (C) | AB2: temperature ambiante Dernier (C) | AC2: t | AD2: entre cable Dernier (C) | AE2: sans scotch Dernier (C) | AF2: sortie cable Dernier (C) | AG2: temperature ambiante Dernier (C) | AH2: t | AI2: entre cable Dernier (C) | AJ2: sans scotch Dernier (C) | AK2: sortie cable Dernier (C) | AL2: temperature ambiante Dernier (C) | AN2: entre cable Dernier (C) | AO2: sans scotch Dernier (C) | AP2: sortie cable Dernier (C) | AQ2: temperature ambiante Dernier (C) | AR2: t | AS2: entre cable Dernier (C) | AT2: sans scotch Dernier (C) | AU2: sortie cable Dernier © | AV2: temperature ambiante Dernier (C) | AW2: t | AX2: entre cable Dernier (C) | AY2: sans scotch Dernier (C) | AZ2: sortie cable Dernier (C) | BA2: temperature ambiante Dernier (C) | BB2: t | BC2: entre cable Dernier (C) | BD2: sans scotch Dernier (C) | BE2: sortie cable Dernier (C) | BF2: temperature ambiante Dernier (C) | BG2: t | BH2: entre cable Dernier (C) | BI2: sans scotch Dernier (C) | BJ2: sortie cable Dernier (C) | BK2: temperature ambiante Dernier (C) | BL2: t | BM2: entre cable Dernier (C) | BN2: sans scotch Dernier (C) | BO2: sortie cable Dernier (C) | BP2: temperature ambiante Dernier (C) | BQ2: t | BR2: entre cable Dernier (C) | BS2: sans scotch Dernier (C) | BT2: sortie cable Dernier (C) | BU2: temperature ambiante Dernier (C) | BV2: t | BW2: entre cable Dernier (C) | BX2: sans scotch Dernier (C) | BY2: sortie cable Dernier (C) | BZ2: temperature ambiante Dernier (C) | CA2: t | CB2: entre cable Dernier (C) | CC2: sans scotch Dernier (C) | CD2: sortie cable Dernier (C) | CE2: temperature ambiante Dernier (C) | CF2: t | CG2: entre cable Dernier (C) | CH2: sans scotch Dernier (C) | CI2: sortie cable Dernier (C) | CJ2: temperature ambiante Dernier (C) | CK2: t | CL2: entre cable Dernier (C) | CM2: sans scotch Dernier (C) | CN2: sortie cable Dernier (C) | CO2: temperature ambiante Dernier (C) | CP2: t | CQ2: sortie alim Dernier (C) | CR2: centre sans scotch Dernier (C) | CS2: entre alim Dernier (C) | CT2: air ambiant Dernier (C) | CU2: t | CV2: sortie alim Dernier (C) | CW2: centre sans scotch Dernier (C) | CX2: entre alim Dernier (C) | CY2: air ambiant Dernier (C) | CZ2: t | DA2: sortie alim Dernier (C) | DB2: centre sans scotch Dernier (C) | DC2: entre alim Dernier (C) | DD2: air ambiant Dernier (C) | DE2: t | DF2: sortie alim Dernier (C) | DG2: centre sans scotch Dernier (C) | DH2: entre alim Dernier (C) | DI2: air ambiant Dernier (C) | DJ2: t | DK2: sortie alim Dernier (C) | DL2: centre sans scotch Dernier (C) | DM2: entre alim Dernier (C) | DN2: air ambiant Dernier (C) | DO2: t | DP2: sortie alim Dernier (C) | DQ2: centre sans scotch Dernier (C) | DR2: entre alim Dernier (C) | DS2: air ambiant Dernier (C) | DT2: t | DU2: sortie alim Dernier (C) | DV2: centre sans scotch Dernier (C) | DW2: entre alim Dernier (C) | DX2: air ambiant Dernier (C) | DY2: t | DZ2: sortie alim Dernier (C) | EA2: centre sans scotch Dernier (C) | EB2: entre alim Dernier (C) | EC2: air ambiant Dernier (C) | ED2: t | EE2: sortie alim Dernier (C) | EF2: centre sans scotch Dernier (C) | EG2: entre alim Dernier (C) | EH2: air ambiant Dernier (C) | EI2: t | EJ2: sortie alim Dernier (C) | EK2: centre sans scotch Dernier (C) | EL2: entre alim Dernier (C) | EM2: air ambiant Dernier (C) | EN2: t | EO2: sortie alim Dernier (C) | EP2: centre sans scotch Dernier (C) | EQ2: entre alim Dernier (C) | ER2: air ambiant Dernier (C) | ES2: t | ET2: sortie alim Dernier (C) | EU2: centre sans scotch Dernier (C) | EV2: entre alim Dernier (C) | EW2: air ambiant Dernier (C) | EX2: t | EY2: sortie alim Dernier (C) | EZ2: centre sans scotch Dernier (C) | FA2: entre alim Dernier (C) | FB2: air ambiant Dernier (C) | FC2: t | FD2: sortie alim Dernier (C) | FE2: centre sans scotch Dernier (C) | FF2: entre alim Dernier (C) | FG2: air ambiant Dernier (C) | FH2: t | FI2: sortie alim Dernier (C) | FJ2: centre sans scotch Dernier (C) | FK2: entre alim Dernier (C) | FL2: air ambiant Dernier (C) | FM2: t | FN2: sortie alim Dernier (C) | FO2: centre sans scotch Dernier (C) | FP2: entre alim Dernier (C) | FQ2: air ambiant Dernier (C) | FS2: sortie alim Dernier (C) | FT2: centre sans scotch Dernier (C) | FU2: entre alim Dernier (C) | FV2: air ambiant Dernier (C) | FW2: t | FX2: sortie alim Dernier (C) | FY2: centre sans scotch Dernier (C) | FZ2: entre alim Dernier (C) | GA2: air ambiant Dernier (C) | GB2: t | GC2: sortie alim Dernier (C) | GD2: centre sans scotch Dernier (C) | GE2: entre alim Dernier (C) | GF2: air ambiant Dernier (C) | GG2: t | GH2: sortie alim Dernier (C) | GI2: centre sans scotch Dernier (C) | GJ2: entre alim Dernier (C) | GK2: air ambiant Dernier (C) | GL2: t | GM2: sortie alim Dernier (C) | GN2: centre sans scotch Dernier (C) | GO2: entre alim Dernier (C) | GP2: air ambiant Dernier (C) | HN2: t | HO2: sortie alim Dernier (C) | HP2: centre sans scotch Dernier (C) | HQ2: entre alim Dernier (C) | HR2: air ambiant Dernier (C) | HT2: sortie alim Dernier (C) | HU2: centre sans scotch Dernier (C) | HV2: entre alim Dernier (C) | HW2: air ambiant Dernier (C) | HX2: t | HY2: sortie alim Dernier (C) | HZ2: centre sans scotch Dernier (C) | IA2: entre alim Dernier (C) | IB2: air ambiant Dernier (C) | IC2: t | ID2: sortie alim Dernier (C) | IE2: centre sans scotch Dernier (C) | IF2: entre alim Dernier (C) | IG2: air ambiant Dernier (C) | II2: sortie alim Dernier (C) | IJ2: centre sans scotch Dernier (C) | IK2: entre alim Dernier (C) | IL2: air ambiant Dernier (C) | IN2: sortie alim Dernier (C) | IO2: centre sans scotch Dernier (C) | IP2: entre alim Dernier (C) | IQ2: air ambiant Dernier (C) | IS2: sortie alim Dernier (C) | IT2: centre sans scotch Dernier (C) | IU2: entre alim Dernier (C) | IV2: air ambiant Dernier (C)
A3: 00:00:00 | B3: 24.561 | C3: 24.587 | D3: 24.488 | E3: 24.58 | F3: 00:00:00 | G3: 24.611 | H3: 24.611 | I3: 24.501 | J3: 24.549 | K3: 00:00:00 | L3: 24.641 | M3: 24.587 | N3: 24.506 | O3: 24.409 | P3: 00:00:00 | Q3: 24.743 | R3: 24.73 | S3: 24.605 | T3: 24.546 | U3: =R3-24.72 -> 0.01 | V3: =Q3-24.73 -> 0.013 | W3: =S3-24.6 -> 0.005 | X3: 00:00:00 | Y3: 23.035 | Z3: 23.051 | AA3: 23.002 | AB3: 23.129 | AC3: 00:00:00 | AD3: 23.159 | AE3: 23.152 | AF3: 22.984 | AG3: 23.005 | AH3: 00:00:00 | AI3: 23.281 | AJ3: 23.209 | AK3: 23.062 | AL3: 23.108 | AM3: 00:00:00 | AN3: 23.293 | AO3: 23.192 | AP3: 23.047 | AQ3: 22.995 | AR3: 00:00:00 | AS3: 23.698 | AT3: 23.847 | AU3: 23.558 | AV3: 22.87 | AW3: 00:00:00 | AX3: 23.539 | AY3: 23.424 | AZ3: 23.244 | BA3: 23.152 | BB3: 00:00:00 | BC3: 23.65 | BD3: 23.495 | BE3: 23.374 | BF3: 23.216 | BG3: 00:00:00 | BH3: 23.71 | BI3: 23.581 | BJ3: 23.43 | BK3: 23.298 | BL3: 00:00:00 | BM3: 23.733 | BN3: 23.579 | BO3: 23.435 | BP3: 23.181 | BQ3: 00:00:00 | BR3: 23.799 | BS3: 23.637 | BT3: 23.493 | BU3: 23.184 | BV3: 00:00:00 | BW3: 24.687 | BX3: 24.581 | BY3: 24.456 | BZ3: 24.537 | CA3: 00:00:00 | CB3: 24.84 | CC3: 24.682 | CD3: 24.553 | CE3: 24.457 | CF3: 00:00:00 | CG3: 24.892 | CH3: 24.701 | CI3: 24.583 | CJ3: 24.263 | CK3: 00:00:00 | CL3: 26.287 | CM3: 25.54 | CN3: 26.011 | CO3: 24.293 | CP3: 00:00:00 | CQ3: 23.85 | CR3: 23.796 | CS3: 23.646 | CT3: 23.125 | CU3: 00:00:00 | CV3: 23.993 | CW3: 23.916 | CX3: 23.815 | CY3: 23.141 | CZ3: 00:00:00 | DA3: 23.906 | DB3: 23.816 | DC3: 23.698 | DD3: 23.172 | DE3: 00:00:00 | DF3: 24.009 | DG3: 23.912 | DH3: 23.816 | DI3: 23.207 | DJ3: 00:00:00 | DK3: 24.072 | DL3: 23.969 | DM3: 23.837 | DN3: 23.224 | DO3: 00:00:00 | DP3: 24.325 | DQ3: 24.17 | DR3: 24.091 | DS3: 23.311 | DT3: 00:00:00 | DU3: 24 | DV3: 23.927 | DW3: 23.861 | DX3: 23.441 | DY3: 00:00:00 | DZ3: 24.395 | EA3: 24.261 | EB3: 24.211 | EC3: 23.902 | ED3: 00:00:00 | EE3: 31.767 | EF3: 29.525 | EG3: 30.437 | EH3: 25.75 | EI3: 00:00:00 | EJ3: 25.617 | EK3: 25.636 | EL3: 25.367 | EM3: 24.926 | EN3: 00:00:00 | EO3: 25.844 | EP3: 25.716 | EQ3: 25.554 | ER3: 25.234 | ES3: 00:00:00 | ET3: 25.398 | EU3: 25.291 | EV3: 25.133 | EW3: 24.864 | EX3: 00:00:00 | EY3: 25.729 | EZ3: 25.586 | FA3: 25.453 | FB3: 25.254 | FC3: 00:00:00 | FD3: 25.748 | FE3: 25.605 | FF3: 25.469 | FG3: 25.237 | FH3: 00:00:00 | FI3: 25.492 | FJ3: 25.386 | FK3: 25.205 | FL3: 25.012 | FM3: 00:00:00 | FN3: 25.827 | FO3: 25.661 | FP3: 25.529 | FQ3: 25.22 | FR3: 00:00:00 | FS3: 24.401 | FT3: 24.416 | FU3: 24.372 | FV3: 24.519 | FW3: 00:00:00 | FX3: 23.576 | FY3: 23.584 | FZ3: 23.569 | GA3: 23.823 | GB3: 00:00:00 | GC3: 24.705 | GD3: 24.643 | GE3: 24.584 | GF3: 24.672 | GG3: 00:00:00 | GH3: 25.51 | GI3: 25.591 | GJ3: 25.378 | GK3: 25.466 | GL3: 00:00:00 | GM3: 25.965 | GN3: 25.909 | GO3: 25.685 | GP3: 25.07 | HN3: 00:00:00 | HO3: 26.017 | HP3: 25.969 | HQ3: 25.656 | HR3: 25.737 | HS3: 00:00:00 | HT3: 26.126 | HU3: 26.064 | HV3: 25.784 | HW3: 25.482 | HX3: 00:00:00 | HY3: 25.481 | HZ3: 25.65 | IA3: 25.245 | IB3: 24.936 | IC3: 00:00:00 | ID3: 25.897 | IE3: 25.763 | IF3: 25.603 | IG3: 25.325 | IH3: 00:00:00 | II3: 25.722 | IJ3: 25.63 | IK3: 25.398 | IL3: 25.295 | IM3: 00:00:00 | IN3: 25.755 | IO3: 25.718 | IP3: 25.428 | IQ3: 25.361 | IR3: 00:00:00 | IS3: 25.993 | IT3: 25.993 | IU3: 25.647 | IV3: 25.636
A4: 00:00:01 | B4: 24.565 | C4: 24.595 | D4: 24.488 | E4: 24.576 | F4: 00:00:01 | G4: 24.612 | H4: 24.615 | I4: 24.505 | J4: 24.556 | K4: 00:00:01 | L4: 24.628 | M4: 24.575 | N4: 24.497 | O4: 24.415 | P4: 00:00:01 | Q4: 24.738 | R4: 24.725 | S4: 24.6 | T4: 24.539 | U4: =R4-24.72 -> 0.005 | V4: =Q4-24.73 -> 0.008 | W4: =S4-24.6 -> 0 | X4: 00:00:01 | Y4: 23.02 | Z4: 23.046 | AA4: 22.995 | AB4: 23.123 | AC4: 00:00:01 | AD4: 23.156 | AE4: 23.147 | AF4: 22.979 | AG4: 22.999 | AH4: 00:00:01 | AI4: 23.281 | AJ4: 23.207 | AK4: 23.06 | AL4: 23.108 | AM4: 00:00:01 | AN4: 23.294 | AO4: 23.192 | AP4: 23.051 | AQ4: 23.001 | AR4: 00:00:01 | AS4: 23.685 | AT4: 23.825 | AU4: 23.53 | AV4: 22.87 | AW4: 00:00:01 | AX4: 23.55 | AY4: 23.421 | AZ4: 23.248 | BA4: 23.163 | BB4: 00:00:01 | BC4: 23.654 | BD4: 23.488 | BE4: 23.374 | BF4: 23.216 | BG4: 00:00:01 | BH4: 23.703 | BI4: 23.585 | BJ4: 23.427 | BK4: 23.302 | BL4: 00:00:01 | BM4: 23.73 | BN4: 23.579 | BO4: 23.435 | BP4: 23.181 | BQ4: 00:00:01 | BR4: 23.806 | BS4: 23.64 | BT4: 23.493 | BU4: 23.192 | BV4: 00:00:01 | BW4: 24.684 | BX4: 24.592 | BY4: 24.46 | BZ4: 24.548 | CA4: 00:00:01 | CB4: 24.833 | CC4: 24.675 | CD4: 24.546 | CE4: 24.458 | CF4: 00:00:01 | CG4: 24.896 | CH4: 24.701 | CI4: 24.572 | CJ4: 24.256 | CK4: 00:00:01 | CL4: 26.28 | CM4: 25.514 | CN4: 25.974 | CO4: 24.296 | CP4: 00:00:01 | CQ4: 23.855 | CR4: 23.789 | CS4: 23.647 | CT4: 23.123 | CU4: 00:00:01 | CV4: 23.989 | CW4: 23.91 | CX4: 23.804 | CY4: 23.149 | CZ4: 00:00:01 | DA4: 23.915 | DB4: 23.823 | DC4: 23.703 | DD4: 23.175 | DE4: 00:00:01 | DF4: 24.011 | DG4: 23.908 | DH4: 23.814 | DI4: 23.209 | DJ4: 00:00:01 | DK4: 24.069 | DL4: 23.966 | DM4: 23.833 | DN4: 23.221 | DO4: 00:00:01 | DP4: 24.31 | DQ4: 24.158 | DR4: 24.095 | DS4: 23.311 | DT4: 00:00:01 | DU4: 24 | DV4: 23.919 | DW4: 23.857 | DX4: 23.437 | DY4: 00:00:01 | DZ4: 24.404 | EA4: 24.27 | EB4: 24.22 | EC4: 23.911 | ED4: 00:00:01 | EE4: 31.426 | EF4: 29.356 | EG4: 30.12 | EH4: 25.747 | EI4: 00:00:01 | EJ4: 25.629 | EK4: 25.632 | EL4: 25.378 | EM4: 24.918 | EN4: 00:00:01 | EO4: 25.844 | EP4: 25.719 | EQ4: 25.55 | ER4: 25.23 | ES4: 00:00:01 | ET4: 25.405 | EU4: 25.291 | EV4: 25.144 | EW4: 24.879 | EX4: 00:00:01 | EY4: 25.722 | EZ4: 25.586 | FA4: 25.453 | FB4: 25.255 | FC4: 00:00:01 | FD4: 25.748 | FE4: 25.601 | FF4: 25.458 | FG4: 25.23 | FH4: 00:00:01 | FI4: 25.489 | FJ4: 25.386 | FK4: 25.209 | FL4: 25.018 | FM4: 00:00:01 | FN4: 25.832 | FO4: 25.671 | FP4: 25.533 | FQ4: 25.22 | FR4: 00:00:01 | FS4: 24.395 | FT4: 24.417 | FU4: 24.362 | FV4: 24.52 | FW4: 00:00:01 | FX4: 23.577 | FY4: 23.584 | FZ4: 23.566 | GA4: 23.816 | GB4: 00:00:01 | GC4: 24.709 | GD4: 24.643 | GE4: 24.584 | GF4: 24.672 | GG4: 00:00:01 | GH4: 25.526 | GI4: 25.603 | GJ4: 25.401 | GK4: 25.493 | GL4: 00:00:01 | GM4: 25.954 | GN4: 25.902 | GO4: 25.678 | GP4: 25.064 | HN4: 00:00:01 | HO4: 26.002 | HP4: 25.973 | HQ4: 25.656 | HR4: 25.733 | HS4: 00:00:01 | HT4: 26.112 | HU4: 26.053 | HV4: 25.766 | HW4: 25.49 | HX4: 00:00:01 | HY4: 25.477 | HZ4: 25.639 | IA4: 25.234 | IB4: 24.944 | IC4: 00:00:01 | ID4: 25.895 | IE4: 25.756 | IF4: 25.586 | IG4: 25.329 | IH4: 00:00:01 | II4: 25.724 | IJ4: 25.632 | IK4: 25.4 | IL4: 25.297 | IM4: 00:00:01 | IN4: 25.755 | IO4: 25.707 | IP4: 25.428 | IQ4: 25.358 | IR4: 00:00:01 | IS4: 25.99 | IT4: 25.982 | IU4: 25.64 | IV4: 25.629
A5: 00:00:02 | B5: 24.558 | C5: 24.573 | D5: 24.481 | E5: 24.584 | F5: 00:00:02 | G5: 24.617 | H5: 24.619 | I5: 24.512 | J5: 24.557 | K5: 00:00:02 | L5: 24.628 | M5: 24.566 | N5: 24.492 | O5: 24.408 | P5: 00:00:02 | Q5: 24.738 | R5: 24.723 | S5: 24.6 | T5: 24.539 | U5: 0.003 | V5: 0.008 | W5: 0 | X5: 00:00:02 | Y5: 23.026 | Z5: 23.048 | AA5: 22.997 | AB5: 23.118 | AC5: 00:00:02 | AD5: 23.152 | AE5: 23.138 | AF5: 22.97 | AG5: 22.996 | AH5: 00:00:02 | AI5: 23.274 | AJ5: 23.204 | AK5: 23.055 | AL5: 23.099 | AM5: 00:00:02 | AN5: 23.294 | AO5: 23.194 | AP5: 23.053 | AQ5: 23.005 | AR5: 00:00:02 | AS5: 23.685 | AT5: 23.807 | AU5: 23.51 | AV5: 22.872 | AW5: 00:00:02 | AX5: 23.539 | AY5: 23.414 | AZ5: 23.237 | BA5: 23.149 | BB5: 00:00:02 | BC5: 23.643 | BD5: 23.499 | BE5: 23.382 | BF5: 23.216 | BG5: 00:00:02 | BH5: 23.7 | BI5: 23.582 | BJ5: 23.424 | BK5: 23.291 | BL5: 00:00:02 | BM5: 23.73 | BN5: 23.583 | BO5: 23.435 | BP5: 23.182 | BQ5: 00:00:02 | BR5: 23.806 | BS5: 23.648 | BT5: 23.497 | BU5: 23.181 | BV5: 00:00:02 | BW5: 24.688 | BX5: 24.589 | BY5: 24.471 | BZ5: 24.556 | CA5: 00:00:02 | CB5: 24.826 | CC5: 24.664 | CD5: 24.55 | CE5: 24.451 | CF5: 00:00:02 | CG5: 24.896 | CH5: 24.69 | CI5: 24.573 | CJ5: 24.263 | CK5: 00:00:02 | CL5: 26.273 | CM5: 25.489 | CN5: 25.934 | CO5: 24.286 | CP5: 00:00:02 | CQ5: 23.844 | CR5: 23.786 | CS5: 23.638 | CT5: 23.121 | CU5: 00:00:02 | CV5: 23.977 | CW5: 23.899 | CX5: 23.793 | CY5: 23.143 | CZ5: 00:00:02 | DA5: 23.91 | DB5: 23.818 | DC5: 23.698 | DD5: 23.17 | DE5: 00:00:02 | DF5: 24.009 | DG5: 23.912 | DH5: 23.814 | DI5: 23.209 | DJ5: 00:00:02 | DK5: 24.069 | DL5: 23.969 | DM5: 23.839 | DN5: 23.223 | DO5: 00:00:02 | DP5: 24.31 | DQ5: 24.156 | DR5: 24.095 | DS5: 23.308 | DT5: 00:00:02 | DU5: 24 | DV5: 23.919 | DW5: 23.853 | DX5: 23.434 | DY5: 00:00:02 | DZ5: 24.404 | EA5: 24.274 | EB5: 24.224 | EC5: 23.911 | ED5: 00:00:02 | EE5: 31.026 | EF5: 29.134 | EG5: 29.732 | EH5: 25.754 | EI5: 00:00:02 | EJ5: 25.625 | EK5: 25.636 | EL5: 25.371 | EM5: 24.919 | EN5: 00:00:02 | EO5: 25.841 | EP5: 25.712 | EQ5: 25.532 | ER5: 25.226 | ES5: 00:00:02 | ET5: 25.409 | EU5: 25.298 | EV5: 25.14 | EW5: 24.883 | EX5: 00:00:02 | EY5: 25.715 | EZ5: 25.589 | FA5: 25.446 | FB5: 25.244 | FC5: 00:00:02 | FD5: 25.749 | FE5: 25.612 | FF5: 25.469 | FG5: 25.237 | FH5: 00:00:02 | FI5: 25.482 | FJ5: 25.375 | FK5: 25.206 | FL5: 25.014 | FM5: 00:00:02 | FN5: 25.82 | FO5: 25.658 | FP5: 25.518 | FQ5: 25.212 | FR5: 00:00:02 | FS5: 24.395 | FT5: 24.41 | FU5: 24.351 | FV5: 24.513 | FW5: 00:00:02 | FX5: 23.58 | FY5: 23.584 | FZ5: 23.573 | GA5: 23.831 | GB5: 00:00:02 | GC5: 24.698 | GD5: 24.643 | GE5: 24.581 | GF5: 24.68 | GG5: 00:00:02 | GH5: 25.533 | GI5: 25.611 | GJ5: 25.401 | GK5: 25.511 | GL5: 00:00:02 | GM5: 25.954 | GN5: 25.888 | GO5: 25.663 | GP5: 25.097 | HN5: 00:00:02 | HO5: 26.002 | HP5: 25.962 | HQ5: 25.649 | HR5: 25.73 | HS5: 00:00:02 | HT5: 26.086 | HU5: 26.036 | HV5: 25.748 | HW5: 25.488 | HX5: 00:00:02 | HY5: 25.477 | HZ5: 25.622 | IA5: 25.245 | IB5: 24.966 | IC5: 00:00:02 | ID5: 25.888 | IE5: 25.748 | IF5: 25.583 | IG5: 25.329 | IH5: 00:00:02 | II5: 25.731 | IJ5: 25.632 | IK5: 25.4 | IL5: 25.305 | IM5: 00:00:02 | IN5: 25.757 | IO5: 25.713 | IP5: 25.431 | IQ5: 25.36 | IR5: 00:00:02 | IS5: 25.975 | IT5: 25.975 | IU5: 25.622 | IV5: 25.614
A6: 00:00:03 | B6: 24.551 | C6: 24.588 | D6: 24.488 | E6: 24.577 | F6: 00:00:03 | G6: 24.619 | H6: 24.619 | I6: 24.502 | J6: 24.553 | K6: 00:00:03 | L6: 24.619 | M6: 24.555 | N6: 24.48 | O6: 24.411 | P6: 00:00:03 | Q6: 24.742 | R6: 24.727 | S6: 24.598 | T6: 24.541 | U6: 0.007 | V6: 0.012 | W6: -0.002 | X6: 00:00:03 | Y6: 23.023 | Z6: 23.047 | AA6: 22.995 | AB6: 23.117 | AC6: 00:00:03 | AD6: 23.153 | AE6: 23.136 | AF6: 22.969 | AG6: 23.006 | AH6: 00:00:03 | AI6: 23.274 | AJ6: 23.206 | AK6: 23.061 | AL6: 23.109 | AM6: 00:00:03 | AN6: 23.298 | AO6: 23.193 | AP6: 23.055 | AQ6: 23.011 | AR6: 00:00:03 | AS6: 23.667 | AT6: 23.788 | AU6: 23.49 | AV6: 22.88 | AW6: 00:00:03 | AX6: 23.543 | AY6: 23.418 | AZ6: 23.234 | BA6: 23.153 | BB6: 00:00:03 | BC6: 23.65 | BD6: 23.5 | BE6: 23.378 | BF6: 23.216 | BG6: 00:00:03 | BH6: 23.696 | BI6: 23.578 | BJ6: 23.413 | BK6: 23.291 | BL6: 00:00:03 | BM6: 23.734 | BN6: 23.59 | BO6: 23.439 | BP6: 23.189 | BQ6: 00:00:03 | BR6: 23.81 | BS6: 23.644 | BT6: 23.49 | BU6: 23.192 | BV6: 00:00:03 | BW6: 24.685 | BX6: 24.589 | BY6: 24.46 | BZ6: 24.556 | CA6: 00:00:03 | CB6: 24.822 | CC6: 24.664 | CD6: 24.539 | CE6: 24.455 | CF6: 00:00:03 | CG6: 24.889 | CH6: 24.687 | CI6: 24.562 | CJ6: 24.26 | CK6: 00:00:03 | CL6: 26.262 | CM6: 25.467 | CN6: 25.905 | CO6: 24.286 | CP6: 00:00:03 | CQ6: 23.848 | CR6: 23.793 | CS6: 23.644 | CT6: 23.123 | CU6: 00:00:03 | CV6: 23.966 | CW6: 23.881 | CX6: 23.778 | CY6: 23.134 | CZ6: 00:00:03 | DA6: 23.899 | DB6: 23.812 | DC6: 23.689 | DD6: 23.165 | DE6: 00:00:03 | DF6: 24.008 | DG6: 23.905 | DH6: 23.809 | DI6: 23.202 | DJ6: 00:00:03 | DK6: 24.073 | DL6: 23.959 | DM6: 23.833 | DN6: 23.223 | DO6: 00:00:03 | DP6: 24.303 | DQ6: 24.15 | DR6: 24.09 | DS6: 23.306 | DT6: 00:00:03 | DU6: 24 | DV6: 23.923 | DW6: 23.853 | DX6: 23.437 | DY6: 00:00:03 | DZ6: 24.419 | EA6: 24.289 | EB6: 24.235 | EC6: 23.919 | ED6: 00:00:03 | EE6: 30.762 | EF6: 28.963 | EG6: 29.467 | EH6: 25.777 | EI6: 00:00:03 | EJ6: 25.636 | EK6: 25.633 | EL6: 25.368 | EM6: 24.919 | EN6: 00:00:03 | EO6: 25.834 | EP6: 25.705 | EQ6: 25.539 | ER6: 25.223 | ES6: 00:00:03 | ET6: 25.402 | EU6: 25.288 | EV6: 25.144 | EW6: 24.887 | EX6: 00:00:03 | EY6: 25.715 | EZ6: 25.586 | FA6: 25.442 | FB6: 25.244 | FC6: 00:00:03 | FD6: 25.745 | FE6: 25.616 | FF6: 25.465 | FG6: 25.233 | FH6: 00:00:03 | FI6: 25.491 | FJ6: 25.386 | FK6: 25.209 | FL6: 25.018 | FM6: 00:00:03 | FN6: 25.82 | FO6: 25.647 | FP6: 25.514 | FQ6: 25.212 | FR6: 00:00:03 | FS6: 24.392 | FT6: 24.41 | FU6: 24.348 | FV6: 24.506 | FW6: 00:00:03 | FX6: 23.588 | FY6: 23.588 | FZ6: 23.57 | GA6: 23.82 | GB6: 00:00:03 | GC6: 24.702 | GD6: 24.644 | GE6: 24.581 | GF6: 24.677 | GG6: 00:00:03 | GH6: 25.545 | GI6: 25.622 | GJ6: 25.409 | GK6: 25.523 | GL6: 00:00:03 | GM6: 25.955 | GN6: 25.911 | GO6: 25.66 | GP6: 25.149 | HN6: 00:00:03 | HO6: 25.998 | HP6: 25.962 | HQ6: 25.642 | HR6: 25.734 | HS6: 00:00:03 | HT6: 26.064 | HU6: 26.02 | HV6: 25.733 | HW6: 25.498 | HX6: 00:00:03 | HY6: 25.474 | HZ6: 25.613 | IA6: 25.242 | IB6: 24.984 | IC6: 00:00:03 | ID6: 25.864 | IE6: 25.732 | IF6: 25.563 | IG6: 25.323 | IH6: 00:00:03 | II6: 25.715 | IJ6: 25.629 | IK6: 25.391 | IL6: 25.294 | IM6: 00:00:03 | IN6: 25.766 | IO6: 25.722 | IP6: 25.435 | IQ6: 25.362 | IR6: 00:00:03 | IS6: 25.971 | IT6: 25.968 | IU6: 25.614 | IV6: 25.607
A7: 00:00:04 | B7: 24.559 | C7: 24.592 | D7: 24.489 | E7: 24.574 | F7: 00:00:04 | G7: 24.609 | H7: 24.62 | I7: 24.495 | J7: 24.546 | K7: 00:00:04 | L7: 24.618 | M7: 24.548 | N7: 24.476 | O7: 24.391 | P7: 00:00:04 | Q7: 24.739 | R7: 24.729 | S7: 24.604 | T7: 24.544 | U7: 0.009 | V7: 0.009 | W7: 0.004 | X7: 00:00:04 | Y7: 23.023 | Z7: 23.043 | AA7: 22.992 | AB7: 23.108 | AC7: 00:00:04 | AD7: 23.146 | AE7: 23.131 | AF7: 22.96 | AG7: 23.004 | AH7: 00:00:04 | AI7: 23.278 | AJ7: 23.204 | AK7: 23.055 | AL7: 23.111 | AM7: 00:00:04 | AN7: 23.3 | AO7: 23.197 | AP7: 23.053 | AQ7: 23.011 | AR7: 00:00:04 | AS7: 23.666 | AT7: 23.772 | AU7: 23.472 | AV7: 22.893 | AW7: 00:00:04 | AX7: 23.543 | AY7: 23.418 | AZ7: 23.237 | BA7: 23.149 | BB7: 00:00:04 | BC7: 23.651 | BD7: 23.5 | BE7: 23.375 | BF7: 23.216 | BG7: 00:00:04 | BH7: 23.693 | BI7: 23.568 | BJ7: 23.409 | BK7: 23.295 | BL7: 00:00:04 | BM7: 23.726 | BN7: 23.583 | BO7: 23.432 | BP7: 23.171 | BQ7: 00:00:04 | BR7: 23.803 | BS7: 23.645 | BT7: 23.501 | BU7: 23.192 | BV7: 00:00:04 | BW7: 24.689 | BX7: 24.593 | BY7: 24.468 | BZ7: 24.56 | CA7: 00:00:04 | CB7: 24.826 | CC7: 24.664 | CD7: 24.536 | CE7: 24.447 | CF7: 00:00:04 | CG7: 24.904 | CH7: 24.713 | CI7: 24.584 | CJ7: 24.271 | CK7: 00:00:04 | CL7: 26.258 | CM7: 25.486 | CN7: 25.872 | CO7: 24.283 | CP7: 00:00:04 | CQ7: 23.846 | CR7: 23.797 | CS7: 23.65 | CT7: 23.122 | CU7: 00:00:04 | CV7: 23.966 | CW7: 23.885 | CX7: 23.774 | CY7: 23.136 | CZ7: 00:00:04 | DA7: 23.895 | DB7: 23.803 | DC7: 23.687 | DD7: 23.15 | DE7: 00:00:04 | DF7: 24.002 | DG7: 23.908 | DH7: 23.809 | DI7: 23.204 | DJ7: 00:00:04 | DK7: 24.069 | DL7: 23.962 | DM7: 23.832 | DN7: 23.219 | DO7: 00:00:04 | DP7: 24.298 | DQ7: 24.151 | DR7: 24.09 | DS7: 23.303 | DT7: 00:00:04 | DU7: 23.993 | DV7: 23.916 | DW7: 23.842 | DX7: 23.437 | DY7: 00:00:04 | DZ7: 24.412 | EA7: 24.285 | EB7: 24.234 | EC7: 23.919 | ED7: 00:00:04 | EE7: 30.509 | EF7: 28.792 | EG7: 29.23 | EH7: 25.788 | EI7: 00:00:04 | EJ7: 25.629 | EK7: 25.636 | EL7: 25.371 | EM7: 24.919 | EN7: 00:00:04 | EO7: 25.834 | EP7: 25.705 | EQ7: 25.536 | ER7: 25.226 | ES7: 00:00:04 | ET7: 25.398 | EU7: 25.295 | EV7: 25.137 | EW7: 24.887 | EX7: 00:00:04 | EY7: 25.715 | EZ7: 25.582 | FA7: 25.442 | FB7: 25.247 | FC7: 00:00:04 | FD7: 25.745 | FE7: 25.612 | FF7: 25.465 | FG7: 25.237 | FH7: 00:00:04 | FI7: 25.496 | FJ7: 25.39 | FK7: 25.209 | FL7: 25.018 | FM7: 00:00:04 | FN7: 25.809 | FO7: 25.656 | FP7: 25.516 | FQ7: 25.207 | FR7: 00:00:04 | FS7: 24.404 | FT7: 24.411 | FU7: 24.36 | FV7: 24.514 | FW7: 00:00:04 | FX7: 23.577 | FY7: 23.581 | FZ7: 23.566 | GA7: 23.82 | GB7: 00:00:04 | GC7: 24.703 | GD7: 24.64 | GE7: 24.57 | GF7: 24.673 | GG7: 00:00:04 | GH7: 25.553 | GI7: 25.626 | GJ7: 25.42 | GK7: 25.531 | GL7: 00:00:04 | GM7: 25.941 | GN7: 25.915 | GO7: 25.654 | GP7: 25.153 | HN7: 00:00:04 | HO7: 26.01 | HP7: 25.966 | HQ7: 25.642 | HR7: 25.726 | HS7: 00:00:04 | HT7: 26.053 | HU7: 26.009 | HV7: 25.726 | HW7: 25.487 | HX7: 00:00:04 | HY7: 25.47 | HZ7: 25.61 | IA7: 25.234 | IB7: 24.992 | IC7: 00:00:04 | ID7: 25.851 | IE7: 25.708 | IF7: 25.55 | IG7: 25.318 | IH7: 00:00:04 | II7: 25.717 | IJ7: 25.636 | IK7: 25.393 | IL7: 25.298 | IM7: 00:00:04 | IN7: 25.763 | IO7: 25.715 | IP7: 25.432 | IQ7: 25.354 | IR7: 00:00:04 | IS7: 25.964 | IT7: 25.96 | IU7: 25.618 | IV7: 25.607
A8: 00:00:05 | B8: 24.548 | C8: 24.574 | D8: 24.486 | E8: 24.559 | F8: 00:00:05 | G8: 24.605 | H8: 24.607 | I8: 24.497 | J8: 24.543 | K8: 00:00:05 | L8: 24.611 | M8: 24.552 | N8: 24.473 | O8: 24.373 | P8: 00:00:05 | Q8: 24.739 | R8: 24.726 | S8: 24.608 | T8: 24.542 | U8: 0.006 | V8: 0.009 | W8: 0.008 | X8: 00:00:05 | Y8: 23.014 | Z8: 23.038 | AA8: 22.983 | AB8: 23.101 | AC8: 00:00:05 | AD8: 23.148 | AE8: 23.137 | AF8: 22.964 | AG8: 23.003 | AH8: 00:00:05 | AI8: 23.278 | AJ8: 23.201 | AK8: 23.059 | AL8: 23.107 | AM8: 00:00:05 | AN8: 23.296 | AO8: 23.202 | AP8: 23.055 | AQ8: 23.016 | AR8: 00:00:05 | AS8: 23.673 | AT8: 23.771 | AU8: 23.463 | AV8: 22.897 | AW8: 00:00:05 | AX8: 23.536 | AY8: 23.414 | AZ8: 23.238 | BA8: 23.149 | BB8: 00:00:05 | BC8: 23.655 | BD8: 23.511 | BE8: 23.375 | BF8: 23.228 | BG8: 00:00:05 | BH8: 23.689 | BI8: 23.571 | BJ8: 23.406 | BK8: 23.299 | BL8: 00:00:05 | BM8: 23.73 | BN8: 23.583 | BO8: 23.44 | BP8: 23.179 | BQ8: 00:00:05 | BR8: 23.818 | BS8: 23.656 | BT8: 23.516 | BU8: 23.211 | BV8: 00:00:05 | BW8: 24.696 | BX8: 24.593 | BY8: 24.465 | BZ8: 24.553 | CA8: 00:00:05 | CB8: 24.819 | CC8: 24.665 | CD8: 24.543 | CE8: 24.451 | CF8: 00:00:05 | CG8: 24.901 | CH8: 24.702 | CI8: 24.573 | CJ8: 24.275 | CK8: 00:00:05 | CL8: 26.236 | CM8: 25.471 | CN8: 25.843 | CO8: 24.294 | CP8: 00:00:05 | CQ8: 23.845 | CR8: 23.793 | CS8: 23.644 | CT8: 23.122 | CU8: 00:00:05 | CV8: 23.957 | CW8: 23.877 | CX8: 23.765 | CY8: 23.14 | CZ8: 00:00:05 | DA8: 23.895 | DB8: 23.807 | DC8: 23.687 | DD8: 23.161 | DE8: 00:00:05 | DF8: 24.002 | DG8: 23.901 | DH8: 23.811 | DI8: 23.2 | DJ8: 00:00:05 | DK8: 24.066 | DL8: 23.959 | DM8: 23.826 | DN8: 23.216 | DO8: 00:00:05 | DP8: 24.294 | DQ8: 24.143 | DR8: 24.097 | DS8: 23.303 | DT8: 00:00:05 | DU8: 23.997 | DV8: 23.923 | DW8: 23.849 | DX8: 23.441 | DY8: 00:00:05 | DZ8: 24.409 | EA8: 24.287 | EB8: 24.238 | EC8: 23.917 | ED8: 00:00:05 | EE8: 30.192 | EF8: 28.577 | EG8: 28.932 | EH8: 25.761 | EI8: 00:00:05 | EJ8: 25.625 | EK8: 25.633 | EL8: 25.375 | EM8: 24.915 | EN8: 00:00:05 | EO8: 25.83 | EP8: 25.701 | EQ8: 25.532 | ER8: 25.226 | ES8: 00:00:05 | ET8: 25.413 | EU8: 25.306 | EV8: 25.144 | EW8: 24.901 | EX8: 00:00:05 | EY8: 25.715 | EZ8: 25.586 | FA8: 25.442 | FB8: 25.236 | FC8: 00:00:05 | FD8: 25.749 | FE8: 25.605 | FF8: 25.458 | FG8: 25.233 | FH8: 00:00:05 | FI8: 25.493 | FJ8: 25.386 | FK8: 25.209 | FL8: 25.011 | FM8: 00:00:05 | FN8: 25.797 | FO8: 25.641 | FP8: 25.499 | FQ8: 25.207 | FR8: 00:00:05 | FS8: 24.397 | FT8: 24.419 | FU8: 24.36 | FV8: 24.511 | FW8: 00:00:05 | FX8: 23.581 | FY8: 23.581 | FZ8: 23.563 | GA8: 23.817 | GB8: 00:00:05 | GC8: 24.707 | GD8: 24.64 | GE8: 24.585 | GF8: 24.673 | GG8: 00:00:05 | GH8: 25.568 | GI8: 25.634 | GJ8: 25.424 | GK8: 25.546 | GL8: 00:00:05 | GM8: 25.944 | GN8: 25.919 | GO8: 25.646 | GP8: 25.117 | HN8: 00:00:05 | HO8: 25.999 | HP8: 25.958 | HQ8: 25.638 | HR8: 25.734 | HS8: 00:00:05 | HT8: 26.03 | HU8: 25.991 | HV8: 25.7 | HW8: 25.487 | HX8: 00:00:05 | HY8: 25.477 | HZ8: 25.597 | IA8: 25.247 | IB8: 25.027 | IC8: 00:00:05 | ID8: 25.848 | IE8: 25.712 | IF8: 25.542 | IG8: 25.318 | IH8: 00:00:05 | II8: 25.721 | IJ8: 25.632 | IK8: 25.397 | IL8: 25.305 | IM8: 00:00:05 | IN8: 25.754 | IO8: 25.715 | IP8: 25.422 | IQ8: 25.347 | IR8: 00:00:05 | IS8: 25.968 | IT8: 25.964 | IU8: 25.611 | IV8: 25.607
A9: 00:00:06 | B9: 24.549 | C9: 24.574 | D9: 24.475 | E9: 24.571 | F9: 00:00:06 | G9: 24.605 | H9: 24.598 | I9: 24.499 | J9: 24.539 | K9: 00:00:06 | L9: 24.594 | M9: 24.534 | N9: 24.46 | O9: 24.344 | P9: 00:00:06 | Q9: 24.737 | R9: 24.732 | S9: 24.601 | T9: 24.542 | U9: 0.012 | V9: 0.007 | W9: 0.001 | X9: 00:00:06 | Y9: 23.005 | Z9: 23.033 | AA9: 22.978 | AB9: 23.092 | AC9: 00:00:06 | AD9: 23.148 | AE9: 23.134 | AF9: 22.963 | AG9: 23.003 | AH9: 00:00:06 | AI9: 23.275 | AJ9: 23.201 | AK9: 23.052 | AL9: 23.102 | AM9: 00:00:06 | AN9: 23.302 | AO9: 23.203 | AP9: 23.059 | AQ9: 23.02 | AR9: 00:00:06 | AS9: 23.661 | AT9: 23.751 | AU9: 23.443 | AV9: 22.903 | AW9: 00:00:06 | AX9: 23.536 | AY9: 23.414 | AZ9: 23.234 | BA9: 23.149 | BB9: 00:00:06 | BC9: 23.651 | BD9: 23.504 | BE9: 23.368 | BF9: 23.224 | BG9: 00:00:06 | BH9: 23.697 | BI9: 23.575 | BJ9: 23.421 | BK9: 23.296 | BL9: 00:00:06 | BM9: 23.734 | BN9: 23.583 | BO9: 23.429 | BP9: 23.186 | BQ9: 00:00:06 | BR9: 23.811 | BS9: 23.649 | BT9: 23.512 | BU9: 23.2 | BV9: 00:00:06 | BW9: 24.693 | BX9: 24.594 | BY9: 24.469 | BZ9: 24.568 | CA9: 00:00:06 | CB9: 24.812 | CC9: 24.658 | CD9: 24.536 | CE9: 24.448 | CF9: 00:00:06 | CG9: 24.894 | CH9: 24.699 | CI9: 24.577 | CJ9: 24.265 | CK9: 00:00:06 | CL9: 26.214 | CM9: 25.471 | CN9: 25.81 | CO9: 24.294 | CP9: 00:00:06 | CQ9: 23.839 | CR9: 23.786 | CS9: 23.641 | CT9: 23.124 | CU9: 00:00:06 | CV9: 23.948 | CW9: 23.87 | CX9: 23.754 | CY9: 23.129 | CZ9: 00:00:06 | DA9: 23.901 | DB9: 23.811 | DC9: 23.682 | DD9: 23.159 | DE9: 00:00:06 | DF9: 23.999 | DG9: 23.903 | DH9: 23.806 | DI9: 23.2 | DJ9: 00:00:06 | DK9: 24.066 | DL9: 23.957 | DM9: 23.826 | DN9: 23.21 | DO9: 00:00:06 | DP9: 24.296 | DQ9: 24.147 | DR9: 24.088 | DS9: 23.295 | DT9: 00:00:06 | DU9: 23.993 | DV9: 23.916 | DW9: 23.846 | DX9: 23.434 | DY9: 00:00:06 | DZ9: 24.403 | EA9: 24.287 | EB9: 24.232 | EC9: 23.925 | ED9: 00:00:06 | EE9: 29.972 | EF9: 28.419 | EG9: 28.728 | EH9: 25.726 | EI9: 00:00:06 | EJ9: 25.64 | EK9: 25.64 | EL9: 25.379 | EM9: 24.916 | EN9: 00:00:06 | EO9: 25.845 | EP9: 25.716 | EQ9: 25.547 | ER9: 25.23 | ES9: 00:00:06 | ET9: 25.413 | EU9: 25.306 | EV9: 25.159 | EW9: 24.912 | EX9: 00:00:06 | EY9: 25.711 | EZ9: 25.582 | FA9: 25.439 | FB9: 25.236 | FC9: 00:00:06 | FD9: 25.741 | FE9: 25.598 | FF9: 25.454 | FG9: 25.222 | FH9: 00:00:06 | FI9: 25.498 | FJ9: 25.39 | FK9: 25.207 | FL9: 25.012 | FM9: 00:00:06 | FN9: 25.79 | FO9: 25.636 | FP9: 25.496 | FQ9: 25.205 | FR9: 00:00:06 | FS9: 24.39 | FT9: 24.416 | FU9: 24.346 | FV9: 24.504 | FW9: 00:00:06 | FX9: 23.566 | FY9: 23.57 | FZ9: 23.552 | GA9: 23.806 | GB9: 00:00:06 | GC9: 24.707 | GD9: 24.64 | GE9: 24.585 | GF9: 24.685 | GG9: 00:00:06 | GH9: 25.576 | GI9: 25.642 | GJ9: 25.436 | GK9: 25.561 | GL9: 00:00:06 | GM9: 25.971 | GN9: 25.953 | GO9: 25.64 | GP9: 25.088 | HN9: 00:00:06 | HO9: 26.01 | HP9: 25.958 | HQ9: 25.638 | HR9: 25.734 | HS9: 00:00:06 | HT9: 26.013 | HU9: 25.987 | HV9: 25.689 | HW9: 25.487 | HX9: 00:00:06 | HY9: 25.477 | HZ9: 25.595 | IA9: 25.246 | IB9: 25.032 | IC9: 00:00:06 | ID9: 25.829 | IE9: 25.703 | IF9: 25.531 | IG9: 25.324 | IH9: 00:00:06 | II9: 25.726 | IJ9: 25.64 | IK9: 25.401 | IL9: 25.307 | IM9: 00:00:06 | IN9: 25.759 | IO9: 25.711 | IP9: 25.428 | IQ9: 25.358 | IR9: 00:00:06 | IS9: 25.972 | IT9: 25.961 | IU9: 25.622 | IV9: 25.611
A10: 00:00:07 | B10: 24.553 | C10: 24.578 | D10: 24.483 | E10: 24.567 | F10: 00:00:07 | G10: 24.606 | H10: 24.609 | I10: 24.499 | J10: 24.541 | K10: 00:00:07 | L10: 24.587 | M10: 24.527 | N10: 24.458 | O10: 24.332 | P10: 00:00:07 | Q10: 24.739 | R10: 24.726 | S10: 24.601 | T10: 24.54 | U10: 0.006 | V10: 0.009 | W10: 0.001 | X10: 00:00:07 | Y10: 23.015 | Z10: 23.041 | AA10: 22.985 | AB10: 23.098 | AC10: 00:00:07 | AD10: 23.147 | AE10: 23.136 | AF10: 22.966 | AG10: 23.003 | AH10: 00:00:07 | AI10: 23.277 | AJ10: 23.202 | AK10: 23.06 | AL10: 23.106 | AM10: 00:00:07 | AN10: 23.302 | AO10: 23.203 | AP10: 23.054 | AQ10: 23.015 | AR10: 00:00:07 | AS10: 23.652 | AT10: 23.736 | AU10: 23.422 | AV10: 22.908 | AW10: 00:00:07 | AX10: 23.529 | AY10: 23.411 | AZ10: 23.227 | BA10: 23.146 | BB10: 00:00:07 | BC10: 23.648 | BD10: 23.508 | BE10: 23.375 | BF10: 23.239 | BG10: 00:00:07 | BH10: 23.697 | BI10: 23.587 | BJ10: 23.417 | BK10: 23.307 | BL10: 00:00:07 | BM10: 23.734 | BN10: 23.591 | BO10: 23.447 | BP10: 23.194 | BQ10: 00:00:07 | BR10: 23.818 | BS10: 23.652 | BT10: 23.513 | BU10: 23.207 | BV10: 00:00:07 | BW10: 24.697 | BX10: 24.594 | BY10: 24.465 | BZ10: 24.557 | CA10: 00:00:07 | CB10: 24.816 | CC10: 24.658 | CD10: 24.536 | CE10: 24.456 | CF10: 00:00:07 | CG10: 24.898 | CH10: 24.706 | CI10: 24.581 | CJ10: 24.272 | CK10: 00:00:07 | CL10: 26.181 | CM10: 25.438 | CN10: 25.784 | CO10: 24.29 | CP10: 00:00:07 | CQ10: 23.852 | CR10: 23.806 | CS10: 23.659 | CT10: 23.133 | CU10: 00:00:07 | CV10: 23.944 | CW10: 23.865 | CX10: 23.753 | CY10: 23.133 | CZ10: 00:00:07 | DA10: 23.897 | DB10: 23.805 | DC10: 23.689 | DD10: 23.161 | DE10: 00:00:07 | DF10: 23.999 | DG10: 23.896 | DH10: 23.802 | DI10: 23.197 | DJ10: 00:00:07 | DK10: 24.066 | DL10: 23.953 | DM10: 23.828 | DN10: 23.218 | DO10: 00:00:07 | DP10: 24.291 | DQ10: 24.142 | DR10: 24.09 | DS10: 23.303 | DT10: 00:00:07 | DU10: 23.989 | DV10: 23.905 | DW10: 23.842 | DX10: 23.43 | DY10: 00:00:07 | DZ10: 24.409 | EA10: 24.286 | EB10: 24.234 | EC10: 23.931 | ED10: 00:00:07 | EE10: 29.751 | EF10: 28.267 | EG10: 28.545 | EH10: 25.706 | EI10: 00:00:07 | EJ10: 25.648 | EK10: 25.637 | EL10: 25.387 | EM10: 24.916 | EN10: 00:00:07 | EO10: 25.848 | EP10: 25.72 | EQ10: 25.552 | ER10: 25.235 | ES10: 00:00:07 | ET10: 25.416 | EU10: 25.31 | EV10: 25.163 | EW10: 24.905 | EX10: 00:00:07 | EY10: 25.715 | EZ10: 25.582 | FA10: 25.446 | FB10: 25.247 | FC10: 00:00:07 | FD10: 25.741 | FE10: 25.601 | FF10: 25.458 | FG10: 25.23 | FH10: 00:00:07 | FI10: 25.511 | FJ10: 25.401 | FK10: 25.217 | FL10: 25.014 | FM10: 00:00:07 | FN10: 25.792 | FO10: 25.634 | FP10: 25.494 | FQ10: 25.198 | FR10: 00:00:07 | FS10: 24.398 | FT10: 24.42 | FU10: 24.357 | FV10: 24.508 | FW10: 00:00:07 | FX10: 23.563 | FY10: 23.578 | FZ10: 23.559 | GA10: 23.802 | GB10: 00:00:07 | GC10: 24.714 | GD10: 24.652 | GE10: 24.589 | GF10: 24.677 | GG10: 00:00:07 | GH10: 25.587 | GI10: 25.635 | GJ10: 25.437 | GK10: 25.569 | GL10: 00:00:07 | GM10: 25.953 | GN10: 25.905 | GO10: 25.629 | GP10: 25.055 | HN10: 00:00:07 | HO10: 26.003 | HP10: 25.959 | HQ10: 25.646 | HR10: 25.723 | HS10: 00:00:07 | HT10: 26.002 | HU10: 25.966 | HV10: 25.679 | HW10: 25.491 | HX10: 00:00:07 | HY10: 25.47 | HZ10: 25.588 | IA10: 25.246 | IB10: 25.04 | IC10: 00:00:07 | ID10: 25.826 | IE10: 25.693 | IF10: 25.524 | IG10: 25.318 | IH10: 00:00:07 | II10: 25.721 | IJ10: 25.636 | IK10: 25.39 | IL10: 25.298 | IM10: 00:00:07 | IN10: 25.767 | IO10: 25.726 | IP10: 25.436 | IQ10: 25.362 | IR10: 00:00:07 | IS10: 25.961 | IT10: 25.957 | IU10: 25.611 | IV10: 25.604
A11: 00:00:08 | B11: 24.542 | C11: 24.575 | D11: 24.476 | E11: 24.568 | F11: 00:00:08 | G11: 24.61 | H11: 24.606 | I11: 24.492 | J11: 24.536 | K11: 00:00:08 | L11: 24.593 | M11: 24.543 | N11: 24.464 | O11: 24.341 | P11: 00:00:08 | Q11: 24.732 | R11: 24.717 | S11: 24.596 | T11: 24.537 | U11: -0.003 | V11: 0.002 | W11: -0.004 | X11: 00:00:08 | Y11: 23.006 | Z11: 23.034 | AA11: 22.971 | AB11: 23.089 | AC11: 00:00:08 | AD11: 23.153 | AE11: 23.14 | AF11: 22.976 | AG11: 23.007 | AH11: 00:00:08 | AI11: 23.281 | AJ11: 23.202 | AK11: 23.055 | AL11: 23.108 | AM11: 00:00:08 | AN11: 23.295 | AO11: 23.194 | AP11: 23.052 | AQ11: 23.008 | AR11: 00:00:08 | AS11: 23.65 | AT11: 23.729 | AU11: 23.402 | AV11: 22.912 | AW11: 00:00:08 | AX11: 23.532 | AY11: 23.407 | AZ11: 23.223 | BA11: 23.142 | BB11: 00:00:08 | BC11: 23.659 | BD11: 23.508 | BE11: 23.376 | BF11: 23.258 | BG11: 00:00:08 | BH11: 23.708 | BI11: 23.587 | BJ11: 23.41 | BK11: 23.307 | BL11: 00:00:08 | BM11: 23.738 | BN11: 23.598 | BO11: 23.444 | BP11: 23.19 | BQ11: 00:00:08 | BR11: 23.811 | BS11: 23.664 | BT11: 23.509 | BU11: 23.211 | BV11: 00:00:08 | BW11: 24.697 | BX11: 24.598 | BY11: 24.458 | BZ11: 24.561 | CA11: 00:00:08 | CB11: 24.809 | CC11: 24.651 | CD11: 24.537 | CE11: 24.459 | CF11: 00:00:08 | CG11: 24.89 | CH11: 24.707 | CI11: 24.585 | CJ11: 24.283 | CK11: 00:00:08 | CL11: 26.149 | CM11: 25.428 | CN11: 25.759 | CO11: 24.324 | CP11: 00:00:08 | CQ11: 23.856 | CR11: 23.804 | CS11: 23.661 | CT11: 23.135 | CU11: 00:00:08 | CV11: 23.944 | CW11: 23.868 | CX11: 23.754 | CY11: 23.14 | CZ11: 00:00:08 | DA11: 23.903 | DB11: 23.807 | DC11: 23.688 | DD11: 23.165 | DE11: 00:00:08 | DF11: 23.997 | DG11: 23.896 | DH11: 23.798 | DI11: 23.195 | DJ11: 00:00:08 | DK11: 24.064 | DL11: 23.957 | DM11: 23.832 | DN11: 23.214 | DO11: 00:00:08 | DP11: 24.287 | DQ11: 24.144 | DR11: 24.09 | DS11: 23.31 | DT11: 00:00:08 | DU11: 23.988 | DV11: 23.907 | DW11: 23.844 | DX11: 23.432 | DY11: 00:00:08 | DZ11: 24.415 | EA11: 24.295 | EB11: 24.247 | EC11: 23.949 | ED11: 00:00:08 | EE11: 29.483 | EF11: 28.102 | EG11: 28.313 | EH11: 25.684 | EI11: 00:00:08 | EJ11: 25.633 | EK11: 25.641 | EL11: 25.372 | EM11: 24.901 | EN11: 00:00:08 | EO11: 25.841 | EP11: 25.72 | EQ11: 25.554 | ER11: 25.234 | ES11: 00:00:08 | ET11: 25.424 | EU11: 25.306 | EV11: 25.17 | EW11: 24.913 | EX11: 00:00:08 | EY11: 25.711 | EZ11: 25.582 | FA11: 25.435 | FB11: 25.233 | FC11: 00:00:08 | FD11: 25.73 | FE11: 25.601 | FF11: 25.454 | FG11: 25.237 | FH11: 00:00:08 | FI11: 25.618 | FJ11: 25.489 | FK11: 25.276 | FL11: 25.018 | FM11: 00:00:08 | FN11: 25.794 | FO11: 25.636 | FP11: 25.499 | FQ11: 25.212 | FR11: 00:00:08 | FS11: 24.402 | FT11: 24.424 | FU11: 24.354 | FV11: 24.501 | FW11: 00:00:08 | FX11: 23.578 | FY11: 23.582 | FZ11: 23.567 | GA11: 23.817 | GB11: 00:00:08 | GC11: 24.715 | GD11: 24.652 | GE11: 24.589 | GF11: 24.685 | GG11: 00:00:08 | GH11: 25.58 | GI11: 25.643 | GJ11: 25.437 | GK11: 25.58 | GL11: 00:00:08 | GM11: 25.935 | GN11: 25.898 | GO11: 25.611 | GP11: 25.088 | HN11: 00:00:08 | HO11: 25.999 | HP11: 25.947 | HQ11: 25.635 | HR11: 25.719 | HS11: 00:00:08 | HT11: 25.977 | HU11: 25.949 | HV11: 25.651 | HW11: 25.485 | HX11: 00:00:08 | HY11: 25.465 | HZ11: 25.577 | IA11: 25.244 | IB11: 25.051 | IC11: 00:00:08 | ID11: 25.815 | IE11: 25.693 | IF11: 25.517 | IG11: 25.318 | IH11: 00:00:08 | II11: 25.721 | IJ11: 25.636 | IK11: 25.39 | IL11: 25.298 | IM11: 00:00:08 | IN11: 25.758 | IO11: 25.715 | IP11: 25.426 | IQ11: 25.351 | IR11: 00:00:08 | IS11: 25.968 | IT11: 25.957 | IU11: 25.611 | IV11: 25.608
A12: 00:00:09 | B12: 24.553 | C12: 24.575 | D12: 24.483 | E12: 24.568 | F12: 00:00:09 | G12: 24.603 | H12: 24.614 | I12: 24.503 | J12: 24.536 | K12: 00:00:09 | L12: 24.604 | M12: 24.56 | N12: 24.472 | O12: 24.387 | P12: 00:00:09 | Q12: 24.743 | R12: 24.729 | S12: 24.6 | T12: 24.545 | U12: 0.009 | V12: 0.013 | W12: 0 | X12: 00:00:09 | Y12: 23.001 | Z12: 23.028 | AA12: 22.96 | AB12: 23.078 | AC12: 00:00:09 | AD12: 23.149 | AE12: 23.138 | AF12: 22.973 | AG12: 23.004 | AH12: 00:00:09 | AI12: 23.265 | AJ12: 23.197 | AK12: 23.051 | AL12: 23.105 | AM12: 00:00:09 | AN12: 23.297 | AO12: 23.196 | AP12: 23.054 | AQ12: 23.015 | AR12: 00:00:09 | AS12: 23.641 | AT12: 23.715 | AU12: 23.382 | AV12: 22.918 | AW12: 00:00:09 | AX12: 23.522 | AY12: 23.4 | AZ12: 23.216 | BA12: 23.131 | BB12: 00:00:09 | BC12: 23.655 | BD12: 23.501 | BE12: 23.372 | BF12: 23.258 | BG12: 00:00:09 | BH12: 23.694 | BI12: 23.576 | BJ12: 23.422 | BK12: 23.308 | BL12: 00:00:09 | BM12: 23.738 | BN12: 23.598 | BO12: 23.444 | BP12: 23.197 | BQ12: 00:00:09 | BR12: 23.826 | BS12: 23.668 | BT12: 23.517 | BU12: 23.219 | BV12: 00:00:09 | BW12: 24.698 | BX12: 24.595 | BY12: 24.466 | BZ12: 24.561 | CA12: 00:00:09 | CB12: 24.809 | CC12: 24.658 | CD12: 24.537 | CE12: 24.449 | CF12: 00:00:09 | CG12: 24.902 | CH12: 24.707 | CI12: 24.585 | CJ12: 24.287 | CK12: 00:00:09 | CL12: 26.127 | CM12: 25.428 | CN12: 25.74 | CO12: 24.317 | CP12: 00:00:09 | CQ12: 23.858 | CR12: 23.799 | CS12: 23.654 | CT12: 23.131 | CU12: 00:00:09 | CV12: 23.94 | CW12: 23.863 | CX12: 23.751 | CY12: 23.136 | CZ12: 00:00:09 | DA12: 23.899 | DB12: 23.809 | DC12: 23.691 | DD12: 23.167 | DE12: 00:00:09 | DF12: 24.006 | DG12: 23.902 | DH12: 23.808 | DI12: 23.201 | DJ12: 00:00:09 | DK12: 24.149 | DL12: 24.066 | DM12: 24.026 | DN12: 23.222 | DO12: 00:00:09 | DP12: 24.287 | DQ12: 24.144 | DR12: 24.091 | DS12: 23.305 | DT12: 00:00:09 | DU12: 23.989 | DV12: 23.908 | DW12: 23.844 | DX12: 23.432 | DY12: 00:00:09 | DZ12: 24.422 | EA12: 24.305 | EB12: 24.257 | EC12: 23.953 | ED12: 00:00:09 | EE12: 29.299 | EF12: 27.975 | EG12: 28.148 | EH12: 25.661 | EI12: 00:00:09 | EJ12: 25.637 | EK12: 25.63 | EL12: 25.372 | EM12: 24.901 | EN12: 00:00:09 | EO12: 25.848 | EP12: 25.72 | EQ12: 25.547 | ER12: 25.234 | ES12: 00:00:09 | ET12: 25.424 | EU12: 25.317 | EV12: 25.178 | EW12: 24.92 | EX12: 00:00:09 | EY12: 25.715 | EZ12: 25.575 | FA12: 25.439 | FB12: 25.236 | FC12: 00:00:09 | FD12: 25.741 | FE12: 25.601 | FF12: 25.454 | FG12: 25.226 | FH12: 00:00:09 | FI12: 25.756 | FJ12: 25.609 | FK12: 25.369 | FL12: 25.014 | FM12: 00:00:09 | FN12: 25.794 | FO12: 25.643 | FP12: 25.5 | FQ12: 25.213 | FR12: 00:00:09 | FS12: 24.399 | FT12: 24.417 | FU12: 24.355 | FV12: 24.509 | FW12: 00:00:09 | FX12: 23.567 | FY12: 23.578 | FZ12: 23.56 | GA12: 23.821 | GB12: 00:00:09 | GC12: 24.726 | GD12: 24.649 | GE12: 24.59 | GF12: 24.682 | GG12: 00:00:09 | GH12: 25.592 | GI12: 25.647 | GJ12: 25.456 | GK12: 25.588 | GL12: 00:00:09 | GM12: 25.91 | GN12: 25.888 | GO12: 25.604 | GP12: 25.244 | HN12: 00:00:09 | HO12: 25.999 | HP12: 25.959 | HQ12: 25.627 | HR12: 25.708 | HS12: 00:00:09 | HT12: 25.962 | HU12: 25.933 | HV12: 25.638 | HW12: 25.484 | HX12: 00:00:09 | HY12: 25.459 | HZ12: 25.566 | IA12: 25.246 | IB12: 25.047 | IC12: 00:00:09 | ID12: 25.806 | IE12: 25.679 | IF12: 25.502 | IG12: 25.317 | IH12: 00:00:09 | II12: 25.71 | IJ12: 25.631 | IK12: 25.384 | IL12: 25.287 | IM12: 00:00:09 | IN12: 25.767 | IO12: 25.723 | IP12: 25.439 | IQ12: 25.37 | IR12: 00:00:09 | IS12: 25.968 | IT12: 25.961 | IU12: 25.611 | IV12: 25.604
A13: 00:00:10 | B13: 24.557 | C13: 24.576 | D13: 24.484 | E13: 24.568 | F13: 00:00:10 | G13: 24.61 | H13: 24.61 | I13: 24.496 | J13: 24.544 | K13: 00:00:10 | L13: 24.597 | M13: 24.568 | N13: 24.467 | O13: 24.415 | P13: 00:00:10 | Q13: 24.736 | R13: 24.718 | S13: 24.596 | T13: 24.537 | U13: -0.002 | V13: 0.006 | W13: -0.004 | X13: 00:00:10 | Y13: 23.009 | Z13: 23.031 | AA13: 22.959 | AB13: 23.069 | AC13: 00:00:10 | AD13: 23.144 | AE13: 23.131 | AF13: 22.966 | AG13: 22.993 | AH13: 00:00:10 | AI13: 23.272 | AJ13: 23.197 | AK13: 23.055 | AL13: 23.103 | AM13: 00:00:10 | AN13: 23.303 | AO13: 23.205 | AP13: 23.064 | AQ13: 23.021 | AR13: 00:00:10 | AS13: 23.63 | AT13: 23.704 | AU13: 23.367 | AV13: 22.92 | AW13: 00:00:10 | AX13: 23.514 | AY13: 23.4 | AZ13: 23.227 | BA13: 23.143 | BB13: 00:00:10 | BC13: 23.652 | BD13: 23.505 | BE13: 23.369 | BF13: 23.258 | BG13: 00:00:10 | BH13: 23.713 | BI13: 23.587 | BJ13: 23.422 | BK13: 23.315 | BL13: 00:00:10 | BM13: 23.746 | BN13: 23.595 | BO13: 23.444 | BP13: 23.194 | BQ13: 00:00:10 | BR13: 23.826 | BS13: 23.664 | BT13: 23.524 | BU13: 23.226 | BV13: 00:00:10 | BW13: 24.694 | BX13: 24.602 | BY13: 24.459 | BZ13: 24.558 | CA13: 00:00:10 | CB13: 24.813 | CC13: 24.662 | CD13: 24.537 | CE13: 24.456 | CF13: 00:00:10 | CG13: 24.902 | CH13: 24.707 | CI13: 24.582 | CJ13: 24.288 | CK13: 00:00:10 | CL13: 26.098 | CM13: 25.421 | CN13: 25.722 | CO13: 24.324 | CP13: 00:00:10 | CQ13: 23.853 | CR13: 23.799 | CS13: 23.654 | CT13: 23.133 | CU13: 00:00:10 | CV13: 23.935 | CW13: 23.859 | CX13: 23.742 | CY13: 23.135 | CZ13: 00:00:10 | DA13: 23.9 | DB13: 23.811 | DC13: 23.695 | DD13: 23.166 | DE13: 00:00:10 | DF13: 24.001 | DG13: 23.898 | DH13: 23.797 | DI13: 23.195 | DJ13: 00:00:10 | DK13: 24.41 | DL13: 24.408 | DM13: 24.502 | DN13: 23.224 | DO13: 00:00:10 | DP13: 24.278 | DQ13: 24.139 | DR13: 24.087 | DS13: 23.3 | DT13: 00:00:10 | DU13: 23.986 | DV13: 23.908 | DW13: 23.837 | DX13: 23.43 | DY13: 00:00:10 | DZ13: 24.417 | EA13: 24.301 | EB13: 24.249 | EC13: 23.959 | ED13: 00:00:10 | EE13: 29.119 | EF13: 27.874 | EG13: 28.003 | EH13: 25.655 | EI13: 00:00:10 | EJ13: 25.634 | EK13: 25.626 | EL13: 25.372 | EM13: 24.898 | EN13: 00:00:10 | EO13: 25.845 | EP13: 25.72 | EQ13: 25.547 | ER13: 25.234 | ES13: 00:00:10 | ET13: 25.435 | EU13: 25.325 | EV13: 25.185 | EW13: 24.931 | EX13: 00:00:10 | EY13: 25.722 | EZ13: 25.582 | FA13: 25.446 | FB13: 25.236 | FC13: 00:00:10 | FD13: 25.738 | FE13: 25.609 | FF13: 25.447 | FG13: 25.222 | FH13: 00:00:10 | FI13: 25.953 | FJ13: 25.754 | FK13: 25.497 | FL13: 25.007 | FM13: 00:00:10 | FN13: 25.792 | FO13: 25.641 | FP13: 25.496 | FQ13: 25.209 | FR13: 00:00:10 | FS13: 24.403 | FT13: 24.421 | FU13: 24.352 | FV13: 24.51 | FW13: 00:00:10 | FX13: 23.571 | FY13: 23.578 | FZ13: 23.56 | GA13: 23.817 | GB13: 00:00:10 | GC13: 24.708 | GD13: 24.649 | GE13: 24.583 | GF13: 24.686 | GG13: 00:00:10 | GH13: 25.607 | GI13: 25.655 | GJ13: 25.467 | GK13: 25.592 | GL13: 00:00:10 | GM13: 25.884 | GN13: 25.877 | GO13: 25.597 | GP13: 25.329 | HN13: 00:00:10 | HO13: 25.995 | HP13: 25.948 | HQ13: 25.628 | HR13: 25.712 | HS13: 00:00:10 | HT13: 25.948 | HU13: 25.926 | HV13: 25.628 | HW13: 25.477 | HX13: 00:00:10 | HY13: 25.452 | HZ13: 25.555 | IA13: 25.242 | IB13: 25.058 | IC13: 00:00:10 | ID13: 25.808 | IE13: 25.686 | IF13: 25.51 | IG13: 25.329 | IH13: 00:00:10 | II13: 25.703 | IJ13: 25.625 | IK13: 25.379 | IL13: 25.283 | IM13: 00:00:10 | IN13: 25.774 | IO13: 25.73 | IP13: 25.436 | IQ13: 25.362 | IR13: 00:00:10 | IS13: 25.957 | IT13: 25.95 | IU13: 25.615 | IV13: 25.608
A14: 00:00:11 | B14: 24.55 | C14: 24.58 | D14: 24.488 | E14: 24.572 | F14: 00:00:11 | G14: 24.609 | H14: 24.61 | I14: 24.498 | J14: 24.537 | K14: 00:00:11 | L14: 24.607 | M14: 24.574 | N14: 24.465 | O14: 24.425 | P14: 00:00:11 | Q14: 24.736 | R14: 24.722 | S14: 24.591 | T14: 24.54 | U14: 0.002 | V14: 0.006 | W14: -0.009 | X14: 00:00:11 | Y14: 22.996 | Z14: 23.022 | AA14: 22.944 | AB14: 23.064 | AC14: 00:00:11 | AD14: 23.141 | AE14: 23.128 | AF14: 22.953 | AG14: 22.992 | AH14: 00:00:11 | AI14: 23.269 | AJ14: 23.197 | AK14: 23.054 | AL14: 23.101 | AM14: 00:00:11 | AN14: 23.305 | AO14: 23.202 | AP14: 23.06 | AQ14: 23.018 | AR14: 00:00:11 | AS14: 23.629 | AT14: 23.693 | AU14: 23.349 | AV14: 22.924 | AW14: 00:00:11 | AX14: 23.533 | AY14: 23.408 | AZ14: 23.227 | BA14: 23.15 | BB14: 00:00:11 | BC14: 23.652 | BD14: 23.501 | BE14: 23.372 | BF14: 23.258 | BG14: 00:00:11 | BH14: 23.705 | BI14: 23.58 | BJ14: 23.422 | BK14: 23.315 | BL14: 00:00:11 | BM14: 23.735 | BN14: 23.592 | BO14: 23.444 | BP14: 23.19 | BQ14: 00:00:11 | BR14: 23.822 | BS14: 23.664 | BT14: 23.524 | BU14: 23.23 | BV14: 00:00:11 | BW14: 24.698 | BX14: 24.606 | BY14: 24.466 | BZ14: 24.566 | CA14: 00:00:11 | CB14: 24.817 | CC14: 24.655 | CD14: 24.534 | CE14: 24.464 | CF14: 00:00:11 | CG14: 24.891 | CH14: 24.715 | CI14: 24.59 | CJ14: 24.306 | CK14: 00:00:11 | CL14: 26.068 | CM14: 25.402 | CN14: 25.686 | CO14: 24.324 | CP14: 00:00:11 | CQ14: 23.853 | CR14: 23.803 | CS14: 23.652 | CT14: 23.128 | CU14: 00:00:11 | CV14: 23.935 | CW14: 23.858 | CX14: 23.742 | CY14: 23.137 | CZ14: 00:00:11 | DA14: 23.896 | DB14: 23.808 | DC14: 23.683 | DD14: 23.162 | DE14: 00:00:11 | DF14: 23.997 | DG14: 23.904 | DH14: 23.801 | DI14: 23.199 | DJ14: 00:00:11 | DK14: 24.909 | DL14: 25.047 | DM14: 25.363 | DN14: 23.211 | DO14: 00:00:11 | DP14: 24.282 | DQ14: 24.14 | DR14: 24.089 | DS14: 23.302 | DT14: 00:00:11 | DU14: 23.988 | DV14: 23.909 | DW14: 23.839 | DX14: 23.427 | DY14: 00:00:11 | DZ14: 24.423 | EA14: 24.309 | EB14: 24.268 | EC14: 23.97 | ED14: 00:00:11 | EE14: 28.888 | EF14: 27.738 | EG14: 27.819 | EH14: 25.641 | EI14: 00:00:11 | EJ14: 25.63 | EK14: 25.619 | EL14: 25.365 | EM14: 24.898 | EN14: 00:00:11 | EO14: 25.841 | EP14: 25.716 | EQ14: 25.547 | ER14: 25.234 | ES14: 00:00:11 | ET14: 25.439 | EU14: 25.329 | EV14: 25.2 | EW14: 24.939 | EX14: 00:00:11 | EY14: 25.715 | EZ14: 25.582 | FA14: 25.442 | FB14: 25.236 | FC14: 00:00:11 | FD14: 25.73 | FE14: 25.583 | FF14: 25.447 | FG14: 25.223 | FH14: 00:00:11 | FI14: 26.254 | FJ14: 26.004 | FK14: 25.702 | FL14: 25.007 | FM14: 00:00:11 | FN14: 25.783 | FO14: 25.636 | FP14: 25.488 | FQ14: 25.209 | FR14: 00:00:11 | FS14: 24.407 | FT14: 24.425 | FU14: 24.363 | FV14: 24.51 | FW14: 00:00:11 | FX14: 23.575 | FY14: 23.578 | FZ14: 23.567 | GA14: 23.818 | GB14: 00:00:11 | GC14: 24.719 | GD14: 24.656 | GE14: 24.601 | GF14: 24.69 | GG14: 00:00:11 | GH14: 25.607 | GI14: 25.655 | GJ14: 25.467 | GK14: 25.6 | GL14: 00:00:11 | GM14: 25.874 | GN14: 25.87 | GO14: 25.587 | GP14: 25.351 | HN14: 00:00:11 | HO14: 25.999 | HP14: 25.951 | HQ14: 25.631 | HR14: 25.72 | HS14: 00:00:11 | HT14: 25.942 | HU14: 25.924 | HV14: 25.624 | HW14: 25.497 | HX14: 00:00:11 | HY14: 25.45 | HZ14: 25.542 | IA14: 25.248 | IB14: 25.071 | IC14: 00:00:11 | ID14: 25.804 | IE14: 25.683 | IF14: 25.499 | IG14: 25.326 | IH14: 00:00:11 | II14: 25.706 | IJ14: 25.626 | IK14: 25.383 | IL14: 25.28 | IM14: 00:00:11 | IN14: 25.767 | IO14: 25.721 | IP14: 25.436 | IQ14: 25.366 | IR14: 00:00:11 | IS14: 25.965 | IT14: 25.947 | IU14: 25.612 | IV14: 25.601
A15: 00:00:12 | B15: 24.554 | C15: 24.576 | D15: 24.481 | E15: 24.565 | F15: 00:00:12 | G15: 24.607 | H15: 24.607 | I15: 24.495 | J15: 24.541 | K15: 00:00:12 | L15: 24.603 | M15: 24.572 | N15: 24.467 | O15: 24.425 | P15: 00:00:12 | Q15: 24.738 | R15: 24.718 | S15: 24.591 | T15: 24.545 | U15: -0.002 | V15: 0.008 | W15: -0.009 | X15: 00:00:12 | Y15: 22.994 | Z15: 23.017 | AA15: 22.948 | AB15: 23.059 | AC15: 00:00:12 | AD15: 23.139 | AE15: 23.126 | AF15: 22.959 | AG15: 22.996 | AH15: 00:00:12 | AI15: 23.271 | AJ15: 23.201 | AK15: 23.056 | AL15: 23.111 | AM15: 00:00:12 | AN15: 23.299 | AO15: 23.202 | AP15: 23.057 | AQ15: 23.018 | AR15: 00:00:12 | AS15: 23.631 | AT15: 23.686 | AU15: 23.331 | AV15: 22.936 | AW15: 00:00:12 | AX15: 23.533 | AY15: 23.404 | AZ15: 23.228 | BA15: 23.143 | BB15: 00:00:12 | BC15: 23.656 | BD15: 23.501 | BE15: 23.365 | BF15: 23.266 | BG15: 00:00:12 | BH15: 23.702 | BI15: 23.573 | BJ15: 23.407 | BK15: 23.315 | BL15: 00:00:12 | BM15: 23.732 | BN15: 23.584 | BO15: 23.437 | BP15: 23.183 | BQ15: 00:00:12 | BR15: 23.83 | BS15: 23.672 | BT15: 23.536 | BU15: 23.241 | BV15: 00:00:12 | BW15: 24.706 | BX15: 24.599 | BY15: 24.459 | BZ15: 24.566 | CA15: 00:00:12 | CB15: 24.817 | CC15: 24.659 | CD15: 24.53 | CE15: 24.46 | CF15: 00:00:12 | CG15: 24.895 | CH15: 24.708 | CI15: 24.59 | CJ15: 24.292 | CK15: 00:00:12 | CL15: 26.028 | CM15: 25.399 | CN15: 25.649 | CO15: 24.295 | CP15: 00:00:12 | CQ15: 23.845 | CR15: 23.79 | CS15: 23.649 | CT15: 23.128 | CU15: 00:00:12 | CV15: 23.935 | CW15: 23.86 | CX15: 23.738 | CY15: 23.144 | CZ15: 00:00:12 | DA15: 23.883 | DB15: 23.802 | DC15: 23.685 | DD15: 23.158 | DE15: 00:00:12 | DF15: 23.99 | DG15: 23.898 | DH15: 23.797 | DI15: 23.197 | DJ15: 00:00:12 | DK15: 25.68 | DL15: 25.998 | DM15: 26.594 | DN15: 23.216 | DO15: 00:00:12 | DP15: 24.277 | DQ15: 24.142 | DR15: 24.093 | DS15: 23.304 | DT15: 00:00:12 | DU15: 23.984 | DV15: 23.907 | DW15: 23.841 | DX15: 23.43 | DY15: 00:00:12 | DZ15: 24.417 | EA15: 24.309 | EB15: 24.257 | EC15: 23.967 | ED15: 00:00:12 | EE15: 28.726 | EF15: 27.648 | EG15: 27.692 | EH15: 25.639 | EI15: 00:00:12 | EJ15: 25.63 | EK15: 25.623 | EL15: 25.365 | EM15: 24.894 | EN15: 00:00:12 | EO15: 25.841 | EP15: 25.709 | EQ15: 25.547 | ER15: 25.227 | ES15: 00:00:12 | ET15: 25.443 | EU15: 25.329 | EV15: 25.196 | EW15: 24.939 | EX15: 00:00:12 | EY15: 25.707 | EZ15: 25.586 | FA15: 25.435 | FB15: 25.229 | FC15: 00:00:12 | FD15: 25.727 | FE15: 25.594 | FF15: 25.451 | FG15: 25.223 | FH15: 00:00:12 | FI15: 26.523 | FJ15: 26.212 | FK15: 25.896 | FL15: 25.014 | FM15: 00:00:12 | FN15: 25.779 | FO15: 25.632 | FP15: 25.485 | FQ15: 25.205 | FR15: 00:00:12 | FS15: 24.411 | FT15: 24.437 | FU15: 24.364 | FV15: 24.511 | FW15: 00:00:12 | FX15: 23.579 | FY15: 23.575 | FZ15: 23.568 | GA15: 23.822 | GB15: 00:00:12 | GC15: 24.741 | GD15: 24.671 | GE15: 24.605 | GF15: 24.686 | GG15: 00:00:12 | GH15: 25.611 | GI15: 25.656 | GJ15: 25.475 | GK15: 25.604 | GL15: 00:00:12 | GM15: 25.874 | GN15: 25.87 | GO15: 25.591 | GP15: 25.403 | HN15: 00:00:12 | HO15: 25.996 | HP15: 25.951 | HQ15: 25.628 | HR15: 25.712 | HS15: 00:00:12 | HT15: 25.933 | HU15: 25.918 | HV15: 25.613 | HW15: 25.488 | HX15: 00:00:12 | HY15: 25.452 | HZ15: 25.537 | IA15: 25.242 | IB15: 25.088 | IC15: 00:00:12 | ID15: 25.786 | IE15: 25.664 | IF15: 25.488 | IG15: 25.313 | IH15: 00:00:12 | II15: 25.697 | IJ15: 25.62 | IK15: 25.375 | IL15: 25.263 | IM15: 00:00:12 | IN15: 25.76 | IO15: 25.723 | IP15: 25.432 | IQ15: 25.362 | IR15: 00:00:12 | IS15: 25.961 | IT15: 25.95 | IU15: 25.604 | IV15: 25.593
A16: 00:00:13 | B16: 24.551 | C16: 24.569 | D16: 24.474 | E16: 24.566 | F16: 00:00:13 | G16: 24.606 | H16: 24.611 | I16: 24.499 | J16: 24.543 | K16: 00:00:13 | L16: 24.604 | M16: 24.574 | N16: 24.467 | O16: 24.431 | P16: 00:00:13 | Q16: 24.74 | R16: 24.722 | S16: 24.595 | T16: 24.542 | U16: 0.002 | V16: 0.01 | W16: -0.005 | X16: 00:00:13 | Y16: 22.993 | Z16: 23.017 | AA16: 22.945 | AB16: 23.055 | AC16: 00:00:13 | AD16: 23.15 | AE16: 23.138 | AF16: 22.967 | AG16: 23.005 | AH16: 00:00:13 | AI16: 23.271 | AJ16: 23.201 | AK16: 23.049 | AL16: 23.102 | AM16: 00:00:13 | AN16: 23.305 | AO16: 23.21 | AP16: 23.061 | AQ16: 23.016 | AR16: 00:00:13 | AS16: 23.624 | AT16: 23.679 | AU16: 23.324 | AV16: 22.931 | AW16: 00:00:13 | AX16: 23.533 | AY16: 23.415 | AZ16: 23.235 | BA16: 23.15 | BB16: 00:00:13 | BC16: 23.66 | BD16: 23.505 | BE16: 23.369 | BF16: 23.273 | BG16: 00:00:13 | BH16: 23.695 | BI16: 23.57 | BJ16: 23.408 | BK16: 23.301 | BL16: 00:00:13 | BM16: 23.728 | BN16: 23.585 | BO16: 23.437 | BP16: 23.176 | BQ16: 00:00:13 | BR16: 23.83 | BS16: 23.672 | BT16: 23.521 | BU16: 23.241 | BV16: 00:00:13 | BW16: 24.699 | BX16: 24.596 | BY16: 24.463 | BZ16: 24.563 | CA16: 00:00:13 | CB16: 24.81 | CC16: 24.663 | CD16: 24.534 | CE16: 24.461 | CF16: 00:00:13 | CG16: 24.892 | CH16: 24.708 | CI16: 24.583 | CJ16: 24.299 | CK16: 00:00:13 | CL16: 26.002 | CM16: 25.384 | CN16: 25.616 | CO16: 24.299 | CP16: 00:00:13 | CQ16: 23.849 | CR16: 23.796 | CS16: 23.652 | CT16: 23.132 | CU16: 00:00:13 | CV16: 23.935 | CW16: 23.861 | CX16: 23.747 | CY16: 23.149 | CZ16: 00:00:13 | DA16: 23.894 | DB16: 23.806 | DC16: 23.683 | DD16: 23.16 | DE16: 00:00:13 | DF16: 23.994 | DG16: 23.898 | DH16: 23.799 | DI16: 23.201 | DJ16: 00:00:13 | DK16: 26.655 | DL16: 27.15 | DM16: 28.09 | DN16: 23.218 | DO16: 00:00:13 | DP16: 24.266 | DQ16: 24.135 | DR16: 24.08 | DS16: 23.298 | DT16: 00:00:13 | DU16: 23.982 | DV16: 23.903 | DW16: 23.837 | DX16: 23.429 | DY16: 00:00:13 | DZ16: 24.419 | EA16: 24.3 | EB16: 24.254 | EC16: 23.972 | ED16: 00:00:13 | EE16: 28.6 | EF16: 27.553 | EG16: 27.577 | EH16: 25.623 | EI16: 00:00:13 | EJ16: 25.638 | EK16: 25.627 | EL16: 25.376 | EM16: 24.894 | EN16: 00:00:13 | EO16: 25.841 | EP16: 25.713 | EQ16: 25.543 | ER16: 25.231 | ES16: 00:00:13 | ET16: 25.447 | EU16: 25.336 | EV16: 25.204 | EW16: 24.943 | EX16: 00:00:13 | EY16: 25.711 | EZ16: 25.579 | FA16: 25.439 | FB16: 25.233 | FC16: 00:00:13 | FD16: 25.719 | FE16: 25.594 | FF16: 25.44 | FG16: 25.219 | FH16: 00:00:13 | FI16: 26.828 | FJ16: 26.435 | FK16: 26.107 | FL16: 25.026 | FM16: 00:00:13 | FN16: 25.781 | FO16: 25.623 | FP16: 25.485 | FQ16: 25.198 | FR16: 00:00:13 | FS16: 24.408 | FT16: 24.431 | FU16: 24.364 | FV16: 24.504 | FW16: 00:00:13 | FX16: 23.571 | FY16: 23.571 | FZ16: 23.56 | GA16: 23.814 | GB16: 00:00:13 | GC16: 24.771 | GD16: 24.686 | GE16: 24.613 | GF16: 24.686 | GG16: 00:00:13 | GH16: 25.612 | GI16: 25.653 | GJ16: 25.476 | GK16: 25.608 | GL16: 00:00:13 | GM16: 25.86 | GN16: 25.863 | GO16: 25.595 | GP16: 25.459 | HN16: 00:00:13 | HO16: 25.996 | HP16: 25.948 | HQ16: 25.617 | HR16: 25.705 | HS16: 00:00:13 | HT16: 25.926 | HU16: 25.907 | HV16: 25.606 | HW16: 25.488 | HX16: 00:00:13 | HY16: 25.452 | HZ16: 25.533 | IA16: 25.246 | IB16: 25.081 | IC16: 00:00:13 | ID16: 25.775 | IE16: 25.661 | IF16: 25.484 | IG16: 25.308 | IH16: 00:00:13 | II16: 25.688 | IJ16: 25.615 | IK16: 25.368 | IL16: 25.258 | IM16: 00:00:13 | IN16: 25.76 | IO16: 25.72 | IP16: 25.429 | IQ16: 25.359 | IR16: 00:00:13 | IS16: 25.961 | IT16: 25.95 | IU16: 25.601 | IV16: 25.594
A17: 00:00:14 | B17: 24.551 | C17: 24.57 | D17: 24.478 | E17: 24.566 | F17: 00:00:14 | G17: 24.613 | H17: 24.608 | I17: 24.497 | J17: 24.541 | K17: 00:00:14 | L17: 24.604 | M17: 24.574 | N17: 24.462 | O17: 24.425 | P17: 00:00:14 | Q17: 24.733 | R17: 24.717 | S17: 24.59 | T17: 24.548 | U17: -0.003 | V17: 0.003 | W17: -0.01 | X17: 00:00:14 | Y17: 22.997 | Z17: 23.013 | AA17: 22.942 | AB17: 23.052 | AC17: 00:00:14 | AD17: 23.153 | AE17: 23.132 | AF17: 22.961 | AG17: 23.004 | AH17: 00:00:14 | AI17: 23.27 | AJ17: 23.194 | AK17: 23.045 | AL17: 23.1 | AM17: 00:00:14 | AN17: 23.307 | AO17: 23.202 | AP17: 23.064 | AQ17: 23.017 | AR17: 00:00:14 | AS17: 23.613 | AT17: 23.665 | AU17: 23.308 | AV17: 22.934 | AW17: 00:00:14 | AX17: 23.533 | AY17: 23.412 | AZ17: 23.235 | BA17: 23.151 | BB17: 00:00:14 | BC17: 23.642 | BD17: 23.498 | BE17: 23.358 | BF17: 23.259 | BG17: 00:00:14 | BH17: 23.695 | BI17: 23.574 | BJ17: 23.408 | BK17: 23.305 | BL17: 00:00:14 | BM17: 23.725 | BN17: 23.585 | BO17: 23.441 | BP17: 23.176 | BQ17: 00:00:14 | BR17: 23.826 | BS17: 23.672 | BT17: 23.525 | BU17: 23.241 | BV17: 00:00:14 | BW17: 24.706 | BX17: 24.6 | BY17: 24.46 | BZ17: 24.559 | CA17: 00:00:14 | CB17: 24.814 | CC17: 24.66 | CD17: 24.538 | CE17: 24.468 | CF17: 00:00:14 | CG17: 24.888 | CH17: 24.704 | CI17: 24.568 | CJ17: 24.296 | CK17: 00:00:14 | CL17: 25.962 | CM17: 25.362 | CN17: 25.583 | CO17: 24.292 | CP17: 00:00:14 | CQ17: 23.849 | CR17: 23.798 | CS17: 23.654 | CT17: 23.126 | CU17: 00:00:14 | CV17: 23.933 | CW17: 23.867 | CX17: 23.742 | CY17: 23.155 | CZ17: 00:00:14 | DA17: 23.893 | DB17: 23.802 | DC17: 23.683 | DD17: 23.16 | DE17: 00:00:14 | DF17: 23.996 | DG17: 23.9 | DH17: 23.799 | DI17: 23.198 | DJ17: 00:00:14 | DK17: 27.803 | DL17: 28.456 | DM17: 29.791 | DN17: 23.224 | DO17: 00:00:14 | DP17: 24.268 | DQ17: 24.134 | DR17: 24.08 | DS17: 23.297 | DT17: 00:00:14 | DU17: 23.971 | DV17: 23.901 | DW17: 23.83 | DX17: 23.423 | DY17: 00:00:14 | DZ17: 24.427 | EA17: 24.309 | EB17: 24.263 | EC17: 23.989 | ED17: 00:00:14 | EE17: 28.414 | EF17: 27.428 | EG17: 27.424 | EH17: 25.596 | EI17: 00:00:14 | EJ17: 25.634 | EK17: 25.623 | EL17: 25.369 | EM17: 24.898 | EN17: 00:00:14 | EO17: 25.849 | EP17: 25.72 | EQ17: 25.554 | ER17: 25.238 | ES17: 00:00:14 | ET17: 25.454 | EU17: 25.34 | EV17: 25.204 | EW17: 24.939 | EX17: 00:00:14 | EY17: 25.722 | EZ17: 25.59 | FA17: 25.446 | FB17: 25.233 | FC17: 00:00:14 | FD17: 25.727 | FE17: 25.587 | FF17: 25.436 | FG17: 25.215 | FH17: 00:00:14 | FI17: 27.263 | FJ17: 26.759 | FK17: 26.409 | FL17: 25.029 | FM17: 00:00:14 | FN17: 25.779 | FO17: 25.621 | FP17: 25.485 | FQ17: 25.194 | FR17: 00:00:14 | FS17: 24.405 | FT17: 24.431 | FU17: 24.361 | FV17: 24.515 | FW17: 00:00:14 | FX17: 23.656 | FY17: 23.638 | FZ17: 23.597 | GA17: 23.815 | GB17: 00:00:14 | GC17: 24.856 | GD17: 24.757 | GE17: 24.665 | GF17: 24.687 | GG17: 00:00:14 | GH17: 25.612 | GI17: 25.653 | GJ17: 25.469 | GK17: 25.605 | GL17: 00:00:14 | GM17: 25.845 | GN17: 25.86 | GO17: 25.592 | GP17: 25.477 | HN17: 00:00:14 | HO17: 26.003 | HP17: 25.948 | HQ17: 25.632 | HR17: 25.712 | HS17: 00:00:14 | HT17: 25.917 | HU17: 25.902 | HV17: 25.608 | HW17: 25.485 | HX17: 00:00:14 | HY17: 25.456 | HZ17: 25.524 | IA17: 25.244 | IB17: 25.101 | IC17: 00:00:14 | ID17: 25.775 | IE17: 25.653 | IF17: 25.477 | IG17: 25.296 | IH17: 00:00:14 | II17: 25.703 | IJ17: 25.622 | IK17: 25.376 | IL17: 25.265 | IM17: 00:00:14 | IN17: 25.756 | IO17: 25.72 | IP17: 25.423 | IQ17: 25.364 | IR17: 00:00:14 | IS17: 25.965 | IT17: 25.965 | IU17: 25.605 | IV17: 25.597
A18: 00:00:15 | B18: 24.548 | C18: 24.574 | D18: 24.474 | E18: 24.563 | F18: 00:00:15 | G18: 24.612 | H18: 24.615 | I18: 24.505 | J18: 24.553 | K18: 00:00:15 | L18: 24.611 | M18: 24.584 | N18: 24.468 | O18: 24.437 | P18: 00:00:15 | Q18: 24.732 | R18: 24.71 | S18: 24.584 | T18: 24.54 | U18: -0.01 | V18: 0.002 | W18: -0.016 | X18: 00:00:15 | Y18: 22.997 | Z18: 23.014 | AA18: 22.938 | AB18: 23.047 | AC18: 00:00:15 | AD18: 23.144 | AE18: 23.125 | AF18: 22.963 | AG18: 22.998 | AH18: 00:00:15 | AI18: 23.259 | AJ18: 23.191 | AK18: 23.047 | AL18: 23.095 | AM18: 00:00:15 | AN18: 23.304 | AO18: 23.21 | AP18: 23.065 | AQ18: 23.011 | AR18: 00:00:15 | AS18: 23.61 | AT18: 23.661 | AU18: 23.288 | AV18: 22.938 | AW18: 00:00:15 | AX18: 23.537 | AY18: 23.405 | AZ18: 23.224 | BA18: 23.151 | BB18: 00:00:15 | BC18: 23.656 | BD18: 23.506 | BE18: 23.369 | BF18: 23.263 | BG18: 00:00:15 | BH18: 23.699 | BI18: 23.566 | BJ18: 23.412 | BK18: 23.313 | BL18: 00:00:15 | BM18: 23.732 | BN18: 23.585 | BO18: 23.434 | BP18: 23.177 | BQ18: 00:00:15 | BR18: 23.819 | BS18: 23.665 | BT18: 23.521 | BU18: 23.242 | BV18: 00:00:15 | BW18: 24.699 | BX18: 24.596 | BY18: 24.46 | BZ18: 24.556 | CA18: 00:00:15 | CB18: 24.803 | CC18: 24.645 | CD18: 24.524 | CE18: 24.461 | CF18: 00:00:15 | CG18: 24.881 | CH18: 24.705 | CI18: 24.576 | CJ18: 24.3 | CK18: 00:00:15 | CL18: 25.94 | CM18: 25.37 | CN18: 25.572 | CO18: 24.285 | CP18: 00:00:15 | CQ18: 23.857 | CR18: 23.801 | CS18: 23.654 | CT18: 23.132 | CU18: 00:00:15 | CV18: 23.931 | CW18: 23.863 | CX18: 23.738 | CY18: 23.144 | CZ18: 00:00:15 | DA18: 23.896 | DB18: 23.812 | DC18: 23.689 | DD18: 23.166 | DE18: 00:00:15 | DF18: 24.007 | DG18: 23.908 | DH18: 23.805 | DI18: 23.207 | DJ18: 00:00:15 | DK18: 29.08 | DL18: 29.824 | DM18: 31.619 | DN18: 23.224 | DO18: 00:00:15 | DP18: 24.261 | DQ18: 24.126 | DR18: 24.073 | DS18: 23.291 | DT18: 00:00:15 | DU18: 23.973 | DV18: 23.898 | DW18: 23.828 | DX18: 23.419 | DY18: 00:00:15 | DZ18: 24.411 | EA18: 24.304 | EB18: 24.258 | EC18: 23.987 | ED18: 00:00:15 | EE18: 28.3 | EF18: 27.355 | EG18: 27.329 | EH18: 25.592 | EI18: 00:00:15 | EJ18: 25.634 | EK18: 25.627 | EL18: 25.373 | EM18: 24.895 | EN18: 00:00:15 | EO18: 25.856 | EP18: 25.72 | EQ18: 25.558 | ER18: 25.245 | ES18: 00:00:15 | ET18: 25.458 | EU18: 25.347 | EV18: 25.211 | EW18: 24.943 | EX18: 00:00:15 | EY18: 25.715 | EZ18: 25.582 | FA18: 25.443 | FB18: 25.244 | FC18: 00:00:15 | FD18: 25.719 | FE18: 25.579 | FF18: 25.429 | FG18: 25.212 | FH18: 00:00:15 | FI18: 27.592 | FJ18: 26.998 | FK18: 26.641 | FL18: 25.029 | FM18: 00:00:15 | FN18: 25.779 | FO18: 25.625 | FP18: 25.481 | FQ18: 25.205 | FR18: 00:00:15 | FS18: 24.402 | FT18: 24.424 | FU18: 24.354 | FV18: 24.505 | FW18: 00:00:15 | FX18: 24.403 | FY18: 24.194 | FZ18: 23.892 | GA18: 23.815 | GB18: 00:00:15 | GC18: 25.055 | GD18: 24.9 | GE18: 24.772 | GF18: 24.691 | GG18: 00:00:15 | GH18: 25.613 | GI18: 25.65 | GJ18: 25.473 | GK18: 25.609 | GL18: 00:00:15 | GM18: 25.853 | GN18: 25.864 | GO18: 25.603 | GP18: 25.533 | HN18: 00:00:15 | HO18: 25.996 | HP18: 25.941 | HQ18: 25.628 | HR18: 25.713 | HS18: 00:00:15 | HT18: 25.904 | HU18: 25.908 | HV18: 25.595 | HW18: 25.492 | HX18: 00:00:15 | HY18: 25.46 | HZ18: 25.519 | IA18: 25.243 | IB18: 25.107 | IC18: 00:00:15 | ID18: 25.762 | IE18: 25.654 | IF18: 25.473 | IG18: 25.276 | IH18: 00:00:15 | II18: 25.698 | IJ18: 25.621 | IK18: 25.367 | IL18: 25.262 | IM18: 00:00:15 | IN18: 25.742 | IO18: 25.716 | IP18: 25.418 | IQ18: 25.355 | IR18: 00:00:15 | IS18: 25.976 | IT18: 25.962 | IU18: 25.619 | IV18: 25.605
A19: 00:00:16 | B19: 24.548 | C19: 24.57 | D19: 24.486 | E19: 24.567 | F19: 00:00:16 | G19: 24.615 | H19: 24.615 | I19: 24.501 | J19: 24.546 | K19: 00:00:16 | L19: 24.619 | M19: 24.586 | N19: 24.472 | O19: 24.439 | P19: 00:00:16 | Q19: 24.726 | R19: 24.712 | S19: 24.581 | T19: 24.541 | U19: -0.008 | V19: -0.004 | W19: -0.019 | X19: 00:00:16 | Y19: 22.997 | Z19: 23.01 | AA19: 22.935 | AB19: 23.041 | AC19: 00:00:16 | AD19: 23.148 | AE19: 23.133 | AF19: 22.964 | AG19: 22.997 | AH19: 00:00:16 | AI19: 23.263 | AJ19: 23.195 | AK19: 23.04 | AL19: 23.095 | AM19: 00:00:16 | AN19: 23.304 | AO19: 23.201 | AP19: 23.061 | AQ19: 23.011 | AR19: 00:00:16 | AS19: 23.605 | AT19: 23.649 | AU19: 23.281 | AV19: 22.944 | AW19: 00:00:16 | AX19: 23.53 | AY19: 23.405 | AZ19: 23.236 | BA19: 23.151 | BB19: 00:00:16 | BC19: 23.66 | BD19: 23.506 | BE19: 23.359 | BF19: 23.274 | BG19: 00:00:16 | BH19: 23.699 | BI19: 23.578 | BJ19: 23.412 | BK19: 23.306 | BL19: 00:00:16 | BM19: 23.729 | BN19: 23.589 | BO19: 23.442 | BP19: 23.188 | BQ19: 00:00:16 | BR19: 23.82 | BS19: 23.665 | BT19: 23.518 | BU19: 23.242 | BV19: 00:00:16 | BW19: 24.7 | BX19: 24.589 | BY19: 24.46 | BZ19: 24.552 | CA19: 00:00:16 | CB19: 24.811 | CC19: 24.653 | CD19: 24.528 | CE19: 24.465 | CF19: 00:00:16 | CG19: 24.885 | CH19: 24.701 | CI19: 24.58 | CJ19: 24.304 | CK19: 00:00:16 | CL19: 25.926 | CM19: 25.348 | CN19: 25.536 | CO19: 24.281 | CP19: 00:00:16 | CQ19: 23.846 | CR19: 23.8 | CS19: 23.649 | CT19: 23.126 | CU19: 00:00:16 | CV19: 23.932 | CW19: 23.856 | CX19: 23.744 | CY19: 23.15 | CZ19: 00:00:16 | DA19: 23.902 | DB19: 23.812 | DC19: 23.696 | DD19: 23.177 | DE19: 00:00:16 | DF19: 24.005 | DG19: 23.912 | DH19: 23.807 | DI19: 23.207 | DJ19: 00:00:16 | DK19: 30.424 | DL19: 31.16 | DM19: 33.485 | DN19: 23.224 | DO19: 00:00:16 | DP19: 24.257 | DQ19: 24.121 | DR19: 24.068 | DS19: 23.288 | DT19: 00:00:16 | DU19: 23.96 | DV19: 23.887 | DW19: 23.822 | DX19: 23.412 | DY19: 00:00:16 | DZ19: 24.418 | EA19: 24.308 | EB19: 24.256 | EC19: 23.993 | ED19: 00:00:16 | EE19: 28.183 | EF19: 27.268 | EG19: 27.226 | EH19: 25.572 | EI19: 00:00:16 | EJ19: 25.646 | EK19: 25.627 | EL19: 25.381 | EM19: 24.902 | EN19: 00:00:16 | EO19: 25.845 | EP19: 25.72 | EQ19: 25.551 | ER19: 25.231 | ES19: 00:00:16 | ET19: 25.454 | EU19: 25.34 | EV19: 25.204 | EW19: 24.939 | EX19: 00:00:16 | EY19: 25.715 | EZ19: 25.586 | FA19: 25.435 | FB19: 25.24 | FC19: 00:00:16 | FD19: 25.712 | FE19: 25.583 | FF19: 25.429 | FG19: 25.215 | FH19: 00:00:16 | FI19: 27.929 | FJ19: 27.23 | FK19: 26.873 | FL19: 25.029 | FM19: 00:00:16 | FN19: 25.772 | FO19: 25.617 | FP19: 25.474 | FQ19: 25.2 | FR19: 00:00:16 | FS19: 24.399 | FT19: 24.421 | FU19: 24.351 | FV19: 24.502 | FW19: 00:00:16 | FX19: 24.959 | FY19: 24.657 | FZ19: 24.157 | GA19: 23.807 | GB19: 00:00:16 | GC19: 25.213 | GD19: 25.022 | GE19: 24.864 | GF19: 24.683 | GG19: 00:00:16 | GH19: 26.099 | GI19: 26.007 | GJ19: 25.705 | GK19: 25.617 | GL19: 00:00:16 | GM19: 25.846 | GN19: 25.868 | GO19: 25.596 | GP19: 25.563 | HN19: 00:00:16 | HO19: 25.996 | HP19: 25.941 | HQ19: 25.628 | HR19: 25.72 | HS19: 00:00:16 | HT19: 25.904 | HU19: 25.886 | HV19: 25.595 | HW19: 25.485 | HX19: 00:00:16 | HY19: 25.464 | HZ19: 25.515 | IA19: 25.254 | IB19: 25.118 | IC19: 00:00:16 | ID19: 25.757 | IE19: 25.642 | IF19: 25.466 | IG19: 25.252 | IH19: 00:00:16 | II19: 25.7 | IJ19: 25.615 | IK19: 25.38 | IL19: 25.269 | IM19: 00:00:16 | IN19: 25.753 | IO19: 25.72 | IP19: 25.418 | IQ19: 25.355 | IR19: 00:00:16 | IS19: 25.969 | IT19: 25.954 | IU19: 25.616 | IV19: 25.594
A20: 00:00:17 | B20: 24.538 | C20: 24.56 | D20: 24.471 | E20: 24.556 | F20: 00:00:17 | G20: 24.623 | H20: 24.619 | I20: 24.498 | J20: 24.546 | K20: 00:00:17 | L20: 24.619 | M20: 24.594 | N20: 24.483 | O20: 24.443 | P20: 00:00:17 | Q20: 24.728 | R20: 24.712 | S20: 24.585 | T20: 24.537 | U20: -0.008 | V20: -0.002 | W20: -0.015 | X20: 00:00:17 | Y20: 22.994 | Z20: 23.005 | AA20: 22.933 | AB20: 23.042 | AC20: 00:00:17 | AD20: 23.154 | AE20: 23.135 | AF20: 22.962 | AG20: 22.999 | AH20: 00:00:17 | AI20: 23.256 | AJ20: 23.186 | AK20: 23.042 | AL20: 23.085 | AM20: 00:00:17 | AN20: 23.301 | AO20: 23.201 | AP20: 23.058 | AQ20: 23.008 | AR20: 00:00:17 | AS20: 23.603 | AT20: 23.645 | AU20: 23.27 | AV20: 22.952 | AW20: 00:00:17 | AX20: 23.526 | AY20: 23.409 | AZ20: 23.232 | BA20: 23.144 | BB20: 00:00:17 | BC20: 23.649 | BD20: 23.502 | BE20: 23.374 | BF20: 23.274 | BG20: 00:00:17 | BH20: 23.696 | BI20: 23.571 | BJ20: 23.423 | BK20: 23.317 | BL20: 00:00:17 | BM20: 23.733 | BN20: 23.585 | BO20: 23.431 | BP20: 23.181 | BQ20: 00:00:17 | BR20: 23.82 | BS20: 23.665 | BT20: 23.514 | BU20: 23.246 | BV20: 00:00:17 | BW20: 24.707 | BX20: 24.601 | BY20: 24.472 | BZ20: 24.556 | CA20: 00:00:17 | CB20: 24.811 | CC20: 24.664 | CD20: 24.535 | CE20: 24.473 | CF20: 00:00:17 | CG20: 24.886 | CH20: 24.702 | CI20: 24.573 | CJ20: 24.301 | CK20: 00:00:17 | CL20: 25.915 | CM20: 25.348 | CN20: 25.518 | CO20: 24.267 | CP20: 00:00:17 | CQ20: 23.85 | CR20: 23.8 | CS20: 23.653 | CT20: 23.132 | CU20: 00:00:17 | CV20: 23.933 | CW20: 23.856 | CX20: 23.737 | CY20: 23.153 | CZ20: 00:00:17 | DA20: 23.908 | DB20: 23.816 | DC20: 23.696 | DD20: 23.174 | DE20: 00:00:17 | DF20: 24.011 | DG20: 23.904 | DH20: 23.807 | DI20: 23.2 | DJ20: 00:00:17 | DK20: 31.787 | DL20: 32.08 | DM20: 35.341 | DN20: 23.224 | DO20: 00:00:17 | DP20: 24.261 | DQ20: 24.128 | DR20: 24.073 | DS20: 23.291 | DT20: 00:00:17 | DU20: 23.955 | DV20: 23.889 | DW20: 23.811 | DX20: 23.414 | DY20: 00:00:17 | DZ20: 24.424 | EA20: 24.304 | EB20: 24.26 | EC20: 23.997 | ED20: 00:00:17 | EE20: 28.034 | EF20: 27.168 | EG20: 27.098 | EH20: 25.562 | EI20: 00:00:17 | EJ20: 25.646 | EK20: 25.634 | EL20: 25.377 | EM20: 24.906 | EN20: 00:00:17 | EO20: 25.849 | EP20: 25.709 | EQ20: 25.555 | ER20: 25.234 | ES20: 00:00:17 | ET20: 25.465 | EU20: 25.344 | EV20: 25.2 | EW20: 24.939 | EX20: 00:00:17 | EY20: 25.715 | EZ20: 25.59 | FA20: 25.446 | FB20: 25.24 | FC20: 00:00:17 | FD20: 25.727 | FE20: 25.587 | FF20: 25.436 | FG20: 25.226 | FH20: 00:00:17 | FI20: 28.367 | FJ20: 27.55 | FK20: 27.174 | FL20: 25.037 | FM20: 00:00:17 | FN20: 25.765 | FO20: 25.61 | FP20: 25.467 | FQ20: 25.202 | FR20: 00:00:17 | FS20: 24.407 | FT20: 24.425 | FU20: 24.351 | FV20: 24.499 | FW20: 00:00:17 | FX20: 26.332 | FY20: 25.839 | FZ20: 24.915 | GA20: 23.826 | GB20: 00:00:17 | GC20: 25.762 | GD20: 25.409 | GE20: 25.18 | GF20: 24.68 | GG20: 00:00:17 | GH20: 26.651 | GI20: 26.445 | GJ20: 26 | GK20: 25.621 | GL20: 00:00:17 | GM20: 25.847 | GN20: 25.876 | GO20: 25.607 | GP20: 25.593 | HN20: 00:00:17 | HO20: 25.996 | HP20: 25.937 | HQ20: 25.628 | HR20: 25.705 | HS20: 00:00:17 | HT20: 25.89 | HU20: 25.89 | HV20: 25.592 | HW20: 25.496 | HX20: 00:00:17 | HY20: 25.466 | HZ20: 25.512 | IA20: 25.243 | IB20: 25.122 | IC20: 00:00:17 | ID20: 25.757 | IE20: 25.642 | IF20: 25.466 | IG20: 25.241 | IH20: 00:00:17 | II20: 25.696 | IJ20: 25.611 | IK20: 25.368 | IL20: 25.258 | IM20: 00:00:17 | IN20: 25.749 | IO20: 25.711 | IP20: 25.424 | IQ20: 25.359 | IR20: 00:00:17 | IS20: 25.973 | IT20: 25.966 | IU20: 25.612 | IV20: 25.605
A21: 00:00:18 | B21: 24.542 | C21: 24.567 | D21: 24.472 | E21: 24.549 | F21: 00:00:18 | G21: 24.616 | H21: 24.612 | I21: 24.498 | J21: 24.535 | K21: 00:00:18 | L21: 24.623 | M21: 24.597 | N21: 24.476 | O21: 24.439 | P21: 00:00:18 | Q21: 24.729 | R21: 24.71 | S21: 24.585 | T21: 24.545 | U21: -0.01 | V21: -0.001 | W21: -0.015 | X21: 00:00:18 | Y21: 22.994 | Z21: 23.011 | AA21: 22.93 | AB21: 23.038 | AC21: 00:00:18 | AD21: 23.15 | AE21: 23.134 | AF21: 22.965 | AG21: 22.998 | AH21: 00:00:18 | AI21: 23.256 | AJ21: 23.19 | AK21: 23.043 | AL21: 23.09 | AM21: 00:00:18 | AN21: 23.293 | AO21: 23.198 | AP21: 23.052 | AQ21: 23.014 | AR21: 00:00:18 | AS21: 23.602 | AT21: 23.637 | AU21: 23.263 | AV21: 22.949 | AW21: 00:00:18 | AX21: 23.534 | AY21: 23.405 | AZ21: 23.232 | BA21: 23.144 | BB21: 00:00:18 | BC21: 23.661 | BD21: 23.506 | BE21: 23.37 | BF21: 23.285 | BG21: 00:00:18 | BH21: 23.711 | BI21: 23.589 | BJ21: 23.424 | BK21: 23.321 | BL21: 00:00:18 | BM21: 23.733 | BN21: 23.593 | BO21: 23.449 | BP21: 23.192 | BQ21: 00:00:18 | BR21: 23.82 | BS21: 23.654 | BT21: 23.518 | BU21: 23.253 | BV21: 00:00:18 | BW21: 24.704 | BX21: 24.601 | BY21: 24.468 | BZ21: 24.564 | CA21: 00:00:18 | CB21: 24.811 | CC21: 24.66 | CD21: 24.532 | CE21: 24.473 | CF21: 00:00:18 | CG21: 24.875 | CH21: 24.702 | CI21: 24.573 | CJ21: 24.308 | CK21: 00:00:18 | CL21: 25.875 | CM21: 25.334 | CN21: 25.477 | CO21: 24.234 | CP21: 00:00:18 | CQ21: 23.84 | CR21: 23.793 | CS21: 23.645 | CT21: 23.123 | CU21: 00:00:18 | CV21: 23.933 | CW21: 23.862 | CX21: 23.746 | CY21: 23.161 | CZ21: 00:00:18 | DA21: 23.9 | DB21: 23.814 | DC21: 23.693 | DD21: 23.17 | DE21: 00:00:18 | DF21: 23.996 | DG21: 23.906 | DH21: 23.805 | DI21: 23.202 | DJ21: 00:00:18 | DK21: 33.146 | DL21: 32.747 | DM21: 37.15 | DN21: 23.228 | DO21: 00:00:18 | DP21: 24.257 | DQ21: 24.129 | DR21: 24.072 | DS21: 23.299 | DT21: 00:00:18 | DU21: 23.966 | DV21: 23.892 | DW21: 23.819 | DX21: 23.421 | DY21: 00:00:18 | DZ21: 24.415 | EA21: 24.31 | EB21: 24.26 | EC21: 24.003 | ED21: 00:00:18 | EE21: 27.941 | EF21: 27.102 | EG21: 27.021 | EH21: 25.553 | EI21: 00:00:18 | EJ21: 25.646 | EK21: 25.627 | EL21: 25.384 | EM21: 24.906 | EN21: 00:00:18 | EO21: 25.842 | EP21: 25.72 | EQ21: 25.551 | ER21: 25.238 | ES21: 00:00:18 | ET21: 25.458 | EU21: 25.344 | EV21: 25.208 | EW21: 24.928 | EX21: 00:00:18 | EY21: 25.708 | EZ21: 25.579 | FA21: 25.435 | FB21: 25.237 | FC21: 00:00:18 | FD21: 25.73 | FE21: 25.587 | FF21: 25.44 | FG21: 25.219 | FH21: 00:00:18 | FI21: 28.696 | FJ21: 27.782 | FK21: 27.39 | FL21: 25.02 | FM21: 00:00:18 | FN21: 25.868 | FO21: 25.684 | FP21: 25.522 | FQ21: 25.187 | FR21: 00:00:18 | FS21: 24.393 | FT21: 24.411 | FU21: 24.348 | FV21: 24.488 | FW21: 00:00:18 | FX21: 28.065 | FY21: 27.41 | FZ21: 25.901 | GA21: 23.812 | GB21: 00:00:18 | GC21: 26.752 | GD21: 26.1 | GE21: 25.758 | GF21: 24.684 | GG21: 00:00:18 | GH21: 28.153 | GI21: 27.612 | GJ21: 26.909 | GK21: 25.621 | GL21: 00:00:18 | GM21: 25.858 | GN21: 25.884 | GO21: 25.615 | GP21: 25.626 | HN21: 00:00:18 | HO21: 26 | HP21: 25.941 | HQ21: 25.628 | HR21: 25.713 | HS21: 00:00:18 | HT21: 25.886 | HU21: 25.886 | HV21: 25.588 | HW21: 25.493 | HX21: 00:00:18 | HY21: 25.467 | HZ21: 25.519 | IA21: 25.254 | IB21: 25.136 | IC21: 00:00:18 | ID21: 25.749 | IE21: 25.641 | IF21: 25.459 | IG21: 25.229 | IH21: 00:00:18 | II21: 25.694 | IJ21: 25.619 | IK21: 25.369 | IL21: 25.268 | IM21: 00:00:18 | IN21: 25.749 | IO21: 25.712 | IP21: 25.407 | IQ21: 25.348 | IR21: 00:00:18 | IS21: 25.969 | IT21: 25.958 | IU21: 25.612 | IV21: 25.587
A22: 00:00:19 | B22: 24.544 | C22: 24.57 | D22: 24.474 | E22: 24.555 | F22: 00:00:19 | G22: 24.609 | H22: 24.605 | I22: 24.502 | J22: 24.55 | K22: 00:00:19 | L22: 24.614 | M22: 24.59 | N22: 24.48 | O22: 24.441 | P22: 00:00:19 | Q22: 24.729 | R22: 24.71 | S22: 24.587 | T22: 24.541 | U22: -0.01 | V22: -0.001 | W22: -0.013 | X22: 00:00:19 | Y22: 22.991 | Z22: 23.011 | AA22: 22.928 | AB22: 23.031 | AC22: 00:00:19 | AD22: 23.151 | AE22: 23.132 | AF22: 22.963 | AG22: 22.998 | AH22: 00:00:19 | AI22: 23.254 | AJ22: 23.181 | AK22: 23.036 | AL22: 23.089 | AM22: 00:00:19 | AN22: 23.297 | AO22: 23.198 | AP22: 23.052 | AQ22: 23.005 | AR22: 00:00:19 | AS22: 23.595 | AT22: 23.628 | AU22: 23.243 | AV22: 22.951 | AW22: 00:00:19 | AX22: 23.519 | AY22: 23.402 | AZ22: 23.221 | BA22: 23.14 | BB22: 00:00:19 | BC22: 23.657 | BD22: 23.506 | BE22: 23.374 | BF22: 23.286 | BG22: 00:00:19 | BH22: 23.707 | BI22: 23.586 | BJ22: 23.424 | BK22: 23.325 | BL22: 00:00:19 | BM22: 23.737 | BN22: 23.593 | BO22: 23.45 | BP22: 23.199 | BQ22: 00:00:19 | BR22: 23.824 | BS22: 23.665 | BT22: 23.515 | BU22: 23.261 | BV22: 00:00:19 | BW22: 24.704 | BX22: 24.601 | BY22: 24.465 | BZ22: 24.557 | CA22: 00:00:19 | CB22: 24.819 | CC22: 24.668 | CD22: 24.536 | CE22: 24.473 | CF22: 00:00:19 | CG22: 24.879 | CH22: 24.698 | CI22: 24.573 | CJ22: 24.305 | CK22: 00:00:19 | CL22: 25.845 | CM22: 25.33 | CN22: 25.444 | CO22: 24.219 | CP22: 00:00:19 | CQ22: 23.842 | CR22: 23.793 | CS22: 23.649 | CT22: 23.132 | CU22: 00:00:19 | CV22: 23.939 | CW22: 23.865 | CX22: 23.739 | CY22: 23.157 | CZ22: 00:00:19 | DA22: 23.899 | DB22: 23.809 | DC22: 23.687 | DD22: 23.17 | DE22: 00:00:19 | DF22: 24.011 | DG22: 23.906 | DH22: 23.802 | DI22: 23.204 | DJ22: 00:00:19 | DK22: 34.478 | DL22: 33.301 | DM22: 38.879 | DN22: 23.227 | DO22: 00:00:19 | DP22: 24.265 | DQ22: 24.132 | DR22: 24.075 | DS22: 23.295 | DT22: 00:00:19 | DU22: 23.968 | DV22: 23.896 | DW22: 23.824 | DX22: 23.425 | DY22: 00:00:19 | DZ22: 24.415 | EA22: 24.312 | EB22: 24.262 | EC22: 24.008 | ED22: 00:00:19 | EE22: 27.852 | EF22: 27.045 | EG22: 26.953 | EH22: 25.562 | EI22: 00:00:19 | EJ22: 25.649 | EK22: 25.635 | EL22: 25.385 | EM22: 24.914 | EN22: 00:00:19 | EO22: 25.845 | EP22: 25.72 | EQ22: 25.551 | ER22: 25.223 | ES22: 00:00:19 | ET22: 25.462 | EU22: 25.355 | EV22: 25.201 | EW22: 24.936 | EX22: 00:00:19 | EY22: 25.715 | EZ22: 25.583 | FA22: 25.439 | FB22: 25.24 | FC22: 00:00:19 | FD22: 25.723 | FE22: 25.58 | FF22: 25.436 | FG22: 25.219 | FH22: 00:00:19 | FI22: 29.029 | FJ22: 28.017 | FK22: 27.623 | FL22: 25.019 | FM22: 00:00:19 | FN22: 26.042 | FO22: 25.833 | FP22: 25.625 | FQ22: 25.189 | FR22: 00:00:19 | FS22: 24.386 | FT22: 24.408 | FU22: 24.345 | FV22: 24.493 | FW22: 00:00:19 | FX22: 29.099 | FY22: 28.315 | FZ22: 26.516 | GA22: 23.819 | GB22: 00:00:19 | GC22: 27.451 | GD22: 26.59 | GE22: 26.163 | GF22: 24.691 | GG22: 00:00:19 | GH22: 30.128 | GI22: 29.224 | GJ22: 28.22 | GK22: 25.629 | GL22: 00:00:19 | GM22: 25.848 | GN22: 25.888 | GO22: 25.623 | GP22: 25.649 | HN22: 00:00:19 | HO22: 26.011 | HP22: 25.952 | HQ22: 25.632 | HR22: 25.72 | HS22: 00:00:19 | HT22: 25.89 | HU22: 25.883 | HV22: 25.585 | HW22: 25.493 | HX22: 00:00:19 | HY22: 25.471 | HZ22: 25.523 | IA22: 25.25 | IB22: 25.144 | IC22: 00:00:19 | ID22: 25.753 | IE22: 25.639 | IF22: 25.455 | IG22: 25.227 | IH22: 00:00:19 | II22: 25.693 | IJ22: 25.612 | IK22: 25.372 | IL22: 25.269 | IM22: 00:00:19 | IN22: 25.746 | IO22: 25.709 | IP22: 25.418 | IQ22: 25.345 | IR22: 00:00:19 | IS22: 25.969 | IT22: 25.947 | IU22: 25.601 | IV22: 25.587
A23: 00:00:20 | B23: 24.539 | C23: 24.565 | D23: 24.469 | E23: 24.55 | F23: 00:00:20 | G23: 24.613 | H23: 24.613 | I23: 24.499 | J23: 24.547 | K23: 00:00:20 | L23: 24.615 | M23: 24.592 | N23: 24.477 | O23: 24.432 | P23: 00:00:20 | Q23: 24.727 | R23: 24.709 | S23: 24.587 | T23: 24.54 | U23: -0.011 | V23: -0.003 | W23: -0.013 | X23: 00:00:20 | Y23: 22.991 | Z23: 23.011 | AA23: 22.925 | AB23: 23.03 | AC23: 00:00:20 | AD23: 23.145 | AE23: 23.134 | AF23: 22.963 | AG23: 22.996 | AH23: 00:00:20 | AI23: 23.262 | AJ23: 23.185 | AK23: 23.047 | AL23: 23.095 | AM23: 00:00:20 | AN23: 23.29 | AO23: 23.193 | AP23: 23.047 | AQ23: 23.005 | AR23: 00:00:20 | AS23: 23.586 | AT23: 23.613 | AU23: 23.227 | AV23: 22.949 | AW23: 00:00:20 | AX23: 23.512 | AY23: 23.391 | AZ23: 23.218 | BA23: 23.133 | BB23: 00:00:20 | BC23: 23.668 | BD23: 23.514 | BE23: 23.37 | BF23: 23.282 | BG23: 00:00:20 | BH23: 23.7 | BI23: 23.575 | BJ23: 23.417 | BK23: 23.325 | BL23: 00:00:20 | BM23: 23.737 | BN23: 23.593 | BO23: 23.454 | BP23: 23.2 | BQ23: 00:00:20 | BR23: 23.827 | BS23: 23.669 | BT23: 23.518 | BU23: 23.268 | BV23: 00:00:20 | BW23: 24.708 | BX23: 24.598 | BY23: 24.473 | BZ23: 24.55 | CA23: 00:00:20 | CB23: 24.816 | CC23: 24.657 | CD23: 24.532 | CE23: 24.477 | CF23: 00:00:20 | CG23: 24.89 | CH23: 24.706 | CI23: 24.585 | CJ23: 24.316 | CK23: 00:00:20 | CL23: 25.809 | CM23: 25.312 | CN23: 25.415 | CO23: 24.212 | CP23: 00:00:20 | CQ23: 23.844 | CR23: 23.793 | CS23: 23.644 | CT23: 23.129 | CU23: 00:00:20 | CV23: 23.926 | CW23: 23.851 | CX23: 23.731 | CY23: 23.152 | CZ23: 00:00:20 | DA23: 23.895 | DB23: 23.805 | DC23: 23.682 | DD23: 23.165 | DE23: 00:00:20 | DF23: 24.002 | DG23: 23.905 | DH23: 23.807 | DI23: 23.204 | DJ23: 00:00:20 | DK23: 35.76 | DL23: 33.82 | DM23: 40.523 | DN23: 23.223 | DO23: 00:00:20 | DP23: 24.265 | DQ23: 24.134 | DR23: 24.081 | DS23: 23.297 | DT23: 00:00:20 | DU23: 24.03 | DV23: 24.036 | DW23: 24.014 | DX23: 23.42 | DY23: 00:00:20 | DZ23: 24.415 | EA23: 24.308 | EB23: 24.261 | EC23: 24.007 | ED23: 00:00:20 | EE23: 27.737 | EF23: 26.975 | EG23: 26.858 | EH23: 25.553 | EI23: 00:00:20 | EJ23: 25.642 | EK23: 25.631 | EL23: 25.385 | EM23: 24.917 | EN23: 00:00:20 | EO23: 25.842 | EP23: 25.72 | EQ23: 25.551 | ER23: 25.235 | ES23: 00:00:20 | ET23: 25.469 | EU23: 25.355 | EV23: 25.215 | EW23: 24.943 | EX23: 00:00:20 | EY23: 25.719 | EZ23: 25.579 | FA23: 25.443 | FB23: 25.248 | FC23: 00:00:20 | FD23: 25.723 | FE23: 25.594 | FF23: 25.443 | FG23: 25.234 | FH23: 00:00:20 | FI23: 29.456 | FJ23: 28.312 | FK23: 27.899 | FL23: 25.022 | FM23: 00:00:20 | FN23: 26.306 | FO23: 26.048 | FP23: 25.794 | FQ23: 25.194 | FR23: 00:00:20 | FS23: 24.39 | FT23: 24.412 | FU23: 24.342 | FV23: 24.489 | FW23: 00:00:20 | FX23: 31.454 | FY23: 30.314 | FZ23: 27.911 | GA23: 23.823 | GB23: 00:00:20 | GC23: 29.151 | GD23: 27.841 | GE23: 27.216 | GF23: 24.688 | GG23: 00:00:20 | GH23: 31.265 | GI23: 30.205 | GJ23: 29 | GK23: 25.626 | GL23: 00:00:20 | GM23: 25.855 | GN23: 25.892 | GO23: 25.627 | GP23: 25.671 | HN23: 00:00:20 | HO23: 26.022 | HP23: 25.96 | HQ23: 25.632 | HR23: 25.731 | HS23: 00:00:20 | HT23: 25.874 | HU23: 25.874 | HV23: 25.578 | HW23: 25.495 | HX23: 00:00:20 | HY23: 25.473 | HZ23: 25.521 | IA23: 25.254 | IB23: 25.155 | IC23: 00:00:20 | ID23: 25.742 | IE23: 25.628 | IF23: 25.451 | IG23: 25.231 | IH23: 00:00:20 | II23: 25.682 | IJ23: 25.608 | IK23: 25.369 | IL23: 25.262 | IM23: 00:00:20 | IN23: 25.74 | IO23: 25.707 | IP23: 25.413 | IQ23: 25.345 | IR23: 00:00:20 | IS23: 25.962 | IT23: 25.944 | IU23: 25.605 | IV23: 25.583
A24: 00:00:21 | B24: 24.539 | C24: 24.558 | D24: 24.473 | E24: 24.55 | F24: 00:00:21 | G24: 24.61 | H24: 24.613 | I24: 24.503 | J24: 24.54 | K24: 00:00:21 | L24: 24.617 | M24: 24.593 | N24: 24.479 | O24: 24.433 | P24: 00:00:21 | Q24: 24.729 | R24: 24.711 | S24: 24.586 | T24: 24.547 | U24: -0.009 | V24: -0.001 | W24: -0.014 | X24: 00:00:21 | Y24: 22.992 | Z24: 23.012 | AA24: 22.925 | AB24: 23.026 | AC24: 00:00:21 | AD24: 23.146 | AE24: 23.133 | AF24: 22.958 | AG24: 22.995 | AH24: 00:00:21 | AI24: 23.259 | AJ24: 23.185 | AK24: 23.04 | AL24: 23.093 | AM24: 00:00:21 | AN24: 23.294 | AO24: 23.195 | AP24: 23.055 | AQ24: 23.007 | AR24: 00:00:21 | AS24: 23.588 | AT24: 23.606 | AU24: 23.222 | AV24: 22.949 | AW24: 00:00:21 | AX24: 23.52 | AY24: 23.402 | AZ24: 23.229 | BA24: 23.144 | BB24: 00:00:21 | BC24: 23.65 | BD24: 23.51 | BE24: 23.371 | BF24: 23.282 | BG24: 00:00:21 | BH24: 23.704 | BI24: 23.579 | BJ24: 23.424 | BK24: 23.329 | BL24: 00:00:21 | BM24: 23.737 | BN24: 23.604 | BO24: 23.454 | BP24: 23.211 | BQ24: 00:00:21 | BR24: 23.824 | BS24: 23.669 | BT24: 23.522 | BU24: 23.268 | BV24: 00:00:21 | BW24: 24.712 | BX24: 24.605 | BY24: 24.469 | BZ24: 24.557 | CA24: 00:00:21 | CB24: 24.812 | CC24: 24.665 | CD24: 24.529 | CE24: 24.477 | CF24: 00:00:21 | CG24: 24.89 | CH24: 24.714 | CI24: 24.581 | CJ24: 24.316 | CK24: 00:00:21 | CL24: 25.791 | CM24: 25.298 | CN24: 25.401 | CO24: 24.194 | CP24: 00:00:21 | CQ24: 23.843 | CR24: 23.791 | CS24: 23.646 | CT24: 23.131 | CU24: 00:00:21 | CV24: 23.921 | CW24: 23.847 | CX24: 23.726 | CY24: 23.146 | CZ24: 00:00:21 | DA24: 23.901 | DB24: 23.809 | DC24: 23.687 | DD24: 23.167 | DE24: 00:00:21 | DF24: 23.997 | DG24: 23.896 | DH24: 23.796 | DI24: 23.195 | DJ24: 00:00:21 | DK24: 36.988 | DL24: 34.332 | DM24: 42.053 | DN24: 23.223 | DO24: 00:00:21 | DP24: 24.265 | DQ24: 24.133 | DR24: 24.081 | DS24: 23.299 | DT24: 00:00:21 | DU24: 24.619 | DV24: 25.147 | DW24: 25.221 | DX24: 23.431 | DY24: 00:00:21 | DZ24: 24.413 | EA24: 24.303 | EB24: 24.263 | EC24: 24.014 | ED24: 00:00:21 | EE24: 27.665 | EF24: 26.922 | EG24: 26.804 | EH24: 25.553 | EI24: 00:00:21 | EJ24: 25.646 | EK24: 25.631 | EL24: 25.377 | EM24: 24.917 | EN24: 00:00:21 | EO24: 25.86 | EP24: 25.72 | EQ24: 25.555 | ER24: 25.235 | ES24: 00:00:21 | ET24: 25.48 | EU24: 25.363 | EV24: 25.219 | EW24: 24.943 | EX24: 00:00:21 | EY24: 25.711 | EZ24: 25.572 | FA24: 25.432 | FB24: 25.237 | FC24: 00:00:21 | FD24: 25.723 | FE24: 25.587 | FF24: 25.44 | FG24: 25.227 | FH24: 00:00:21 | FI24: 29.759 | FJ24: 28.541 | FK24: 28.113 | FL24: 25.031 | FM24: 00:00:21 | FN24: 26.78 | FO24: 26.423 | FP24: 26.107 | FQ24: 25.191 | FR24: 00:00:21 | FS24: 24.39 | FT24: 24.409 | FU24: 24.339 | FV24: 24.486 | FW24: 00:00:21 | FX24: 34.231 | FY24: 32.555 | FZ24: 29.555 | GA24: 23.83 | GB24: 00:00:21 | GC24: 31.123 | GD24: 29.372 | GE24: 28.511 | GF24: 24.688 | GG24: 00:00:21 | GH24: 33.732 | GI24: 32.428 | GJ24: 30.744 | GK24: 25.645 | GL24: 00:00:21 | GM24: 25.863 | GN24: 25.911 | GO24: 25.642 | GP24: 25.701 | HN24: 00:00:21 | HO24: 26.015 | HP24: 25.948 | HQ24: 25.636 | HR24: 25.724 | HS24: 00:00:21 | HT24: 25.872 | HU24: 25.872 | HV24: 25.574 | HW24: 25.504 | HX24: 00:00:21 | HY24: 25.471 | HZ24: 25.512 | IA24: 25.262 | IB24: 25.162 | IC24: 00:00:21 | ID24: 25.731 | IE24: 25.619 | IF24: 25.444 | IG24: 25.242 | IH24: 00:00:21 | II24: 25.684 | IJ24: 25.608 | IK24: 25.358 | IL24: 25.259 | IM24: 00:00:21 | IN24: 25.739 | IO24: 25.705 | IP24: 25.411 | IQ24: 25.338 | IR24: 00:00:21 | IS24: 26.047 | IT24: 26.017 | IU24: 25.767 | IV24: 25.583
A25: 00:00:22 | B25: 24.547 | C25: 24.569 | D25: 24.473 | E25: 24.565 | F25: 00:00:22 | G25: 24.61 | H25: 24.613 | I25: 24.507 | J25: 24.544 | K25: 00:00:22 | L25: 24.619 | M25: 24.597 | N25: 24.481 | O25: 24.44 | P25: 00:00:22 | Q25: 24.737 | R25: 24.715 | S25: 24.595 | T25: 24.547 | U25: -0.005 | V25: 0.007 | W25: -0.005 | X25: 00:00:22 | Y25: 22.994 | Z25: 23.007 | AA25: 22.926 | AB25: 23.032 | AC25: 00:00:22 | AD25: 23.142 | AE25: 23.131 | AF25: 22.964 | AG25: 23.001 | AH25: 00:00:22 | AI25: 23.263 | AJ25: 23.189 | AK25: 23.047 | AL25: 23.099 | AM25: 00:00:22 | AN25: 23.292 | AO25: 23.195 | AP25: 23.051 | AQ25: 23.005 | AR25: 00:00:22 | AS25: 23.584 | AT25: 23.601 | AU25: 23.215 | AV25: 22.951 | AW25: 00:00:22 | AX25: 23.513 | AY25: 23.399 | AZ25: 23.226 | BA25: 23.145 | BB25: 00:00:22 | BC25: 23.661 | BD25: 23.514 | BE25: 23.382 | BF25: 23.29 | BG25: 00:00:22 | BH25: 23.701 | BI25: 23.583 | BJ25: 23.421 | BK25: 23.325 | BL25: 00:00:22 | BM25: 23.741 | BN25: 23.597 | BO25: 23.446 | BP25: 23.211 | BQ25: 00:00:22 | BR25: 23.828 | BS25: 23.673 | BT25: 23.522 | BU25: 23.272 | BV25: 00:00:22 | BW25: 24.712 | BX25: 24.606 | BY25: 24.462 | BZ25: 24.562 | CA25: 00:00:22 | CB25: 24.812 | CC25: 24.665 | CD25: 24.533 | CE25: 24.478 | CF25: 00:00:22 | CG25: 24.883 | CH25: 24.71 | CI25: 24.574 | CJ25: 24.305 | CK25: 00:00:22 | CL25: 25.772 | CM25: 25.29 | CN25: 25.386 | CO25: 24.15 | CP25: 00:00:22 | CQ25: 23.841 | CR25: 23.788 | CS25: 23.651 | CT25: 23.125 | CU25: 00:00:22 | CV25: 23.921 | CW25: 23.842 | CX25: 23.722 | CY25: 23.154 | CZ25: 00:00:22 | DA25: 23.904 | DB25: 23.813 | DC25: 23.693 | DD25: 23.165 | DE25: 00:00:22 | DF25: 23.999 | DG25: 23.897 | DH25: 23.796 | DI25: 23.193 | DJ25: 00:00:22 | DK25: 38.147 | DL25: 34.822 | DM25: 43.48 | DN25: 23.22 | DO25: 00:00:22 | DP25: 24.267 | DQ25: 24.144 | DR25: 24.081 | DS25: 23.297 | DT25: 00:00:22 | DU25: 25.754 | DV25: 27.009 | DW25: 27.263 | DX25: 23.434 | DY25: 00:00:22 | DZ25: 24.416 | EA25: 24.313 | EB25: 24.268 | EC25: 24.016 | ED25: 00:00:22 | EE25: 27.588 | EF25: 26.875 | EG25: 26.735 | EH25: 25.546 | EI25: 00:00:22 | EJ25: 25.646 | EK25: 25.624 | EL25: 25.378 | EM25: 24.918 | EN25: 00:00:22 | EO25: 25.853 | EP25: 25.728 | EQ25: 25.569 | ER25: 25.235 | ES25: 00:00:22 | ET25: 25.477 | EU25: 25.366 | EV25: 25.223 | EW25: 24.943 | EX25: 00:00:22 | EY25: 25.7 | EZ25: 25.564 | FA25: 25.428 | FB25: 25.229 | FC25: 00:00:22 | FD25: 25.719 | FE25: 25.58 | FF25: 25.436 | FG25: 25.226 | FH25: 00:00:22 | FI25: 30.059 | FJ25: 28.764 | FK25: 28.308 | FL25: 25.03 | FM25: 00:00:22 | FN25: 27.212 | FO25: 26.741 | FP25: 26.379 | FQ25: 25.191 | FR25: 00:00:22 | FS25: 24.391 | FT25: 24.424 | FU25: 24.343 | FV25: 24.494 | FW25: 00:00:22 | FX25: 35.772 | FY25: 33.786 | FZ25: 30.464 | GA25: 23.868 | GB25: 00:00:22 | GC25: 32.184 | GD25: 30.216 | GE25: 29.218 | GF25: 24.7 | GG25: 00:00:22 | GH25: 36.356 | GI25: 34.957 | GJ25: 32.61 | GK25: 25.679 | GL25: 00:00:22 | GM25: 25.871 | GN25: 25.915 | GO25: 25.65 | GP25: 25.738 | HN25: 00:00:22 | HO25: 26.008 | HP25: 25.941 | HQ25: 25.625 | HR25: 25.721 | HS25: 00:00:22 | HT25: 25.865 | HU25: 25.868 | HV25: 25.57 | HW25: 25.493 | HX25: 00:00:22 | HY25: 25.479 | HZ25: 25.519 | IA25: 25.265 | IB25: 25.173 | IC25: 00:00:22 | ID25: 25.724 | IE25: 25.617 | IF25: 25.433 | IG25: 25.246 | IH25: 00:00:22 | II25: 25.674 | IJ25: 25.597 | IK25: 25.354 | IL25: 25.251 | IM25: 00:00:22 | IN25: 25.739 | IO25: 25.705 | IP25: 25.404 | IQ25: 25.338 | IR25: 00:00:22 | IS25: 27.412 | IT25: 27.011 | IU25: 27.037 | IV25: 25.576
A26: 00:00:23 | B26: 24.544 | C26: 24.577 | D26: 24.474 | E26: 24.558 | F26: 00:00:23 | G26: 24.617 | H26: 24.617 | I26: 24.511 | J26: 24.551 | K26: 00:00:23 | L26: 24.621 | M26: 24.597 | N26: 24.483 | O26: 24.431 | P26: 00:00:23 | Q26: 24.732 | R26: 24.715 | S26: 24.59 | T26: 24.546 | U26: -0.005 | V26: 0.002 | W26: -0.01 | X26: 00:00:23 | Y26: 22.99 | Z26: 23.009 | AA26: 22.92 | AB26: 23.031 | AC26: 00:00:23 | AD26: 23.148 | AE26: 23.133 | AF26: 22.959 | AG26: 22.997 | AH26: 00:00:23 | AI26: 23.263 | AJ26: 23.191 | AK26: 23.049 | AL26: 23.103 | AM26: 00:00:23 | AN26: 23.292 | AO26: 23.195 | AP26: 23.05 | AQ26: 23.007 | AR26: 00:00:23 | AS26: 23.577 | AT26: 23.599 | AU26: 23.204 | AV26: 22.952 | AW26: 00:00:23 | AX26: 23.52 | AY26: 23.399 | AZ26: 23.229 | BA26: 23.145 | BB26: 00:00:23 | BC26: 23.658 | BD26: 23.518 | BE26: 23.378 | BF26: 23.29 | BG26: 00:00:23 | BH26: 23.708 | BI26: 23.583 | BJ26: 23.425 | BK26: 23.322 | BL26: 00:00:23 | BM26: 23.734 | BN26: 23.594 | BO26: 23.45 | BP26: 23.207 | BQ26: 00:00:23 | BR26: 23.835 | BS26: 23.666 | BT26: 23.53 | BU26: 23.272 | BV26: 00:00:23 | BW26: 24.713 | BX26: 24.61 | BY26: 24.47 | BZ26: 24.558 | CA26: 00:00:23 | CB26: 24.809 | CC26: 24.654 | CD26: 24.526 | CE26: 24.481 | CF26: 00:00:23 | CG26: 24.894 | CH26: 24.707 | CI26: 24.578 | CJ26: 24.309 | CK26: 00:00:23 | CL26: 25.765 | CM26: 25.28 | CN26: 25.372 | CO26: 24.154 | CP26: 00:00:23 | CQ26: 23.841 | CR26: 23.78 | CS26: 23.644 | CT26: 23.129 | CU26: 00:00:23 | CV26: 23.925 | CW26: 23.845 | CX26: 23.73 | CY26: 23.156 | CZ26: 00:00:23 | DA26: 23.905 | DB26: 23.813 | DC26: 23.693 | DD26: 23.169 | DE26: 00:00:23 | DF26: 24.002 | DG26: 23.899 | DH26: 23.796 | DI26: 23.199 | DJ26: 00:00:23 | DK26: 39.244 | DL26: 35.234 | DM26: 44.805 | DN26: 23.22 | DO26: 00:00:23 | DP26: 24.267 | DQ26: 24.133 | DR26: 24.072 | DS26: 23.301 | DT26: 00:00:23 | DU26: 27.25 | DV26: 29.202 | DW26: 29.792 | DX26: 23.431 | DY26: 00:00:23 | DZ26: 24.421 | EA26: 24.318 | EB26: 24.267 | EC26: 24.017 | ED26: 00:00:23 | EE26: 27.491 | EF26: 26.814 | EG26: 26.658 | EH26: 25.534 | EI26: 00:00:23 | EJ26: 25.657 | EK26: 25.639 | EL26: 25.389 | EM26: 24.918 | EN26: 00:00:23 | EO26: 25.86 | EP26: 25.739 | EQ26: 25.562 | ER26: 25.238 | ES26: 00:00:23 | ET26: 25.48 | EU26: 25.359 | EV26: 25.223 | EW26: 24.947 | EX26: 00:00:23 | EY26: 25.704 | EZ26: 25.568 | FA26: 25.428 | FB26: 25.237 | FC26: 00:00:23 | FD26: 25.723 | FE26: 25.587 | FF26: 25.433 | FG26: 25.223 | FH26: 00:00:23 | FI26: 30.438 | FJ26: 29.062 | FK26: 28.562 | FL26: 25.026 | FM26: 00:00:23 | FN26: 27.663 | FO26: 27.082 | FP26: 26.688 | FQ26: 25.191 | FR26: 00:00:23 | FS26: 24.395 | FT26: 24.421 | FU26: 24.347 | FV26: 24.491 | FW26: 00:00:23 | FX26: 39.142 | FY26: 36.439 | FZ26: 32.464 | GA26: 23.908 | GB26: 00:00:23 | GC26: 34.37 | GD26: 32.053 | GE26: 30.719 | GF26: 24.737 | GG26: 00:00:23 | GH26: 37.689 | GI26: 36.334 | GJ26: 33.562 | GK26: 25.73 | GL26: 00:00:23 | GM26: 25.875 | GN26: 25.915 | GO26: 25.661 | GP26: 25.742 | HN26: 00:00:23 | HO26: 26.015 | HP26: 25.956 | HQ26: 25.636 | HR26: 25.724 | HS26: 00:00:23 | HT26: 25.845 | HU26: 25.856 | HV26: 25.563 | HW26: 25.495 | HX26: 00:00:23 | HY26: 25.479 | HZ26: 25.523 | IA26: 25.266 | IB26: 25.179 | IC26: 00:00:23 | ID26: 25.72 | IE26: 25.606 | IF26: 25.43 | IG26: 25.246 | IH26: 00:00:23 | II26: 25.671 | IJ26: 25.601 | IK26: 25.34 | IL26: 25.251 | IM26: 00:00:23 | IN26: 25.744 | IO26: 25.707 | IP26: 25.413 | IQ26: 25.345 | IR26: 00:00:23 | IS26: 30.083 | IT26: 29.042 | IU26: 29.476 | IV26: 25.576
A27: 00:00:24 | B27: 24.544 | C27: 24.573 | D27: 24.485 | E27: 24.559 | F27: 00:00:24 | G27: 24.614 | H27: 24.61 | I27: 24.507 | J27: 24.551 | K27: 00:00:24 | L27: 24.617 | M27: 24.597 | N27: 24.485 | O27: 24.437 | P27: 00:00:24 | Q27: 24.732 | R27: 24.71 | S27: 24.588 | T27: 24.548 | U27: -0.01 | V27: 0.002 | W27: -0.012 | X27: 00:00:24 | Y27: 23.002 | Z27: 23.015 | AA27: 22.923 | AB27: 23.037 | AC27: 00:00:24 | AD27: 23.156 | AE27: 23.141 | AF27: 22.965 | AG27: 23.007 | AH27: 00:00:24 | AI27: 23.267 | AJ27: 23.197 | AK27: 23.05 | AL27: 23.103 | AM27: 00:00:24 | AN27: 23.295 | AO27: 23.193 | AP27: 23.052 | AQ27: 23.015 | AR27: 00:00:24 | AS27: 23.576 | AT27: 23.594 | AU27: 23.2 | AV27: 22.961 | AW27: 00:00:24 | AX27: 23.535 | AY27: 23.402 | AZ27: 23.233 | BA27: 23.152 | BB27: 00:00:24 | BC27: 23.666 | BD27: 23.518 | BE27: 23.379 | BF27: 23.298 | BG27: 00:00:24 | BH27: 23.701 | BI27: 23.58 | BJ27: 23.421 | BK27: 23.322 | BL27: 00:00:24 | BM27: 23.737 | BN27: 23.594 | BO27: 23.447 | BP27: 23.208 | BQ27: 00:00:24 | BR27: 23.835 | BS27: 23.677 | BT27: 23.523 | BU27: 23.284 | BV27: 00:00:24 | BW27: 24.709 | BX27: 24.606 | BY27: 24.474 | BZ27: 24.558 | CA27: 00:00:24 | CB27: 24.809 | CC27: 24.655 | CD27: 24.522 | CE27: 24.478 | CF27: 00:00:24 | CG27: 24.898 | CH27: 24.718 | CI27: 24.582 | CJ27: 24.321 | CK27: 00:00:24 | CL27: 25.762 | CM27: 25.276 | CN27: 25.353 | CO27: 24.139 | CP27: 00:00:24 | CQ27: 23.836 | CR27: 23.788 | CS27: 23.644 | CT27: 23.125 | CU27: 00:00:24 | CV27: 23.921 | CW27: 23.847 | CX27: 23.722 | CY27: 23.15 | CZ27: 00:00:24 | DA27: 23.903 | DB27: 23.815 | DC27: 23.688 | DD27: 23.171 | DE27: 00:00:24 | DF27: 24.004 | DG27: 23.905 | DH27: 23.798 | DI27: 23.195 | DJ27: 00:00:24 | DK27: 40.274 | DL27: 35.661 | DM27: 46.029 | DN27: 23.218 | DO27: 00:00:24 | DP27: 24.267 | DQ27: 24.137 | DR27: 24.072 | DS27: 23.292 | DT27: 00:00:24 | DU27: 28.963 | DV27: 31.574 | DW27: 32.583 | DX27: 23.436 | DY27: 00:00:24 | DZ27: 24.416 | EA27: 24.318 | EB27: 24.269 | EC27: 24.02 | ED27: 00:00:24 | EE27: 27.431 | EF27: 26.772 | EG27: 26.607 | EH27: 25.521 | EI27: 00:00:24 | EJ27: 25.654 | EK27: 25.632 | EL27: 25.393 | EM27: 24.918 | EN27: 00:00:24 | EO27: 25.875 | EP27: 25.761 | EQ27: 25.573 | ER27: 25.238 | ES27: 00:00:24 | ET27: 25.48 | EU27: 25.366 | EV27: 25.223 | EW27: 24.947 | EX27: 00:00:24 | EY27: 25.708 | EZ27: 25.572 | FA27: 25.428 | FB27: 25.237 | FC27: 00:00:24 | FD27: 25.712 | FE27: 25.584 | FF27: 25.436 | FG27: 25.223 | FH27: 00:00:24 | FI27: 30.704 | FJ27: 29.274 | FK27: 28.738 | FL27: 25.022 | FM27: 00:00:24 | FN27: 28.307 | FO27: 27.553 | FP27: 27.119 | FQ27: 25.191 | FR27: 00:00:24 | FS27: 24.396 | FT27: 24.429 | FU27: 24.352 | FV27: 24.495 | FW27: 00:00:24 | FX27: 42.83 | FY27: 39.299 | FZ27: 34.661 | GA27: 23.978 | GB27: 00:00:24 | GC27: 36.629 | GD27: 34.061 | GE27: 32.265 | GF27: 24.796 | GG27: 00:00:24 | GH27: 40.402 | GI27: 39.406 | GJ27: 35.497 | GK27: 25.83 | GL27: 00:00:24 | GM27: 25.886 | GN27: 25.927 | GO27: 25.666 | GP27: 25.772 | HN27: 00:00:24 | HO27: 26.015 | HP27: 25.953 | HQ27: 25.632 | HR27: 25.732 | HS27: 00:00:24 | HT27: 25.85 | HU27: 25.858 | HV27: 25.56 | HW27: 25.49 | HX27: 00:00:24 | HY27: 25.479 | HZ27: 25.523 | IA27: 25.262 | IB27: 25.188 | IC27: 00:00:24 | ID27: 25.711 | IE27: 25.606 | IF27: 25.426 | IG27: 25.26 | IH27: 00:00:24 | II27: 25.669 | IJ27: 25.594 | IK27: 25.345 | IL27: 25.255 | IM27: 00:00:24 | IN27: 25.743 | IO27: 25.706 | IP27: 25.408 | IQ27: 25.341 | IR27: 00:00:24 | IS27: 31.872 | IT27: 30.454 | IU27: 31.096 | IV27: 25.58
A28: 00:00:25 | B28: 24.552 | C28: 24.577 | D28: 24.482 | E28: 24.555 | F28: 00:00:25 | G28: 24.629 | H28: 24.625 | I28: 24.519 | J28: 24.556 | K28: 00:00:25 | L28: 24.623 | M28: 24.599 | N28: 24.483 | O28: 24.436 | P28: 00:00:25 | Q28: 24.728 | R28: 24.71 | S28: 24.585 | T28: 24.541 | U28: -0.01 | V28: -0.002 | W28: -0.015 | X28: 00:00:25 | Y28: 22.998 | Z28: 23.015 | AA28: 22.921 | AB28: 23.029 | AC28: 00:00:25 | AD28: 23.151 | AE28: 23.136 | AF28: 22.969 | AG28: 23.005 | AH28: 00:00:25 | AI28: 23.274 | AJ28: 23.203 | AK28: 23.057 | AL28: 23.109 | AM28: 00:00:25 | AN28: 23.298 | AO28: 23.199 | AP28: 23.054 | AQ28: 23.011 | AR28: 00:00:25 | AS28: 23.576 | AT28: 23.583 | AU28: 23.19 | AV28: 22.958 | AW28: 00:00:25 | AX28: 23.52 | AY28: 23.41 | AZ28: 23.23 | BA28: 23.149 | BB28: 00:00:25 | BC28: 23.655 | BD28: 23.508 | BE28: 23.372 | BF28: 23.283 | BG28: 00:00:25 | BH28: 23.698 | BI28: 23.576 | BJ28: 23.414 | BK28: 23.319 | BL28: 00:00:25 | BM28: 23.741 | BN28: 23.598 | BO28: 23.458 | BP28: 23.222 | BQ28: 00:00:25 | BR28: 23.836 | BS28: 23.677 | BT28: 23.53 | BU28: 23.28 | BV28: 00:00:25 | BW28: 24.713 | BX28: 24.61 | BY28: 24.47 | BZ28: 24.559 | CA28: 00:00:25 | CB28: 24.809 | CC28: 24.659 | CD28: 24.53 | CE28: 24.489 | CF28: 00:00:25 | CG28: 24.899 | CH28: 24.726 | CI28: 24.593 | CJ28: 24.339 | CK28: 00:00:25 | CL28: 25.758 | CM28: 25.269 | CN28: 25.328 | CO28: 24.132 | CP28: 00:00:25 | CQ28: 23.839 | CR28: 23.788 | CS28: 23.652 | CT28: 23.127 | CU28: 00:00:25 | CV28: 23.912 | CW28: 23.844 | CX28: 23.72 | CY28: 23.152 | CZ28: 00:00:25 | DA28: 23.899 | DB28: 23.807 | DC28: 23.688 | DD28: 23.169 | DE28: 00:00:25 | DF28: 24.001 | DG28: 23.905 | DH28: 23.802 | DI28: 23.202 | DJ28: 00:00:25 | DK28: 41.244 | DL28: 36.062 | DM28: 47.112 | DN28: 23.225 | DO28: 00:00:25 | DP28: 24.262 | DQ28: 24.129 | DR28: 24.074 | DS28: 23.289 | DT28: 00:00:25 | DU28: 30.807 | DV28: 34.001 | DW28: 35.474 | DX28: 23.433 | DY28: 00:00:25 | DZ28: 24.422 | EA28: 24.324 | EB28: 24.28 | EC28: 24.03 | ED28: 00:00:25 | EE28: 27.363 | EF28: 26.73 | EG28: 26.552 | EH28: 25.505 | EI28: 00:00:25 | EJ28: 25.658 | EK28: 25.639 | EL28: 25.389 | EM28: 24.922 | EN28: 00:00:25 | EO28: 25.897 | EP28: 25.77 | EQ28: 25.596 | ER28: 25.241 | ES28: 00:00:25 | ET28: 25.495 | EU28: 25.378 | EV28: 25.227 | EW28: 24.951 | EX28: 00:00:25 | EY28: 25.712 | EZ28: 25.575 | FA28: 25.439 | FB28: 25.237 | FC28: 00:00:25 | FD28: 25.72 | FE28: 25.576 | FF28: 25.429 | FG28: 25.219 | FH28: 00:00:25 | FI28: 30.966 | FJ28: 29.478 | FK28: 28.911 | FL28: 25.026 | FM28: 00:00:25 | FN28: 28.796 | FO28: 27.915 | FP28: 27.452 | FQ28: 25.189 | FR28: 00:00:25 | FS28: 24.396 | FT28: 24.415 | FU28: 24.345 | FV28: 24.496 | FW28: 00:00:25 | FX28: 44.777 | FY28: 40.804 | FZ28: 35.831 | GA28: 24.045 | GB28: 00:00:25 | GC28: 37.766 | GD28: 35.147 | GE28: 33.041 | GF28: 24.822 | GG28: 00:00:25 | GH28: 43.115 | GI28: 42.567 | GJ28: 37.425 | GK28: 25.934 | GL28: 00:00:25 | GM28: 25.909 | GN28: 25.946 | GO28: 25.692 | GP28: 25.802 | HN28: 00:00:25 | HO28: 26.011 | HP28: 25.953 | HQ28: 25.632 | HR28: 25.728 | HS28: 00:00:25 | HT28: 25.847 | HU28: 25.858 | HV28: 25.552 | HW28: 25.494 | HX28: 00:00:25 | HY28: 25.475 | HZ28: 25.516 | IA28: 25.266 | IB28: 25.196 | IC28: 00:00:25 | ID28: 25.709 | IE28: 25.606 | IF28: 25.422 | IG28: 25.268 | IH28: 00:00:25 | II28: 25.678 | IJ28: 25.601 | IK28: 25.351 | IL28: 25.263 | IM28: 00:00:25 | IN28: 25.735 | IO28: 25.709 | IP28: 25.404 | IQ28: 25.345 | IR28: 00:00:25 | IS28: 36.123 | IT28: 33.948 | IU28: 34.874 | IV28: 25.591
A29: 00:00:26 | B29: 24.548 | C29: 24.574 | D29: 24.475 | E29: 24.559 | F29: 00:00:26 | G29: 24.625 | H29: 24.622 | I29: 24.504 | J29: 24.548 | K29: 00:00:26 | L29: 24.622 | M29: 24.598 | N29: 24.485 | O29: 24.434 | P29: 00:00:26 | Q29: 24.725 | R29: 24.71 | S29: 24.579 | T29: 24.543 | U29: -0.01 | V29: -0.005 | W29: -0.021 | X29: 00:00:26 | Y29: 22.999 | Z29: 23.019 | AA29: 22.916 | AB29: 23.034 | AC29: 00:00:26 | AD29: 23.156 | AE29: 23.14 | AF29: 22.963 | AG29: 23.006 | AH29: 00:00:26 | AI29: 23.269 | AJ29: 23.192 | AK29: 23.047 | AL29: 23.102 | AM29: 00:00:26 | AN29: 23.289 | AO29: 23.197 | AP29: 23.052 | AQ29: 23.015 | AR29: 00:00:26 | AS29: 23.574 | AT29: 23.58 | AU29: 23.184 | AV29: 22.96 | AW29: 00:00:26 | AX29: 23.524 | AY29: 23.406 | AZ29: 23.234 | BA29: 23.145 | BB29: 00:00:26 | BC29: 23.648 | BD29: 23.508 | BE29: 23.375 | BF29: 23.287 | BG29: 00:00:26 | BH29: 23.69 | BI29: 23.573 | BJ29: 23.407 | BK29: 23.319 | BL29: 00:00:26 | BM29: 23.745 | BN29: 23.605 | BO29: 23.454 | BP29: 23.226 | BQ29: 00:00:26 | BR29: 23.832 | BS29: 23.674 | BT29: 23.53 | BU29: 23.284 | BV29: 00:00:26 | BW29: 24.713 | BX29: 24.607 | BY29: 24.471 | BZ29: 24.544 | CA29: 00:00:26 | CB29: 24.81 | CC29: 24.666 | CD29: 24.53 | CE29: 24.493 | CF29: 00:00:26 | CG29: 24.888 | CH29: 24.715 | CI29: 24.579 | CJ29: 24.318 | CK29: 00:00:26 | CL29: 25.744 | CM29: 25.266 | CN29: 25.295 | CO29: 24.114 | CP29: 00:00:26 | CQ29: 23.843 | CR29: 23.788 | CS29: 23.646 | CT29: 23.126 | CU29: 00:00:26 | CV29: 23.919 | CW29: 23.837 | CX29: 23.715 | CY29: 23.149 | CZ29: 00:00:26 | DA29: 23.896 | DB29: 23.807 | DC29: 23.684 | DD29: 23.167 | DE29: 00:00:26 | DF29: 24.006 | DG29: 23.905 | DH29: 23.8 | DI29: 23.206 | DJ29: 00:00:26 | DK29: 42.105 | DL29: 36.344 | DM29: 48.025 | DN29: 23.22 | DO29: 00:00:26 | DP29: 24.26 | DQ29: 24.124 | DR29: 24.069 | DS29: 23.287 | DT29: 00:00:26 | DU29: 32.7 | DV29: 36.307 | DW29: 38.371 | DX29: 23.425 | DY29: 00:00:26 | DZ29: 24.427 | EA29: 24.328 | EB29: 24.278 | EC29: 24.03 | ED29: 00:00:26 | EE29: 27.282 | EF29: 26.677 | EG29: 26.493 | EH29: 25.5 | EI29: 00:00:26 | EJ29: 25.665 | EK29: 25.643 | EL29: 25.4 | EM29: 24.922 | EN29: 00:00:26 | EO29: 25.919 | EP29: 25.776 | EQ29: 25.603 | ER29: 25.239 | ES29: 00:00:26 | ET29: 25.484 | EU29: 25.37 | EV29: 25.223 | EW29: 24.947 | EX29: 00:00:26 | EY29: 25.704 | EZ29: 25.575 | FA29: 25.425 | FB29: 25.237 | FC29: 00:00:26 | FD29: 25.764 | FE29: 25.62 | FF29: 25.458 | FG29: 25.219 | FH29: 00:00:26 | FI29: 31.305 | FJ29: 29.75 | FK29: 29.125 | FL29: 25.03 | FM29: 00:00:26 | FN29: 29.282 | FO29: 28.278 | FP29: 27.777 | FQ29: 25.191 | FR29: 00:00:26 | FS29: 24.397 | FT29: 24.426 | FU29: 24.349 | FV29: 24.496 | FW29: 00:00:26 | FX29: 48.737 | FY29: 43.962 | FZ29: 38.232 | GA29: 24.155 | GB29: 00:00:26 | GC29: 40.047 | GD29: 37.504 | GE29: 34.6 | GF29: 24.87 | GG29: 00:00:26 | GH29: 44.453 | GI29: 43.982 | GJ29: 38.379 | GK29: 25.953 | GL29: 00:00:26 | GM29: 25.905 | GN29: 25.961 | GO29: 25.692 | GP29: 25.81 | HN29: 00:00:26 | HO29: 26.026 | HP29: 25.96 | HQ29: 25.636 | HR29: 25.732 | HS29: 00:00:26 | HT29: 25.843 | HU29: 25.86 | HV29: 25.566 | HW29: 25.494 | HX29: 00:00:26 | HY29: 25.474 | HZ29: 25.514 | IA29: 25.269 | IB29: 25.205 | IC29: 00:00:26 | ID29: 25.713 | IE29: 25.606 | IF29: 25.422 | IG29: 25.268 | IH29: 00:00:26 | II29: 25.667 | IJ29: 25.59 | IK29: 25.351 | IL29: 25.251 | IM29: 00:00:26 | IN29: 25.923 | IO29: 25.859 | IP29: 25.647 | IQ29: 25.343 | IR29: 00:00:26 | IS29: 40.888 | IT29: 37.941 | IU29: 39.136 | IV29: 25.646
A30: 00:00:27 | B30: 24.556 | C30: 24.578 | D30: 24.479 | E30: 24.556 | F30: 00:00:27 | G30: 24.611 | H30: 24.611 | I30: 24.512 | J30: 24.549 | K30: 00:00:27 | L30: 24.626 | M30: 24.602 | N30: 24.488 | O30: 24.438 | P30: 00:00:27 | Q30: 24.727 | R30: 24.705 | S30: 24.581 | T30: 24.537 | U30: -0.015 | V30: -0.003 | W30: -0.019 | X30: 00:00:27 | Y30: 22.997 | Z30: 23.019 | AA30: 22.923 | AB30: 23.032 | AC30: 00:00:27 | AD30: 23.151 | AE30: 23.137 | AF30: 22.962 | AG30: 23.004 | AH30: 00:00:27 | AI30: 23.268 | AJ30: 23.196 | AK30: 23.045 | AL30: 23.108 | AM30: 00:00:27 | AN30: 23.297 | AO30: 23.192 | AP30: 23.049 | AQ30: 23.016 | AR30: 00:00:27 | AS30: 23.566 | AT30: 23.575 | AU30: 23.177 | AV30: 22.968 | AW30: 00:00:27 | AX30: 23.535 | AY30: 23.407 | AZ30: 23.237 | BA30: 23.153 | BB30: 00:00:27 | BC30: 23.655 | BD30: 23.508 | BE30: 23.372 | BF30: 23.298 | BG30: 00:00:27 | BH30: 23.705 | BI30: 23.584 | BJ30: 23.415 | BK30: 23.326 | BL30: 00:00:27 | BM30: 23.745 | BN30: 23.605 | BO30: 23.455 | BP30: 23.238 | BQ30: 00:00:27 | BR30: 23.832 | BS30: 23.67 | BT30: 23.531 | BU30: 23.291 | BV30: 00:00:27 | BW30: 24.703 | BX30: 24.603 | BY30: 24.467 | BZ30: 24.537 | CA30: 00:00:27 | CB30: 24.81 | CC30: 24.652 | CD30: 24.527 | CE30: 24.471 | CF30: 00:00:27 | CG30: 24.899 | CH30: 24.719 | CI30: 24.59 | CJ30: 24.329 | CK30: 00:00:27 | CL30: 25.726 | CM30: 25.244 | CN30: 25.269 | CO30: 24.107 | CP30: 00:00:27 | CQ30: 23.838 | CR30: 23.786 | CS30: 23.645 | CT30: 23.129 | CU30: 00:00:27 | CV30: 23.912 | CW30: 23.838 | CX30: 23.715 | CY30: 23.15 | CZ30: 00:00:27 | DA30: 23.9 | DB30: 23.804 | DC30: 23.686 | DD30: 23.169 | DE30: 00:00:27 | DF30: 24.012 | DG30: 23.905 | DH30: 23.802 | DI30: 23.205 | DJ30: 00:00:27 | DK30: 42.895 | DL30: 36.59 | DM30: 48.859 | DN30: 23.222 | DO30: 00:00:27 | DP30: 24.264 | DQ30: 24.133 | DR30: 24.071 | DS30: 23.289 | DT30: 00:00:27 | DU30: 34.613 | DV30: 38.387 | DW30: 41.216 | DX30: 23.425 | DY30: 00:00:27 | DZ30: 24.426 | EA30: 24.328 | EB30: 24.271 | EC30: 24.025 | ED30: 00:00:27 | EE30: 27.222 | EF30: 26.644 | EG30: 26.449 | EH30: 25.489 | EI30: 00:00:27 | EJ30: 25.673 | EK30: 25.647 | EL30: 25.393 | EM30: 24.922 | EN30: 00:00:27 | EO30: 25.927 | EP30: 25.805 | EQ30: 25.621 | ER30: 25.242 | ES30: 00:00:27 | ET30: 25.495 | EU30: 25.385 | EV30: 25.23 | EW30: 24.958 | EX30: 00:00:27 | EY30: 25.712 | EZ30: 25.579 | FA30: 25.432 | FB30: 25.241 | FC30: 00:00:27 | FD30: 25.882 | FE30: 25.716 | FF30: 25.539 | FG30: 25.223 | FH30: 00:00:27 | FI30: 31.536 | FJ30: 29.947 | FK30: 29.27 | FL30: 25.035 | FM30: 00:00:27 | FN30: 29.922 | FO30: 28.771 | FP30: 28.215 | FQ30: 25.183 | FR30: 00:00:27 | FS30: 24.394 | FT30: 24.412 | FU30: 24.338 | FV30: 24.482 | FW30: 00:00:27 | FX30: 52.676 | FY30: 47.486 | FZ30: 40.667 | GA30: 24.296 | GB30: 00:00:27 | GC30: 42.277 | GD30: 39.723 | GE30: 36.135 | GF30: 24.94 | GG30: 00:00:27 | GH30: 47.125 | GI30: 46.788 | GJ30: 40.24 | GK30: 25.968 | GL30: 00:00:27 | GM30: 25.917 | GN30: 25.958 | GO30: 25.7 | GP30: 25.833 | HN30: 00:00:27 | HO30: 26.023 | HP30: 25.956 | HQ30: 25.651 | HR30: 25.736 | HS30: 00:00:27 | HT30: 25.833 | HU30: 25.862 | HV30: 25.564 | HW30: 25.479 | HX30: 00:00:27 | HY30: 25.483 | HZ30: 25.524 | IA30: 25.277 | IB30: 25.207 | IC30: 00:00:27 | ID30: 25.7 | IE30: 25.595 | IF30: 25.406 | IG30: 25.266 | IH30: 00:00:27 | II30: 25.666 | IJ30: 25.587 | IK30: 25.342 | IL30: 25.254 | IM30: 00:00:27 | IN30: 26.563 | IO30: 26.368 | IP30: 26.258 | IQ30: 25.349 | IR30: 00:00:27 | IS30: 43.354 | IT30: 40.036 | IU30: 41.323 | IV30: 25.65
